Workbook

Sheet GuiadeUso (hidden)
E8: GUÍA DE USO - COTIZADOR HOGAR
C10: Este archivo debe usarse con versiones de Excel 2003 en adelante. Además, debe tener instalado el complemento de "Guardar como PDF para Office" en su PC.
C13: Si le apareciera el botón Habilitar Contenido, haga click en el mismo. Luego le aparecerá una ventana en la cual debe seleccionar la opción "Habilitar Macros" y dar click en Aceptar.
C17: REALIZAR COTIZACIÓN
C18: 1. Ud. cuenta con 3 secciones en el cotizador:
C19: (i) Datos del agente
C20: (ii) Datos del cliente
C21: (iii) Información para cotizar
C23: 2 . Los campos de color celeste son obligatorios. Debe llenarlos sino no podrá continuar.
C25: 3. En la sección "Información para cotizar" deberás elegir una opción para cada una de las preguntas establecidas ( tipo de cliente, materia asegurada, modo a asegurar, tipo de vivienda y moneda),
C28: 4.Luego haz click en el botón "Ir a coberturas"
C30: 5.Ingresar las sumas aseguradas de la edificación y/o contenido según lo que se desea asegurar; o hacer uso del valorizador de inmueble si es que el cliente vive en Lima y quiere obtener un valor referencial.
C34: 6.Según las opciones que se hayan elegido en el paso 3, aparecerán coberturas preseleccionadas a manera de sugerencia según el tipo de cliente. Podrás mantener estas coberturas o deseleccionarlas borrando la X o dando doble click en los recuadros. De la misma manera podrás seleccionar cualquier cobertura colocando una X o dando doble click en los recuadros.
C39: 7. Al confirmar coberturas seleccionadas, ir a la parte superior y presionar "Ir al cotizador"
C41: 8. Seleccionar la forma de pago
C43: 9. Para obtener un archivo PDF de la Cotización de Seguro, debe presionar el botón: "COTIZACIÓN EN PDF".
C46: INGRESAR SOLICITUD
C47: 1. Los campos de color celeste son obligatorios. Debe llenarlos sino no podrá continuar.
C48: 2. Ud. cuenta con 6 secciones:
C49: (i) Datos Generales -> Informacion del Asegurado
C50: (ii) Datos Generales -> Informacion del Contratante
C51: (iii) Datos del Negocio (Datos vienen de la hoja Cotizador)
C52: (iv) Declaracion Jurada
C53: (v) Pago de Primas (Datos vienen de la hoja Cotizador)
C54: (vi) Datos del Corredor de Seguros
C55: 3. Para obtener un archivo PDF de la Solicitud de Seguro, debe presionar el botón: "SOLICITUD DE SEGURO EN PDF"
C57: PARA EMISIÓN
C58: 1.- Enviar al buzon emisionrapida@pacifico.com.pe
C59: (I) Solicitud PDF
C60: (ii) Slip de cotizacion
C61: (iii) Información para emisión (afiliación al débito automático)

Sheet Panel
M1: VERSION
M2: =configuracion!$K$2 -> Abril 2022

Sheet Cotizador
A1: 0 | G1: ="Cotizador de Hogar Flex " & configuracion!$K$2 -> Cotizador de Hogar Flex Abril 2022 | Q1: Ir a Panel
B6: Fecha de la cotización: | G6: =TODAY() -> 2022-04-04 | J6: Fecha Inicio de Vigencia
B8: Datos del Agente
B10: Agente | G10: Corredor | K10: Código del Agente | O10: Nombre del Agente
B12: Datos del Cliente
B14: Tipo de Documento*: | K14: Nro Documento:
B15: Nombre / Razón Social*: | K15: Apellido Paterno: | Q15: Apellido Materno:
B16: E-mail
B17: Teléfono
B18: Celular
B20: Información para cotizar
B22: Dirección exacta del riesgo:
B23: Nro | W23: Nota
B24: Dpto | J24: Urbanización | W24: Para seleccionar o deseleccionar las opciones, dar doble click en los recuadros. NO ESCRIBIR NI BORRAR.
B25: Distrito | J25: Mza/Lt | W25: La sección de coberturas se mostrará una vez se seleccione: lo que se desea cotizar,
B26: Provincia | J26: Departamento | W26: el modo de aseguramiento y la moneda.
B27: Tipo de Cliente
B29: ¿Qué desea cotizar? | J29: Bienes | M29: Inmueble + Bienes
B31: Elige el modo a asegurar | J31: A valor total
B33: Tipo de Vivienda
B34: Casa
B35: Departamento
B37: Moneda | J37: Dólares
B39: Suma Asegurada
B40: Inmueble
B41: Bienes
B43: Límite asegurado por vigencia
Y48: 1
E49: Confirmo que el inmueble: tiene menos de 50 años de construido o remodelado, el material de construcción es de concreto armado o mampostería y/o acero metálico y además está ubicado a más de 500 metros de distancia del mar, río, laguna, lago y a más de 15 metros de altura de alguno de estos.
C50: X
E52: ="Descuento de " & TEXT(configuracion!$BH$2,"0%") & " de descuento por afiliación al débito automático y emisión de póliza electrónica (respetando prima mínima)" -> Descuento de 15% de descuento por afiliación al débito automático y emisión de póliza electrónica (respetando prima mínima) | AE52: Prima con Dcto
C53: SI | AA53: Incendio | AB53: robo | AC53: total | AE53: Incendio | AF53: robo | AG53: total
F54: Prima comercial | AA54: ='VALOR TOTAL INMUEBLE +BIENES'!$M$3 -> 473.78 | AB54: ='VALOR TOTAL INMUEBLE +BIENES'!$N$3 -> 0 | AC54: =SUM(AA54:AB54) -> 473.78 | AE54: =IF(IF(LEN($AA$54)>0,$AA$54-$AA$54*$L$53,"")>51.5,IF(LEN($AA$54)>0,$AA$54-$AA$54*$L$53,""),$AA$54) -> 473.78 | AF54: =IF(IF(LEN($AB$54)>0,$AB$54-$AB$54*$L$53,"")>51.5,IF(LEN($AB$54)>0,$AB$54-$AB$54*$L$53,""),$AB$54) -> 0 | AG54: =SUM(AE54:AF54) -> 473.78
F55: Igv
F56: Prima total
B59: Formas de pago | I59: Marcar
B60: Débito automático | C60: No olvides llenar el formato de débito automático | I60: con una X
B61: Al contado. Prima Comercial + IGV: | J61: =IF($I$61="X",$G$56,"-.-") -> -.-
B62: 4 cuotas sin intereses + IGV Sin Intereses: | J62: =IF($I$62="X",$G$56/4,"-.-") -> -.-
B63: 6 cuotas Prima Comercial + IGV Sin Intereses: | J63: =IF($I$63="X",$G$56/6,"-.-") -> -.-
B64: 12 cuotas Prima Comercial + IGV Sin Intereses: | J64: =IF($I$64="X",$G$56/12,"-.-") -> -.-
B65: Cupones
B66: Contado 1 cupón Prima Comercial + IGV Sin Intereses: | J66: =IF($I$66="X",$G$56,"-.-") -> -.-
B67: 4 cupones Prima Comercial + IGV Sin Intereses: | J67: =IF($I$67="X",$G$56/4,"-.-") -> -.-
B68: 6 cupones Prima Comercial + IGV con Intereses: | J68: =IF($I$68="X",$G$56*tasasCupones!$C$18,"-.-") -> -.-
B71: Consideraciones :
E72: - La modalidad de aseguramiento que brinda este plan de seguros es a valor total.
E73: - La forma de entrega de la póliza es electrónica o física.
E74: - La forma de pago de la póliza es con afiliación al débito automático a una tarjeta de crédito o a una cuenta bancaria o cupones.
E75: - Las asistencias de mascotas son válidas solo para Lima Metropolitana y por el primer año de vigencia de la póliza.
E76: - La cobertura principal comprende además cualquier otro riesgo, súbito e imprevisto, que no esté excluido explícitamente en las exclusiones de las Condiciones Generales y/o Cláusulas Adicionales de la Póliza.
E77: - Las coberturas señaladas en Coberturas Adicionales forman parte de la suma asegurada de la Cobertura Principal, es decir, cada indemnización que le paguemos por las coberturas adicionales, reducirá la suma asegurada de la cobertura principal, a excepción de la cobertura adicional Responsabilidad civil frente a terceros, la cual es independiente a la suma asegurada de la cobertura principal.
E78: - La cobertura de la póliza en cuanto a pérdida o daños causados por agua que inunde, descargue o derrame de cualquier instalación de agua o desagüe de otros elementos líquidos; no comprenderá el costo de reparar el desperfecto que originó tal pérdida o daño.
E79: - Este seguro no otorga cobertura cuando en el inmueble se realiza cualquier actividad o giro comercial diferente al de casa habitación.
E80: - Este seguro se renovará automáticamente, es decir, en las mismas condiciones vigentes en el periodo anterior.
E81: - Para la cobertura de Robo y/o daños por intento de robo de Joyas y platería se define lo siguiente: Objetos y/o adornos de uso personal elaborados en oro, plata, platino, perlas y que pueden llevar o no incrustadas piedras preciosas de origen biológico o mineral, tanto si están engastadas como si no. También se considera a cualquier objeto ornamental o de uso doméstico elaborado con los materiales enumerados en el párrafo anterior.
E82: - El ASEGURADO deberá presentar una relación detallada, a ser actualizada mínimo cada dos años, de los bienes cuyo valor unitario excedan los S/ 5,000. En caso de siniestro, esta relación de bienes es el sustento de la pre-existencia de cada bien declarado. En caso de no cumplir con lo anterior o para bienes afectados no incluidos en la relación presentada, el Asegurado deberá demostrarnos la pre-existencia de los bienes afectados en el siniestro, a través de comprobantes de pago y/o constancia visual (fotografías, video, manuales de uso o similares) en donde se muestre el artículo en el interior del Inmueble asegurado o a la persona usando dicho artículo.
E83: - En caso de robo: Se mantiene la exigencia de la denuncia policial, pero se manejará a discreción cada caso hasta por un monto máximo de siniestro de S/ 30,000, siniestros por encima de este monto deberán presentar denuncia policial de manera obligatoria.
E84: - Las asistencias están disponibles los 365 días del año en las siguientes ciudades:
E85: · Lima Metropolitana exceptuando Ancón, Punta Hermosa, San Bartolo, Santa María y Pucusana.
E86: · Trujillo: En los distritos de Trujillo, Victor Larco, Moche y Huanchaco.
E87: · Chiclayo: En los distritos de Chiclayo, La Victoria, José Leonardo Ortiz, Pimentel.
E88: · Piura: En los distritos de Piura, Castilla, Catacaos.
E89: · Arequipa: En los distritos de Arequipa (Cercado), Yanahuara, Cayma, Sachaca, José Luis Bustamante y Rivero, Cerro Colorado.
E90: · Cusco: En los distritos de Cusco, San Jerónimo, San Sebastián, Santiago, Wanchaq.
E91: Aplican y deben aparecer tanto para a primer riesgo como para valor total
B93: Exclusiones:
E94: Tenga en cuenta que no pagaremos la reparación del desperfecto ni del bien que originó el daño, como tampoco ninguna pérdida o daño proveniente o que sean causa de, o en conexión con, o atribuibles principalmente a:
E95: a) Dolo, culpa grave o negligencia inexcusable del CONTRATANTE o de USTED y/o del BENEFICIARIO y/o ENDOSATARIO o de los familiares de cualquiera de ellos, o de sus dependientes, especialmente de los responsables de la seguridad de los BIENES asegurados.
E96: b) Guerra, Guerra Civil, invasión, acto de enemigo extranjero, hostilidades u operaciones de guerra, declarada o no.
E97: c) Desgaste o deterioro paulatino o fatiga de material, causado por, o resultado de, el uso y funcionamiento del bien; uso o deterioro gradual; deficiencias de rendimiento o capacidad; polución, contaminación; corrosión, erosión; herrumbre u oxidación; hongos, moho húmedo o seco, combustión espontánea, fermentación; humedad, sequedad, smog o cambios de temperatura; asentamiento o contracción o expansión de edificios o cimientos; la calefacción o la desecación a que hubieran sido sometidos los objetos que forman parte de la Materia Asegurada.
E98: d) Hundimientos, desplazamientos, agrietamientos o asentamientos de muros, pisos, techos, pavimentos, cimientos, muros de contención. Sin embargo, si estos daños son causados por los eventos de Terremoto, Temblor, Erupción Volcánica o Maremoto para los cuales se haya contratado amparo bajo la presente póliza, no se aplicará esta exclusión.
E99: e) Todo gasto o costo para implementar modificaciones o mejoras, o por mantenimiento, o para hacer otras reparaciones o arreglos, en el INMUEBLE y/o BIENES dañados o afectados; así como los gastos o costos de cualquier reparación provisional, a menos que constituyan, a la vez, parte de los gastos de la reparación definitiva amparada por la póliza.
E100: f) Valor atribuido a los BIENES por razones sentimentales o simbólicas, por afición, por antigüedad, o por exclusividad.
E101: g) Pérdida o daño ocurrido cuando el INMUEBLE esté deshabitado y/o cuando los BIENES se hallen en el INMUEBLE deshabitado; en ambos casos durante más de noventa (90) días consecutivos.
E102: Las demás exclusiones se encuentran en el acápite 3 de las Condiciones Generales de la Póliza. Aplican exclusiones específicas a la cobertura que se contrate, detalladas en su respectiva Cláusula Adicional.
E103: Bienes excluidos:
E104: a) INMUEBLE y/o BIENES con cualquier actividad o giro diferente al de casa habitación.
E105: b) Animales vivos de cualquier tipo.
E106: c) Plantaciones, cultivos, cosechas de cualquier tipo, invernaderos, bosques, selvas, monte bajo, praderas, pampas, árboles, parques, prados, jardines naturales y ornamentales, agua.
E107: d) INMUEBLES y/o BIENES en proceso de construcción, reconstrucción, montaje o desmontaje.
E108: e) Vehículos motorizados con una placa de rodaje, equipos flotantes o submarinos, aeronaves o artefactos aéreos, embarcaciones, naves acuáticas; de cualquier tipo y tamaño.
E109: f) BIENES de cualquier tipo que sean propiedad de terceros aun cuando dichos BIENES se encuentren bajo custodia y/o posesión del Asegurado.
E110: g) Material pirotécnico, explosivos, combustibles, mechas, fulminantes, detonadores y similares.
E111: h) BIENES situados o instalados u operando o trabajando o siendo usados en él, o a las orillas del, mar, río, lago o laguna, en subterráneos, o debajo del nivel de la superficie terrestre.
E112: i) Dinero en efectivo, títulos valores.
E113: j) Cualquier tipo de contenido o bien para fines comerciales, de la profesión u ocupación o de negocios de USTED, de cualquier miembro de su familia, por medio de los cuales obtengan un lucro.

Sheet configuracion (hidden)
D1: FLEX | H1: Ir a Panel | K1: VERSION | M1: Password | O1: celdas del Cotizador desbloqueadas | S1: VALOR TOTAL INMUEBLE | U1: VALOR TOTAL BIENES | W1: VALOR TOTAL INMUEBLE +BIENES | Y1: PRIMER RIESGO INMUEBLE | AA1: PRIMER RIESGO BIENES | AC1: PRIMER RIESGO INMUEBLE+BIENES | AD1: <- CELDAS DESBLOQUEADAS -> | AE1: IngresoSolicitud | AK1: Tipo de Cliente | AN1: ¿Qué desea cotizar? | AQ1: Elige el modo a asegurar | AT1: Tipo de Vivienda | AW1: Moneda | BA1: Provincia | BB1: Distrito | BC1: Tipo de Inmueble | BD1: Dólares | BE1: Soles | BH1: Descuento | BL1: COBERTURAS X DEFAULT | BM1: . | BP1: A valor total_Inmueble | BV1: A valor total_Bienes | CB1: A valor total_Inmueble + Bienes | CI1: A primer riesgo absoluto_Inmueble | CO1: A primer riesgo absoluto_Bienes | CU1: A primer riesgo absoluto_Inmueble + Bienes
D2: VARIABLES DE CONFIGURACIÓN | K2: Abril 2022 | M2: pacifico | O2: 1 | P2: 'Fecha Inicio de Vigencia | Q2: L6 | S2: E3 | U2: E3 | W2: E3:E4 | Y2: E3 | AA2: E3 | AC2: E3:E4 | AE2: H11 | AF2: Contratante | AK2: Es dueño y vive en su hogar | AN2: Inmueble | AQ2: A primer riesgo absoluto | AT2: Casa | AW2: Soles | BA2: Cañete | BB2: ASIA | BC2: CASA | BD2: 550 | BE2: 1650 | BH2: 0.15 | BL2: . -> NOTA -> INCENDIO ESTÁ PREMARCADA Y BLOQUEADA PARA TODAS | BM2: . | BP2: Prima Mínima USD | BQ2: Prima Mínima S/ | BV2: Prima Mínima USD | BW2: Prima Mínima S/ | CB2: Prima Mínima USD | CC2: Prima Mínima S/ | CI2: Prima Mínima USD | CJ2: Prima Mínima S/ | CO2: Prima Mínima USD | CP2: Prima Mínima S/ | CU2: Prima Mínima USD | CV2: Prima Mínima S/
H3: Nota Importante | O3: 2 | P3: 'Código del Agente | Q3: M10:N10 | S3: B14:B15 | U3: B14 | W3: B14:B15 | Y3: B14:B15 | AA3: B14 | AC3: B14:B15 | AE3: D13:K13 | AF3: NUMERO DNI | AK3: Es dueño y alquila su vivienda | AN3: Inmueble + Bienes | AQ3: A valor total | AT3: Departamento | AW3: Dólares | BA3: Cañete | BB3: ASIA | BC3: DEPARTAMENTO | BD3: 1180 | BE3: 3540 | BM3: . | BO3: INCENDIO | BP3: 60.77 | BQ3: 182.31 | BR3: COBERTURAS (solo INMUEBLE) | BU3: INCENDIO | BV3: 60.77 | BW3: 182.31 | BX3: COBERTURAS (solo BIENES) | CA3: INCENDIO | CB3: 60.77 | CC3: 182.31 | CD3: COBERTURAS (INMUEBLE Y BIENES) | CH3: INCENDIO | CI3: 60.77 | CJ3: 182.31 | CK3: COBERTURAS (solo INMUEBLE) | CN3: INCENDIO | CO3: 60.77 | CP3: 182.31 | CQ3: COBERTURAS (solo BIENES) | CT3: INCENDIO | CU3: 60.77 | CV3: 182.31 | CW3: COBERTURAS (INMUEBLE Y BIENES)
D4: Asesor / Corredor | E4: Corredor | H4: La contraseña se camba solamente | O4: 3 | P4: 'Nombre del Agente" | Q4: R10:W10 | S4: B16:B17 | U4: B15 | W4: B16:B17 | Y4: B16:B17 | AA4: B15 | AC4: B16:B17 | AE4: N11 | AF4: Contratante | AK4: Vive en casa o departamento alquilado | AN4: Bienes | BA4: Cañete | BB4: CAÑETE - CHILCA | BC4: CASA | BD4: 390 | BE4: 1170 | BL4: Sub iraCoberturas() | BM4: . | BO4: ROBO | BP4: 60.77 | BQ4: 182.31 | BR4: Cobertura principal | BU4: ROBO | BV4: 60.77 | BW4: 182.31 | BX4: Cobertura principal | CA4: ROBO | CB4: 60.77 | CC4: 182.31 | CD4: Cobertura principal | CH4: ROBO | CI4: 60.77 | CJ4: 182.31 | CK4: Cobertura principal | CN4: ROBO | CO4: 60.77 | CP4: 182.31 | CQ4: Cobertura principal | CT4: ROBO | CU4: 60.77 | CV4: 182.31 | CW4: Cobertura principal
H5: utilizando el botón | O5: 4 | P5: 'Tipo de Documento*: | Q5: G14 | S5: B18 | U5: B16:B17 | W5: B18:B19 | Y5: B18 | AA5: B16:B17 | AC5: B18:B19 | AE5: N13:X13 | AF5: NUMERO RUC | BA5: Cañete | BB5: CAÑETE - MALA | BC5: CASA | BD5: 460 | BE5: 1380 | BL5: ActiveSheet.Cells(1, 1).Select | BM5: . | BP5: =IF('VALOR TOTAL INMUEBLE'!B12=0,"",'VALOR TOTAL INMUEBLE'!B12) -> X | BR5: Incendio y/o rayo, explosión, incendio en aparatos eléctricos. Daños por agua, daños por humo, impacto de vehículos y/o aeronaves o daños por riesgos políticos y sociales | BV5: =IF('VALOR TOTAL BIENES'!B12=0,"",'VALOR TOTAL BIENES'!B12) -> X | BX5: Incendio y/o rayo, explosión, incendio en aparatos eléctricos. Daños por agua, daños por humo, impacto de vehículos y/o aeronaves o daños por riesgos políticos y sociales | CB5: =IF('VALOR TOTAL INMUEBLE +BIENES'!B12=0,"",'VALOR TOTAL INMUEBLE +BIENES'!B12) -> X | CD5: Incendio y/o rayo, explosión, incendio en aparatos eléctricos. Daños por agua, daños por humo, impacto de vehículos y/o aeronaves o daños por riesgos políticos y sociales | CI5: =IF('PRIMER RIESGO INMUEBLE'!B12=0,"",'PRIMER RIESGO INMUEBLE'!B12) -> X | CK5: Incendio y/o rayo, explosión, incendio en aparatos eléctricos. Daños por agua, daños por humo, impacto de vehículos y/o aeronaves o daños por riesgos políticos y sociales | CO5: =IF('PRIMER RIESGO BIENES'!B12=0,"",'PRIMER RIESGO BIENES'!B12) -> X | CQ5: Incendio y/o rayo, explosión, incendio en aparatos eléctricos. Daños por agua, daños por humo, impacto de vehículos y/o aeronaves o daños por riesgos políticos y sociales | CU5: =IF('PRIMER RIESGO INMUEBLE+BIENES'!B12=0,"",'PRIMER RIESGO INMUEBLE+BIENES'!B12) -> X | CW5: Incendio y/o rayo, explosión, incendio en aparatos eléctricos. Daños por agua, daños por humo, impacto de vehículos y/o aeronaves o daños por riesgos políticos y sociales
O6: 5 | P6: 'Nombre / Razón Social*: | Q6: G15:J15 | S6: B19 | U6: B18 | W6: B20 | Y6: B19 | AA6: B18 | AC6: B20 | AE6: AC13:AE13 | AF6: Otro (indicar tipo y número) | BA6: Cañete | BB6: CAÑETE - SAN ANTONIO | BC6: CASA | BD6: 550 | BE6: 1650 | BM6: . | BR6: Coberturas adicionales | BX6: Coberturas adicionales | CD6: Coberturas adicionales | CK6: Coberturas adicionales | CQ6: Coberturas adicionales | CW6: Coberturas adicionales
O7: 6 | P7: 'E-mail | Q7: G16:J16 | S7: B20 | U7: B19 | W7: B21 | Y7: B20 | AA7: B19 | AC7: B21 | AE7: I15:AE15 | AF7: Nombre / Razon Social | BA7: Lima | BB7: ATE VITARTE | BC7: CASA | BD7: 610 | BE7: 1830 | BL7: Dim rowtarget As Double | BM7: . | BP7: =IF('VALOR TOTAL INMUEBLE'!B14=0,"",'VALOR TOTAL INMUEBLE'!B14) ->  | BR7: Terremoto, temblor, maremoto, Inundaciones y riesgos de la naturaleza | BV7: =IF(IF('VALOR TOTAL BIENES'!B14=0,"",'VALOR TOTAL BIENES'!B14)="X","Robo","") ->  | BX7: Robo y/o daños por intento de robo (dentro y fuera de la vivienda a nivel nacional) | CB7: =IF('VALOR TOTAL INMUEBLE +BIENES'!B14=0,"",'VALOR TOTAL INMUEBLE +BIENES'!B14) -> X | CD7: Terremoto, temblor, maremoto, Inundaciones y riesgos de la naturaleza | CI7: =IF('PRIMER RIESGO INMUEBLE'!B14=0,"",'PRIMER RIESGO INMUEBLE'!B14) ->  | CK7: Terremoto, temblor, maremoto, Inundaciones y riesgos de la naturaleza | CO7: =IF(IF('PRIMER RIESGO BIENES'!B14=0,"",'PRIMER RIESGO BIENES'!B14)="X","Robo","") ->  | CQ7: Robo y/o daños por intento de robo (dentro y fuera de la vivienda a nivel nacional) | CU7: =IF('PRIMER RIESGO INMUEBLE+BIENES'!B14=0,"",'PRIMER RIESGO INMUEBLE+BIENES'!B14) -> X | CW7: Terremoto, temblor, maremoto, Inundaciones y riesgos de la naturaleza
O8: 7 | P8: 'Teléfono | Q8: G17:J17 | S8: B21 | U8: B21 | W8: B22 | Y8: B21 | AA8: B21 | AC8: B22 | AE8: H16:T16 | AF8: Apellido Paterno | BA8: Lima | BB8: ATE VITARTE | BC8: DEPARTAMENTO | BD8: 1110 | BE8: 3330 | BL8: Dim columntarget As Double | BM8: . | BP8: =IF('VALOR TOTAL INMUEBLE'!B15=0,"",'VALOR TOTAL INMUEBLE'!B15) ->  | BV8: =IF(IF('VALOR TOTAL BIENES'!B15=0,"",'VALOR TOTAL BIENES'!B15)="X","Robo","") ->  | BX8: Robo y/o daños por intento de robo de joyas, platería, relojes, obras de arte, cámaras fotográficas o de video, laptops y bicicletas dentro de la vivienda o que estén siendo portados fuera de la vivienda | CB8: =IF('VALOR TOTAL INMUEBLE +BIENES'!B15=0,"",'VALOR TOTAL INMUEBLE +BIENES'!B15) ->  | CI8: =IF('PRIMER RIESGO INMUEBLE'!B15=0,"",'PRIMER RIESGO INMUEBLE'!B15) ->  | CO8: =IF(IF('PRIMER RIESGO BIENES'!B15=0,"",'PRIMER RIESGO BIENES'!B15)="X","Robo","") ->  | CQ8: Robo y/o daños por intento de robo de joyas, platería, relojes, obras de arte, cámaras fotográficas o de video, laptops y bicicletas dentro de la vivienda o que estén siendo portados fuera de la vivienda | CU8: =IF('PRIMER RIESGO INMUEBLE+BIENES'!B15=0,"",'PRIMER RIESGO INMUEBLE+BIENES'!B15) -> 
O9: 8 | P9: 'Celular" | Q9: G18:J18 | S9: B22 | U9: F15 | W9: B23 | Y9: B22 | AA9: F15 | AC9: B23 | AE9: Z16:AE16 | AF9: Apellido Materno | BA9: Lima | BB9: BARRANCO | BC9: CASA | BD9: 765 | BE9: 2295 | BM9: . | BP9: =IF('VALOR TOTAL INMUEBLE'!B16=0,"",'VALOR TOTAL INMUEBLE'!B16) ->  | BR9: Responsabilidad civil frente a terceros | BV9: =IF('VALOR TOTAL BIENES'!B16=0,"",'VALOR TOTAL BIENES'!B16) ->  | BX9: Terremoto, temblor, maremoto, Inundaciones y riesgos de la naturaleza | CB9: =IF('VALOR TOTAL INMUEBLE +BIENES'!B16=0,"",'VALOR TOTAL INMUEBLE +BIENES'!B16) -> X | CD9: Responsabilidad civil frente a terceros | CI9: =IF('PRIMER RIESGO INMUEBLE'!B16=0,"",'PRIMER RIESGO INMUEBLE'!B16) ->  | CK9: Responsabilidad civil frente a terceros | CO9: =IF('PRIMER RIESGO BIENES'!B16=0,"",'PRIMER RIESGO BIENES'!B16) ->  | CQ9: Terremoto, temblor, maremoto, Inundaciones y riesgos de la naturaleza | CU9: =IF('PRIMER RIESGO INMUEBLE+BIENES'!B16=0,"",'PRIMER RIESGO INMUEBLE+BIENES'!B16) -> X | CW9: Responsabilidad civil frente a terceros
O10: 9 | P10: 'Nro Documento: | Q10: M14 | S10: B24 | W10: B24 | Y10: B24 | AC10: B24 | AE10: E18 | AF10: Sexo | BA10: Lima | BB10: BARRANCO | BC10: DEPARTAMENTO | BD10: 2545 | BE10: 7635 | BL10: Dim TipodeCliente As String | BM10: . | BP10: =IF('VALOR TOTAL INMUEBLE'!B17=0,"",'VALOR TOTAL INMUEBLE'!B17) ->  | BV10: =IF('VALOR TOTAL BIENES'!B17=0,"",'VALOR TOTAL BIENES'!B17) ->  | CB10: =IF('VALOR TOTAL INMUEBLE +BIENES'!B17=0,"",'VALOR TOTAL INMUEBLE +BIENES'!B17) ->  | CI10: =IF('PRIMER RIESGO INMUEBLE'!B17=0,"",'PRIMER RIESGO INMUEBLE'!B17) ->  | CO10: =IF('PRIMER RIESGO BIENES'!B17=0,"",'PRIMER RIESGO BIENES'!B17) ->  | CU10: =IF('PRIMER RIESGO INMUEBLE+BIENES'!B17=0,"",'PRIMER RIESGO INMUEBLE+BIENES'!B17) -> 
O11: 10 | P11: 'Apellido Paterno: | Q11: M15:N15 | W11: B25 | AC11: B25 | AE11: N18:P18 | AF11: Fecha de Nacimiento | BA11: Lima | BB11: BREÑA | BC11: CASA | BD11: 610 | BE11: 1830 | BL11: Dim Quedeseacotizar As String | BM11: . | BP11: =IF('VALOR TOTAL INMUEBLE'!B18=0,"",'VALOR TOTAL INMUEBLE'!B18) ->  | BR11: Rotura accidental de vidrio y/o cristales | BV11: =IF('VALOR TOTAL BIENES'!B18=0,"",'VALOR TOTAL BIENES'!B18) ->  | BX11: Hurto | CB11: =IF('VALOR TOTAL INMUEBLE +BIENES'!B18=0,"",'VALOR TOTAL INMUEBLE +BIENES'!B18) -> X | CD11: Rotura accidental de vidrio y/o cristales | CI11: =IF('PRIMER RIESGO INMUEBLE'!B18=0,"",'PRIMER RIESGO INMUEBLE'!B18) ->  | CK11: Rotura accidental de vidrio y/o cristales | CO11: =IF('PRIMER RIESGO BIENES'!B18=0,"",'PRIMER RIESGO BIENES'!B18) ->  | CQ11: Hurto | CU11: =IF('PRIMER RIESGO INMUEBLE+BIENES'!B18=0,"",'PRIMER RIESGO INMUEBLE+BIENES'!B18) -> X | CW11: Rotura accidental de vidrio y/o cristales
O12: 11 | P12: 'Apellido Materno: | Q12: R15:U15 | W12: B26 | AC12: B26 | AE12: V18:Y18 | AF12: Estado Civil | BA12: Lima | BB12: BREÑA | BC12: DEPARTAMENTO | BD12: 1200 | BE12: 3600 | BL12: Dim Eligeelmodoaasegurar As String | BM12: . | BP12: =IF('VALOR TOTAL INMUEBLE'!B19=0,"",'VALOR TOTAL INMUEBLE'!B19) ->  | BR12: Robo o intento de robo de instalaciones fijas | BV12: =IF('VALOR TOTAL BIENES'!B19=0,"",'VALOR TOTAL BIENES'!B19) ->  | BX12: Deshonestidad de trabajadores del hogar | CB12: =IF('VALOR TOTAL INMUEBLE +BIENES'!B19=0,"",'VALOR TOTAL INMUEBLE +BIENES'!B19) ->  | CI12: =IF('PRIMER RIESGO INMUEBLE'!B19=0,"",'PRIMER RIESGO INMUEBLE'!B19) ->  | CK12: Robo o intento de robo de instalaciones fijas | CO12: =IF('PRIMER RIESGO BIENES'!B19=0,"",'PRIMER RIESGO BIENES'!B19) ->  | CQ12: Deshonestidad de trabajadores del hogar | CU12: =IF('PRIMER RIESGO INMUEBLE+BIENES'!B19=0,"",'PRIMER RIESGO INMUEBLE+BIENES'!B19) -> 
O13: 12 | P13: 'Dirección exacta del riesgo: | Q13: G22:J22 | W13: B27 | AC13: B27 | AE13: AA18:AE18 | AF13: Nacionalidad | BA13: Lima | BB13: CALLAO | BC13: CASA | BD13: 450 | BE13: 1350 | BL13: Dim TipodeVivienda As String | BM13: . | BP13: =IF('VALOR TOTAL INMUEBLE'!B20=0,"",'VALOR TOTAL INMUEBLE'!B20) ->  | BR13: Reembolso de gastos médicos por accidentes de trabajadores del hogar, ocurridos dentro del inmueble | BV13: =IF('VALOR TOTAL BIENES'!B20=0,"",'VALOR TOTAL BIENES'!B20) -> X | BX13: Gastos extraordinarios: remoción de escombros, honorarios profesionales y construcción de documentos y modelos | CB13: =IF(IF('VALOR TOTAL INMUEBLE +BIENES'!B20=0,"",'VALOR TOTAL INMUEBLE +BIENES'!B20)="X","Robo","") ->  | CD13: Robo o intento de robo de instalaciones fijas | CI13: =IF('PRIMER RIESGO INMUEBLE'!B20=0,"",'PRIMER RIESGO INMUEBLE'!B20) ->  | CK13: Reembolso de gastos médicos por accidentes de trabajadores del hogar, ocurridos dentro del inmueble | CO13: =IF('PRIMER RIESGO BIENES'!B20=0,"",'PRIMER RIESGO BIENES'!B20) -> X | CQ13: Gastos extraordinarios: remoción de escombros, honorarios profesionales y construcción de documentos y modelos | CU13: =IF(IF('PRIMER RIESGO INMUEBLE+BIENES'!B20=0,"",'PRIMER RIESGO INMUEBLE+BIENES'!B20)="X","Robo","") ->  | CW13: Robo o intento de robo de instalaciones fijas
O14: 13 | P14: 'Nro | Q14: G23 | W14: B29 | AC14: B29 | AE14: J20:V20 | AF14: Direccion (Jr. / Cl / Av) | BA14: Lima | BB14: CALLAO | BC14: DEPARTAMENTO | BD14: 820 | BE14: 2460 | BL14: Dim moneda As String | BM14: . | BP14: =IF('VALOR TOTAL INMUEBLE'!B21=0,"",'VALOR TOTAL INMUEBLE'!B21) ->  | BR14: Gastos de arrendamiento de vivienda temporal a reembolso | BV14: =IF('VALOR TOTAL BIENES'!B21=0,"",'VALOR TOTAL BIENES'!B21) ->  | BY14: Asistencias | CB14: =IF(IF('VALOR TOTAL INMUEBLE +BIENES'!B21=0,"",'VALOR TOTAL INMUEBLE +BIENES'!B21)="X","Robo","") ->  | CD14: Robo y/o daños por intento de robo (dentro y fuera de la vivienda a nivel nacional) | CI14: =IF('PRIMER RIESGO INMUEBLE'!B21=0,"",'PRIMER RIESGO INMUEBLE'!B21) ->  | CK14: Gastos de arrendamiento de vivienda temporal a reembolso | CO14: =IF('PRIMER RIESGO BIENES'!B21=0,"",'PRIMER RIESGO BIENES'!B21) ->  | CR14: Asistencias | CU14: =IF(IF('PRIMER RIESGO INMUEBLE+BIENES'!B21=0,"",'PRIMER RIESGO INMUEBLE+BIENES'!B21)="X","Robo","") ->  | CW14: Robo y/o daños por intento de robo (dentro y fuera de la vivienda a nivel nacional)
O15: 14 | P15: 'Dpto | Q15: G24 | W15: G22 | AC15: G22 | AE15: X20:Y20 | AF15: Nro | BA15: Lima | BB15: CARABAYLLO | BC15: CASA | BD15: 470 | BE15: 1410 | BL15: '''''''''''''''''''''''''' | BM15: . | BP15: =IF('VALOR TOTAL INMUEBLE'!B22=0,"",'VALOR TOTAL INMUEBLE'!B22) ->  | BR15: Alquiler no percibido por inmueble inhabitable temporalmente | CB15: =IF(IF('VALOR TOTAL INMUEBLE +BIENES'!B22=0,"",'VALOR TOTAL INMUEBLE +BIENES'!B22)="X","Robo","") ->  | CD15: Robo y/o daños por intento de robo de joyas, platería, relojes, obras de arte, cámaras fotográficas o de video, laptops y bicicletas dentro de la vivienda o que estén siendo portados fuera de la vivienda | CI15: =IF('PRIMER RIESGO INMUEBLE'!B22=0,"",'PRIMER RIESGO INMUEBLE'!B22) ->  | CK15: Alquiler no percibido por inmueble inhabitable temporalmente | CU15: =IF(IF('PRIMER RIESGO INMUEBLE+BIENES'!B22=0,"",'PRIMER RIESGO INMUEBLE+BIENES'!B22)="X","Robo","") ->  | CW15: Robo y/o daños por intento de robo de joyas, platería, relojes, obras de arte, cámaras fotográficas o de video, laptops y bicicletas dentro de la vivienda o que estén siendo portados fuera de la vivienda
O16: 15 | P16: 'Urbanización | Q16: L24 | AE16: AA20 | AF16: Dpto/Piso/Int | BA16: Lima | BB16: CARABAYLLO | BC16: DEPARTAMENTO | BD16: 760 | BE16: 2280 | BM16: . | BP16: =IF('VALOR TOTAL INMUEBLE'!B23=0,"",'VALOR TOTAL INMUEBLE'!B23) -> X | BR16: Gastos extraordinarios: remoción de escombros, honorarios profesionales y construcción de documentos y modelos | CB16: =IF('VALOR TOTAL INMUEBLE +BIENES'!B23=0,"",'VALOR TOTAL INMUEBLE +BIENES'!B23) ->  | CD16: Hurto | CI16: =IF('PRIMER RIESGO INMUEBLE'!B23=0,"",'PRIMER RIESGO INMUEBLE'!B23) -> X | CK16: Gastos extraordinarios: remoción de escombros, honorarios profesionales y construcción de documentos y modelos | CU16: =IF('PRIMER RIESGO INMUEBLE+BIENES'!B23=0,"",'PRIMER RIESGO INMUEBLE+BIENES'!B23) ->  | CW16: Hurto
O17: 16 | P17: 'Mza/Lt | Q17: L25 | AE17: AC20 | AF17: Mz | BA17: Lima | BB17: CERCADO DE LIMA | BC17: CASA | BD17: 480 | BE17: 1440 | BL17: Application.EnableEvents = False | BM17: . | BP17: =IF('VALOR TOTAL INMUEBLE'!B24=0,"",'VALOR TOTAL INMUEBLE'!B24) ->  | BS17: Asistencias | CB17: =IF('VALOR TOTAL INMUEBLE +BIENES'!B24=0,"",'VALOR TOTAL INMUEBLE +BIENES'!B24) ->  | CD17: Deshonestidad de trabajadores del hogar | CI17: =IF('PRIMER RIESGO INMUEBLE'!B24=0,"",'PRIMER RIESGO INMUEBLE'!B24) ->  | CL17: Asistencias | CU17: =IF('PRIMER RIESGO INMUEBLE+BIENES'!B24=0,"",'PRIMER RIESGO INMUEBLE+BIENES'!B24) ->  | CW17: Deshonestidad de trabajadores del hogar
O18: 17 | P18: 'Distrito | Q18: G25 | AE18: AE20 | AF18: Lt | BA18: Lima | BB18: CERCADO DE LIMA | BC18: DEPARTAMENTO | BD18: 1335 | BE18: 4005 | BL18: Application.ScreenUpdating = False | BM18: . | CB18: =IF('VALOR TOTAL INMUEBLE +BIENES'!B25=0,"",'VALOR TOTAL INMUEBLE +BIENES'!B25) ->  | CD18: Reembolso de gastos médicos por accidentes de trabajadores del hogar, ocurridos dentro del inmueble | CU18: =IF('PRIMER RIESGO INMUEBLE+BIENES'!B25=0,"",'PRIMER RIESGO INMUEBLE+BIENES'!B25) ->  | CW18: Reembolso de gastos médicos por accidentes de trabajadores del hogar, ocurridos dentro del inmueble
O19: 18 | P19: 'Provincia | Q19: G26 | AE19: K21:X21 | AF19: Urbanizacion (Urb / AAHH / Coop) | BA19: Lima | BB19: CHORRILLOS | BC19: CASA | BD19: 470 | BE19: 1410 | BM19: . | CB19: =IF('VALOR TOTAL INMUEBLE +BIENES'!B26=0,"",'VALOR TOTAL INMUEBLE +BIENES'!B26) -> X | CD19: Gastos de arrendamiento de vivienda temporal a reembolso | CU19: =IF('PRIMER RIESGO INMUEBLE+BIENES'!B26=0,"",'PRIMER RIESGO INMUEBLE+BIENES'!B26) -> X | CW19: Gastos de arrendamiento de vivienda temporal a reembolso
O20: 19 | P20: 'Departamento | Q20: G27 | AE20: AC20 | AF20: Mz | BA20: Lima | BB20: CHORRILLOS | BC20: DEPARTAMENTO | BD20: 1050 | BE20: 3150 | BL20: 'agregado el 02 octubre 2019 | BM20: . | CB20: =IF('VALOR TOTAL INMUEBLE +BIENES'!B27=0,"",'VALOR TOTAL INMUEBLE +BIENES'!B27) ->  | CD20: Alquiler no percibido por inmueble inhabitable temporalmente (aplica solo para el arrendador) | CU20: =IF('PRIMER RIESGO INMUEBLE+BIENES'!B27=0,"",'PRIMER RIESGO INMUEBLE+BIENES'!B27) ->  | CW20: Alquiler no percibido por inmueble inhabitable temporalmente (aplica solo para el arrendador)
O21: 20 | P21: '¿Qué desea cotizar? | Q21: G29 | AE21: AE20 | AF21: Lt | BA21: Lima | BB21: CIENEGUILLA | BC21: CASA | BD21: 400 | BE21: 1200 | BL21: With hj_ingresoSolicitud | BM21: . | CB21: =IF('VALOR TOTAL INMUEBLE +BIENES'!B28=0,"",'VALOR TOTAL INMUEBLE +BIENES'!B28) -> X | CD21: Gastos extraordinarios: remoción de escombros, honorarios profesionales y construcción de documentos y modelos | CU21: =IF('PRIMER RIESGO INMUEBLE+BIENES'!B28=0,"",'PRIMER RIESGO INMUEBLE+BIENES'!B28) -> X | CW21: Gastos extraordinarios: remoción de escombros, honorarios profesionales y construcción de documentos y modelos
O22: 20 | P22: '¿Qué desea cotizar? | Q22: H29 | AE22: AA21:AE21 | AF22: Sec / Etapa / Zona | BA22: Lima | BB22: COMAS | BC22: CASA | BD22: 500 | BE22: 1500 | BL22: .Visible = xlSheetHidden | BM22: . | CB22: =IF('VALOR TOTAL INMUEBLE +BIENES'!B29=0,"",'VALOR TOTAL INMUEBLE +BIENES'!B29) -> X | CE22: Asistencias | CU22: =IF('PRIMER RIESGO INMUEBLE+BIENES'!B29=0,"",'PRIMER RIESGO INMUEBLE+BIENES'!B29) -> X | CX22: Asistencias
O23: 21 | P23: '¿Qué desea cotizar? | Q23: K29 | AE23: AA21:AE21 | AF23: Sec / Etapa / Zona | BA23: Lima | BB23: COMAS | BC23: DEPARTAMENTO | BD23: 720 | BE23: 2160 | BL23: End With | BM23: .
O24: 22 | P24: '¿Qué desea cotizar? | Q24: O29 | AE24: E22:L22 | AF24: Distrito | BA24: Lima | BB24: EL AGUSTINO | BC24: CASA | BD24: 410 | BE24: 1230 | BL24: ''''''' | BM24: .
O25: 23 | P25: 'Eligeel modo a Asegurar | Q25: G31 | AE25: N22:R22 | AF25: Provincia | BA25: Lima | BB25: EL AGUSTINO | BC25: DEPARTAMENTO | BD25: 940 | BE25: 2820 | BM25: .
O26: 23 | P26: 'A primer riesgo absoluto | Q26: H31 | AE26: W22:Z22 | AF26: Departamento | BA26: Lima | BB26: JESÚS MARÍA | BC26: CASA | BD26: 500 | BE26: 1500 | BL26: With hj_cotizador | BM26: .
O27: 24 | P27: 'A primer riesgo absoluto | Q27: K31 | AE27: G23:L23 | AF27: Telefono Casa | BA27: Lima | BB27: JESÚS MARÍA | BC27: DEPARTAMENTO | BD27: 1760 | BE27: 5280 | BM27: .
O28: 25 | P28: 'Tipo de Vivienda | Q28: G33 | AE28: N23:Y23 | AF28: Telefono trabajo | BA28: Lima | BB28: LA MOLINA | BC28: CASA | BD28: 750 | BE28: 2250 | BL28: 'Tipo de Cliente | BM28: .
O29: 25 | P29: 'Tipo de Vivienda | Q29: E34 | AE29: AA23:AE23 | AF29: Telefono Movil | BA29: Lima | BB29: LA MOLINA | BC29: DEPARTAMENTO | BD29: 2000 | BE29: 6000 | BL29: If Len(.Range("G27").Value) = 0 Then | BM29: .
O30: 26 | P30: 'Tipo de Vivienda | Q30: E35 | AE30: H24:AE24 | AF30: Correo electronico(*) | BA30: Lima | BB30: LA VICTORIA | BC30: CASA | BD30: 500 | BE30: 1500 | BL30: MsgBox "Seleccione -> Tipo de Cliente.", vbExclamation, "Pacifico" | BM30: .
O31: 27 | P31: 'Tipo de Vivienda | Q31: G34 | AE31: N27 | AF31: ¿El contratante es diferente del asegurado? | BA31: Lima | BB31: LA VICTORIA | BC31: DEPARTAMENTO | BD31: 1467 | BE31: 4401 | BL31: End | BM31: .
O32: 28 | P32: 'Tipo de Vivienda | Q32: G35 | AE32: X44 | AF32: ¿La dirección del asegurado es la misma que del inmueble a asegurar? | BA32: Lima | BB32: LINCE | BC32: CASA | BD32: 720 | BE32: 2160 | BL32: End If | BM32: .
O33: 29 | P33: 'Moneda | Q33: G37 | AE33: F53:J53 | AF33: Datos del Inmueble Nro de Pisos | BA33: Lima | BB33: LINCE | BC33: DEPARTAMENTO | BD33: 1820 | BE33: 5460 | BM33: .
O34: 29 | P34: 'Moneda | Q34: H37 | AE34: N53:R53 | AF34: Datos del Inmueble Nro de Sótanos | BA34: Lima | BB34: LOS OLIVOS | BC34: CASA | BD34: 470 | BE34: 1410 | BL34: '¿Qué desea cotizar? | BM34: .
O35: 30 | P35: 'Moneda | Q35: K37 | AE35: X53:Z53 | AF35: Datos del Inmueble Año de construcción | BA35: Lima | BB35: LOS OLIVOS | BC35: DEPARTAMENTO | BD35: 980 | BE35: 2940 | BL35: If Len(.Range("G29").Value) = 0 Then | BM35: .
O36: 31 | P36: 'Formar de Pago | Q36: I61 | AE36: I54:L54 | AF36: Datos del Inmueble Nro de pisos de la ubicación de la vivienda | BA36: Lima | BB36: LURIGANCHO | BC36: CASA | BD36: 420 | BE36: 1260 | BL36: MsgBox "Seleccione -> ¿Qué desea cotizar?", vbExclamation, "Pacifico" | BM36: .
O37: 32 | P37: 'Formar de Pago | Q37: I62 | AE37: J58 | AF37: Mampostería | BA37: Lima | BB37: LURIGANCHO | BC37: DEPARTAMENTO | BD37: 670 | BE37: 2010 | BL37: End | BM37: .
O38: 33 | P38: 'Formar de Pago | Q38: I63 | AE38: O58 | AF38: Adobe | BA38: Lima | BB38: LURÍN | BC38: CASA | BD38: 450 | BE38: 1350 | BL38: End If | BM38: .
O39: 34 | P39: 'Formar de Pago | Q39: I64 | AE39: X58 | AF39: Acero Metálico | BA39: Lima | BB39: LURÍN | BC39: DEPARTAMENTO | BD39: 830 | BE39: 2490 | BM39: .
O40: 35 | P40: 'Formar de Pago | Q40: I66 | AE40: J60 | AF40: Madera | BA40: Lima | BB40: MAGDALENA DEL MAR | BC40: CASA | BD40: 750 | BE40: 2250 | BL40: 'Elige el modo a asegurar | BM40: .
O41: 36 | P41: 'Formar de Pago | Q41: I67 | AE41: O60 | AF41: Quincha | BA41: Lima | BB41: MAGDALENA DEL MAR | BC41: DEPARTAMENTO | BD41: 1750 | BE41: 5250 | BL41: If Len(.Range("G31").Value) = 0 Then | BM41: .
O42: 37 | P42: 'Formar de Pago | Q42: I68 | AE42: X60 | AF42: Concreto Armado | BA42: Lima | BB42: MIRAFLORES | BC42: CASA | BD42: 850 | BE42: 2550 | BL42: MsgBox "Seleccione -> Elige el modo a asegurar.", vbExclamation, "Pacifico" | BM42: .
O43: 38 | P43: 'Formar de Pago | Q43: I69 | AE43: AA60:AE60 | AF43: Otro | BA43: Lima | BB43: MIRAFLORES | BC43: DEPARTAMENTO | BD43: 2500 | BE43: 7500 | BL43: End | BM43: .
AE44: J63 | AF44: Alarma | BA44: Lima | BB44: PUCUSANA | BC44: CASA | BD44: 470 | BE44: 1410 | BL44: End If | BM44: .
AE45: O63 | AF45: Cámara de seguridad | BA45: Lima | BB45: PUCUSANA | BC45: DEPARTAMENTO | BD45: 1060 | BE45: 3180 | BM45: .
AE46: X63 | AF46: Sensor de movimiento | BA46: Lima | BB46: PUEBLO LIBRE | BC46: CASA | BD46: 500 | BE46: 1500 | BL46: 'Tipo de Vivienda | BM46: .
AE47: J65 | AF47: Cerco eléctrico | BA47: Lima | BB47: PUEBLO LIBRE | BC47: DEPARTAMENTO | BD47: 1550 | BE47: 4650 | BL47: If Len(.Range("G33").Value) = 0 Then | BM47: .
AE48: O65 | AF48: Detector de humo | BA48: Lima | BB48: PUENTE PIEDRA | BC48: CASA | BD48: 430 | BE48: 1290 | BL48: MsgBox "Seleccione -> Tipo de Vivienda.", vbExclamation, "Pacifico" | BM48: .
AE49: X65 | AF49: Ninguno | BA49: Lima | BB49: PUENTE PIEDRA | BC49: DEPARTAMENTO | BD49: 790 | BE49: 2370 | BL49: End | BM49: .
AE50: AC71 | AF50: Declaración Jurada Pregunta 1 | BA50: Lima | BB50: PUNTA HERMOSA | BC50: CASA | BD50: 470 | BE50: 1410 | BL50: End If | BM50: .
AE51: AE71 | AF51: Declaración Jurada Pregunta 1 | BA51: Lima | BB51: PUNTA HERMOSA | BC51: DEPARTAMENTO | BD51: 1310 | BE51: 3930 | BM51: .
AE52: AC74 | AF52: Declaración Jurada Pregunta 2 | BA52: Lima | BB52: PUNTA NEGRA | BC52: CASA | BD52: 460 | BE52: 1380 | BL52: 'Moneda | BM52: .
AE53: AE74 | AF53: Declaración Jurada Pregunta 2 | BA53: Lima | BB53: PUNTA NEGRA | BC53: DEPARTAMENTO | BD53: 990 | BE53: 2970 | BL53: If Len(.Range("G37").Value) = 0 Then | BM53: .
AE54: AC77 | AF54: Declaración Jurada Pregunta 3 | BA54: Lima | BB54: RIMAC | BC54: CASA | BD54: 450 | BE54: 1350 | BL54: MsgBox "Seleccione -> Moneda.", vbExclamation, "Pacifico" | BM54: .
AE55: AE77 | AF55: Declaración Jurada Pregunta 3 | BA55: Lima | BB55: RIMAC | BC55: DEPARTAMENTO | BD55: 1000 | BE55: 3000 | BL55: End | BM55: .
AE56: T78:Y78 | AF56: En caso marque Sí indique el año de la última remodelación | BA56: Lima | BB56: SAN BARTOLO | BC56: CASA | BD56: 480 | BE56: 1440 | BL56: End If | BM56: .
AE57: C110 | AF57: Planes - Confirmo que he sido informado correctamente sobre el plan, coberturas, beneficios adicionales que estoy eligiendo | BA57: Lima | BB57: SAN BARTOLO | BC57: DEPARTAMENTO | BD57: 1210 | BE57: 3630 | BL57: '()()()()()()()()()()()()()()()()()()()()()()()()()()()()()()()()() | BM57: .
AE58: T122 | AF58: Suma Asegurada ¿Tiene usted otros seguros contratados para los bienes objeto de este seguro? | BA58: Lima | BB58: SAN BORJA | BC58: CASA | BD58: 750 | BE58: 2250 | BM58: .
AE59: V122 | AF59: Suma Asegurada ¿Tiene usted otros seguros contratados para los bienes objeto de este seguro? | BA59: Lima | BB59: SAN BORJA | BC59: DEPARTAMENTO | BD59: 2050 | BE59: 6150 | BM59: .
AE60: L123:Y123 | AF60: En caso afirmativo, ¿En qué compañia? | BA60: Lima | BB60: SAN ISIDRO | BC60: CASA | BD60: 900 | BE60: 2700 | BL60: 'capturamos variables | BM60: .
AE61: AA123:AE123 | AF61: Indique la póliza de la compañía de seguros | BA61: Lima | BB61: SAN ISIDRO | BC61: DEPARTAMENTO | BD61: 2600 | BE61: 7800 | BL61: TipodeCliente = .Range("G27").Value | BM61: .
AE62: H126:AE126 | AF62: Endosado a favor de: | BA62: Lima | BB62: SAN LUIS | BC62: CASA | BD62: 500 | BE62: 1500 | BL62: Quedeseacotizar = .Range("G29").Value | BM62: .
AE63: H127:M127 | AF63: Monto de endoso: | BA63: Lima | BB63: SAN LUIS | BC63: DEPARTAMENTO | BD63: 1467 | BE63: 4401 | BL63: Eligeelmodoaasegurar = .Range("G31").Value | BM63: .
AE64: O127:S127 | AF64: porcentaje (%) | BA64: Lima | BB64: SAN JUAN DE LURIGANCHO | BC64: CASA | BD64: 420 | BE64: 1260 | BL64: TipodeVivienda = .Range("G33").Value | BM64: .
AE65: F161:M161 | AF65: Teléfono Corredor / Asesor | BA65: Lima | BB65: SAN JUAN DE LURIGANCHO | BC65: DEPARTAMENTO | BD65: 1000 | BE65: 3000 | BL65: moneda = .Range("G37").Value | BM65: .
AE66: U161:AE161 | AF66: Correo electrónico Corredor / Asesor | BA66: Lima | BB66: SAN JUAN DE MIRAFLORES | BC66: CASA | BD66: 430 | BE66: 1290 | BL66: ''''''''''''''''''''''''''''''' | BM66: .
AE67: T242 | AF67: Cláusulas Abusivas | BA67: Lima | BB67: SAN JUAN DE MIRAFLORES | BC67: DEPARTAMENTO | BD67: 860 | BE67: 2580 | BM67: .
AE68: Y242 | AF68: Cláusulas Abusivas | BA68: Lima | BB68: SAN MARTIN DE PORRES | BC68: CASA | BD68: 420 | BE68: 1260 | BL68: 'Quedeseacotizar | BM68: .
AE69: H29 | AF69: Persona Natural | AG69: Asegurado (llenar solo si es diferente del Contratante) | BA69: Lima | BB69: SAN MARTIN DE PORRES | BC69: DEPARTAMENTO | BD69: 890 | BE69: 2670 | BL69: If Quedeseacotizar = "Inmueble" Then | BM69: .
AE70: N29 | AF70: Persona Juridica | AG70: Asegurado (llenar solo si es diferente del Contratante) | BA70: Lima | BB70: SAN MIGUEL | BC70: CASA | BD70: 650 | BE70: 1950 | BL70: .Range("H29").Value = "X" | BM70: .
AE71: D31:K31 | AF71: DNI | AG71: Asegurado (llenar solo si es diferente del Contratante) | BA71: Lima | BB71: SAN MIGUEL | BC71: DEPARTAMENTO | BD71: 1745 | BE71: 5235 | BL71: .Range("K29").ClearContents | BM71: .
AE72: N31:Y31 | AF72: RUC | AG72: Asegurado (llenar solo si es diferente del Contratante) | BA72: Lima | BB72: SANTA MARÍA DEL MAR | BC72: CASA | BD72: 510 | BE72: 1530 | BL72: .Range("O29").ClearContents | BM72: .
AE73: AC31:AE31 | AF73: Otro (indicar tipo y número) | AG73: Asegurado (llenar solo si es diferente del Contratante) | BA73: Lima | BB73: SANTA MARÍA DEL MAR | BC73: DEPARTAMENTO | BD73: 1580 | BE73: 4740 | BM73: .
AE74: I32:AE32 | AF74: Nombre / Razon Social" | AG74: Asegurado (llenar solo si es diferente del Contratante) | BA74: Lima | BB74: SANTIAGO DE SURCO | BC74: CASA | BD74: 700 | BE74: 2100 | BL74: ElseIf Quedeseacotizar = "Bienes" Then | BM74: .
AE75: H33:T33 | AF75: Apellido Paterno | AG75: Asegurado (llenar solo si es diferente del Contratante) | BA75: Lima | BB75: SANTIAGO DE SURCO | BC75: DEPARTAMENTO | BD75: 1900 | BE75: 5700 | BL75: .Range("H29").ClearContents | BM75: .
AE76: Z33:AE33 | AF76: Apellido Paterno | AG76: Asegurado (llenar solo si es diferente del Contratante) | BA76: Lima | BB76: SURQUILLO | BC76: CASA | BD76: 500 | BE76: 1500 | BL76: .Range("K29").Value = "X" | BM76: .
AE77: E35 | AF77: Sexo | AG77: Asegurado (llenar solo si es diferente del Contratante) | BA77: Lima | BB77: SURQUILLO | BC77: DEPARTAMENTO | BD77: 1750 | BE77: 5250 | BL77: .Range("O29").ClearContents | BM77: .
AE78: N35:P35 | AF78: Fecha de Nacimiento" | AG78: Asegurado (llenar solo si es diferente del Contratante) | BA78: Lima | BB78: VILLA EL SALVADOR | BC78: CASA | BD78: 385 | BE78: 1155 | BM78: .
AE79: V35:Y35 | AF79: Estado Civil | AG79: Asegurado (llenar solo si es diferente del Contratante) | BA79: Lima | BB79: VILLA EL SALVADOR | BC79: DEPARTAMENTO | BD79: 860 | BE79: 2580 | BL79: ElseIf Quedeseacotizar = "Inmueble + Bienes" Then | BM79: .
AE80: AA34:AE35 | AF80: Nacionalidad | AG80: Asegurado (llenar solo si es diferente del Contratante) | BL80: .Range("H29").ClearContents | BM80: .
AE81: H37:V37 | AF81: Direccion (Jr. / Cl / Av) | AG81: Asegurado (llenar solo si es diferente del Contratante) | BL81: .Range("K29").ClearContents | BM81: .
AE82: X37:Y37 | AF82: Nro | AG82: Asegurado (llenar solo si es diferente del Contratante) | BL82: .Range("O29").Value = "X" | BM82: .
AE83: AA37 | AF83: Dpto/Piso/Int | AG83: Asegurado (llenar solo si es diferente del Contratante) | BM83: .
AE84: AC37 | AF84: Mz | AG84: Asegurado (llenar solo si es diferente del Contratante) | BL84: End If | BM84: .
AE85: AE37 | AF85: Lt | AG85: Asegurado (llenar solo si es diferente del Contratante) | BL85: ''''''''' | BM85: .
AE86: K38:X38 | AF86: Urbanizacion (Urb / AAHH / Coop) | AG86: Asegurado (llenar solo si es diferente del Contratante) | BL86: '''''''' | BM86: .
AE87: AA38:AE38 | AF87: Sec / Etapa / Zona | AG87: Asegurado (llenar solo si es diferente del Contratante) | BM87: .
AE88: E39:L39 | AF88: Distrito | AG88: Asegurado (llenar solo si es diferente del Contratante) | BL88: 'Eligeelmodoaasegurar | BM88: .
AE89: N39:R39 | AF89: Provincia | AG89: Asegurado (llenar solo si es diferente del Contratante) | BL89: If Eligeelmodoaasegurar = "A primer riesgo absoluto" Then | BM89: .
AE90: W39:Z39 | AF90: Departamento | AG90: Asegurado (llenar solo si es diferente del Contratante) | BL90: .Range("H31").Value = "X" | BM90: .
AE91: AB39:AE39 | AF91: País | AG91: Asegurado (llenar solo si es diferente del Contratante) | BL91: .Range("K31").ClearContents | BM91: .
AE92: G40:L40 | AF92: Teléfono Casa | AG92: Asegurado (llenar solo si es diferente del Contratante) | BM92: .
AE93: N40:Y40 | AF93: Teléfono trabajo | AG93: Asegurado (llenar solo si es diferente del Contratante) | BL93: ElseIf Eligeelmodoaasegurar = "A valor total" Then | BM93: .
AE94: AA40:AE40 | AF94: Teléfono Móvil | AG94: Asegurado (llenar solo si es diferente del Contratante) | BL94: .Range("H31").ClearContents | BM94: .
AE95: H41:AE41 | AF95: Correo electronico(*) | AG95: Asegurado (llenar solo si es diferente del Contratante) | BL95: .Range("K31").Value = "X" | BM95: .
AE96: H50:V50 | AF96: Direccion (Jr. / Cl / Av) | BL96: End If | BM96: .
AE97: X50:Y50 | AF97: Nro | BL97: ''''''''' | BM97: .
AE98: AA50 | AF98: Dpto/Piso/Int | BL98: '''''''' | BM98: .
AE99: AC50 | AF99: Mz | BM99: .
AE100: AE50 | AF100: Lt | BL100: 'TipodeVivienda | BM100: .
AE101: K51:X51 | AF101: Urbanizacion (Urb / AAHH / Coop) | BL101: If TipodeVivienda = "Casa" Then | BM101: .
AE102: AA51:AE51 | AF102: Sec / Etapa / Zona | BL102: .Range("E34").Value = "X" | BM102: .
AE103: F52:L52 | AF103: Distrito | BL103: .Range("E35").ClearContents | BM103: .
AE104: N52:R52 | AF104: Provincia | BM104: .
AE105: W52:Z52 | AF105: Departamento | BL105: ElseIf TipodeVivienda = "Departamento" Then | BM105: .
AE106: AD217 | AF106: Sí acepto | BL106: .Range("E34").ClearContents | BM106: .
AE107: AD219 | AF107: No acepto y prefiero perder la oportunidad de recibir nuevas ofertas | BL107: .Range("E35").Value = "X" | BM107: .
BL108: End If | BM108: .
BL109: ''''''''' | BM109: .
BL110: '''''''' | BM110: .
BM111: .
BL112: 'moneda | BM112: .
BL113: If moneda = "Soles" Then | BM113: .
BL114: .Range("H37").Value = "X" | BM114: .
BL115: .Range("K37").ClearContents | BM115: .
BM116: .
BL117: ElseIf moneda = "Dólares" Then | BM117: .
BL118: .Range("H37").ClearContents | BM118: .
BL119: .Range("K37").Value = "X" | BM119: .
BL120: End If | BM120: .
BL121: ''''''''' | BM121: .
BL122: '''''''' | BM122: .
BM123: .
BL124: '()()()()()()()()()()()()()()()()()()()()()()()()()()()()()()()()()()()()()()()()()()()()()()()()()()()()()()()()() | BM124: .
BM125: .
BL126: ' MsgBox "ir a coberturas.." | BM126: .
BL127: ' Stop | BM127: .
BM128: .
BL129: If moneda = "Soles" Then | BM129: .
BL130: rowtarget = 37 | BM130: .
BL131: columntarget = 8 | BM131: .
BM132: .
BL133: WorksheetBeforeDoubleClick rowtarget, columntarget | BM133: .
BM134: .
BL135: ElseIf moneda = "Dólares" Then | BM135: .
BL136: .Range("K37").Value = "X" | BM136: .
BL137: rowtarget = 37 | BM137: .
BL138: columntarget = 11 | BM138: .
BM139: .
BL140: WorksheetBeforeDoubleClick rowtarget, columntarget | BM140: .
BL141: End If | BM141: .
BM142: .
BL143: End With | BM143: .
BM144: .
BL145: Application.EnableEvents = True | BM145: .
BL146: Application.ScreenUpdating = True | BM146: .
BM147: .
BL148: End Sub | BM148: .
BM149: .
BL150: Sub coberturasPredeterminadas() | BM150: .
BL151: Application.EnableEvents = False | BM151: .
BM152: .
BL153: 'agregado el 01 octubre 2019 | BM153: .
BL154: unprotectsheets | BM154: .
BL155: ''''''''''''''''' | BM155: .
BM156: .
BL157: Dim TipodeCliente As String | BM157: .
BL158: Dim Quedeseacotizar As String | BM158: .
BM159: .
BL160: With hj_cotizador | BM160: .
BL161: TipodeCliente = .Range("G27").Value | BM161: .
BL162: Quedeseacotizar = .Range("G29").Value | BM162: .
BL163: End With | BM163: .
BL164: '''''''''''''' | BM164: .
BL165: 'COBERTURAS X DEFAULT | BM165: .
BL166: If Quedeseacotizar = "Inmueble" Then | BM166: .
BM167: .
BL168: 'modificado el 02 octubre 2019 | BM168: .
BL169: With Sheets("VALOR TOTAL INMUEBLE") | BM169: .
BL170: .Range("B14").Value = "X" 'Terremoto, temblor, maremoto, Inundaciones y riesgos de la naturaleza | BM170: .
BL171: .Range("B16").Value = "X" 'Responsabilidad civil frente a terceros | BM171: .
BL172: .Range("B18").Value = "X" 'Rotura accidental de vidrio y/o cristales | BM172: .
BL173: .Range("B21").Value = "X" 'Gastos de arrendamiento de vivienda temporal a reembolso | BM173: .
BL174: .Range("B22").ClearContents 'Alquiler no percibido por inmueble inhabitable temporalmente | BM174: .
BL175: .Range("B23").Value = "X" 'Gastos extraordinarios: remoción de escombros, honorarios profesionales y construcción de documentos y modelos | BM175: .
BL176: .Range("B24").Value = "X" 'Asistencias | BM176: .
BL177: End With | BM177: .
BM178: .
BL179: With Sheets("PRIMER RIESGO INMUEBLE") | BM179: .
BL180: .Range("B14").Value = "X" 'Terremoto, temblor, maremoto, Inundaciones y riesgos de la naturaleza | BM180: .
BL181: .Range("B16").Value = "X" 'Responsabilidad civil frente a terceros | BM181: .
BL182: .Range("B18").Value = "X" 'Rotura accidental de vidrio y/o cristales | BM182: .
BL183: .Range("B21").Value = "X" 'Gastos de arrendamiento de vivienda temporal a reembolso | BM183: .
BL184: .Range("B22").ClearContents 'Alquiler no percibido por inmueble inhabitable temporalmente | BM184: .
BL185: .Range("B23").Value = "X" 'Gastos extraordinarios: remoción de escombros, honorarios profesionales y construcción de documentos y modelos | BM185: .
BL186: .Range("B24").Value = "X" 'Asistencias | BM186: .
BL187: End With | BM187: .
BL188: End If | BM188: .
BL189: '============================================================================================================================================================= | BM189: .
BM190: .
BL191: If Quedeseacotizar = "Bienes" Then | BM191: .
BL192: With Sheets("VALOR TOTAL BIENES") | BM192: .
BL193: .Range("B14").Value = "X" 'Robo y/o daños por intento de robo (dentro y fuera de la vivienda a nivel nacional) | BM193: .
BL194: .Range("B15").Value = "X" 'Robo y/o daños por intento de robo de joyas, platería, relojes, obras de arte, cámaras fotográficas o de video, laptops y bicicletas dentro de la vivienda o que estén siendo portados fuera de la vivienda | BM194: .
BL195: .Range("B16").Value = "X" 'Terremoto, temblor, maremoto, Inundaciones y riesgos de la naturaleza | BM195: .
BL196: .Range("B20").Value = "X" 'Gastos extraordinarios: remoción de escombros, honorarios profesionales y construcción de documentos y modelos | BM196: .
BL197: .Range("B21").Value = "X" 'Asistencias | BM197: .
BL198: End With | BM198: .
BM199: .
BL200: With Sheets("PRIMER RIESGO BIENES") | BM200: .
... 57 more rows

Sheet tabla (hidden)
E1: Consideraciones : | J1: Ir a Panel
E3: primer riesgo absoluto
E4: - La modalidad de aseguramiento que brinda este plan de seguros es a primer riesgo absoluto y se deja expresa constancia que nuestro límite máximo de responsabilidad es hasta el valor que usted determinó como Suma Asegurada, pudiendo ser esta un valor inferior al valor total del Inmueble y/o bien. No se aplicará INFRASEGURO.
E6: valor total
E7: - La modalidad de aseguramiento que brinda este plan de seguros es a valor total.

Sheet tasasCupones (hidden)
B15: Tasas Cuotas Corredores | C15: Factores
B16: 4 CUOTAS | C16: 0.25
B17: 6 CUOTAS DA | C17: 0.1722453552
B18: 6 CUOTAS Cupones | C18: 0.1746473822 | D18: 1.2154
B19: 10 CUOTAS DA | C19: 0.1052927555
B20: 10 CUOTAS Cupones | C20: 0.1075913079
B21: 12 Cuotas DA | C21: 0.088562 | D21: 1.2154
B22: 12 Cuotas CUPONES | C22: 0.09084241725 | D22: 1.2154

Sheet CotizacionInmueble (hidden)
C1: ="Cotización Seguro de Hogar Flex " & configuracion!$K$2 -> Cotización Seguro de Hogar Flex Abril 2022
C3: Vigencia de la cotización | D3: =TEXT(TODAY(),"dd/mm/yyyy") & " - " & TEXT(TODAY()+15,"dd/mm/yyyy") -> 04/04/2022 - 19/04/2022
C4: Fecha inicio de Vigencia | D4: =Cotizador!$L$6 -> 00:00:00
C5: Canal | D5: =Cotizador!$G$10 -> Corredor
C6: Agente | D6: =Cotizador!R$10 -> 0
C8: Datos del Contratante
C9: Nombre del Contratante | D9: =Cotizador!$G$15 & " " & Cotizador!$M$15& " " & Cotizador!$R$15 -> 
C10: Tipo de documento | D10: =Cotizador!$G$14&" " &Cotizador!$M$14 -> 
C12: Planes de Pago Prima
C13: Débito automático | D13: Valores de la Cuota
C14: Plan de pago | D14: Prima Comercial | E14: IGV | F14: Prima Total
C15: Prima anual + IGV sin intereses (referencial): | D15: =IF(Cotizador!$G$54=0,"",Cotizador!$G$54) ->  | E15: =IF(Cotizador!$G$55=0,"",Cotizador!$G$55) ->  | F15: =IF(Cotizador!$G$56=0,"",Cotizador!$G$56) -> 
C16: Prima anual + IGV sin intereses con descuento 15% (final): | D16: =IF(Cotizador!$L$54=0,"",Cotizador!$L$54) ->  | E16: =IF(Cotizador!$L$55=0,"",Cotizador!$L$55) ->  | F16: =IF(Cotizador!$L$56=0,"",Cotizador!$L$56) -> 
C17: =IF(Cotizador!$I$61="X",Cotizador!$B$61,IF(Cotizador!$I$62="X",Cotizador!$B$62,IF(Cotizador!$I$63="X",Cotizador!$B$63,IF(Cotizador!$I$64="X",Cotizador!$B$64,IF(Cotizador!$I$66="X",Cotizador!$B$66,IF(Cotizador!$I$67="X",Cotizador!$B$67,IF(Cotizador!$I$68="X",Cotizador!$B$68,IF(Cotizador!$I$69="X",Cotizador!$B$69,"")))))))) ->  | D17: =IFERROR(F17/1.18,"") ->  | E17: =IFERROR(F17-D17,"") ->  | F17: =IF(Cotizador!$I$61="X",Cotizador!$L$61,IF(Cotizador!$I$62="X",Cotizador!$L$62,IF(Cotizador!$I$63="X",Cotizador!$L$63,IF(Cotizador!$I$64="X",Cotizador!$L$64,IF(Cotizador!$I$66="X",Cotizador!$L$66,IF(Cotizador!$I$67="X",Cotizador!$L$67,IF(Cotizador!$I$68="X",Cotizador!$L$68,IF(Cotizador!$I$69="X",Cotizador!$L$69,"")))))))) -> 
C18: Materia Asegurada | D18: =IF(Cotizador!$H$29="X",Cotizador!$G$29,IF(Cotizador!$K$29="X",Cotizador!$J$29,IF(Cotizador!$O$29="X",Cotizador!$M$29))) -> FALSE
C20: Datos del Inmueble asegurado
C21: Dirección | D21: =Cotizador!$G$22 & " " & Cotizador!G23 -> 
C22: Departamento | D22: =IF(Cotizador!$L$26=0,"",Cotizador!$L$26) -> 
C23: Provincia | D23: =IF(Cotizador!$G$26=0,"",Cotizador!$G$26) -> 
C24: Distrito | D24: =IF(Cotizador!$G$25=0,"",Cotizador!$G$25) -> 
C25: Tipo de Inmueble | D25: =IF(Cotizador!$E$34="X",Cotizador!$B$34,IF(Cotizador!$E$35="X",Cotizador!$B$35,"")) -> 
C27: Modalidad de Aseguramiento | D27: =IF(Cotizador!$H$31="X",Cotizador!$G$31,IF(Cotizador!$K$31="X",Cotizador!$J$31,"")) -> 
C29: Plan contratado | D29: Personalizado
C31: Suma Asegurada
C32: Suma Asegurada Inmueble | D32: =Cotizador!$G$40 -> 0
C33: Suma Asegurada Bienes | D33: =Cotizador!G41 -> 0
C34: Suma Asegurada Total (Inmueble + Bienes) | D34: =SUM(D32:D33) -> 0
C36: COBERTURAS (solo INMUEBLE) | E36: Límites asegurados por vigencia | F36: Prima Comercial | I36: OK
C37: Cobertura principal
A38: =IF(LEN(B38)=0,"hide","") ->  | B38: =IF('PRIMER RIESGO INMUEBLE'!B12=0,"",'PRIMER RIESGO INMUEBLE'!B12) -> X | C38: Incendio y/o rayo, explosión, incendio en aparatos eléctricos. Daños por agua, daños por humo, impacto de vehículos y/o aeronaves o daños por riesgos políticos y sociales | E38: ='PRIMER RIESGO INMUEBLE'!F12 -> 0 | F38: ='PRIMER RIESGO INMUEBLE'!G12 -> 51.5
A39: =IF(AND(A40="hide",A41="hide",A42="hide",A43="hide",A44="hide",A45="hide",A46="hide",A47="hide",A48="hide",A49="hide"),"hide","") ->  | C39: Coberturas adicionales
A40: =IF(LEN(B40)=0,"hide","") -> hide | B40: =IF('PRIMER RIESGO INMUEBLE'!B14=0,"",'PRIMER RIESGO INMUEBLE'!B14) ->  | C40: Terremoto, temblor, maremoto, Inundaciones y riesgos de la naturaleza | E40: ='PRIMER RIESGO INMUEBLE'!F14 -> 0 | F40: ='PRIMER RIESGO INMUEBLE'!G14 -> 0
A41: =IF(LEN(B40)=0,"hide","") -> hide | B41: =IF('PRIMER RIESGO INMUEBLE'!B15=0,"",'PRIMER RIESGO INMUEBLE'!B15) ->  | E41: ='PRIMER RIESGO INMUEBLE'!F15 -> Suma asegurada que forma parte de la cobertura principal
A42: =IF(LEN(B42)=0,"hide","") -> hide | B42: =IF('PRIMER RIESGO INMUEBLE'!B16=0,"",'PRIMER RIESGO INMUEBLE'!B16) ->  | C42: Responsabilidad civil frente a terceros | E42: ='PRIMER RIESGO INMUEBLE'!F16 -> 0 | F42: ='PRIMER RIESGO INMUEBLE'!G16 -> 0
A43: =IF(LEN(B42)=0,"hide","") -> hide | B43: =IF('PRIMER RIESGO INMUEBLE'!B17=0,"",'PRIMER RIESGO INMUEBLE'!B17) ->  | E43: ='PRIMER RIESGO INMUEBLE'!F17 -> máximo US$ 200,000
A44: =IF(LEN(B44)=0,"hide","") -> hide | B44: =IF('PRIMER RIESGO INMUEBLE'!B18=0,"",'PRIMER RIESGO INMUEBLE'!B18) ->  | C44: Rotura accidental de vidrio y/o cristales | E44: ='PRIMER RIESGO INMUEBLE'!F18 -> Hasta US$ 3,000 ,suma asegurada que forma parte de la cobertura principal | F44: ='PRIMER RIESGO INMUEBLE'!G18 -> 0
A45: =IF(LEN(B45)=0,"hide","") -> hide | B45: =IF('PRIMER RIESGO INMUEBLE'!B19=0,"",'PRIMER RIESGO INMUEBLE'!B19) ->  | C45: Robo o intento de robo de instalaciones fijas | E45: ='PRIMER RIESGO INMUEBLE'!F19 -> Hasta el 20% de la suma asegurada de inmueble, máximo US$ 5,000 ,suma asegurada que forma parte de la cobertura principal | F45: ='PRIMER RIESGO INMUEBLE'!G19 -> 0
A46: =IF(LEN(B46)=0,"hide","") -> hide | B46: =IF('PRIMER RIESGO INMUEBLE'!B20=0,"",'PRIMER RIESGO INMUEBLE'!B20) ->  | C46: Reembolso de gastos médicos por accidentes de trabajadores del hogar, ocurridos dentro del inmueble | E46: ='PRIMER RIESGO INMUEBLE'!F20 -> Hasta US$ 5,000 por evento, máximo 3 eventos por vigencia de la póliza | F46: ='PRIMER RIESGO INMUEBLE'!G20 -> 0
A47: hide | B47: =IF('PRIMER RIESGO INMUEBLE'!B21=0,"",'PRIMER RIESGO INMUEBLE'!B21) ->  | C47: Gastos de arrendamiento de vivienda temporal a reembolso | E47: ='PRIMER RIESGO INMUEBLE'!F21 -> Hasta US$ 2,000 mensuales, máximo 6 meses por vigencia de la póliza, suma asegurada que forma parte de la cobertura principal | F47: ='PRIMER RIESGO INMUEBLE'!G21 -> 0
A48: hide | B48: =IF('PRIMER RIESGO INMUEBLE'!B22=0,"",'PRIMER RIESGO INMUEBLE'!B22) ->  | C48: Alquiler no percibido por inmueble inhabitable temporalmente | E48: ='PRIMER RIESGO INMUEBLE'!F22 -> Hasta US$ 2,000 mensuales, máximo 6 meses por vigencia de la póliza, suma asegurada que forma parte de la cobertura principal | F48: ='PRIMER RIESGO INMUEBLE'!G22 -> 0
A49: =IF(LEN(B49)=0,"hide","") ->  | B49: =IF('PRIMER RIESGO INMUEBLE'!B23=0,"",'PRIMER RIESGO INMUEBLE'!B23) -> X | C49: Gastos extraordinarios: remoción de escombros, honorarios profesionales y construcción de documentos y modelos | E49: ='PRIMER RIESGO INMUEBLE'!F23 -> Hasta el 20% de la suma asegurada de Inmueble, suma asegurada que forma parte de la cobertura principal | F49: ='PRIMER RIESGO INMUEBLE'!G23 -> 0
A50: =IF(LEN($B$50)=0,"hide","") -> hide | B50: =IF('PRIMER RIESGO INMUEBLE'!B24=0,"",'PRIMER RIESGO INMUEBLE'!B24) ->  | C50: Asistencias | I50: OK
A51: =IF(LEN($B$50)=0,"hide","") -> hide | C51: ='PRIMER RIESGO INMUEBLE'!D25 -> Asistencia de emergencia en el hogar | E51: ='PRIMER RIESGO INMUEBLE'!F25 -> Hasta US$ 300 por cada servicio, máximo 3 atenciones de cada servicio de Cerrajería, Gasfitería, Electricidad, y vidriería, las 24 horas del día todos los días del año, por vigencia de la póliza. | F51: ='PRIMER RIESGO INMUEBLE'!G25 -> 0
A52: =IF(LEN($B$50)=0,"hide","") -> hide | C52: ='PRIMER RIESGO INMUEBLE'!D26 -> Limpieza del inmueble asegurado a consecuencia de un siniestro | E52: ='PRIMER RIESGO INMUEBLE'!F26 -> Hasta US$ 500 máximo 3 atenciones por vigencia de la póliza
A53: hide | C53: ='PRIMER RIESGO INMUEBLE'!D27 -> Chequeo preventivo del inmueble | E53: ='PRIMER RIESGO INMUEBLE'!F27 -> Hasta US$ 500 máximo 3 atenciones por vigencia de la póliza
A54: hide | C54: ='PRIMER RIESGO INMUEBLE'!D28 -> Orientación médica telefónica | E54: ='PRIMER RIESGO INMUEBLE'!F28 -> Sin límite
A55: hide | C55: ='PRIMER RIESGO INMUEBLE'!D29 -> Ambulancia por accidente para el asegurado | E55: ='PRIMER RIESGO INMUEBLE'!F29 -> Hasta US$ 500 máximo 3 atenciones por vigencia de la póliza
A56: hide | C56: ='PRIMER RIESGO INMUEBLE'!D30 -> Asesoría legal por robo dentro del inmueble | E56: ='PRIMER RIESGO INMUEBLE'!F30 -> Hasta US$ 300 máximo 3 atenciones por vigencia de la póliza
C57: Deducibles: Aplicables por evento/pérdida, en caso de discrepancia prevalece el mayor | I57: OK
A58: =IF(LEN(B58)=0,"hide","") -> hide | B58: =IF('PRIMER RIESGO INMUEBLE'!B32=0,"",'PRIMER RIESGO INMUEBLE'!B32) ->  | C58: Terremoto / Maremoto | E58: ='PRIMER RIESGO INMUEBLE'!F32 -> Hasta el 1% del límite asegurado, mínimo US$ 200
A59: =IF(LEN(B59)=0,"hide","") -> hide | B59: =IF('PRIMER RIESGO INMUEBLE'!B33=0,"",'PRIMER RIESGO INMUEBLE'!B33) ->  | C59: Otros Riesgos de la Naturaleza (entre ellos lluvia, inundación, otros) | E59: ='PRIMER RIESGO INMUEBLE'!F33 -> Hasta 10% del monto indemnizable, mínimo US$ 200
B60: =IF('PRIMER RIESGO INMUEBLE'!B34=0,"",'PRIMER RIESGO INMUEBLE'!B34) -> X | C60: Daños por agua | E60: ='PRIMER RIESGO INMUEBLE'!F34 -> Hasta 10% del monto indemnizable, mínimo US$ 200
B61: =IF('PRIMER RIESGO INMUEBLE'!B35=0,"",'PRIMER RIESGO INMUEBLE'!B35) -> X | C61: Riesgos políticos y sociales | E61: ='PRIMER RIESGO INMUEBLE'!F35 -> Hasta 10% del monto indemnizable, mínimo US$ 200
A62: hide | B62: =IF('PRIMER RIESGO INMUEBLE'!B36=0,"",'PRIMER RIESGO INMUEBLE'!B36) ->  | C62: Responsabilidad civil frente a terceros | E62: ='PRIMER RIESGO INMUEBLE'!F36 -> Hasta 10% del monto indemnizable, mínimo US$ 200
A63: hide | B63: =IF('PRIMER RIESGO INMUEBLE'!B37=0,"",'PRIMER RIESGO INMUEBLE'!B37) ->  | C63: Rotura accidental de vidrio y/o cristales | E63: ='PRIMER RIESGO INMUEBLE'!F37 -> Hasta 10% del monto indemnizable, mínimo US$ 200
A64: hide | B64: =IF('PRIMER RIESGO INMUEBLE'!B38=0,"",'PRIMER RIESGO INMUEBLE'!B38) ->  | C64: Robo o intento de robo de instalaciones fijas | E64: ='PRIMER RIESGO INMUEBLE'!F38 -> Hasta 10% del monto indemnizable, mínimo US$ 200
A65: hide | B65: =IF('PRIMER RIESGO INMUEBLE'!B39=0,"",'PRIMER RIESGO INMUEBLE'!B39) ->  | C65: Demás coberturas | E65: ='PRIMER RIESGO INMUEBLE'!F39 -> Sin deducible
C68: Importante: | I68: OK
C69: Si se encuentran discrepancias entre la presente cotización y los términos de la póliza, prevalecerán las condiciones de esta última.
C70: La presente cotización es válida por un plazo de 30 días calendarios contados a partir de la fecha de recepción de la misma. Luego de vencido dicho plazo la oferta contenida en la presente cotización quedará sin efecto legal alguno entre las partes.
C71: Se deja constancia expresa que, a potestad de la Compañía, la aceptación final del riesgo por parte de esta queda sujeta a la realización de la inspección, por parte de nuestro Departamento de Ingeniería o la persona autorizada para tal efecto, para verificar el efectivo estado del riesgo, así como el estricto cumplimiento por parte del Asegurado de las garantías que a mérito de dicha inspección establezca el Departamento de Ingeniería de la Compañía.
C73: Consideraciones: | I73: OK
C74: - La forma de entrega de la póliza es electrónica. - La forma de pago de la póliza es solo con afiliación al débito automático a una tarjeta de crédito o a una cuenta bancaria. - La modalidad de aseguramiento que brinda este plan de seguros es a valor total. - La cobertura principal comprende además cualquier otro riesgo, súbito e imprevisto, que no esté excluido explícitamente en las exclusiones de las Condiciones Generales y/o Cláusulas Adicionales de la Póliza. - Las coberturas señaladas en Coberturas Adicionales forman parte de la suma asegurada de la Cobertura Principal, es decir, cada indemnización que le paguemos por las coberturas adicionales, reducirá la suma asegurada de la cobertura principal, a excepción de la cobertura adicional Responsabilidad civil frente a terceros, la cual es independiente a la suma asegurada de la cobertura principal. - La cobertura de la póliza en cuanto a pérdida o daños causados por agua que inunde, descargue o derrame de cualquier instalación de agua o desagüe de otros elementos líquidos; no comprenderá el costo de reparar el desperfecto que originó tal pérdida o daño. - Este seguro no otorga cobertura cuando en el inmueble se realiza cualquier actividad o giro comercial diferente al de casa habitación. - Este seguro se renovará automáticamente, es decir, en las mismas condiciones vigentes en el periodo anterior. - Para la cobertura de Robo y/o daños por intento de robo de Joyas y platería se define lo siguiente: Objetos y/o adornos de uso personal elaborados en oro, plata, platino, perlas y que pueden llevar o no incrustadas piedras preciosas de origen biológico o mineral, tanto si están engastadas como si no. También se considera a cualquier objeto ornamental o de uso doméstico elaborado con los materiales enumerados en el párrafo anterior. - El ASEGURADO deberá presentar una relación detallada, a ser actualizada mínimo cada dos años, de los bienes cuyo valor unitario excedan los S/ 5,000. En caso de siniestro, esta relación de bienes es el sustento de la pre-existencia de cada bien declarado. En caso de no cumplir con lo anterior o para bienes afectados no incluidos en la relación presentada, el Asegurado deberá demostrarnos la pre-existencia de los bienes afectados en el siniestro, a través de comprobantes de pago y/o constancia visual (fotografías, video, manuales de uso o similares) en donde se muestre el artículo en el interior del Inmueble asegurado o a la persona usando dicho artículo. - En caso de robo: Se mantiene la exigencia de la denuncia policial, pero se manejará a discreción cada caso hasta por un monto máximo de siniestro de S/ 30,000, siniestros por encima de este monto deberán presentar denuncia policial de manera obligatoria. - Las asistencias están disponibles los 365 días del año en las siguientes ciudades: • Lima Metropolitana exceptuando Ancón, Punta Hermosa, San Bartolo, Santa María y Pucusana. • Trujillo: En los distritos de Trujillo, Victor Larco, Moche y Huanchaco. • Chiclayo: En los distritos de Chiclayo, La Victoria, José Leonardo Ortiz, Pimentel. • Piura: En los distritos de Piura, Castilla, Catacaos. • Arequipa: En los distritos de Arequipa (Cercado), Yanahuara, Cayma, Sachaca, José Luis Bustamante y Rivero, Cerro Colorado. • Cusco: En los distritos de Cusco, San Jerónimo, San Sebastián, Santiago, Wanchaq. Aplican y deben aparecer tanto para a primer riesgo como para valor total
C106: Exlusiones: | I106: OK
C107: Tenga en cuenta que no pagaremos la reparación del desperfecto ni del bien que originó el daño, como tampoco ninguna pérdida o daño proveniente o que sean causa de, o en conexión con, o atribuibles principalmente a: a) Dolo, culpa grave o negligencia inexcusable del CONTRATANTE o de USTED y/o del BENEFICIARIO y/o ENDOSATARIO o de los familiares de cualquiera de ellos, o de sus dependientes, especialmente de los responsables de la seguridad de los BIENES asegurados. b) Guerra, Guerra Civil, invasión, acto de enemigo extranjero, hostilidades u operaciones de guerra, declarada o no. c) Desgaste o deterioro paulatino o fatiga de material, causado por, o resultado de, el uso y funcionamiento del bien; uso o deterioro gradual; deficiencias de rendimiento o capacidad; polución, contaminación; corrosión, erosión; herrumbre u oxidación; hongos, moho húmedo o seco, combustión espontánea, fermentación; humedad, sequedad, smog o cambios de temperatura; asentamiento o contracción o expansión de edificios o cimientos; la calefacción o la desecación a que hubieran sido sometidos los objetos que forman parte de la Materia Asegurada. d) Hundimientos, desplazamientos, agrietamientos o asentamientos de muros, pisos, techos, pavimentos, cimientos, muros de contención. Sin embargo, si estos daños son causados por los eventos de Terremoto, Temblor, Erupción Volcánica o Maremoto para los cuales se haya contratado amparo bajo la presente póliza, no se aplicará esta exclusión. e) Todo gasto o costo para implementar modificaciones o mejoras, o por mantenimiento, o para hacer otras reparaciones o arreglos, en el INMUEBLE y/o BIENES dañados o afectados; así como los gastos o costos de cualquier reparación provisional, a menos que constituyan, a la vez, parte de los gastos de la reparación definitiva amparada por la póliza. f) Valor atribuido a los BIENES por razones sentimentales o simbólicas, por afición, por antigüedad, o por exclusividad. g) Pérdida o daño ocurrido cuando el INMUEBLE esté deshabitado y/o cuando los BIENES se hallen en el INMUEBLE deshabitado; en ambos casos durante más de noventa (90) días consecutivos. Las demás exclusiones se encuentran en el acápite 3 de las Condiciones Generales de la Póliza. Aplican exclusiones específicas a la cobertura que se contrate, detalladas en su respectiva Cláusula Adicional. Bienes excluidos: a) INMUEBLE y/o BIENES con cualquier actividad o giro diferente al de casa habitación. b) Animales vivos de cualquier tipo. c) Plantaciones, cultivos, cosechas de cualquier tipo, invernaderos, bosques, selvas, monte bajo, praderas, pampas, árboles, parques, prados, jardines naturales y ornamentales, agua. d) INMUEBLES y/o BIENES en proceso de construcción, reconstrucción, montaje o desmontaje. e) Vehículos motorizados con una placa de rodaje, equipos flotantes o submarinos, aeronaves o artefactos aéreos, embarcaciones, naves acuáticas; de cualquier tipo y tamaño. f) BIENES de cualquier tipo que sean propiedad de terceros aun cuando dichos BIENES se encuentren bajo custodia y/o posesión del Asegurado. g) Material pirotécnico, explosivos, combustibles, mechas, fulminantes, detonadores y similares. h) BIENES situados o instalados u operando o trabajando o siendo usados en él, o a las orillas del, mar, río, lago o laguna, en subterráneos, o debajo del nivel de la superficie terrestre. i) Dinero en efectivo, títulos valores. j) Cualquier tipo de contenido o bien para fines comerciales, de la profesión u ocupación o de negocios de USTED, de cualquier miembro de su familia, por medio de los cuales obtengan un lucro.

Sheet CotizacionBienes (hidden)
C1: ="Cotización Seguro de Hogar Flex " & configuracion!$K$2 -> Cotización Seguro de Hogar Flex Abril 2022
C3: Vigencia de la cotización | D3: =TEXT(TODAY(),"dd/mm/yyyy") & " - " & TEXT(TODAY()+15,"dd/mm/yyyy") -> 04/04/2022 - 19/04/2022
C4: Fecha inicio de Vigencia | D4: =Cotizador!$L$6 -> 00:00:00
C5: Canal | D5: =Cotizador!$G$10 -> Corredor
C6: Agente | D6: =Cotizador!R$10 -> 0
C8: Datos del Contratante
C9: Nombre del Contratante | D9: =Cotizador!$G$15 & " " & Cotizador!$M$15& " " & Cotizador!$R$15 -> 
C10: Tipo de documento | D10: =Cotizador!$G$14&" " &Cotizador!$M$14 -> 
C12: Planes de Pago Prima
C13: Débito automático | D13: Valores de la Cuota
C14: Plan de pago | D14: Prima Comercial | E14: IGV | F14: Prima Total
C15: Prima anual + IGV sin intereses (referencial): | D15: =IF(Cotizador!$G$54=0,"",Cotizador!$G$54) ->  | E15: =IF(Cotizador!$G$55=0,"",Cotizador!$G$55) ->  | F15: =IF(Cotizador!$G$56=0,"",Cotizador!$G$56) -> 
C16: Prima anual + IGV sin intereses con descuento 15% (final): | D16: =IF(Cotizador!$L$54=0,"",Cotizador!$L$54) ->  | E16: =IF(Cotizador!$L$55=0,"",Cotizador!$L$55) ->  | F16: =IF(Cotizador!$L$56=0,"",Cotizador!$L$56) -> 
C17: =IF(Cotizador!$I$61="X",Cotizador!$B$61,IF(Cotizador!$I$62="X",Cotizador!$B$62,IF(Cotizador!$I$63="X",Cotizador!$B$63,IF(Cotizador!$I$64="X",Cotizador!$B$64,IF(Cotizador!$I$66="X",Cotizador!$B$66,IF(Cotizador!$I$67="X",Cotizador!$B$67,IF(Cotizador!$I$68="X",Cotizador!$B$68,IF(Cotizador!$I$69="X",Cotizador!$B$69,"")))))))) ->  | D17: =IFERROR(F17/1.18,"") ->  | E17: =IFERROR(F17-D17,"") ->  | F17: =IF(Cotizador!$I$61="X",Cotizador!$L$61,IF(Cotizador!$I$62="X",Cotizador!$L$62,IF(Cotizador!$I$63="X",Cotizador!$L$63,IF(Cotizador!$I$64="X",Cotizador!$L$64,IF(Cotizador!$I$66="X",Cotizador!$L$66,IF(Cotizador!$I$67="X",Cotizador!$L$67,IF(Cotizador!$I$68="X",Cotizador!$L$68,IF(Cotizador!$I$69="X",Cotizador!$L$69,"")))))))) -> 
C18: Materia Asegurada | D18: =IF(Cotizador!$H$29="X",Cotizador!$G$29,IF(Cotizador!$K$29="X",Cotizador!$J$29,IF(Cotizador!$O$29="X",Cotizador!$M$29))) -> FALSE
C20: Datos del Inmueble asegurado
C21: Dirección | D21: =Cotizador!$G$22 & " " & Cotizador!G23 -> 
C22: Departamento | D22: =IF(Cotizador!$L$26=0,"",Cotizador!$L$26) -> 
C23: Provincia | D23: =IF(Cotizador!$G$26=0,"",Cotizador!$G$26) -> 
C24: Distrito | D24: =IF(Cotizador!$G$25=0,"",Cotizador!$G$25) -> 
C25: Tipo de Inmueble | D25: =IF(Cotizador!$E$34="X",Cotizador!$B$34,IF(Cotizador!$E$35="X",Cotizador!$B$35,"")) -> 
C27: Modalidad de Aseguramiento | D27: =IF(Cotizador!$H$31="X",Cotizador!$G$31,IF(Cotizador!$K$31="X",Cotizador!$J$31,"")) -> 
C29: Plan contratado | D29: Personalizado
C31: Suma Asegurada
C32: Suma Asegurada Inmueble | D32: =Cotizador!$G$40 -> 0
C33: Suma Asegurada Bienes | D33: =Cotizador!G41 -> 0
C34: Suma Asegurada Total (Inmueble + Bienes) | D34: =SUM(D32:D33) -> 0
C36: COBERTURAS (solo BIENES) | E36: Límites asegurados por vigencia | F36: Prima Comercial | I36: OK
C37: Cobertura principal
A38: =IF(LEN(B38)=0,"hide","") ->  | B38: =IF('PRIMER RIESGO BIENES'!B12=0,"",'PRIMER RIESGO BIENES'!B12) -> X | C38: Incendio y/o rayo, explosión, incendio en aparatos eléctricos. Daños por agua, daños por humo, impacto de vehículos y/o aeronaves o daños por riesgos políticos y sociales | E38: ='PRIMER RIESGO BIENES'!F12 -> 0 | F38: ='PRIMER RIESGO BIENES'!G12 -> 62.82
A39: =IF(AND(A40="hide",A41="hide",A42="hide",A43="hide",A44="hide",A45="hide",A46="hide"),"hide","") ->  | C39: Coberturas adicionales
A40: =IF(LEN(B40)=0,"hide","") -> hide | B40: =IF('PRIMER RIESGO BIENES'!B14=0,"",'PRIMER RIESGO BIENES'!B14) ->  | C40: Robo y/o daños por intento de robo (dentro y fuera de la vivienda a nivel nacional) | E40: ='PRIMER RIESGO BIENES'!F14 -> 0 | F40: ='PRIMER RIESGO BIENES'!G14 -> 0
A41: =IF(LEN(B41)=0,"hide","") -> hide | B41: =IF('PRIMER RIESGO BIENES'!B15=0,"",'PRIMER RIESGO BIENES'!B15) ->  | C41: Robo y/o daños por intento de robo de joyas, platería, relojes, obras de arte, cámaras fotográficas o de video, laptops y bicicletas dentro de la vivienda o que estén siendo portados fuera de la vivienda. | E41: ='PRIMER RIESGO BIENES'!F15 -> USD 10,000, sublímite de la cobertura de Robo | F41: ='PRIMER RIESGO BIENES'!G15 -> 0
A42: =IF(LEN(B42)=0,"hide","") -> hide | B42: =IF('PRIMER RIESGO BIENES'!B16=0,"",'PRIMER RIESGO BIENES'!B16) ->  | C42: Terremoto, temblor, maremoto, Inundaciones y riesgos de la naturaleza | E42: ='PRIMER RIESGO BIENES'!F16 -> 0 | F42: ='PRIMER RIESGO BIENES'!G16 -> 0
A43: =IF(LEN(B42)=0,"hide","") -> hide | E43: ='PRIMER RIESGO BIENES'!F17 -> Suma asegurada que forma parte de la cobertura principal | F43: ='PRIMER RIESGO BIENES'!G17 -> 0
A44: =IF(LEN(B44)=0,"hide","") -> hide | B44: =IF('PRIMER RIESGO BIENES'!B18=0,"",'PRIMER RIESGO BIENES'!B18) ->  | C44: Hurto | E44: ='PRIMER RIESGO BIENES'!F18 -> Hasta US$ 3,000 , sublímite de la cobertura de Robo | F44: ='PRIMER RIESGO BIENES'!G18 -> 0
A45: =IF(LEN(B45)=0,"hide","") -> hide | B45: =IF('PRIMER RIESGO BIENES'!B19=0,"",'PRIMER RIESGO BIENES'!B19) ->  | C45: Deshonestidad de trabajadores del hogar | E45: ='PRIMER RIESGO BIENES'!F19 -> Hasta US$ 5,000 por evento, máximo 3 eventos por vigencia de la póliza, sublímite de la cobertura de Robo | F45: ='PRIMER RIESGO BIENES'!G19 -> 0
A46: =IF(LEN(B46)=0,"hide","") ->  | B46: =IF('PRIMER RIESGO BIENES'!B20=0,"",'PRIMER RIESGO BIENES'!B20) -> X | C46: Gastos extraordinarios: remoción de escombros, honorarios profesionales y construcción de documentos y modelos | E46: ='PRIMER RIESGO BIENES'!F20 -> Hasta el 20% de la suma asegurada de bienes, suma asegurada que forma parte de la cobertura principal | F46: ='PRIMER RIESGO BIENES'!G20 -> 0
A47: =IF(AND(A48="hide",A52="hide",A53="hide",A50="hide",A49="hide",A51="hide",A54="hide",A55="hide",A56="hide",A57="hide"),"hide","") ->  | B47: =IF('PRIMER RIESGO BIENES'!B21=0,"",'PRIMER RIESGO BIENES'!B21) ->  | C47: Asistencias | I47: OK
A48: =IF(LEN($B$47)=0,"hide","") -> hide | C48: ='PRIMER RIESGO BIENES'!D22 -> Asistencia de emergencia en el hogar | E48: ='PRIMER RIESGO BIENES'!F22 -> Hasta US$ 300 por cada servicio, máximo 3 atenciones de cada servicio de Cerrajería, Gasfitería, Electricidad, y vidriería, las 24 horas del día todos los días del año, por vigencia de la póliza. | F48: ='PRIMER RIESGO BIENES'!G22 -> 0
A49: =IF(LEN($B$47)=0,"hide","") -> hide | C49: ='PRIMER RIESGO BIENES'!D23 -> Limpieza del inmueble asegurado a consecuencia de un siniestro | E49: ='PRIMER RIESGO BIENES'!F23 -> Hasta US$ 500 máximo 3 atenciones por vigencia de la póliza
A50: hide | C50: ='PRIMER RIESGO BIENES'!D24 -> Chequeo preventivo del inmueble | E50: ='PRIMER RIESGO BIENES'!F24 -> Hasta US$ 500 máximo 3 atenciones por vigencia de la póliza
A51: hide | C51: ='PRIMER RIESGO BIENES'!D25 -> Orientación médica telefónica | E51: ='PRIMER RIESGO BIENES'!F25 -> Sin límite
A52: hide | C52: ='PRIMER RIESGO BIENES'!D26 -> Ambulancia por accidente para el asegurado | E52: ='PRIMER RIESGO BIENES'!F26 -> Hasta US$ 500 máximo 3 atenciones por vigencia de la póliza
A53: hide | C53: ='PRIMER RIESGO BIENES'!D27 -> Asesoría legal por robo dentro del inmueble | E53: ='PRIMER RIESGO BIENES'!F27 -> Hasta US$ 300 máximo 3 atenciones por vigencia de la póliza
C54: Deducibles: Aplicables por evento/pérdida, en caso de discrepancia prevalece el mayor | H54: OK
A55: =IF(LEN(B55)=0,"hide","") -> hide | B55: =IF('PRIMER RIESGO BIENES'!B29=0,"",'PRIMER RIESGO BIENES'!B29) ->  | C55: Robo y/o daños por intento de robo | E55: ='PRIMER RIESGO BIENES'!F29 -> Hasta 10% del monto indemnizable, mínimo US$ 200
A56: hide | B56: =IF('PRIMER RIESGO BIENES'!B30=0,"",'PRIMER RIESGO BIENES'!B30) ->  | C56: Hurto | E56: ='PRIMER RIESGO BIENES'!F30 -> Hasta 10% del monto indemnizable, mínimo US$ 200
A57: hide | B57: =IF('PRIMER RIESGO BIENES'!B31=0,"",'PRIMER RIESGO BIENES'!B31) ->  | C57: Deshonestidad de trabajadores del hogar | E57: ='PRIMER RIESGO BIENES'!F31 -> Hasta 10% del monto indemnizable, mínimo US$ 200
A58: hide | B58: =IF('PRIMER RIESGO BIENES'!B32=0,"",'PRIMER RIESGO BIENES'!B32) ->  | C58: Terremoto / Maremoto | E58: ='PRIMER RIESGO BIENES'!F32 -> Hasta el 1% del límite asegurado, mínimo US$ 200
A59: hide | B59: =IF('PRIMER RIESGO BIENES'!B33=0,"",'PRIMER RIESGO BIENES'!B33) ->  | C59: Otros Riesgos de la Naturaleza (entre ellos lluvia, inundación, otros) | E59: ='PRIMER RIESGO BIENES'!F33 -> Hasta 10% del monto indemnizable, mínimo US$ 200
B60: =IF('PRIMER RIESGO BIENES'!B34=0,"",'PRIMER RIESGO BIENES'!B34) -> X | C60: Daños por agua | E60: ='PRIMER RIESGO BIENES'!F34 -> Hasta 10% del monto indemnizable, mínimo US$ 200
B61: =IF('PRIMER RIESGO BIENES'!B35=0,"",'PRIMER RIESGO BIENES'!B35) -> X | C61: Riesgos políticos y sociales | E61: ='PRIMER RIESGO BIENES'!F35 -> Hasta 10% del monto indemnizable, mínimo US$ 200
A62: =IF(LEN(B62)=0,"hide","") -> hide | B62: =IF('PRIMER RIESGO BIENES'!B36=0,"",'PRIMER RIESGO BIENES'!B36) ->  | C62: Demás coberturas | E62: ='PRIMER RIESGO BIENES'!F36 -> Sin deducible
C65: Importante: | I65: OK
C66: Si se encuentran discrepancias entre la presente cotización y los términos de la póliza, prevalecerán las condiciones de esta última.
C67: La presente cotización es válida por un plazo de 30 días calendarios contados a partir de la fecha de recepción de la misma. Luego de vencido dicho plazo la oferta contenida en la presente cotización quedará sin efecto legal alguno entre las partes.
C68: Se deja constancia expresa que, a potestad de la Compañía, la aceptación final del riesgo por parte de esta queda sujeta a la realización de la inspección, por parte de nuestro Departamento de Ingeniería o la persona autorizada para tal efecto, para verificar el efectivo estado del riesgo, así como el estricto cumplimiento por parte del Asegurado de las garantías que a mérito de dicha inspección establezca el Departamento de Ingeniería de la Compañía.
C70: Consideraciones: | I70: OK
C71: - La forma de entrega de la póliza es electrónica. - La forma de pago de la póliza es solo con afiliación al débito automático a una tarjeta de crédito o a una cuenta bancaria. - La modalidad de aseguramiento que brinda este plan de seguros es a valor total. - La cobertura principal comprende además cualquier otro riesgo, súbito e imprevisto, que no esté excluido explícitamente en las exclusiones de las Condiciones Generales y/o Cláusulas Adicionales de la Póliza. - Las coberturas señaladas en Coberturas Adicionales forman parte de la suma asegurada de la Cobertura Principal, es decir, cada indemnización que le paguemos por las coberturas adicionales, reducirá la suma asegurada de la cobertura principal, a excepción de la cobertura adicional Responsabilidad civil frente a terceros, la cual es independiente a la suma asegurada de la cobertura principal. - La cobertura de la póliza en cuanto a pérdida o daños causados por agua que inunde, descargue o derrame de cualquier instalación de agua o desagüe de otros elementos líquidos; no comprenderá el costo de reparar el desperfecto que originó tal pérdida o daño. - Este seguro no otorga cobertura cuando en el inmueble se realiza cualquier actividad o giro comercial diferente al de casa habitación. - Este seguro se renovará automáticamente, es decir, en las mismas condiciones vigentes en el periodo anterior. - Para la cobertura de Robo y/o daños por intento de robo de Joyas y platería se define lo siguiente: Objetos y/o adornos de uso personal elaborados en oro, plata, platino, perlas y que pueden llevar o no incrustadas piedras preciosas de origen biológico o mineral, tanto si están engastadas como si no. También se considera a cualquier objeto ornamental o de uso doméstico elaborado con los materiales enumerados en el párrafo anterior. - El ASEGURADO deberá presentar una relación detallada, a ser actualizada mínimo cada dos años, de los bienes cuyo valor unitario excedan los S/ 5,000. En caso de siniestro, esta relación de bienes es el sustento de la pre-existencia de cada bien declarado. En caso de no cumplir con lo anterior o para bienes afectados no incluidos en la relación presentada, el Asegurado deberá demostrarnos la pre-existencia de los bienes afectados en el siniestro, a través de comprobantes de pago y/o constancia visual (fotografías, video, manuales de uso o similares) en donde se muestre el artículo en el interior del Inmueble asegurado o a la persona usando dicho artículo. - En caso de robo: Se mantiene la exigencia de la denuncia policial, pero se manejará a discreción cada caso hasta por un monto máximo de siniestro de S/ 30,000, siniestros por encima de este monto deberán presentar denuncia policial de manera obligatoria. - Las asistencias están disponibles los 365 días del año en las siguientes ciudades: • Lima Metropolitana exceptuando Ancón, Punta Hermosa, San Bartolo, Santa María y Pucusana. • Trujillo: En los distritos de Trujillo, Victor Larco, Moche y Huanchaco. • Chiclayo: En los distritos de Chiclayo, La Victoria, José Leonardo Ortiz, Pimentel. • Piura: En los distritos de Piura, Castilla, Catacaos. • Arequipa: En los distritos de Arequipa (Cercado), Yanahuara, Cayma, Sachaca, José Luis Bustamante y Rivero, Cerro Colorado. • Cusco: En los distritos de Cusco, San Jerónimo, San Sebastián, Santiago, Wanchaq. Aplican y deben aparecer tanto para a primer riesgo como para valor total
C103: Exlusiones: | I103: OK
C104: Tenga en cuenta que no pagaremos la reparación del desperfecto ni del bien que originó el daño, como tampoco ninguna pérdida o daño proveniente o que sean causa de, o en conexión con, o atribuibles principalmente a: a) Dolo, culpa grave o negligencia inexcusable del CONTRATANTE o de USTED y/o del BENEFICIARIO y/o ENDOSATARIO o de los familiares de cualquiera de ellos, o de sus dependientes, especialmente de los responsables de la seguridad de los BIENES asegurados. b) Guerra, Guerra Civil, invasión, acto de enemigo extranjero, hostilidades u operaciones de guerra, declarada o no. c) Desgaste o deterioro paulatino o fatiga de material, causado por, o resultado de, el uso y funcionamiento del bien; uso o deterioro gradual; deficiencias de rendimiento o capacidad; polución, contaminación; corrosión, erosión; herrumbre u oxidación; hongos, moho húmedo o seco, combustión espontánea, fermentación; humedad, sequedad, smog o cambios de temperatura; asentamiento o contracción o expansión de edificios o cimientos; la calefacción o la desecación a que hubieran sido sometidos los objetos que forman parte de la Materia Asegurada. d) Hundimientos, desplazamientos, agrietamientos o asentamientos de muros, pisos, techos, pavimentos, cimientos, muros de contención. Sin embargo, si estos daños son causados por los eventos de Terremoto, Temblor, Erupción Volcánica o Maremoto para los cuales se haya contratado amparo bajo la presente póliza, no se aplicará esta exclusión. e) Todo gasto o costo para implementar modificaciones o mejoras, o por mantenimiento, o para hacer otras reparaciones o arreglos, en el INMUEBLE y/o BIENES dañados o afectados; así como los gastos o costos de cualquier reparación provisional, a menos que constituyan, a la vez, parte de los gastos de la reparación definitiva amparada por la póliza. f) Valor atribuido a los BIENES por razones sentimentales o simbólicas, por afición, por antigüedad, o por exclusividad. g) Pérdida o daño ocurrido cuando el INMUEBLE esté deshabitado y/o cuando los BIENES se hallen en el INMUEBLE deshabitado; en ambos casos durante más de noventa (90) días consecutivos. Las demás exclusiones se encuentran en el acápite 3 de las Condiciones Generales de la Póliza. Aplican exclusiones específicas a la cobertura que se contrate, detalladas en su respectiva Cláusula Adicional. Bienes excluidos: a) INMUEBLE y/o BIENES con cualquier actividad o giro diferente al de casa habitación. b) Animales vivos de cualquier tipo. c) Plantaciones, cultivos, cosechas de cualquier tipo, invernaderos, bosques, selvas, monte bajo, praderas, pampas, árboles, parques, prados, jardines naturales y ornamentales, agua. d) INMUEBLES y/o BIENES en proceso de construcción, reconstrucción, montaje o desmontaje. e) Vehículos motorizados con una placa de rodaje, equipos flotantes o submarinos, aeronaves o artefactos aéreos, embarcaciones, naves acuáticas; de cualquier tipo y tamaño. f) BIENES de cualquier tipo que sean propiedad de terceros aun cuando dichos BIENES se encuentren bajo custodia y/o posesión del Asegurado. g) Material pirotécnico, explosivos, combustibles, mechas, fulminantes, detonadores y similares. h) BIENES situados o instalados u operando o trabajando o siendo usados en él, o a las orillas del, mar, río, lago o laguna, en subterráneos, o debajo del nivel de la superficie terrestre. i) Dinero en efectivo, títulos valores. j) Cualquier tipo de contenido o bien para fines comerciales, de la profesión u ocupación o de negocios de USTED, de cualquier miembro de su familia, por medio de los cuales obtengan un lucro.

Sheet CotizacionInmuebleyBienes (hidden)
C1: ="Cotización Seguro de Hogar Flex " & configuracion!$K$2 -> Cotización Seguro de Hogar Flex Abril 2022
C3: Vigencia de la cotización | D3: =TEXT(TODAY(),"dd/mm/yyyy") & " - " & TEXT(TODAY()+15,"dd/mm/yyyy") -> 04/04/2022 - 19/04/2022
C4: Fecha inicio de Vigencia | D4: =Cotizador!$L$6 -> 00:00:00
C5: Canal | D5: =Cotizador!$G$10 -> Corredor
C6: Agente | D6: =Cotizador!R$10 -> 0
C8: Datos del Contratante
C9: Nombre del Contratante | D9: =Cotizador!$G$15 & " " & Cotizador!$M$15& " " & Cotizador!$R$15 -> 
C10: Tipo de documento | D10: =Cotizador!$G$14&" " &Cotizador!$M$14 -> 
C12: Planes de Pago Prima
C13: Débito automático | D13: Valores de la Cuota
C14: Plan de pago | D14: Prima Comercial | E14: IGV | F14: Prima Total
C15: Prima anual + IGV sin intereses (referencial): | D15: =IF(Cotizador!$G$54=0,"",Cotizador!$G$54) ->  | E15: =IF(Cotizador!$G$55=0,"",Cotizador!$G$55) ->  | F15: =IF(Cotizador!$G$56=0,"",Cotizador!$G$56) -> 
C16: Prima anual + IGV sin intereses con descuento 15% (final): | D16: =IF(Cotizador!$L$54=0,"",Cotizador!$L$54) ->  | E16: =IF(Cotizador!$L$55=0,"",Cotizador!$L$55) ->  | F16: =IF(Cotizador!$L$56=0,"",Cotizador!$L$56) -> 
C17: =IF(Cotizador!$I$61="X",Cotizador!$B$61,IF(Cotizador!$I$62="X",Cotizador!$B$62,IF(Cotizador!$I$63="X",Cotizador!$B$63,IF(Cotizador!$I$64="X",Cotizador!$B$64,IF(Cotizador!$I$66="X",Cotizador!$B$66,IF(Cotizador!$I$67="X",Cotizador!$B$67,IF(Cotizador!$I$68="X",Cotizador!$B$68,IF(Cotizador!$I$69="X",Cotizador!$B$69,"")))))))) ->  | D17: =IFERROR(F17/1.18,"") ->  | E17: =IFERROR(F17-D17,"") ->  | F17: =IF(Cotizador!$I$61="X",Cotizador!$L$61,IF(Cotizador!$I$62="X",Cotizador!$L$62,IF(Cotizador!$I$63="X",Cotizador!$L$63,IF(Cotizador!$I$64="X",Cotizador!$L$64,IF(Cotizador!$I$66="X",Cotizador!$L$66,IF(Cotizador!$I$67="X",Cotizador!$L$67,IF(Cotizador!$I$68="X",Cotizador!$L$68,IF(Cotizador!$I$69="X",Cotizador!$L$69,"")))))))) -> 
C18: Materia Asegurada | D18: =IF(Cotizador!$H$29="X",Cotizador!$G$29,IF(Cotizador!$K$29="X",Cotizador!$J$29,IF(Cotizador!$O$29="X",Cotizador!$M$29))) -> FALSE
C20: Datos del Inmueble asegurado
C21: Dirección | D21: =Cotizador!$G$22 & " " & Cotizador!G23 -> 
C22: Departamento | D22: =IF(Cotizador!$L$26=0,"",Cotizador!$L$26) -> 
C23: Provincia | D23: =IF(Cotizador!$G$26=0,"",Cotizador!$G$26) -> 
C24: Distrito | D24: =IF(Cotizador!$G$25=0,"",Cotizador!$G$25) -> 
C25: Tipo de Inmueble | D25: =IF(Cotizador!$E$34="X",Cotizador!$B$34,IF(Cotizador!$E$35="X",Cotizador!$B$35,"")) -> 
C27: Modalidad de Aseguramiento | D27: =IF(Cotizador!$H$31="X",Cotizador!$G$31,IF(Cotizador!$K$31="X",Cotizador!$J$31,"")) -> 
C29: Plan contratado | D29: Personalizado
C31: Sumas Aseguradas
C32: Suma Asegurada Inmueble | D32: =Cotizador!$G$40 -> 0
C33: Suma Asegurada Bienes | D33: =Cotizador!G41 -> 0
C34: Suma Asegurada Total (Inmueble + Bienes) | D34: =SUM(D32:D33) -> 0
C36: COBERTURAS (INMUEBLE Y BIENES) | E36: Límites asegurados por vigencia, hasta | F36: Límites asegurados por vigencia, hasta | G36: Prima Comercial | I36: OK
C37: Cobertura principal | E37: INMUEBLE | F37: BIENES
A38: =IF(LEN(B38)=0,"hide","") ->  | B38: =IF('PRIMER RIESGO INMUEBLE+BIENES'!B12=0,"",'PRIMER RIESGO INMUEBLE+BIENES'!B12) -> X | C38: Incendio y/o rayo, explosión, incendio en aparatos eléctricos. Daños por agua, daños por humo, impacto de vehículos y/o aeronaves o daños por riesgos políticos y sociales | E38: ='PRIMER RIESGO INMUEBLE+BIENES'!F12 -> 0 | F38: ='PRIMER RIESGO INMUEBLE+BIENES'!G12 -> 0 | G38: ='PRIMER RIESGO INMUEBLE+BIENES'!H12 -> 157.9
C39: Coberturas adicionales
A40: =IF(LEN(B40)=0,"hide","") ->  | B40: =IF('PRIMER RIESGO INMUEBLE+BIENES'!B14=0,"",'PRIMER RIESGO INMUEBLE+BIENES'!B14) -> X | C40: Terremoto, temblor, maremoto, Inundaciones y riesgos de la naturaleza | E40: ='PRIMER RIESGO INMUEBLE+BIENES'!F14 -> 0 | F40: ='PRIMER RIESGO INMUEBLE+BIENES'!G14 -> 0 | G40: ='PRIMER RIESGO INMUEBLE+BIENES'!H14 -> 290.67
A41: =IF(LEN(B40)=0,"hide","") ->  | E41: Suma asegurada que forma parte de la cobertura principal | F41: Suma asegurada que forma parte de la cobertura principal
A42: =IF(LEN(B42)=0,"hide","") ->  | B42: =IF('PRIMER RIESGO INMUEBLE+BIENES'!B16=0,"",'PRIMER RIESGO INMUEBLE+BIENES'!B16) -> X | C42: Responsabilidad civil frente a terceros | E42: ='PRIMER RIESGO INMUEBLE+BIENES'!F16 -> 0 | F42: ='PRIMER RIESGO INMUEBLE+BIENES'!G16 -> - | G42: ='PRIMER RIESGO INMUEBLE+BIENES'!H16 -> 1.68
A43: =IF(LEN(B42)=0,"hide","") ->  | E43: =coberturasyClausulas!$J$64 -> máximo US$ 200,000
A44: =IF(LEN(B44)=0,"hide","") ->  | B44: =IF('PRIMER RIESGO INMUEBLE+BIENES'!B18=0,"",'PRIMER RIESGO INMUEBLE+BIENES'!B18) -> X | C44: Rotura accidental de vidrio y/o cristales | E44: ='PRIMER RIESGO INMUEBLE+BIENES'!F18 -> US$ 3,000 | G44: ='PRIMER RIESGO INMUEBLE+BIENES'!H18 -> 4.62
A45: =IF(LEN(B44)=0,"hide","") ->  | E45: Suma asegurada que forma parte de la cobertura principal
A46: =IF(LEN(B46)=0,"hide","") -> hide | B46: =IF('PRIMER RIESGO INMUEBLE+BIENES'!B20=0,"",'PRIMER RIESGO INMUEBLE+BIENES'!B20) ->  | C46: Robo o intento de robo de instalaciones fijas | E46: ='PRIMER RIESGO INMUEBLE+BIENES'!F20 -> 20% de la suma asegurada de inmueble, máximo US$ 5,000 , suma asegurada que forma parte de la cobertura principal | G46: ='PRIMER RIESGO INMUEBLE+BIENES'!H20 -> 0
A47: =IF(LEN(B47)=0,"hide","") -> hide | B47: =IF('PRIMER RIESGO INMUEBLE+BIENES'!B21=0,"",'PRIMER RIESGO INMUEBLE+BIENES'!B21) ->  | C47: Robo y/o daños por intento de robo (dentro y fuera de la vivienda a nivel nacional) | E47: ='PRIMER RIESGO INMUEBLE+BIENES'!F21 -> - | F47: ='PRIMER RIESGO INMUEBLE+BIENES'!G21 -> 0 | G47: ='PRIMER RIESGO INMUEBLE+BIENES'!H21 -> 0
A48: hide | B48: =IF('PRIMER RIESGO INMUEBLE+BIENES'!B22=0,"",'PRIMER RIESGO INMUEBLE+BIENES'!B22) ->  | C48: Robo y/o daños por intento de robo de joyas, platería, relojes, obras de arte, cámaras fotográficas o de video, laptops y bicicletas dentro de la vivienda o que estén siendo portados fuera de la vivienda. | E48: ='PRIMER RIESGO INMUEBLE+BIENES'!F22 -> - | F48: ='PRIMER RIESGO INMUEBLE+BIENES'!G22 -> USD 10,000, sublímite de la cobertura de Robo | G48: ='PRIMER RIESGO INMUEBLE+BIENES'!H22 -> 0
A49: hide | B49: =IF('PRIMER RIESGO INMUEBLE+BIENES'!B23=0,"",'PRIMER RIESGO INMUEBLE+BIENES'!B23) ->  | C49: Hurto | E49: ='PRIMER RIESGO INMUEBLE+BIENES'!F23 -> - | F49: ='PRIMER RIESGO INMUEBLE+BIENES'!G23 -> US$ 3,000 , sublímite de la cobertura de Robo | G49: ='PRIMER RIESGO INMUEBLE+BIENES'!H23 -> 0
A50: hide | B50: =IF('PRIMER RIESGO INMUEBLE+BIENES'!B24=0,"",'PRIMER RIESGO INMUEBLE+BIENES'!B24) ->  | C50: Deshonestidad de trabajadores del hogar | E50: ='PRIMER RIESGO INMUEBLE+BIENES'!F24 -> - | F50: ='PRIMER RIESGO INMUEBLE+BIENES'!G24 -> US$ 5,000 por evento, máximo 3 eventos por vigencia de la póliza, sublímite de la cobertura de Robo | G50: ='PRIMER RIESGO INMUEBLE+BIENES'!H24 -> 0
A51: hide | B51: =IF('PRIMER RIESGO INMUEBLE+BIENES'!B25=0,"",'PRIMER RIESGO INMUEBLE+BIENES'!B25) ->  | C51: Reembolso de gastos médicos por accidentes de trabajadores del hogar, ocurridos dentro del inmueble | E51: ='PRIMER RIESGO INMUEBLE+BIENES'!F25 -> US$ 5,000 por evento, máximo 3 eventos por vigencia de la póliza | F51: Hasta US$ 5,000 / S/ 15,000 por evento, máximo 3 eventos por vigencia de la póliza | G51: ='PRIMER RIESGO INMUEBLE+BIENES'!H25 -> 0
B52: =IF('PRIMER RIESGO INMUEBLE+BIENES'!B26=0,"",'PRIMER RIESGO INMUEBLE+BIENES'!B26) -> X | C52: Gastos de arrendamiento de vivienda temporal a reembolso | E52: ='PRIMER RIESGO INMUEBLE+BIENES'!F26 -> US$ 2,000 mensuales, máximo 6 meses por vigencia de la póliza, suma asegurada que forma parte de la cobertura principal | F52: Hasta US$ 5,000 / S/ 15,000 por evento, máximo 3 eventos por vigencia de la póliza | G52: ='PRIMER RIESGO INMUEBLE+BIENES'!H26 -> 1.23
A53: hide | B53: =IF('PRIMER RIESGO INMUEBLE+BIENES'!B27=0,"",'PRIMER RIESGO INMUEBLE+BIENES'!B27) ->  | C53: Alquiler no percibido por inmueble inhabitable temporalmente (aplica solo para el arrendador) | E53: ='PRIMER RIESGO INMUEBLE+BIENES'!F27 -> US$ 2,000 mensuales, máximo 6 meses por vigencia de la póliza, suma asegurada que forma parte de la cobertura principal | F53: Hasta US$ 5,000 / S/ 15,000 por evento, máximo 3 eventos por vigencia de la póliza | G53: ='PRIMER RIESGO INMUEBLE+BIENES'!H27 -> 0
B54: =IF('PRIMER RIESGO INMUEBLE+BIENES'!B28=0,"",'PRIMER RIESGO INMUEBLE+BIENES'!B28) -> X | C54: Gastos extraordinarios: remoción de escombros, honorarios profesionales y construcción de documentos y modelos | E54: ='PRIMER RIESGO INMUEBLE+BIENES'!F28 -> 20% de la suma asegurada de inmueble y/o bienes, suma asegurada que forma parte de la cobertura principal | F54: Hasta US$ 5,000 / S/ 15,000 por evento, máximo 3 eventos por vigencia de la póliza | G54: ='PRIMER RIESGO INMUEBLE+BIENES'!H28 -> 0
A55: =IF(LEN($B$55)=0,"hide","") ->  | B55: =IF('PRIMER RIESGO INMUEBLE+BIENES'!B29=0,"",'PRIMER RIESGO INMUEBLE+BIENES'!B29) -> X | C55: Asistencias | I55: OK
A56: =IF(LEN($B$55)=0,"hide","") ->  | C56: ='PRIMER RIESGO INMUEBLE+BIENES'!D30 -> Asistencia de emergencia en el hogar | E56: ='PRIMER RIESGO INMUEBLE+BIENES'!F30 -> Hasta US$ 300 por cada servicio, máximo 3 atenciones de cada servicio de Cerrajería, Gasfitería, Electricidad, y vidriería, las 24 horas del día todos los días del año, por vigencia de la póliza. | G56: ='PRIMER RIESGO INMUEBLE+BIENES'!H30 -> 17.68
A57: =IF(LEN($B$55)=0,"hide","") ->  | C57: ='PRIMER RIESGO INMUEBLE+BIENES'!D31 -> Limpieza del inmueble asegurado a consecuencia de un siniestro | E57: ='PRIMER RIESGO INMUEBLE+BIENES'!F31 -> Hasta US$ 500 máximo 3 atenciones por vigencia de la póliza
A58: =IF(LEN($B$55)=0,"hide","") ->  | C58: ='PRIMER RIESGO INMUEBLE+BIENES'!D32 -> Chequeo preventivo del inmueble | E58: ='PRIMER RIESGO INMUEBLE+BIENES'!F32 -> Hasta US$ 500 máximo 3 atenciones por vigencia de la póliza
C59: ='PRIMER RIESGO INMUEBLE+BIENES'!D33 -> Orientación médica telefónica | E59: ='PRIMER RIESGO INMUEBLE+BIENES'!F33 -> Sin límite
C60: ='PRIMER RIESGO INMUEBLE+BIENES'!D34 -> Ambulancia por accidente para el asegurado | E60: ='PRIMER RIESGO INMUEBLE+BIENES'!F34 -> Hasta US$ 500 máximo 3 atenciones por vigencia de la póliza
C61: ='PRIMER RIESGO INMUEBLE+BIENES'!D35 -> Asesoría legal por robo dentro del inmueble | E61: ='PRIMER RIESGO INMUEBLE+BIENES'!F35 -> Hasta US$ 300 máximo 3 atenciones por vigencia de la póliza
C62: Deducibles: Aplicables por evento/pérdida, en caso de discrepancia prevalece el mayor | I62: OK
A63: =IF(LEN(B63)=0,"hide","") ->  | B63: =IF('PRIMER RIESGO INMUEBLE+BIENES'!B37=0,"",'PRIMER RIESGO INMUEBLE+BIENES'!B37) -> X | C63: Terremoto / Maremoto | E63: ='PRIMER RIESGO INMUEBLE+BIENES'!F37 -> Hasta el 1% del límite asegurado, mínimo US$ 200
B64: =IF('PRIMER RIESGO INMUEBLE+BIENES'!B38=0,"",'PRIMER RIESGO INMUEBLE+BIENES'!B38) -> X | C64: Otros Riesgos de la Naturaleza (entre ellos lluvia, inundación, otros) | E64: ='PRIMER RIESGO INMUEBLE+BIENES'!F38 -> Hasta 10% del monto indemnizable, mínimo US$ 200
B65: =IF('PRIMER RIESGO INMUEBLE+BIENES'!B39=0,"",'PRIMER RIESGO INMUEBLE+BIENES'!B39) -> X | C65: Daños por agua | E65: ='PRIMER RIESGO INMUEBLE+BIENES'!F39 -> Hasta 10% del monto indemnizable, mínimo US$ 200
B66: =IF('PRIMER RIESGO INMUEBLE+BIENES'!B40=0,"",'PRIMER RIESGO INMUEBLE+BIENES'!B40) -> X | C66: Riesgos políticos y sociales | E66: ='PRIMER RIESGO INMUEBLE+BIENES'!F40 -> Hasta 10% del monto indemnizable, mínimo US$ 200
B67: =IF('PRIMER RIESGO INMUEBLE+BIENES'!B41=0,"",'PRIMER RIESGO INMUEBLE+BIENES'!B41) -> X | C67: Responsabilidad civil frente a terceros | E67: ='PRIMER RIESGO INMUEBLE+BIENES'!F41 -> Hasta 10% del monto indemnizable, mínimo US$ 200
B68: =IF('PRIMER RIESGO INMUEBLE+BIENES'!B42=0,"",'PRIMER RIESGO INMUEBLE+BIENES'!B42) -> X | C68: Rotura accidental de vidrio y/o cristales | E68: ='PRIMER RIESGO INMUEBLE+BIENES'!F42 -> Hasta 10% del monto indemnizable, mínimo US$ 200
A69: hide | B69: =IF('PRIMER RIESGO INMUEBLE+BIENES'!B43=0,"",'PRIMER RIESGO INMUEBLE+BIENES'!B43) ->  | C69: Robo o intento de robo de instalaciones fijas | E69: ='PRIMER RIESGO INMUEBLE+BIENES'!F43 -> Hasta 10% del monto indemnizable, mínimo US$ 200
A70: hide | B70: =IF('PRIMER RIESGO INMUEBLE+BIENES'!B44=0,"",'PRIMER RIESGO INMUEBLE+BIENES'!B44) ->  | C70: Robo y/o daños por intento de robo | E70: ='PRIMER RIESGO INMUEBLE+BIENES'!F44 -> Hasta 10% del monto indemnizable, mínimo US$ 200
A71: hide | B71: =IF('PRIMER RIESGO INMUEBLE+BIENES'!B45=0,"",'PRIMER RIESGO INMUEBLE+BIENES'!B45) ->  | C71: Hurto | E71: ='PRIMER RIESGO INMUEBLE+BIENES'!F45 -> Hasta 10% del monto indemnizable, mínimo US$ 200
A72: hide | B72: =IF('PRIMER RIESGO INMUEBLE+BIENES'!B46=0,"",'PRIMER RIESGO INMUEBLE+BIENES'!B46) ->  | C72: Deshonestidad de trabajadores del hogar | E72: ='PRIMER RIESGO INMUEBLE+BIENES'!F46 -> Hasta 10% del monto indemnizable, mínimo US$ 200
B73: =IF('PRIMER RIESGO INMUEBLE+BIENES'!B47=0,"",'PRIMER RIESGO INMUEBLE+BIENES'!B47) -> X | C73: Demás coberturas | E73: ='PRIMER RIESGO INMUEBLE+BIENES'!F47 -> Sin deducible
C76: Importante: | I76: OK
C77: Si se encuentran discrepancias entre la presente cotización y los términos de la póliza, prevalecerán las condiciones de esta última.
C78: La presente cotización es válida por un plazo de 30 días calendarios contados a partir de la fecha de recepción de la misma. Luego de vencido dicho plazo la oferta contenida en la presente cotización quedará sin efecto legal alguno entre las partes.
C79: Se deja constancia expresa que, a potestad de la Compañía, la aceptación final del riesgo por parte de esta queda sujeta a la realización de la inspección, por parte de nuestro Departamento de Ingeniería o la persona autorizada para tal efecto, para verificar el efectivo estado del riesgo, así como el estricto cumplimiento por parte del Asegurado de las garantías que a mérito de dicha inspección establezca el Departamento de Ingeniería de la Compañía.
C81: Consideraciones: | I81: OK
C82: - La forma de entrega de la póliza es electrónica. - La forma de pago de la póliza es solo con afiliación al débito automático a una tarjeta de crédito o a una cuenta bancaria. - La modalidad de aseguramiento que brinda este plan de seguros es a valor total. - La cobertura principal comprende además cualquier otro riesgo, súbito e imprevisto, que no esté excluido explícitamente en las exclusiones de las Condiciones Generales y/o Cláusulas Adicionales de la Póliza. - Las coberturas señaladas en Coberturas Adicionales forman parte de la suma asegurada de la Cobertura Principal, es decir, cada indemnización que le paguemos por las coberturas adicionales, reducirá la suma asegurada de la cobertura principal, a excepción de la cobertura adicional Responsabilidad civil frente a terceros, la cual es independiente a la suma asegurada de la cobertura principal. - La cobertura de la póliza en cuanto a pérdida o daños causados por agua que inunde, descargue o derrame de cualquier instalación de agua o desagüe de otros elementos líquidos; no comprenderá el costo de reparar el desperfecto que originó tal pérdida o daño. - Este seguro no otorga cobertura cuando en el inmueble se realiza cualquier actividad o giro comercial diferente al de casa habitación. - Este seguro se renovará automáticamente, es decir, en las mismas condiciones vigentes en el periodo anterior. - Para la cobertura de Robo y/o daños por intento de robo de Joyas y platería se define lo siguiente: Objetos y/o adornos de uso personal elaborados en oro, plata, platino, perlas y que pueden llevar o no incrustadas piedras preciosas de origen biológico o mineral, tanto si están engastadas como si no. También se considera a cualquier objeto ornamental o de uso doméstico elaborado con los materiales enumerados en el párrafo anterior. - El ASEGURADO deberá presentar una relación detallada, a ser actualizada mínimo cada dos años, de los bienes cuyo valor unitario excedan los S/ 5,000. En caso de siniestro, esta relación de bienes es el sustento de la pre-existencia de cada bien declarado. En caso de no cumplir con lo anterior o para bienes afectados no incluidos en la relación presentada, el Asegurado deberá demostrarnos la pre-existencia de los bienes afectados en el siniestro, a través de comprobantes de pago y/o constancia visual (fotografías, video, manuales de uso o similares) en donde se muestre el artículo en el interior del Inmueble asegurado o a la persona usando dicho artículo. - En caso de robo: Se mantiene la exigencia de la denuncia policial, pero se manejará a discreción cada caso hasta por un monto máximo de siniestro de S/ 30,000, siniestros por encima de este monto deberán presentar denuncia policial de manera obligatoria. - Las asistencias están disponibles los 365 días del año en las siguientes ciudades: • Lima Metropolitana exceptuando Ancón, Punta Hermosa, San Bartolo, Santa María y Pucusana. • Trujillo: En los distritos de Trujillo, Victor Larco, Moche y Huanchaco. • Chiclayo: En los distritos de Chiclayo, La Victoria, José Leonardo Ortiz, Pimentel. • Piura: En los distritos de Piura, Castilla, Catacaos. • Arequipa: En los distritos de Arequipa (Cercado), Yanahuara, Cayma, Sachaca, José Luis Bustamante y Rivero, Cerro Colorado. • Cusco: En los distritos de Cusco, San Jerónimo, San Sebastián, Santiago, Wanchaq. Aplican y deben aparecer tanto para a primer riesgo como para valor total
C114: Exlusiones: | I114: OK
C115: Tenga en cuenta que no pagaremos la reparación del desperfecto ni del bien que originó el daño, como tampoco ninguna pérdida o daño proveniente o que sean causa de, o en conexión con, o atribuibles principalmente a: a) Dolo, culpa grave o negligencia inexcusable del CONTRATANTE o de USTED y/o del BENEFICIARIO y/o ENDOSATARIO o de los familiares de cualquiera de ellos, o de sus dependientes, especialmente de los responsables de la seguridad de los BIENES asegurados. b) Guerra, Guerra Civil, invasión, acto de enemigo extranjero, hostilidades u operaciones de guerra, declarada o no. c) Desgaste o deterioro paulatino o fatiga de material, causado por, o resultado de, el uso y funcionamiento del bien; uso o deterioro gradual; deficiencias de rendimiento o capacidad; polución, contaminación; corrosión, erosión; herrumbre u oxidación; hongos, moho húmedo o seco, combustión espontánea, fermentación; humedad, sequedad, smog o cambios de temperatura; asentamiento o contracción o expansión de edificios o cimientos; la calefacción o la desecación a que hubieran sido sometidos los objetos que forman parte de la Materia Asegurada. d) Hundimientos, desplazamientos, agrietamientos o asentamientos de muros, pisos, techos, pavimentos, cimientos, muros de contención. Sin embargo, si estos daños son causados por los eventos de Terremoto, Temblor, Erupción Volcánica o Maremoto para los cuales se haya contratado amparo bajo la presente póliza, no se aplicará esta exclusión. e) Todo gasto o costo para implementar modificaciones o mejoras, o por mantenimiento, o para hacer otras reparaciones o arreglos, en el INMUEBLE y/o BIENES dañados o afectados; así como los gastos o costos de cualquier reparación provisional, a menos que constituyan, a la vez, parte de los gastos de la reparación definitiva amparada por la póliza. f) Valor atribuido a los BIENES por razones sentimentales o simbólicas, por afición, por antigüedad, o por exclusividad. g) Pérdida o daño ocurrido cuando el INMUEBLE esté deshabitado y/o cuando los BIENES se hallen en el INMUEBLE deshabitado; en ambos casos durante más de noventa (90) días consecutivos. Las demás exclusiones se encuentran en el acápite 3 de las Condiciones Generales de la Póliza. Aplican exclusiones específicas a la cobertura que se contrate, detalladas en su respectiva Cláusula Adicional. Bienes excluidos: a) INMUEBLE y/o BIENES con cualquier actividad o giro diferente al de casa habitación. b) Animales vivos de cualquier tipo. c) Plantaciones, cultivos, cosechas de cualquier tipo, invernaderos, bosques, selvas, monte bajo, praderas, pampas, árboles, parques, prados, jardines naturales y ornamentales, agua. d) INMUEBLES y/o BIENES en proceso de construcción, reconstrucción, montaje o desmontaje. e) Vehículos motorizados con una placa de rodaje, equipos flotantes o submarinos, aeronaves o artefactos aéreos, embarcaciones, naves acuáticas; de cualquier tipo y tamaño. f) BIENES de cualquier tipo que sean propiedad de terceros aun cuando dichos BIENES se encuentren bajo custodia y/o posesión del Asegurado. g) Material pirotécnico, explosivos, combustibles, mechas, fulminantes, detonadores y similares. h) BIENES situados o instalados u operando o trabajando o siendo usados en él, o a las orillas del, mar, río, lago o laguna, en subterráneos, o debajo del nivel de la superficie terrestre. i) Dinero en efectivo, títulos valores. j) Cualquier tipo de contenido o bien para fines comerciales, de la profesión u ocupación o de negocios de USTED, de cualquier miembro de su familia, por medio de los cuales obtengan un lucro.

Sheet CotizacionInmuebleVT (hidden)
C1: ="Cotización Seguro de Hogar Flex " & configuracion!$K$2 -> Cotización Seguro de Hogar Flex Abril 2022
C3: Vigencia de la cotización | D3: =TEXT(TODAY(),"dd/mm/yyyy") & " - " & TEXT(TODAY()+15,"dd/mm/yyyy") -> 04/04/2022 - 19/04/2022
C4: Fecha inicio de Vigencia | D4: =Cotizador!$L$6 -> 00:00:00
C5: Canal | D5: =Cotizador!$G$10 -> Corredor
C6: Agente | D6: =Cotizador!R$10 -> 0
C8: Datos del Contratante
C9: Nombre del Contratante | D9: =Cotizador!$G$15 & " " & Cotizador!$M$15& " " & Cotizador!$R$15 -> 
C10: Tipo de documento | D10: =Cotizador!$G$14&" " &Cotizador!$M$14 -> 
C12: Planes de Pago Prima
C13: Débito automático | D13: Valores de la Cuota
C14: Plan de pago | D14: Prima Comercial | E14: IGV | F14: Prima Total
C15: Prima anual + IGV sin intereses (referencial): | D15: =IF(Cotizador!$G$54=0,"",Cotizador!$G$54) ->  | E15: =IF(Cotizador!$G$55=0,"",Cotizador!$G$55) ->  | F15: =IF(Cotizador!$G$56=0,"",Cotizador!$G$56) -> 
C16: Prima anual + IGV sin intereses con descuento 15% (final): | D16: =IF(Cotizador!$L$54=0,"",Cotizador!$L$54) ->  | E16: =IF(Cotizador!$L$55=0,"",Cotizador!$L$55) ->  | F16: =IF(Cotizador!$L$56=0,"",Cotizador!$L$56) -> 
C17: =IF(Cotizador!$I$61="X",Cotizador!$B$61,IF(Cotizador!$I$62="X",Cotizador!$B$62,IF(Cotizador!$I$63="X",Cotizador!$B$63,IF(Cotizador!$I$64="X",Cotizador!$B$64,IF(Cotizador!$I$66="X",Cotizador!$B$66,IF(Cotizador!$I$67="X",Cotizador!$B$67,IF(Cotizador!$I$68="X",Cotizador!$B$68,IF(Cotizador!$I$69="X",Cotizador!$B$69,"")))))))) ->  | D17: =IFERROR(F17/1.18,"") ->  | E17: =IFERROR(F17-D17,"") ->  | F17: =IF(Cotizador!$I$61="X",Cotizador!$L$61,IF(Cotizador!$I$62="X",Cotizador!$L$62,IF(Cotizador!$I$63="X",Cotizador!$L$63,IF(Cotizador!$I$64="X",Cotizador!$L$64,IF(Cotizador!$I$66="X",Cotizador!$L$66,IF(Cotizador!$I$67="X",Cotizador!$L$67,IF(Cotizador!$I$68="X",Cotizador!$L$68,IF(Cotizador!$I$69="X",Cotizador!$L$69,"")))))))) -> 
C18: Materia Asegurada | D18: =IF(Cotizador!$H$29="X",Cotizador!$G$29,IF(Cotizador!$K$29="X",Cotizador!$J$29,IF(Cotizador!$O$29="X",Cotizador!$M$29))) -> FALSE
C20: Datos del Inmueble asegurado
C21: Dirección | D21: =Cotizador!$G$22 & " " & Cotizador!G23 -> 
C22: Departamento | D22: =IF(Cotizador!$L$26=0,"",Cotizador!$L$26) -> 
C23: Provincia | D23: =IF(Cotizador!$G$26=0,"",Cotizador!$G$26) -> 
C24: Distrito | D24: =IF(Cotizador!$G$25=0,"",Cotizador!$G$25) -> 
C25: Tipo de Inmueble | D25: =IF(Cotizador!$E$34="X",Cotizador!$B$34,IF(Cotizador!$E$35="X",Cotizador!$B$35,"")) -> 
C27: Modalidad de Aseguramiento | D27: =IF(Cotizador!$H$31="X",Cotizador!$G$31,IF(Cotizador!$K$31="X",Cotizador!$J$31,"")) -> 
C29: Plan contratado | D29: Personalizado
C31: Suma Asegurada
C32: Suma Asegurada Inmueble | D32: =Cotizador!$G$40 -> 0
C33: Suma Asegurada Bienes | D33: =Cotizador!G41 -> 0
C34: Suma Asegurada Total (Inmueble + Bienes) | D34: =SUM(D32:D33) -> 0
C36: COBERTURAS (solo INMUEBLE) | E36: Límites asegurados por vigencia | F36: Prima Comercial | I36: OK
C37: Cobertura principal
A38: =IF(LEN(B38)=0,"hide","") ->  | B38: =IF('VALOR TOTAL INMUEBLE'!B12=0,"",'VALOR TOTAL INMUEBLE'!B12) -> X | C38: Incendio y/o rayo, explosión, incendio en aparatos eléctricos. Daños por agua, daños por humo, impacto de vehículos y/o aeronaves o daños por riesgos políticos y sociales | E38: ='VALOR TOTAL INMUEBLE'!F12 -> 0 | F38: ='VALOR TOTAL INMUEBLE'!G12 -> 51.5
A39: =IF(AND(A40="hide",A41="hide",A42="hide",A43="hide",A44="hide",A45="hide",A46="hide",A47="hide",A48="hide",A49="hide"),"hide","") ->  | C39: Coberturas adicionales
A40: =IF(LEN(B40)=0,"hide","") -> hide | B40: =IF('VALOR TOTAL INMUEBLE'!B14=0,"",'VALOR TOTAL INMUEBLE'!B14) ->  | C40: Terremoto, temblor, maremoto, Inundaciones y riesgos de la naturaleza | E40: ='VALOR TOTAL INMUEBLE'!F14 -> 0 | F40: ='VALOR TOTAL INMUEBLE'!G14 -> 0
A41: =IF(LEN(B40)=0,"hide","") -> hide | B41: =IF('PRIMER RIESGO INMUEBLE'!B15=0,"",'PRIMER RIESGO INMUEBLE'!B15) ->  | E41: ='VALOR TOTAL INMUEBLE'!F15 -> Suma asegurada que forma parte de la cobertura principal
A42: =IF(LEN(B42)=0,"hide","") -> hide | B42: =IF('VALOR TOTAL INMUEBLE'!B16=0,"",'VALOR TOTAL INMUEBLE'!B16) ->  | C42: Responsabilidad civil frente a terceros | E42: ='VALOR TOTAL INMUEBLE'!F16 -> 0 | F42: ='VALOR TOTAL INMUEBLE'!G16 -> 0
A43: =IF(LEN(B42)=0,"hide","") -> hide | B43: =IF('PRIMER RIESGO INMUEBLE'!B17=0,"",'PRIMER RIESGO INMUEBLE'!B17) ->  | E43: ='VALOR TOTAL INMUEBLE'!F17 -> máximo US$ 200,000
A44: =IF(LEN(B44)=0,"hide","") -> hide | B44: =IF('VALOR TOTAL INMUEBLE'!B18=0,"",'VALOR TOTAL INMUEBLE'!B18) ->  | C44: Rotura accidental de vidrio y/o cristales | E44: ='VALOR TOTAL INMUEBLE'!F18 -> Hasta US$ 3,000 ,suma asegurada que forma parte de la cobertura principal | F44: ='VALOR TOTAL INMUEBLE'!G18 -> 0
A45: =IF(LEN(B45)=0,"hide","") -> hide | B45: =IF('VALOR TOTAL INMUEBLE'!B19=0,"",'VALOR TOTAL INMUEBLE'!B19) ->  | C45: Robo o intento de robo de instalaciones fijas | E45: ='VALOR TOTAL INMUEBLE'!F19 -> Hasta el 20% de la suma asegurada de inmueble, máximo US$ 5,000 ,suma asegurada que forma parte de la cobertura principal | F45: ='VALOR TOTAL INMUEBLE'!G19 -> 0
A46: =IF(LEN(B46)=0,"hide","") -> hide | B46: =IF('VALOR TOTAL INMUEBLE'!B20=0,"",'VALOR TOTAL INMUEBLE'!B20) ->  | C46: Reembolso de gastos médicos por accidentes de trabajadores del hogar, ocurridos dentro del inmueble | E46: ='VALOR TOTAL INMUEBLE'!F20 -> Hasta US$ 5,000 por evento, máximo 3 eventos por vigencia de la póliza | F46: ='VALOR TOTAL INMUEBLE'!G20 -> 0
A47: hide | B47: =IF('VALOR TOTAL INMUEBLE'!B21=0,"",'VALOR TOTAL INMUEBLE'!B21) ->  | C47: Gastos de arrendamiento de vivienda temporal a reembolso | E47: ='VALOR TOTAL INMUEBLE'!F21 -> Hasta US$ 2,000 mensuales, máximo 6 meses por vigencia de la póliza, suma asegurada que forma parte de la cobertura principal | F47: ='VALOR TOTAL INMUEBLE'!G21 -> 0
A48: hide | B48: =IF('VALOR TOTAL INMUEBLE'!B22=0,"",'VALOR TOTAL INMUEBLE'!B22) ->  | C48: Alquiler no percibido por inmueble inhabitable temporalmente | E48: ='VALOR TOTAL INMUEBLE'!F22 -> Hasta US$ 2,000 mensuales, máximo 6 meses por vigencia de la póliza, suma asegurada que forma parte de la cobertura principal | F48: ='VALOR TOTAL INMUEBLE'!G22 -> 0
A49: =IF(LEN(B49)=0,"hide","") ->  | B49: =IF('VALOR TOTAL INMUEBLE'!B23=0,"",'VALOR TOTAL INMUEBLE'!B23) -> X | C49: Gastos extraordinarios: remoción de escombros, honorarios profesionales y construcción de documentos y modelos | E49: ='VALOR TOTAL INMUEBLE'!F23 -> Hasta el 20% de la suma asegurada de Inmueble, suma asegurada que forma parte de la cobertura principal | F49: ='VALOR TOTAL INMUEBLE'!G23 -> 0
A50: =IF(LEN($B$50)=0,"hide","") -> hide | B50: =IF('VALOR TOTAL INMUEBLE'!B24=0,"",'VALOR TOTAL INMUEBLE'!B24) ->  | C50: Asistencias | I50: OK
A51: =IF(LEN($B$50)=0,"hide","") -> hide | C51: ='VALOR TOTAL INMUEBLE'!D25 -> Asistencia de emergencia en el hogar | E51: ='VALOR TOTAL INMUEBLE'!F25 -> Hasta US$ 300 por cada servicio, máximo 3 atenciones de cada servicio de Cerrajería, Gasfitería, Electricidad, y vidriería, las 24 horas del día todos los días del año, por vigencia de la póliza. | F51: ='PRIMER RIESGO INMUEBLE'!G25 -> 0
A52: =IF(LEN($B$50)=0,"hide","") -> hide | C52: ='VALOR TOTAL INMUEBLE'!D26 -> Limpieza del inmueble asegurado a consecuencia de un siniestro | E52: ='VALOR TOTAL INMUEBLE'!F26 -> Hasta US$ 500 máximo 3 atenciones por vigencia de la póliza
A53: hide | C53: ='VALOR TOTAL INMUEBLE'!D27 -> Chequeo preventivo del inmueble | E53: ='VALOR TOTAL INMUEBLE'!F27 -> Hasta US$ 500 máximo 3 atenciones por vigencia de la póliza
A54: hide | C54: ='VALOR TOTAL INMUEBLE'!D28 -> Orientación médica telefónica | E54: ='VALOR TOTAL INMUEBLE'!F28 -> Sin límite
A55: hide | C55: ='VALOR TOTAL INMUEBLE'!D29 -> Ambulancia por accidente para el asegurado | E55: ='VALOR TOTAL INMUEBLE'!F29 -> Hasta US$ 500 máximo 3 atenciones por vigencia de la póliza
A56: hide | C56: ='VALOR TOTAL INMUEBLE'!D30 -> Asesoría legal por robo dentro del inmueble | E56: ='VALOR TOTAL INMUEBLE'!F30 -> Hasta US$ 300 máximo 3 atenciones por vigencia de la póliza
C57: Deducibles: Aplicables por evento/pérdida, en caso de discrepancia prevalece el mayor | I57: OK
A58: =IF(LEN(B58)=0,"hide","") -> hide | B58: =IF('VALOR TOTAL INMUEBLE'!B32=0,"",'VALOR TOTAL INMUEBLE'!B32) ->  | C58: Terremoto / Maremoto | E58: ='VALOR TOTAL INMUEBLE'!F32 -> Hasta el 1% del límite asegurado, mínimo US$ 200
A59: =IF(LEN(B59)=0,"hide","") -> hide | B59: =IF('VALOR TOTAL INMUEBLE'!B33=0,"",'VALOR TOTAL INMUEBLE'!B33) ->  | C59: Otros Riesgos de la Naturaleza (entre ellos lluvia, inundación, otros) | E59: ='VALOR TOTAL INMUEBLE'!F33 -> Hasta 10% del monto indemnizable, mínimo US$ 200
B60: =IF('VALOR TOTAL INMUEBLE'!B34=0,"",'VALOR TOTAL INMUEBLE'!B34) -> X | C60: Daños por agua | E60: ='VALOR TOTAL INMUEBLE'!F34 -> Hasta 10% del monto indemnizable, mínimo US$ 200
B61: =IF('VALOR TOTAL INMUEBLE'!B35=0,"",'VALOR TOTAL INMUEBLE'!B35) -> X | C61: Riesgos políticos y sociales | E61: ='VALOR TOTAL INMUEBLE'!F35 -> Hasta 10% del monto indemnizable, mínimo US$ 200
A62: hide | B62: =IF('VALOR TOTAL INMUEBLE'!B36=0,"",'VALOR TOTAL INMUEBLE'!B36) ->  | C62: Responsabilidad civil frente a terceros | E62: ='VALOR TOTAL INMUEBLE'!F36 -> Hasta 10% del monto indemnizable, mínimo US$ 200
A63: hide | B63: =IF('VALOR TOTAL INMUEBLE'!B37=0,"",'VALOR TOTAL INMUEBLE'!B37) ->  | C63: Rotura accidental de vidrio y/o cristales | E63: ='VALOR TOTAL INMUEBLE'!F37 -> Hasta 10% del monto indemnizable, mínimo US$ 200
A64: hide | B64: =IF('VALOR TOTAL INMUEBLE'!B38=0,"",'VALOR TOTAL INMUEBLE'!B38) ->  | C64: Robo o intento de robo de instalaciones fijas | E64: ='VALOR TOTAL INMUEBLE'!F38 -> Hasta 10% del monto indemnizable, mínimo US$ 200
A65: hide | B65: =IF('VALOR TOTAL INMUEBLE'!B39=0,"",'VALOR TOTAL INMUEBLE'!B39) ->  | C65: Demás coberturas | E65: ='VALOR TOTAL INMUEBLE'!F39 -> Sin deducible
C68: Importante: | I68: OK
C69: Si se encuentran discrepancias entre la presente cotización y los términos de la póliza, prevalecerán las condiciones de esta última.
C70: La presente cotización es válida por un plazo de 30 días calendarios contados a partir de la fecha de recepción de la misma. Luego de vencido dicho plazo la oferta contenida en la presente cotización quedará sin efecto legal alguno entre las partes.
C71: Se deja constancia expresa que, a potestad de la Compañía, la aceptación final del riesgo por parte de esta queda sujeta a la realización de la inspección, por parte de nuestro Departamento de Ingeniería o la persona autorizada para tal efecto, para verificar el efectivo estado del riesgo, así como el estricto cumplimiento por parte del Asegurado de las garantías que a mérito de dicha inspección establezca el Departamento de Ingeniería de la Compañía.
C73: Consideraciones: | I73: OK
C74: - La forma de entrega de la póliza es electrónica. - La forma de pago de la póliza es solo con afiliación al débito automático a una tarjeta de crédito o a una cuenta bancaria. - La modalidad de aseguramiento que brinda este plan de seguros es a valor total. - La cobertura principal comprende además cualquier otro riesgo, súbito e imprevisto, que no esté excluido explícitamente en las exclusiones de las Condiciones Generales y/o Cláusulas Adicionales de la Póliza. - Las coberturas señaladas en Coberturas Adicionales forman parte de la suma asegurada de la Cobertura Principal, es decir, cada indemnización que le paguemos por las coberturas adicionales, reducirá la suma asegurada de la cobertura principal, a excepción de la cobertura adicional Responsabilidad civil frente a terceros, la cual es independiente a la suma asegurada de la cobertura principal. - La cobertura de la póliza en cuanto a pérdida o daños causados por agua que inunde, descargue o derrame de cualquier instalación de agua o desagüe de otros elementos líquidos; no comprenderá el costo de reparar el desperfecto que originó tal pérdida o daño. - Este seguro no otorga cobertura cuando en el inmueble se realiza cualquier actividad o giro comercial diferente al de casa habitación. - Este seguro se renovará automáticamente, es decir, en las mismas condiciones vigentes en el periodo anterior. - Para la cobertura de Robo y/o daños por intento de robo de Joyas y platería se define lo siguiente: Objetos y/o adornos de uso personal elaborados en oro, plata, platino, perlas y que pueden llevar o no incrustadas piedras preciosas de origen biológico o mineral, tanto si están engastadas como si no. También se considera a cualquier objeto ornamental o de uso doméstico elaborado con los materiales enumerados en el párrafo anterior. - El ASEGURADO deberá presentar una relación detallada, a ser actualizada mínimo cada dos años, de los bienes cuyo valor unitario excedan los S/ 5,000. En caso de siniestro, esta relación de bienes es el sustento de la pre-existencia de cada bien declarado. En caso de no cumplir con lo anterior o para bienes afectados no incluidos en la relación presentada, el Asegurado deberá demostrarnos la pre-existencia de los bienes afectados en el siniestro, a través de comprobantes de pago y/o constancia visual (fotografías, video, manuales de uso o similares) en donde se muestre el artículo en el interior del Inmueble asegurado o a la persona usando dicho artículo. - En caso de robo: Se mantiene la exigencia de la denuncia policial, pero se manejará a discreción cada caso hasta por un monto máximo de siniestro de S/ 30,000, siniestros por encima de este monto deberán presentar denuncia policial de manera obligatoria. - Las asistencias están disponibles los 365 días del año en las siguientes ciudades: • Lima Metropolitana exceptuando Ancón, Punta Hermosa, San Bartolo, Santa María y Pucusana. • Trujillo: En los distritos de Trujillo, Victor Larco, Moche y Huanchaco. • Chiclayo: En los distritos de Chiclayo, La Victoria, José Leonardo Ortiz, Pimentel. • Piura: En los distritos de Piura, Castilla, Catacaos. • Arequipa: En los distritos de Arequipa (Cercado), Yanahuara, Cayma, Sachaca, José Luis Bustamante y Rivero, Cerro Colorado. • Cusco: En los distritos de Cusco, San Jerónimo, San Sebastián, Santiago, Wanchaq. Aplican y deben aparecer tanto para a primer riesgo como para valor total
C106: Exlusiones: | I106: OK
C107: Tenga en cuenta que no pagaremos la reparación del desperfecto ni del bien que originó el daño, como tampoco ninguna pérdida o daño proveniente o que sean causa de, o en conexión con, o atribuibles principalmente a: a) Dolo, culpa grave o negligencia inexcusable del CONTRATANTE o de USTED y/o del BENEFICIARIO y/o ENDOSATARIO o de los familiares de cualquiera de ellos, o de sus dependientes, especialmente de los responsables de la seguridad de los BIENES asegurados. b) Guerra, Guerra Civil, invasión, acto de enemigo extranjero, hostilidades u operaciones de guerra, declarada o no. c) Desgaste o deterioro paulatino o fatiga de material, causado por, o resultado de, el uso y funcionamiento del bien; uso o deterioro gradual; deficiencias de rendimiento o capacidad; polución, contaminación; corrosión, erosión; herrumbre u oxidación; hongos, moho húmedo o seco, combustión espontánea, fermentación; humedad, sequedad, smog o cambios de temperatura; asentamiento o contracción o expansión de edificios o cimientos; la calefacción o la desecación a que hubieran sido sometidos los objetos que forman parte de la Materia Asegurada. d) Hundimientos, desplazamientos, agrietamientos o asentamientos de muros, pisos, techos, pavimentos, cimientos, muros de contención. Sin embargo, si estos daños son causados por los eventos de Terremoto, Temblor, Erupción Volcánica o Maremoto para los cuales se haya contratado amparo bajo la presente póliza, no se aplicará esta exclusión. e) Todo gasto o costo para implementar modificaciones o mejoras, o por mantenimiento, o para hacer otras reparaciones o arreglos, en el INMUEBLE y/o BIENES dañados o afectados; así como los gastos o costos de cualquier reparación provisional, a menos que constituyan, a la vez, parte de los gastos de la reparación definitiva amparada por la póliza. f) Valor atribuido a los BIENES por razones sentimentales o simbólicas, por afición, por antigüedad, o por exclusividad. g) Pérdida o daño ocurrido cuando el INMUEBLE esté deshabitado y/o cuando los BIENES se hallen en el INMUEBLE deshabitado; en ambos casos durante más de noventa (90) días consecutivos. Las demás exclusiones se encuentran en el acápite 3 de las Condiciones Generales de la Póliza. Aplican exclusiones específicas a la cobertura que se contrate, detalladas en su respectiva Cláusula Adicional. Bienes excluidos: a) INMUEBLE y/o BIENES con cualquier actividad o giro diferente al de casa habitación. b) Animales vivos de cualquier tipo. c) Plantaciones, cultivos, cosechas de cualquier tipo, invernaderos, bosques, selvas, monte bajo, praderas, pampas, árboles, parques, prados, jardines naturales y ornamentales, agua. d) INMUEBLES y/o BIENES en proceso de construcción, reconstrucción, montaje o desmontaje. e) Vehículos motorizados con una placa de rodaje, equipos flotantes o submarinos, aeronaves o artefactos aéreos, embarcaciones, naves acuáticas; de cualquier tipo y tamaño. f) BIENES de cualquier tipo que sean propiedad de terceros aun cuando dichos BIENES se encuentren bajo custodia y/o posesión del Asegurado. g) Material pirotécnico, explosivos, combustibles, mechas, fulminantes, detonadores y similares. h) BIENES situados o instalados u operando o trabajando o siendo usados en él, o a las orillas del, mar, río, lago o laguna, en subterráneos, o debajo del nivel de la superficie terrestre. i) Dinero en efectivo, títulos valores. j) Cualquier tipo de contenido o bien para fines comerciales, de la profesión u ocupación o de negocios de USTED, de cualquier miembro de su familia, por medio de los cuales obtengan un lucro.

Sheet CotizacionBienesVT (hidden)
C1: ="Cotización Seguro de Hogar Flex " & configuracion!$K$2 -> Cotización Seguro de Hogar Flex Abril 2022
C3: Vigencia de la cotización | D3: =TEXT(TODAY(),"dd/mm/yyyy") & " - " & TEXT(TODAY()+15,"dd/mm/yyyy") -> 04/04/2022 - 19/04/2022
C4: Fecha inicio de Vigencia | D4: =Cotizador!$L$6 -> 00:00:00
C5: Canal | D5: =Cotizador!$G$10 -> Corredor
C6: Agente | D6: =Cotizador!R$10 -> 0
C8: Datos del Contratante
C9: Nombre del Contratante | D9: =Cotizador!$G$15 & " " & Cotizador!$M$15& " " & Cotizador!$R$15 -> 
C10: Tipo de documento | D10: =Cotizador!$G$14&" " &Cotizador!$M$14 -> 
C12: Planes de Pago Prima
C13: Débito automático | D13: Valores de la Cuota
C14: Plan de pago | D14: Prima Comercial | E14: IGV | F14: Prima Total
C15: Prima anual + IGV sin intereses (referencial): | D15: =IF(Cotizador!$G$54=0,"",Cotizador!$G$54) ->  | E15: =IF(Cotizador!$G$55=0,"",Cotizador!$G$55) ->  | F15: =IF(Cotizador!$G$56=0,"",Cotizador!$G$56) -> 
C16: Prima anual + IGV sin intereses con descuento 20% (final): | D16: =IF(Cotizador!$L$54=0,"",Cotizador!$L$54) ->  | E16: =IF(Cotizador!$L$55=0,"",Cotizador!$L$55) ->  | F16: =IF(Cotizador!$L$56=0,"",Cotizador!$L$56) -> 
C17: =IF(Cotizador!$I$61="X",Cotizador!$B$61,IF(Cotizador!$I$62="X",Cotizador!$B$62,IF(Cotizador!$I$63="X",Cotizador!$B$63,IF(Cotizador!$I$64="X",Cotizador!$B$64,IF(Cotizador!$I$66="X",Cotizador!$B$66,IF(Cotizador!$I$67="X",Cotizador!$B$67,IF(Cotizador!$I$68="X",Cotizador!$B$68,IF(Cotizador!$I$69="X",Cotizador!$B$69,"")))))))) ->  | D17: =IFERROR(F17/1.18,"") ->  | E17: =IFERROR(F17-D17,"") ->  | F17: =IF(Cotizador!$I$61="X",Cotizador!$L$61,IF(Cotizador!$I$62="X",Cotizador!$L$62,IF(Cotizador!$I$63="X",Cotizador!$L$63,IF(Cotizador!$I$64="X",Cotizador!$L$64,IF(Cotizador!$I$66="X",Cotizador!$L$66,IF(Cotizador!$I$67="X",Cotizador!$L$67,IF(Cotizador!$I$68="X",Cotizador!$L$68,IF(Cotizador!$I$69="X",Cotizador!$L$69,"")))))))) -> 
C18: Materia Asegurada | D18: =IF(Cotizador!$H$29="X",Cotizador!$G$29,IF(Cotizador!$K$29="X",Cotizador!$J$29,IF(Cotizador!$O$29="X",Cotizador!$M$29))) -> FALSE
C20: Datos del Inmueble asegurado
C21: Dirección | D21: =Cotizador!$G$22 & " " & Cotizador!G23 -> 
C22: Departamento | D22: =IF(Cotizador!$L$26=0,"",Cotizador!$L$26) -> 
C23: Provincia | D23: =IF(Cotizador!$G$26=0,"",Cotizador!$G$26) -> 
C24: Distrito | D24: =IF(Cotizador!$G$25=0,"",Cotizador!$G$25) -> 
C25: Tipo de Inmueble | D25: =IF(Cotizador!$E$34="X",Cotizador!$B$34,IF(Cotizador!$E$35="X",Cotizador!$B$35,"")) -> 
C27: Modalidad de Aseguramiento | D27: =IF(Cotizador!$H$31="X",Cotizador!$G$31,IF(Cotizador!$K$31="X",Cotizador!$J$31,"")) -> 
C29: Plan contratado | D29: Personalizado
C31: Suma Asegurada
C32: Suma Asegurada Inmueble | D32: =Cotizador!$G$40 -> 0
C33: Suma Asegurada Bienes | D33: =Cotizador!G41 -> 0
C34: Suma Asegurada Total (Inmueble + Bienes) | D34: =SUM(D32:D33) -> 0
C36: COBERTURAS (solo BIENES) | E36: Límites asegurados por vigencia | F36: Prima Comercial | I36: OK
C37: Cobertura principal
A38: =IF(LEN(B38)=0,"hide","") ->  | B38: =IF('VALOR TOTAL BIENES'!B12=0,"",'VALOR TOTAL BIENES'!B12) -> X | C38: Incendio y/o rayo, explosión, incendio en aparatos eléctricos. Daños por agua, daños por humo, impacto de vehículos y/o aeronaves o daños por riesgos políticos y sociales | E38: ='VALOR TOTAL BIENES'!F12 -> 0 | F38: ='VALOR TOTAL BIENES'!G12 -> 62.82
A39: =IF(AND(A40="hide",A41="hide",A42="hide",A43="hide",A44="hide",A45="hide",A46="hide"),"hide","") ->  | C39: Coberturas adicionales
A40: =IF(LEN(B40)=0,"hide","") -> hide | B40: =IF('VALOR TOTAL BIENES'!B14=0,"",'VALOR TOTAL BIENES'!B14) ->  | C40: Robo y/o daños por intento de robo (dentro y fuera de la vivienda a nivel nacional) | E40: ='VALOR TOTAL BIENES'!F14 -> 0 | F40: ='VALOR TOTAL BIENES'!G14 -> 0
A41: =IF(LEN(B41)=0,"hide","") -> hide | B41: =IF('VALOR TOTAL BIENES'!B15=0,"",'VALOR TOTAL BIENES'!B15) ->  | C41: Robo y/o daños por intento de robo de joyas, platería, relojes, obras de arte, cámaras fotográficas o de video, laptops y bicicletas dentro de la vivienda o que estén siendo portados fuera de la vivienda. | E41: ='VALOR TOTAL BIENES'!F15 -> USD 10,000, sublímite de la cobertura de Robo | F41: ='VALOR TOTAL BIENES'!G15 -> 0
A42: =IF(LEN(B42)=0,"hide","") -> hide | B42: =IF('VALOR TOTAL BIENES'!B16=0,"",'VALOR TOTAL BIENES'!B16) ->  | C42: Terremoto, temblor, maremoto, Inundaciones y riesgos de la naturaleza | E42: ='VALOR TOTAL BIENES'!F16 -> 0 | F42: ='VALOR TOTAL BIENES'!G16 -> 0
A43: =IF(LEN(B42)=0,"hide","") -> hide | E43: ='VALOR TOTAL BIENES'!F17 -> Suma asegurada que forma parte de la cobertura principal | F43: ='VALOR TOTAL BIENES'!G17 -> 0
A44: =IF(LEN(B44)=0,"hide","") -> hide | B44: =IF('VALOR TOTAL BIENES'!B18=0,"",'VALOR TOTAL BIENES'!B18) ->  | C44: Hurto | E44: ='VALOR TOTAL BIENES'!F18 -> Hasta US$ 3,000 , sublímite de la cobertura de Robo | F44: ='VALOR TOTAL BIENES'!G18 -> 0
A45: =IF(LEN(B45)=0,"hide","") -> hide | B45: =IF('VALOR TOTAL BIENES'!B19=0,"",'VALOR TOTAL BIENES'!B19) ->  | C45: Deshonestidad de trabajadores del hogar | E45: ='VALOR TOTAL BIENES'!F19 -> Hasta US$ 5,000 por evento, máximo 3 eventos por vigencia de la póliza, sublímite de la cobertura de Robo | F45: ='VALOR TOTAL BIENES'!G19 -> 0
A46: =IF(LEN(B46)=0,"hide","") ->  | B46: =IF('VALOR TOTAL BIENES'!B20=0,"",'VALOR TOTAL BIENES'!B20) -> X | C46: Gastos extraordinarios: remoción de escombros, honorarios profesionales y construcción de documentos y modelos | E46: ='VALOR TOTAL BIENES'!F20 -> Hasta el 20% de la suma asegurada de bienes, suma asegurada que forma parte de la cobertura principal | F46: ='VALOR TOTAL BIENES'!G20 -> 0
A47: =IF(LEN($B$47)=0,"hide","") -> hide | B47: =IF('VALOR TOTAL BIENES'!B21=0,"",'VALOR TOTAL BIENES'!B21) ->  | C47: Asistencias | I47: OK
A48: =IF(LEN($B$47)=0,"hide","") -> hide | C48: ='VALOR TOTAL BIENES'!D22 -> Asistencia de emergencia en el hogar | E48: ='VALOR TOTAL BIENES'!F22 -> Hasta US$ 300 por cada servicio, máximo 3 atenciones de cada servicio de Cerrajería, Gasfitería, Electricidad, y vidriería, las 24 horas del día todos los días del año, por vigencia de la póliza. | F48: ='VALOR TOTAL BIENES'!G22 -> 0
A49: =IF(LEN($B$47)=0,"hide","") -> hide | C49: ='VALOR TOTAL BIENES'!D23 -> Limpieza del inmueble asegurado a consecuencia de un siniestro | E49: ='VALOR TOTAL BIENES'!F23 -> Hasta US$ 500 máximo 3 atenciones por vigencia de la póliza
A50: hide | C50: ='VALOR TOTAL BIENES'!D24 -> Chequeo preventivo del inmueble | E50: ='VALOR TOTAL BIENES'!F24 -> Hasta US$ 500 máximo 3 atenciones por vigencia de la póliza
A51: hide | C51: ='VALOR TOTAL BIENES'!D25 -> Orientación médica telefónica | E51: ='VALOR TOTAL BIENES'!F25 -> Sin límite
A52: hide | C52: ='VALOR TOTAL BIENES'!D26 -> Ambulancia por accidente para el asegurado | E52: ='VALOR TOTAL BIENES'!F26 -> Hasta US$ 500 máximo 3 atenciones por vigencia de la póliza
A53: hide | C53: ='VALOR TOTAL BIENES'!D27 -> Asesoría legal por robo dentro del inmueble | E53: ='VALOR TOTAL BIENES'!F27 -> Hasta US$ 300 máximo 3 atenciones por vigencia de la póliza
C54: Deducibles: Aplicables por evento/pérdida, en caso de discrepancia prevalece el mayor
A55: =IF(LEN(B55)=0,"hide","") -> hide | B55: =IF('VALOR TOTAL BIENES'!B29=0,"",'VALOR TOTAL BIENES'!B29) ->  | C55: Robo y/o daños por intento de robo | E55: ='VALOR TOTAL BIENES'!F29 -> Hasta 10% del monto indemnizable, mínimo US$ 200
A56: hide | B56: =IF('VALOR TOTAL BIENES'!B30=0,"",'VALOR TOTAL BIENES'!B30) ->  | C56: Hurto | E56: ='VALOR TOTAL BIENES'!F30 -> Hasta 10% del monto indemnizable, mínimo US$ 200
A57: hide | B57: =IF('VALOR TOTAL BIENES'!B31=0,"",'VALOR TOTAL BIENES'!B31) ->  | C57: Deshonestidad de trabajadores del hogar | E57: ='VALOR TOTAL BIENES'!F31 -> Hasta 10% del monto indemnizable, mínimo US$ 200
A58: hide | B58: =IF('VALOR TOTAL BIENES'!B32=0,"",'VALOR TOTAL BIENES'!B32) ->  | C58: Terremoto / Maremoto | E58: ='VALOR TOTAL BIENES'!F32 -> Hasta el 1% del límite asegurado, mínimo US$ 200
A59: hide | B59: =IF('VALOR TOTAL BIENES'!B33=0,"",'VALOR TOTAL BIENES'!B33) ->  | C59: Otros Riesgos de la Naturaleza (entre ellos lluvia, inundación, otros) | E59: ='VALOR TOTAL BIENES'!F33 -> Hasta 10% del monto indemnizable, mínimo US$ 200
B60: =IF('VALOR TOTAL BIENES'!B34=0,"",'VALOR TOTAL BIENES'!B34) -> X | C60: Daños por agua | E60: ='VALOR TOTAL BIENES'!F34 -> Hasta 10% del monto indemnizable, mínimo US$ 200
B61: =IF('VALOR TOTAL BIENES'!B35=0,"",'VALOR TOTAL BIENES'!B35) -> X | C61: Riesgos políticos y sociales | E61: ='VALOR TOTAL BIENES'!F35 -> Hasta 10% del monto indemnizable, mínimo US$ 200
A62: =IF(LEN(B62)=0,"hide","") -> hide | B62: =IF('VALOR TOTAL BIENES'!B36=0,"",'VALOR TOTAL BIENES'!B36) ->  | C62: Demás coberturas | E62: ='VALOR TOTAL BIENES'!F36 -> Sin deducible
C65: Importante: | I65: OK
C66: Si se encuentran discrepancias entre la presente cotización y los términos de la póliza, prevalecerán las condiciones de esta última.
C67: La presente cotización es válida por un plazo de 30 días calendarios contados a partir de la fecha de recepción de la misma. Luego de vencido dicho plazo la oferta contenida en la presente cotización quedará sin efecto legal alguno entre las partes.
C68: Se deja constancia expresa que, a potestad de la Compañía, la aceptación final del riesgo por parte de esta queda sujeta a la realización de la inspección, por parte de nuestro Departamento de Ingeniería o la persona autorizada para tal efecto, para verificar el efectivo estado del riesgo, así como el estricto cumplimiento por parte del Asegurado de las garantías que a mérito de dicha inspección establezca el Departamento de Ingeniería de la Compañía.
C70: Consideraciones: | I70: OK
C71: - La forma de entrega de la póliza es electrónica. - La forma de pago de la póliza es solo con afiliación al débito automático a una tarjeta de crédito o a una cuenta bancaria. - La modalidad de aseguramiento que brinda este plan de seguros es a valor total. - La cobertura principal comprende además cualquier otro riesgo, súbito e imprevisto, que no esté excluido explícitamente en las exclusiones de las Condiciones Generales y/o Cláusulas Adicionales de la Póliza. - Las coberturas señaladas en Coberturas Adicionales forman parte de la suma asegurada de la Cobertura Principal, es decir, cada indemnización que le paguemos por las coberturas adicionales, reducirá la suma asegurada de la cobertura principal, a excepción de la cobertura adicional Responsabilidad civil frente a terceros, la cual es independiente a la suma asegurada de la cobertura principal. - La cobertura de la póliza en cuanto a pérdida o daños causados por agua que inunde, descargue o derrame de cualquier instalación de agua o desagüe de otros elementos líquidos; no comprenderá el costo de reparar el desperfecto que originó tal pérdida o daño. - Este seguro no otorga cobertura cuando en el inmueble se realiza cualquier actividad o giro comercial diferente al de casa habitación. - Este seguro se renovará automáticamente, es decir, en las mismas condiciones vigentes en el periodo anterior. - Para la cobertura de Robo y/o daños por intento de robo de Joyas y platería se define lo siguiente: Objetos y/o adornos de uso personal elaborados en oro, plata, platino, perlas y que pueden llevar o no incrustadas piedras preciosas de origen biológico o mineral, tanto si están engastadas como si no. También se considera a cualquier objeto ornamental o de uso doméstico elaborado con los materiales enumerados en el párrafo anterior. - El ASEGURADO deberá presentar una relación detallada, a ser actualizada mínimo cada dos años, de los bienes cuyo valor unitario excedan los S/ 5,000. En caso de siniestro, esta relación de bienes es el sustento de la pre-existencia de cada bien declarado. En caso de no cumplir con lo anterior o para bienes afectados no incluidos en la relación presentada, el Asegurado deberá demostrarnos la pre-existencia de los bienes afectados en el siniestro, a través de comprobantes de pago y/o constancia visual (fotografías, video, manuales de uso o similares) en donde se muestre el artículo en el interior del Inmueble asegurado o a la persona usando dicho artículo. - En caso de robo: Se mantiene la exigencia de la denuncia policial, pero se manejará a discreción cada caso hasta por un monto máximo de siniestro de S/ 30,000, siniestros por encima de este monto deberán presentar denuncia policial de manera obligatoria. - Las asistencias están disponibles los 365 días del año en las siguientes ciudades: • Lima Metropolitana exceptuando Ancón, Punta Hermosa, San Bartolo, Santa María y Pucusana. • Trujillo: En los distritos de Trujillo, Victor Larco, Moche y Huanchaco. • Chiclayo: En los distritos de Chiclayo, La Victoria, José Leonardo Ortiz, Pimentel. • Piura: En los distritos de Piura, Castilla, Catacaos. • Arequipa: En los distritos de Arequipa (Cercado), Yanahuara, Cayma, Sachaca, José Luis Bustamante y Rivero, Cerro Colorado. • Cusco: En los distritos de Cusco, San Jerónimo, San Sebastián, Santiago, Wanchaq. Aplican y deben aparecer tanto para a primer riesgo como para valor total
C103: Exlusiones: | I103: OK
C104: Tenga en cuenta que no pagaremos la reparación del desperfecto ni del bien que originó el daño, como tampoco ninguna pérdida o daño proveniente o que sean causa de, o en conexión con, o atribuibles principalmente a: a) Dolo, culpa grave o negligencia inexcusable del CONTRATANTE o de USTED y/o del BENEFICIARIO y/o ENDOSATARIO o de los familiares de cualquiera de ellos, o de sus dependientes, especialmente de los responsables de la seguridad de los BIENES asegurados. b) Guerra, Guerra Civil, invasión, acto de enemigo extranjero, hostilidades u operaciones de guerra, declarada o no. c) Desgaste o deterioro paulatino o fatiga de material, causado por, o resultado de, el uso y funcionamiento del bien; uso o deterioro gradual; deficiencias de rendimiento o capacidad; polución, contaminación; corrosión, erosión; herrumbre u oxidación; hongos, moho húmedo o seco, combustión espontánea, fermentación; humedad, sequedad, smog o cambios de temperatura; asentamiento o contracción o expansión de edificios o cimientos; la calefacción o la desecación a que hubieran sido sometidos los objetos que forman parte de la Materia Asegurada. d) Hundimientos, desplazamientos, agrietamientos o asentamientos de muros, pisos, techos, pavimentos, cimientos, muros de contención. Sin embargo, si estos daños son causados por los eventos de Terremoto, Temblor, Erupción Volcánica o Maremoto para los cuales se haya contratado amparo bajo la presente póliza, no se aplicará esta exclusión. e) Todo gasto o costo para implementar modificaciones o mejoras, o por mantenimiento, o para hacer otras reparaciones o arreglos, en el INMUEBLE y/o BIENES dañados o afectados; así como los gastos o costos de cualquier reparación provisional, a menos que constituyan, a la vez, parte de los gastos de la reparación definitiva amparada por la póliza. f) Valor atribuido a los BIENES por razones sentimentales o simbólicas, por afición, por antigüedad, o por exclusividad. g) Pérdida o daño ocurrido cuando el INMUEBLE esté deshabitado y/o cuando los BIENES se hallen en el INMUEBLE deshabitado; en ambos casos durante más de noventa (90) días consecutivos. Las demás exclusiones se encuentran en el acápite 3 de las Condiciones Generales de la Póliza. Aplican exclusiones específicas a la cobertura que se contrate, detalladas en su respectiva Cláusula Adicional. Bienes excluidos: a) INMUEBLE y/o BIENES con cualquier actividad o giro diferente al de casa habitación. b) Animales vivos de cualquier tipo. c) Plantaciones, cultivos, cosechas de cualquier tipo, invernaderos, bosques, selvas, monte bajo, praderas, pampas, árboles, parques, prados, jardines naturales y ornamentales, agua. d) INMUEBLES y/o BIENES en proceso de construcción, reconstrucción, montaje o desmontaje. e) Vehículos motorizados con una placa de rodaje, equipos flotantes o submarinos, aeronaves o artefactos aéreos, embarcaciones, naves acuáticas; de cualquier tipo y tamaño. f) BIENES de cualquier tipo que sean propiedad de terceros aun cuando dichos BIENES se encuentren bajo custodia y/o posesión del Asegurado. g) Material pirotécnico, explosivos, combustibles, mechas, fulminantes, detonadores y similares. h) BIENES situados o instalados u operando o trabajando o siendo usados en él, o a las orillas del, mar, río, lago o laguna, en subterráneos, o debajo del nivel de la superficie terrestre. i) Dinero en efectivo, títulos valores. j) Cualquier tipo de contenido o bien para fines comerciales, de la profesión u ocupación o de negocios de USTED, de cualquier miembro de su familia, por medio de los cuales obtengan un lucro.

Sheet CotizacionInmuebleyBienesVT (hidden)
C1: ="Cotización Seguro de Hogar Flex " & configuracion!$K$2 -> Cotización Seguro de Hogar Flex Abril 2022
C3: Vigencia de la cotización | D3: =TEXT(TODAY(),"dd/mm/yyyy") & " - " & TEXT(TODAY()+15,"dd/mm/yyyy") -> 04/04/2022 - 19/04/2022
C4: Fecha inicio de Vigencia | D4: =Cotizador!$L$6 -> 00:00:00
C5: Canal | D5: =Cotizador!$G$10 -> Corredor
C6: Agente | D6: =Cotizador!R$10 -> 0
C8: Datos del Contratante
C9: Nombre del Contratante | D9: =Cotizador!$G$15 & " " & Cotizador!$M$15& " " & Cotizador!$R$15 -> 
C10: Tipo de documento | D10: =Cotizador!$G$14&" " &Cotizador!$M$14 -> 
C12: Planes de Pago Prima
C13: Débito automático | D13: Valores de la Cuota
C14: Plan de pago | D14: Prima Comercial | E14: IGV | F14: Prima Total
C15: Prima anual + IGV sin intereses (referencial): | D15: =IF(Cotizador!$G$54=0,"",Cotizador!$G$54) ->  | E15: =IF(Cotizador!$G$55=0,"",Cotizador!$G$55) ->  | F15: =IF(Cotizador!$G$56=0,"",Cotizador!$G$56) -> 
C16: Prima anual + IGV sin intereses con descuento 20% (final): | D16: =IF(Cotizador!$L$54=0,"",Cotizador!$L$54) ->  | E16: =IF(Cotizador!$L$55=0,"",Cotizador!$L$55) ->  | F16: =IF(Cotizador!$L$56=0,"",Cotizador!$L$56) -> 
C17: =IF(Cotizador!$I$61="X",Cotizador!$B$61,IF(Cotizador!$I$62="X",Cotizador!$B$62,IF(Cotizador!$I$63="X",Cotizador!$B$63,IF(Cotizador!$I$64="X",Cotizador!$B$64,IF(Cotizador!$I$66="X",Cotizador!$B$66,IF(Cotizador!$I$67="X",Cotizador!$B$67,IF(Cotizador!$I$68="X",Cotizador!$B$68,IF(Cotizador!$I$69="X",Cotizador!$B$69,"")))))))) ->  | D17: =IFERROR(F17/1.18,"") ->  | E17: =IFERROR(F17-D17,"") ->  | F17: =IF(Cotizador!$I$61="X",Cotizador!$L$61,IF(Cotizador!$I$62="X",Cotizador!$L$62,IF(Cotizador!$I$63="X",Cotizador!$L$63,IF(Cotizador!$I$64="X",Cotizador!$L$64,IF(Cotizador!$I$66="X",Cotizador!$L$66,IF(Cotizador!$I$67="X",Cotizador!$L$67,IF(Cotizador!$I$68="X",Cotizador!$L$68,IF(Cotizador!$I$69="X",Cotizador!$L$69,"")))))))) -> 
C18: Materia Asegurada | D18: =IF(Cotizador!$H$29="X",Cotizador!$G$29,IF(Cotizador!$K$29="X",Cotizador!$J$29,IF(Cotizador!$O$29="X",Cotizador!$M$29))) -> FALSE
C20: Datos del Inmueble asegurado
C21: Dirección | D21: =Cotizador!$G$22 & " " & Cotizador!G23 -> 
C22: Departamento | D22: =IF(Cotizador!$L$26=0,"",Cotizador!$L$26) -> 
C23: Provincia | D23: =IF(Cotizador!$G$26=0,"",Cotizador!$G$26) -> 
C24: Distrito | D24: =IF(Cotizador!$G$25=0,"",Cotizador!$G$25) -> 
C25: Tipo de Inmueble | D25: =IF(Cotizador!$E$34="X",Cotizador!$B$34,IF(Cotizador!$E$35="X",Cotizador!$B$35,"")) -> 
C27: Modalidad de Aseguramiento | D27: =IF(Cotizador!$H$31="X",Cotizador!$G$31,IF(Cotizador!$K$31="X",Cotizador!$J$31,"")) -> 
C29: Plan contratado | D29: Personalizado
C31: Sumas Aseguradas
C32: Suma Asegurada Inmueble | D32: =Cotizador!$G$40 -> 0
C33: Suma Asegurada Bienes | D33: =Cotizador!G41 -> 0
C34: Suma Asegurada Total (Inmueble + Bienes) | D34: =SUM(D32:D33) -> 0
C36: COBERTURAS (INMUEBLE Y BIENES) | E36: Límites asegurados por vigencia, hasta | F36: Límites asegurados por vigencia, hasta | G36: Prima Comercial | I36: OK
C37: Cobertura principal | E37: INMUEBLE | F37: BIENES
A38: =IF(LEN(B38)=0,"hide","") ->  | B38: =IF('VALOR TOTAL INMUEBLE +BIENES'!B12=0,"",'VALOR TOTAL INMUEBLE +BIENES'!B12) -> X | C38: Incendio y/o rayo, explosión, incendio en aparatos eléctricos. Daños por agua, daños por humo, impacto de vehículos y/o aeronaves o daños por riesgos políticos y sociales | E38: ='VALOR TOTAL INMUEBLE +BIENES'!F12 -> 200000 | F38: ='VALOR TOTAL INMUEBLE +BIENES'!G12 -> 10000 | G38: ='VALOR TOTAL INMUEBLE +BIENES'!H12 -> 157.9
A39: =IF(AND(A40="hide",A41="hide",A42="hide",A43="hide",A44="hide",A45="hide",A46="hide",A47="hide",A48="hide",A49="hide",A50="hide",A51="hide",A52="hide",A53="hide",A54="hide"),"hide","") ->  | C39: Coberturas adicionales
A40: =IF(LEN(B40)=0,"hide","") ->  | B40: =IF('VALOR TOTAL INMUEBLE +BIENES'!B14=0,"",'VALOR TOTAL INMUEBLE +BIENES'!B14) -> X | C40: Terremoto, temblor, maremoto, Inundaciones y riesgos de la naturaleza | E40: ='VALOR TOTAL INMUEBLE +BIENES'!F14 -> 200000 | F40: ='VALOR TOTAL INMUEBLE +BIENES'!G14 -> 10000 | G40: ='VALOR TOTAL INMUEBLE +BIENES'!H14 -> 290.67
A41: =IF(LEN(B40)=0,"hide","") ->  | E41: Suma asegurada que forma parte de la cobertura principal | F41: Suma asegurada que forma parte de la cobertura principal
A42: =IF(LEN(B42)=0,"hide","") ->  | B42: =IF('VALOR TOTAL INMUEBLE +BIENES'!B16=0,"",'VALOR TOTAL INMUEBLE +BIENES'!B16) -> X | C42: Responsabilidad civil frente a terceros | E42: ='VALOR TOTAL INMUEBLE +BIENES'!F16 -> 200000 | F42: ='VALOR TOTAL INMUEBLE +BIENES'!G16 -> - | G42: ='VALOR TOTAL INMUEBLE +BIENES'!H16 -> 1.68
A43: =IF(LEN(B42)=0,"hide","") ->  | E43: =coberturasyClausulas!$J$64 -> máximo US$ 200,000
A44: =IF(LEN(B44)=0,"hide","") ->  | B44: =IF('VALOR TOTAL INMUEBLE +BIENES'!B18=0,"",'VALOR TOTAL INMUEBLE +BIENES'!B18) -> X | C44: Rotura accidental de vidrio y/o cristales | E44: ='VALOR TOTAL INMUEBLE +BIENES'!F18 -> US$ 3,000 | G44: ='VALOR TOTAL INMUEBLE +BIENES'!H18 -> 4.62
A45: =IF(LEN(B44)=0,"hide","") ->  | E45: Suma asegurada que forma parte de la cobertura principal
A46: =IF(LEN(B46)=0,"hide","") -> hide | B46: =IF('VALOR TOTAL INMUEBLE +BIENES'!B20=0,"",'VALOR TOTAL INMUEBLE +BIENES'!B20) ->  | C46: Robo o intento de robo de instalaciones fijas | E46: ='VALOR TOTAL INMUEBLE +BIENES'!F20 -> 20% de la suma asegurada de inmueble, máximo US$ 5,000 , suma asegurada que forma parte de la cobertura principal | G46: ='VALOR TOTAL INMUEBLE +BIENES'!H20 -> 0
A47: =IF(LEN(B47)=0,"hide","") -> hide | B47: =IF('VALOR TOTAL INMUEBLE +BIENES'!B21=0,"",'VALOR TOTAL INMUEBLE +BIENES'!B21) ->  | C47: Robo y/o daños por intento de robo (dentro y fuera de la vivienda a nivel nacional) | E47: ='VALOR TOTAL INMUEBLE +BIENES'!F21 -> - | F47: ='VALOR TOTAL INMUEBLE +BIENES'!G21 -> 10000 | G47: ='VALOR TOTAL INMUEBLE +BIENES'!H21 -> 0
A48: hide | B48: =IF('VALOR TOTAL INMUEBLE +BIENES'!B22=0,"",'VALOR TOTAL INMUEBLE +BIENES'!B22) ->  | C48: Robo y/o daños por intento de robo de joyas, platería, relojes, obras de arte, cámaras fotográficas o de video, laptops y bicicletas dentro de la vivienda o que estén siendo portados fuera de la vivienda. | E48: ='VALOR TOTAL INMUEBLE +BIENES'!F22 -> - | F48: ='VALOR TOTAL INMUEBLE +BIENES'!G22 -> USD 10,000, sublímite de la cobertura de Robo | G48: ='VALOR TOTAL INMUEBLE +BIENES'!H22 -> 0
A49: hide | B49: =IF('VALOR TOTAL INMUEBLE +BIENES'!B23=0,"",'VALOR TOTAL INMUEBLE +BIENES'!B23) ->  | C49: Hurto | E49: ='VALOR TOTAL INMUEBLE +BIENES'!F23 -> - | F49: ='VALOR TOTAL INMUEBLE +BIENES'!G23 -> US$ 3,000 , sublímite de la cobertura de Robo | G49: ='VALOR TOTAL INMUEBLE +BIENES'!H23 -> 0
A50: hide | B50: =IF('VALOR TOTAL INMUEBLE +BIENES'!B24=0,"",'VALOR TOTAL INMUEBLE +BIENES'!B24) ->  | C50: Deshonestidad de trabajadores del hogar | E50: ='VALOR TOTAL INMUEBLE +BIENES'!F24 -> - | F50: ='VALOR TOTAL INMUEBLE +BIENES'!G24 -> US$ 5,000 por evento, máximo 3 eventos por vigencia de la póliza, sublímite de la cobertura de Robo | G50: ='VALOR TOTAL INMUEBLE +BIENES'!H24 -> 0
A51: hide | B51: =IF('VALOR TOTAL INMUEBLE +BIENES'!B25=0,"",'VALOR TOTAL INMUEBLE +BIENES'!B25) ->  | C51: Reembolso de gastos médicos por accidentes de trabajadores del hogar, ocurridos dentro del inmueble | E51: ='VALOR TOTAL INMUEBLE +BIENES'!F25 -> US$ 5,000 por evento, máximo 3 eventos por vigencia de la póliza | F51: Hasta US$ 5,000 / S/ 15,000 por evento, máximo 3 eventos por vigencia de la póliza | G51: ='VALOR TOTAL INMUEBLE +BIENES'!H25 -> 0
B52: =IF('VALOR TOTAL INMUEBLE +BIENES'!B26=0,"",'VALOR TOTAL INMUEBLE +BIENES'!B26) -> X | C52: Gastos de arrendamiento de vivienda temporal a reembolso | E52: ='VALOR TOTAL INMUEBLE +BIENES'!F26 -> US$ 2,000 mensuales, máximo 6 meses por vigencia de la póliza, suma asegurada que forma parte de la cobertura principal | F52: Hasta US$ 5,000 / S/ 15,000 por evento, máximo 3 eventos por vigencia de la póliza | G52: ='VALOR TOTAL INMUEBLE +BIENES'!H26 -> 1.23
A53: hide | B53: =IF('VALOR TOTAL INMUEBLE +BIENES'!B27=0,"",'VALOR TOTAL INMUEBLE +BIENES'!B27) ->  | C53: Alquiler no percibido por inmueble inhabitable temporalmente (aplica solo para el arrendador) | E53: ='VALOR TOTAL INMUEBLE +BIENES'!F27 -> US$ 2,000 mensuales, máximo 6 meses por vigencia de la póliza, suma asegurada que forma parte de la cobertura principal | F53: Hasta US$ 5,000 / S/ 15,000 por evento, máximo 3 eventos por vigencia de la póliza | G53: ='VALOR TOTAL INMUEBLE +BIENES'!H27 -> 0
B54: =IF('VALOR TOTAL INMUEBLE +BIENES'!B28=0,"",'VALOR TOTAL INMUEBLE +BIENES'!B28) -> X | C54: Gastos extraordinarios: remoción de escombros, honorarios profesionales y construcción de documentos y modelos | E54: ='VALOR TOTAL INMUEBLE +BIENES'!F28 -> 20% de la suma asegurada de inmueble y/o bienes, suma asegurada que forma parte de la cobertura principal | F54: Hasta US$ 5,000 / S/ 15,000 por evento, máximo 3 eventos por vigencia de la póliza | G54: ='VALOR TOTAL INMUEBLE +BIENES'!H28 -> 0
A55: =IF(LEN($B$55)=0,"hide","") ->  | B55: =IF('VALOR TOTAL INMUEBLE +BIENES'!B29=0,"",'VALOR TOTAL INMUEBLE +BIENES'!B29) -> X | C55: Asistencias | I55: OK
A56: =IF(LEN($B$55)=0,"hide","") ->  | C56: ='VALOR TOTAL INMUEBLE +BIENES'!D30 -> Asistencia de emergencia en el hogar | E56: ='VALOR TOTAL INMUEBLE +BIENES'!F30 -> Hasta US$ 300 por cada servicio, máximo 3 atenciones de cada servicio de Cerrajería, Gasfitería, Electricidad, y vidriería, las 24 horas del día todos los días del año, por vigencia de la póliza. | G56: ='VALOR TOTAL INMUEBLE +BIENES'!H30 -> 17.68
A57: =IF(LEN($B$55)=0,"hide","") ->  | C57: ='VALOR TOTAL INMUEBLE +BIENES'!D31 -> Limpieza del inmueble asegurado a consecuencia de un siniestro | E57: ='VALOR TOTAL INMUEBLE +BIENES'!F31 -> Hasta US$ 500 máximo 3 atenciones por vigencia de la póliza
A58: =IF(LEN($B$55)=0,"hide","") ->  | C58: ='VALOR TOTAL INMUEBLE +BIENES'!D32 -> Chequeo preventivo del inmueble | E58: ='VALOR TOTAL INMUEBLE +BIENES'!F32 -> Hasta US$ 500 máximo 3 atenciones por vigencia de la póliza
A59: =IF(LEN($B$55)=0,"hide","") ->  | C59: ='VALOR TOTAL INMUEBLE +BIENES'!D33 -> Orientación médica telefónica | E59: ='VALOR TOTAL INMUEBLE +BIENES'!F33 -> Sin límite
A60: =IF(LEN($B$55)=0,"hide","") ->  | C60: ='VALOR TOTAL INMUEBLE +BIENES'!D34 -> Ambulancia por accidente para el asegurado | E60: ='VALOR TOTAL INMUEBLE +BIENES'!F34 -> Hasta US$ 500 máximo 3 atenciones por vigencia de la póliza
C61: ='VALOR TOTAL INMUEBLE +BIENES'!D35 -> Asesoría legal por robo dentro del inmueble | E61: ='VALOR TOTAL INMUEBLE +BIENES'!F35 -> Hasta US$ 300 máximo 3 atenciones por vigencia de la póliza
C62: Deducibles: Aplicables por evento/pérdida, en caso de discrepancia prevalece el mayor | I62: OK
A63: =IF(LEN(B63)=0,"hide","") ->  | B63: =IF('VALOR TOTAL INMUEBLE +BIENES'!B37=0,"",'VALOR TOTAL INMUEBLE +BIENES'!B37) -> X | C63: Terremoto / Maremoto | E63: ='VALOR TOTAL INMUEBLE +BIENES'!F37 -> Hasta el 1% del límite asegurado, mínimo US$ 200
A64: =IF(LEN(B64)=0,"hide","") ->  | B64: =IF('VALOR TOTAL INMUEBLE +BIENES'!B38=0,"",'VALOR TOTAL INMUEBLE +BIENES'!B38) -> X | C64: Otros Riesgos de la Naturaleza (entre ellos lluvia, inundación, otros) | E64: ='VALOR TOTAL INMUEBLE +BIENES'!F38 -> Hasta 10% del monto indemnizable, mínimo US$ 200
B65: =IF('VALOR TOTAL INMUEBLE +BIENES'!B39=0,"",'VALOR TOTAL INMUEBLE +BIENES'!B39) -> X | C65: Daños por agua | E65: ='VALOR TOTAL INMUEBLE +BIENES'!F39 -> Hasta 10% del monto indemnizable, mínimo US$ 200
B66: =IF('VALOR TOTAL INMUEBLE +BIENES'!B40=0,"",'VALOR TOTAL INMUEBLE +BIENES'!B40) -> X | C66: Riesgos políticos y sociales | E66: ='VALOR TOTAL INMUEBLE +BIENES'!F40 -> Hasta 10% del monto indemnizable, mínimo US$ 200
B67: =IF('VALOR TOTAL INMUEBLE +BIENES'!B41=0,"",'VALOR TOTAL INMUEBLE +BIENES'!B41) -> X | C67: Responsabilidad civil frente a terceros | E67: ='VALOR TOTAL INMUEBLE +BIENES'!F41 -> Hasta 10% del monto indemnizable, mínimo US$ 200
B68: =IF('VALOR TOTAL INMUEBLE +BIENES'!B42=0,"",'VALOR TOTAL INMUEBLE +BIENES'!B42) -> X | C68: Rotura accidental de vidrio y/o cristales | E68: ='VALOR TOTAL INMUEBLE +BIENES'!F42 -> Hasta 10% del monto indemnizable, mínimo US$ 200
A69: hide | B69: =IF('VALOR TOTAL INMUEBLE +BIENES'!B43=0,"",'VALOR TOTAL INMUEBLE +BIENES'!B43) ->  | C69: Robo o intento de robo de instalaciones fijas | E69: ='VALOR TOTAL INMUEBLE +BIENES'!F43 -> Hasta 10% del monto indemnizable, mínimo US$ 200
A70: hide | B70: =IF('VALOR TOTAL INMUEBLE +BIENES'!B44=0,"",'VALOR TOTAL INMUEBLE +BIENES'!B44) ->  | C70: Robo y/o daños por intento de robo | E70: ='VALOR TOTAL INMUEBLE +BIENES'!F44 -> Hasta 10% del monto indemnizable, mínimo US$ 200
A71: hide | B71: =IF('VALOR TOTAL INMUEBLE +BIENES'!B45=0,"",'VALOR TOTAL INMUEBLE +BIENES'!B45) ->  | C71: Hurto | E71: ='VALOR TOTAL INMUEBLE +BIENES'!F45 -> Hasta 10% del monto indemnizable, mínimo US$ 200
A72: hide | B72: =IF('VALOR TOTAL INMUEBLE +BIENES'!B46=0,"",'VALOR TOTAL INMUEBLE +BIENES'!B46) ->  | C72: Deshonestidad de trabajadores del hogar | E72: ='VALOR TOTAL INMUEBLE +BIENES'!F46 -> Hasta 10% del monto indemnizable, mínimo US$ 200
B73: =IF('VALOR TOTAL INMUEBLE +BIENES'!B47=0,"",'VALOR TOTAL INMUEBLE +BIENES'!B47) -> X | C73: Demás coberturas | E73: ='VALOR TOTAL INMUEBLE +BIENES'!F47 -> Sin deducible
C76: Importante: | I76: OK
C77: Si se encuentran discrepancias entre la presente cotización y los términos de la póliza, prevalecerán las condiciones de esta última.
C78: La presente cotización es válida por un plazo de 30 días calendarios contados a partir de la fecha de recepción de la misma. Luego de vencido dicho plazo la oferta contenida en la presente cotización quedará sin efecto legal alguno entre las partes.
C79: Se deja constancia expresa que, a potestad de la Compañía, la aceptación final del riesgo por parte de esta queda sujeta a la realización de la inspección, por parte de nuestro Departamento de Ingeniería o la persona autorizada para tal efecto, para verificar el efectivo estado del riesgo, así como el estricto cumplimiento por parte del Asegurado de las garantías que a mérito de dicha inspección establezca el Departamento de Ingeniería de la Compañía.
C81: Consideraciones: | I81: OK
C82: - La forma de entrega de la póliza es electrónica. - La forma de pago de la póliza es solo con afiliación al débito automático a una tarjeta de crédito o a una cuenta bancaria. - La modalidad de aseguramiento que brinda este plan de seguros es a valor total. - La cobertura principal comprende además cualquier otro riesgo, súbito e imprevisto, que no esté excluido explícitamente en las exclusiones de las Condiciones Generales y/o Cláusulas Adicionales de la Póliza. - Las coberturas señaladas en Coberturas Adicionales forman parte de la suma asegurada de la Cobertura Principal, es decir, cada indemnización que le paguemos por las coberturas adicionales, reducirá la suma asegurada de la cobertura principal, a excepción de la cobertura adicional Responsabilidad civil frente a terceros, la cual es independiente a la suma asegurada de la cobertura principal. - La cobertura de la póliza en cuanto a pérdida o daños causados por agua que inunde, descargue o derrame de cualquier instalación de agua o desagüe de otros elementos líquidos; no comprenderá el costo de reparar el desperfecto que originó tal pérdida o daño. - Este seguro no otorga cobertura cuando en el inmueble se realiza cualquier actividad o giro comercial diferente al de casa habitación. - Este seguro se renovará automáticamente, es decir, en las mismas condiciones vigentes en el periodo anterior. - Para la cobertura de Robo y/o daños por intento de robo de Joyas y platería se define lo siguiente: Objetos y/o adornos de uso personal elaborados en oro, plata, platino, perlas y que pueden llevar o no incrustadas piedras preciosas de origen biológico o mineral, tanto si están engastadas como si no. También se considera a cualquier objeto ornamental o de uso doméstico elaborado con los materiales enumerados en el párrafo anterior. - El ASEGURADO deberá presentar una relación detallada, a ser actualizada mínimo cada dos años, de los bienes cuyo valor unitario excedan los S/ 5,000. En caso de siniestro, esta relación de bienes es el sustento de la pre-existencia de cada bien declarado. En caso de no cumplir con lo anterior o para bienes afectados no incluidos en la relación presentada, el Asegurado deberá demostrarnos la pre-existencia de los bienes afectados en el siniestro, a través de comprobantes de pago y/o constancia visual (fotografías, video, manuales de uso o similares) en donde se muestre el artículo en el interior del Inmueble asegurado o a la persona usando dicho artículo. - En caso de robo: Se mantiene la exigencia de la denuncia policial, pero se manejará a discreción cada caso hasta por un monto máximo de siniestro de S/ 30,000, siniestros por encima de este monto deberán presentar denuncia policial de manera obligatoria. - Las asistencias están disponibles los 365 días del año en las siguientes ciudades: • Lima Metropolitana exceptuando Ancón, Punta Hermosa, San Bartolo, Santa María y Pucusana. • Trujillo: En los distritos de Trujillo, Victor Larco, Moche y Huanchaco. • Chiclayo: En los distritos de Chiclayo, La Victoria, José Leonardo Ortiz, Pimentel. • Piura: En los distritos de Piura, Castilla, Catacaos. • Arequipa: En los distritos de Arequipa (Cercado), Yanahuara, Cayma, Sachaca, José Luis Bustamante y Rivero, Cerro Colorado. • Cusco: En los distritos de Cusco, San Jerónimo, San Sebastián, Santiago, Wanchaq. Aplican y deben aparecer tanto para a primer riesgo como para valor total
C114: Exlusiones: | I114: OK
C115: Tenga en cuenta que no pagaremos la reparación del desperfecto ni del bien que originó el daño, como tampoco ninguna pérdida o daño proveniente o que sean causa de, o en conexión con, o atribuibles principalmente a: a) Dolo, culpa grave o negligencia inexcusable del CONTRATANTE o de USTED y/o del BENEFICIARIO y/o ENDOSATARIO o de los familiares de cualquiera de ellos, o de sus dependientes, especialmente de los responsables de la seguridad de los BIENES asegurados. b) Guerra, Guerra Civil, invasión, acto de enemigo extranjero, hostilidades u operaciones de guerra, declarada o no. c) Desgaste o deterioro paulatino o fatiga de material, causado por, o resultado de, el uso y funcionamiento del bien; uso o deterioro gradual; deficiencias de rendimiento o capacidad; polución, contaminación; corrosión, erosión; herrumbre u oxidación; hongos, moho húmedo o seco, combustión espontánea, fermentación; humedad, sequedad, smog o cambios de temperatura; asentamiento o contracción o expansión de edificios o cimientos; la calefacción o la desecación a que hubieran sido sometidos los objetos que forman parte de la Materia Asegurada. d) Hundimientos, desplazamientos, agrietamientos o asentamientos de muros, pisos, techos, pavimentos, cimientos, muros de contención. Sin embargo, si estos daños son causados por los eventos de Terremoto, Temblor, Erupción Volcánica o Maremoto para los cuales se haya contratado amparo bajo la presente póliza, no se aplicará esta exclusión. e) Todo gasto o costo para implementar modificaciones o mejoras, o por mantenimiento, o para hacer otras reparaciones o arreglos, en el INMUEBLE y/o BIENES dañados o afectados; así como los gastos o costos de cualquier reparación provisional, a menos que constituyan, a la vez, parte de los gastos de la reparación definitiva amparada por la póliza. f) Valor atribuido a los BIENES por razones sentimentales o simbólicas, por afición, por antigüedad, o por exclusividad. g) Pérdida o daño ocurrido cuando el INMUEBLE esté deshabitado y/o cuando los BIENES se hallen en el INMUEBLE deshabitado; en ambos casos durante más de noventa (90) días consecutivos. Las demás exclusiones se encuentran en el acápite 3 de las Condiciones Generales de la Póliza. Aplican exclusiones específicas a la cobertura que se contrate, detalladas en su respectiva Cláusula Adicional. Bienes excluidos: a) INMUEBLE y/o BIENES con cualquier actividad o giro diferente al de casa habitación. b) Animales vivos de cualquier tipo. c) Plantaciones, cultivos, cosechas de cualquier tipo, invernaderos, bosques, selvas, monte bajo, praderas, pampas, árboles, parques, prados, jardines naturales y ornamentales, agua. d) INMUEBLES y/o BIENES en proceso de construcción, reconstrucción, montaje o desmontaje. e) Vehículos motorizados con una placa de rodaje, equipos flotantes o submarinos, aeronaves o artefactos aéreos, embarcaciones, naves acuáticas; de cualquier tipo y tamaño. f) BIENES de cualquier tipo que sean propiedad de terceros aun cuando dichos BIENES se encuentren bajo custodia y/o posesión del Asegurado. g) Material pirotécnico, explosivos, combustibles, mechas, fulminantes, detonadores y similares. h) BIENES situados o instalados u operando o trabajando o siendo usados en él, o a las orillas del, mar, río, lago o laguna, en subterráneos, o debajo del nivel de la superficie terrestre. i) Dinero en efectivo, títulos valores. j) Cualquier tipo de contenido o bien para fines comerciales, de la profesión u ocupación o de negocios de USTED, de cualquier miembro de su familia, por medio de los cuales obtengan un lucro.

Sheet VALOR TOTAL INMUEBLE (hidden)
D1: VALOR TOTAL INMUEBLE | F1: Ir a Cotizador
E2: INGRESE LA SUMA ASEGURADA | M2: Incendio | N2: robo | O2: total
D3: Suma asegurada | F3: Prima comercial | G3: =IFERROR(INMUEBLE!$P$7,0) -> 51.5 | M3: =SUM(G12+G14+G16+G18+G19+G20+G21+G22+G23+G25) -> 51.5 | O3: =SUM(M3:N3) -> 51.5
F4: Igv | G4: =IFERROR(INMUEBLE!$P$8,0) -> 9.27
F5: Prima total | G5: =IFERROR(INMUEBLE!$P$9,0) -> 60.77
D10: COBERTURAS (solo INMUEBLE) | F10: Límites asegurados por vigencia | G10: Prima Comercial
D11: Cobertura principal
B12: X | D12: Incendio y/o rayo, explosión, incendio en aparatos eléctricos. Daños por agua, daños por humo, impacto de vehículos y/o aeronaves o daños por riesgos políticos y sociales | F12: =$E$3 -> 0 | G12: =+IF(Cotizador!$H$37="X",INMUEBLE!$L$11,INMUEBLE!$K$11) -> 51.5
D13: Coberturas adicionales
D14: Terremoto, temblor, maremoto, Inundaciones y riesgos de la naturaleza | F14: =$E$3 -> 0 | G14: =+IF(Cotizador!$H$37="X",INMUEBLE!$L$12,INMUEBLE!$K$12) -> 0
F15: Suma asegurada que forma parte de la cobertura principal
D16: Responsabilidad civil frente a terceros | F16: =$E$3 -> 0 | G16: =+IF(Cotizador!$H$37="X",INMUEBLE!$L$13,INMUEBLE!$K$13) -> 0
F17: =coberturasyClausulas!$J$3 -> máximo US$ 200,000
D18: Rotura accidental de vidrio y/o cristales | F18: =coberturasyClausulas!$J$4 -> Hasta US$ 3,000 ,suma asegurada que forma parte de la cobertura principal | G18: =+IF(Cotizador!$H$37="X",INMUEBLE!$L$14,INMUEBLE!$K$14) -> 0
D19: Robo o intento de robo de instalaciones fijas | F19: =coberturasyClausulas!$J$5 -> Hasta el 20% de la suma asegurada de inmueble, máximo US$ 5,000 ,suma asegurada que forma parte de la cobertura principal | G19: =+IF(Cotizador!$H$37="X",INMUEBLE!$L$15,INMUEBLE!$K$15) -> 0
D20: Reembolso de gastos médicos por accidentes de trabajadores del hogar, ocurridos dentro del inmueble | F20: =coberturasyClausulas!$J$6 -> Hasta US$ 5,000 por evento, máximo 3 eventos por vigencia de la póliza | G20: =+IF(Cotizador!$H$37="X",INMUEBLE!$L$16,INMUEBLE!$K$16) -> 0
D21: Gastos de arrendamiento de vivienda temporal a reembolso | F21: =coberturasyClausulas!$J$7 -> Hasta US$ 2,000 mensuales, máximo 6 meses por vigencia de la póliza, suma asegurada que forma parte de la cobertura principal | G21: =+IF(Cotizador!$H$37="X",INMUEBLE!$L$17,INMUEBLE!$K$17) -> 0
D22: Alquiler no percibido por inmueble inhabitable temporalmente | F22: =coberturasyClausulas!$J$8 -> Hasta US$ 2,000 mensuales, máximo 6 meses por vigencia de la póliza, suma asegurada que forma parte de la cobertura principal | G22: =+IF(Cotizador!$H$37="X",INMUEBLE!$L$18,INMUEBLE!$K$18) -> 0
B23: X | D23: Gastos extraordinarios: remoción de escombros, honorarios profesionales y construcción de documentos y modelos | F23: Hasta el 20% de la suma asegurada de Inmueble, suma asegurada que forma parte de la cobertura principal | G23: 0
E24: Asistencias
D25: =coberturasyClausulas!$E$11 -> Asistencia de emergencia en el hogar | F25: =coberturasyClausulas!$J$11 -> Hasta US$ 300 por cada servicio, máximo 3 atenciones de cada servicio de Cerrajería, Gasfitería, Electricidad, y vidriería, las 24 horas del día todos los días del año, por vigencia de la póliza. | G25: =+IF(Cotizador!$H$37="X",INMUEBLE!$L$19,INMUEBLE!$K$19) -> 0
D26: =coberturasyClausulas!$E$12 -> Limpieza del inmueble asegurado a consecuencia de un siniestro | F26: =coberturasyClausulas!$J$12 -> Hasta US$ 500 máximo 3 atenciones por vigencia de la póliza
D27: =coberturasyClausulas!$E$13 -> Chequeo preventivo del inmueble | F27: =coberturasyClausulas!$J$13 -> Hasta US$ 500 máximo 3 atenciones por vigencia de la póliza
D28: =coberturasyClausulas!$E$20 -> Orientación médica telefónica | F28: =coberturasyClausulas!$J$20 -> Sin límite
D29: =coberturasyClausulas!$E$21 -> Ambulancia por accidente para el asegurado | F29: =coberturasyClausulas!$J$21 -> Hasta US$ 500 máximo 3 atenciones por vigencia de la póliza
D30: =coberturasyClausulas!$E$23 -> Asesoría legal por robo dentro del inmueble | F30: =coberturasyClausulas!$J$23 -> Hasta US$ 300 máximo 3 atenciones por vigencia de la póliza
D31: Deducibles: Aplicables por evento/pérdida, en caso de discrepancia prevalece el mayor
B32: =IF($B$14=0,"",$B$14) ->  | D32: Terremoto / Maremoto | F32: =coberturasyClausulas!$J$26 -> Hasta el 1% del límite asegurado, mínimo US$ 200
B33: =IF($B$14=0,"",$B$14) ->  | D33: Otros Riesgos de la Naturaleza (entre ellos lluvia, inundación, otros) | F33: =coberturasyClausulas!$J$27 -> Hasta 10% del monto indemnizable, mínimo US$ 200
B34: X | D34: Daños por agua | F34: =coberturasyClausulas!$J$28 -> Hasta 10% del monto indemnizable, mínimo US$ 200
B35: X | D35: Riesgos políticos y sociales | F35: =coberturasyClausulas!$J$29 -> Hasta 10% del monto indemnizable, mínimo US$ 200
B36: =IF($B$16=0,"",$B$16) ->  | D36: Responsabilidad civil frente a terceros | F36: =coberturasyClausulas!$J$30 -> Hasta 10% del monto indemnizable, mínimo US$ 200
B37: =IF($B$18=0,"",$B$18) ->  | D37: Rotura accidental de vidrio y/o cristales | F37: =coberturasyClausulas!$J$31 -> Hasta 10% del monto indemnizable, mínimo US$ 200
B38: =IF($B$19=0,"",$B$19) ->  | D38: Robo o intento de robo de instalaciones fijas | F38: =coberturasyClausulas!$J$32 -> Hasta 10% del monto indemnizable, mínimo US$ 200
B39: =IF($B$24=0,"",$B$24) ->  | D39: Demás coberturas | F39: Sin deducible

Sheet VALOR TOTAL BIENES (hidden)
D1: VALOR TOTAL BIENES | F1: Ir a Cotizador
E2: INGRESE LA SUMA ASEGURADA | M2: Incendio | N2: robo | O2: total
D3: Suma Asegurada de Bienes | F3: Prima comercial | G3: =IFERROR(BIENES!$P$7,0) -> 62.82 | M3: =SUM(G12+G16+G20+G22) -> 62.82 | N3: =SUM(G14+G15+G18+G19) -> 0 | O3: =SUM(M3:N3) -> 62.82
F4: Igv | G4: =IFERROR(BIENES!$P$8,0) -> 11.3076
F5: Prima total | G5: =IFERROR(BIENES!$P$9,0) -> 74.1276
D10: COBERTURAS (solo BIENES) | F10: Límites asegurados por vigencia | G10: Prima Comercial
D11: Cobertura principal
B12: X | D12: Incendio y/o rayo, explosión, incendio en aparatos eléctricos. Daños por agua, daños por humo, impacto de vehículos y/o aeronaves o daños por riesgos políticos y sociales | F12: =$E$3 -> 0 | G12: =+IF(Cotizador!$H$37="X",BIENES!$L$13,BIENES!$K$13) -> 62.82
D13: Coberturas adicionales
D14: Robo y/o daños por intento de robo (dentro y fuera de la vivienda a nivel nacional) | F14: =$F$12 -> 0 | G14: =+IF(Cotizador!$H$37="X",BIENES!$L$32,BIENES!$K$32) -> 0
D15: Robo y/o daños por intento de robo de joyas, platería, relojes, obras de arte, cámaras fotográficas o de video, laptops y bicicletas dentro de la vivienda o que estén siendo portados fuera de la vivienda. | F15: USD 10,000, sublímite de la cobertura de Robo | G15: =+IF(Cotizador!$H$37="X",BIENES!$L$33,BIENES!$K$33) -> 0
D16: Terremoto, temblor, maremoto, Inundaciones y riesgos de la naturaleza | F16: =$F$14 -> 0 | G16: =+IF(Cotizador!$H$37="X",BIENES!$L$14,BIENES!$K$14) -> 0
F17: Suma asegurada que forma parte de la cobertura principal
D18: Hurto | F18: =coberturasyClausulas!$J$37 -> Hasta US$ 3,000 , sublímite de la cobertura de Robo | G18: =+IF(Cotizador!$H$37="X",BIENES!$L$34,BIENES!$K$34) -> 0
D19: Deshonestidad de trabajadores del hogar | F19: =coberturasyClausulas!$J$38 -> Hasta US$ 5,000 por evento, máximo 3 eventos por vigencia de la póliza, sublímite de la cobertura de Robo | G19: =+IF(Cotizador!$H$37="X",BIENES!$L$35,BIENES!$K$35) -> 0
B20: X | D20: Gastos extraordinarios: remoción de escombros, honorarios profesionales y construcción de documentos y modelos | F20: Hasta el 20% de la suma asegurada de bienes, suma asegurada que forma parte de la cobertura principal | G20: 0
E21: Asistencias
D22: =coberturasyClausulas!$E$39 -> Asistencia de emergencia en el hogar | F22: =coberturasyClausulas!$J$39 -> Hasta US$ 300 por cada servicio, máximo 3 atenciones de cada servicio de Cerrajería, Gasfitería, Electricidad, y vidriería, las 24 horas del día todos los días del año, por vigencia de la póliza. | G22: =+IF(Cotizador!H37="X",BIENES!$L$15,BIENES!$K$15) -> 0
D23: =coberturasyClausulas!$E$40 -> Limpieza del inmueble asegurado a consecuencia de un siniestro | F23: =coberturasyClausulas!$J$40 -> Hasta US$ 500 máximo 3 atenciones por vigencia de la póliza
D24: =coberturasyClausulas!$E$41 -> Chequeo preventivo del inmueble | F24: =coberturasyClausulas!$J$41 -> Hasta US$ 500 máximo 3 atenciones por vigencia de la póliza
D25: =coberturasyClausulas!$E$48 -> Orientación médica telefónica | F25: =coberturasyClausulas!$J$48 -> Sin límite
D26: =coberturasyClausulas!$E$49 -> Ambulancia por accidente para el asegurado | F26: =coberturasyClausulas!$J$49 -> Hasta US$ 500 máximo 3 atenciones por vigencia de la póliza
D27: =coberturasyClausulas!$E$51 -> Asesoría legal por robo dentro del inmueble | F27: =coberturasyClausulas!$J$51 -> Hasta US$ 300 máximo 3 atenciones por vigencia de la póliza
D28: Deducibles: Aplicables por evento/pérdida, en caso de discrepancia prevalece el mayor
B29: =IF($B$14=0,"",$B$14) ->  | D29: Robo y/o daños por intento de robo | F29: =coberturasyClausulas!$J$54 -> Hasta 10% del monto indemnizable, mínimo US$ 200
B30: =IF($B$18=0,"",$B$18) ->  | D30: Hurto | F30: =coberturasyClausulas!$J$55 -> Hasta 10% del monto indemnizable, mínimo US$ 200
B31: =IF($B$19=0,"",$B$19) ->  | D31: Deshonestidad de trabajadores del hogar | F31: =coberturasyClausulas!$J$56 -> Hasta 10% del monto indemnizable, mínimo US$ 200
B32: =IF($B$16=0,"",$B$16) ->  | D32: Terremoto / Maremoto | F32: =coberturasyClausulas!$J$57 -> Hasta el 1% del límite asegurado, mínimo US$ 200
B33: =IF($B$16=0,"",$B$16) ->  | D33: Otros Riesgos de la Naturaleza (entre ellos lluvia, inundación, otros) | F33: =coberturasyClausulas!$J$58 -> Hasta 10% del monto indemnizable, mínimo US$ 200
B34: X | D34: Daños por agua | F34: =coberturasyClausulas!$J$59 -> Hasta 10% del monto indemnizable, mínimo US$ 200
B35: X | D35: Riesgos políticos y sociales | F35: =coberturasyClausulas!$J$60 -> Hasta 10% del monto indemnizable, mínimo US$ 200
B36: =IF($B$21=0,"",$B$21) ->  | D36: Demás coberturas | F36: Sin deducible

Sheet VALOR TOTAL INMUEBLE +BIENES (hidden)
D1: VALOR TOTAL INMUEBLE +BIENES | F1: Ir a Cotizador
E2: INGRESE LAS SUMAS ASEGURADAS | M2: Incendio | N2: robo | O2: total
D3: Suma Asegurada de Inmueble | E3: 200000 | G3: Prima comercial | H3: =IFERROR('INMUEBLE Y BIENES'!$P$7,0) -> 473.78 | M3: =SUM(H12+H14+H16+H18+H20+H25+H26+H27+H28+H30) -> 473.78 | N3: =SUM(H21+H22+H23+H24) -> 0 | O3: =SUM(M3:N3) -> 473.78
D4: Suma Asegurada de Bienes | E4: 10000 | G4: Igv | H4: =IFERROR('INMUEBLE Y BIENES'!$P$8,0) -> 85.2804
G5: Prima total | H5: =IFERROR('INMUEBLE Y BIENES'!$P$9,0) -> 559.0604
D10: COBERTURAS (INMUEBLE Y BIENES) | F10: Límites asegurados por vigencia, hasta | G10: Límites asegurados por vigencia, hasta | H10: Prima Comercial
D11: Cobertura principal | F11: INMUEBLE | G11: BIENES
B12: X | D12: Incendio y/o rayo, explosión, incendio en aparatos eléctricos. Daños por agua, daños por humo, impacto de vehículos y/o aeronaves o daños por riesgos políticos y sociales | F12: =$E$3 -> 200000 | G12: =$E$4 -> 10000 | H12: =+IF(Cotizador!$H$37="X",'INMUEBLE Y BIENES'!$L$50,'INMUEBLE Y BIENES'!$K$50) -> 157.9
D13: Coberturas adicionales
B14: X | D14: Terremoto, temblor, maremoto, Inundaciones y riesgos de la naturaleza | F14: =$E$3 -> 200000 | G14: =$E$4 -> 10000 | H14: =+IF(Cotizador!$H$37="X",'INMUEBLE Y BIENES'!$L$51,'INMUEBLE Y BIENES'!$K$51) -> 290.67
F15: Suma asegurada que forma parte de la cobertura principal | G15: Suma asegurada que forma parte de la cobertura principal
B16: X | D16: Responsabilidad civil frente a terceros | F16: =$E$3 -> 200000 | G16: - | H16: =+IF(Cotizador!$H$37="X",'INMUEBLE Y BIENES'!$L$52,'INMUEBLE Y BIENES'!$K$52) -> 1.68
F17: =coberturasyClausulas!$J$64 -> máximo US$ 200,000
B18: X | D18: Rotura accidental de vidrio y/o cristales | F18: =coberturasyClausulas!$J$65 -> US$ 3,000 | H18: =+IF(Cotizador!$H$37="X",'INMUEBLE Y BIENES'!$L$53,'INMUEBLE Y BIENES'!$K$53) -> 4.62
F19: Suma asegurada que forma parte de la cobertura principal
D20: Robo o intento de robo de instalaciones fijas | F20: =coberturasyClausulas!$J$66 -> 20% de la suma asegurada de inmueble, máximo US$ 5,000 , suma asegurada que forma parte de la cobertura principal | H20: =+IF(Cotizador!$H$37="X",'INMUEBLE Y BIENES'!$L$54,'INMUEBLE Y BIENES'!$K$54) -> 0
D21: Robo y/o daños por intento de robo (dentro y fuera de la vivienda a nivel nacional) | F21: - | G21: =$E$4 -> 10000 | H21: =+IF(Cotizador!$H$37="X",'INMUEBLE Y BIENES'!$L$70,'INMUEBLE Y BIENES'!$K$70) -> 0
D22: Robo y/o daños por intento de robo de joyas, platería, relojes, obras de arte, cámaras fotográficas o de video, laptops y bicicletas dentro de la vivienda o que estén siendo portados fuera de la vivienda. | F22: - | G22: USD 10,000, sublímite de la cobertura de Robo | H22: =+IF(Cotizador!$H$37="X",'INMUEBLE Y BIENES'!$L$71,'INMUEBLE Y BIENES'!$K$71) -> 0
D23: Hurto | F23: - | G23: =coberturasyClausulas!$J$68 -> US$ 3,000 , sublímite de la cobertura de Robo | H23: =+IF(Cotizador!$H$37="X",'INMUEBLE Y BIENES'!$L$72,'INMUEBLE Y BIENES'!$K$72) -> 0
D24: Deshonestidad de trabajadores del hogar | F24: - | G24: =coberturasyClausulas!$J$69 -> US$ 5,000 por evento, máximo 3 eventos por vigencia de la póliza, sublímite de la cobertura de Robo | H24: =+IF(Cotizador!$H$37="X",'INMUEBLE Y BIENES'!$L$73,'INMUEBLE Y BIENES'!$K$73) -> 0
D25: Reembolso de gastos médicos por accidentes de trabajadores del hogar, ocurridos dentro del inmueble | F25: =coberturasyClausulas!$J$70 -> US$ 5,000 por evento, máximo 3 eventos por vigencia de la póliza | G25: Hasta US$ 5,000 / S/ 15,000 por evento, máximo 3 eventos por vigencia de la póliza | H25: =+IF(Cotizador!$H$37="X",'INMUEBLE Y BIENES'!$L$55,'INMUEBLE Y BIENES'!$K$55) -> 0
B26: X | D26: Gastos de arrendamiento de vivienda temporal a reembolso | F26: =coberturasyClausulas!$J$71 -> US$ 2,000 mensuales, máximo 6 meses por vigencia de la póliza, suma asegurada que forma parte de la cobertura principal | G26: Hasta US$ 2,000 / S/ 6,000 mensuales, máximo 6 meses por vigencia de la póliza, suma asegurada que forma parte de la cobertura principal | H26: =+IF(Cotizador!$H$37="X",'INMUEBLE Y BIENES'!$L$56,'INMUEBLE Y BIENES'!$K$56) -> 1.23
D27: Alquiler no percibido por inmueble inhabitable temporalmente (aplica solo para el arrendador) | F27: =coberturasyClausulas!$J$72 -> US$ 2,000 mensuales, máximo 6 meses por vigencia de la póliza, suma asegurada que forma parte de la cobertura principal | G27: Hasta US$ 2,000 / S/ 6,000 mensuales, máximo 6 meses por vigencia de la póliza, suma asegurada que forma parte de la cobertura principal | H27: =+IF(Cotizador!$H$37="X",'INMUEBLE Y BIENES'!$L$57,'INMUEBLE Y BIENES'!$K$57) -> 0
B28: X | D28: Gastos extraordinarios: remoción de escombros, honorarios profesionales y construcción de documentos y modelos | F28: 20% de la suma asegurada de inmueble y/o bienes, suma asegurada que forma parte de la cobertura principal | G28: Hasta el 20% de la suma asegurada de inmueble y/o bienes, suma asegurada que forma parte de la cobertura principal | H28: 0
B29: X | E29: Asistencias
D30: =coberturasyClausulas!$E$73 -> Asistencia de emergencia en el hogar | F30: =coberturasyClausulas!$J$73 -> Hasta US$ 300 por cada servicio, máximo 3 atenciones de cada servicio de Cerrajería, Gasfitería, Electricidad, y vidriería, las 24 horas del día todos los días del año, por vigencia de la póliza. | H30: =+IF(Cotizador!$H$37="X",'INMUEBLE Y BIENES'!$L$58,'INMUEBLE Y BIENES'!$K$58) -> 17.68
D31: =coberturasyClausulas!$E$74 -> Limpieza del inmueble asegurado a consecuencia de un siniestro | F31: =coberturasyClausulas!$J$74 -> Hasta US$ 500 máximo 3 atenciones por vigencia de la póliza
D32: =coberturasyClausulas!$E$75 -> Chequeo preventivo del inmueble | F32: =coberturasyClausulas!$J$75 -> Hasta US$ 500 máximo 3 atenciones por vigencia de la póliza
D33: =coberturasyClausulas!$E$82 -> Orientación médica telefónica | F33: =coberturasyClausulas!$J$82 -> Sin límite
D34: =coberturasyClausulas!$E$83 -> Ambulancia por accidente para el asegurado | F34: =coberturasyClausulas!$J$83 -> Hasta US$ 500 máximo 3 atenciones por vigencia de la póliza
D35: =coberturasyClausulas!$E$85 -> Asesoría legal por robo dentro del inmueble | F35: =coberturasyClausulas!$J$85 -> Hasta US$ 300 máximo 3 atenciones por vigencia de la póliza
D36: Deducibles: Aplicables por evento/pérdida, en caso de discrepancia prevalece el mayor
B37: =IF($B$14=0,"",$B$14) -> X | D37: Terremoto / Maremoto | F37: =coberturasyClausulas!$J$88 -> Hasta el 1% del límite asegurado, mínimo US$ 200
B38: =IF($B$14=0,"",$B$14) -> X | D38: Otros Riesgos de la Naturaleza (entre ellos lluvia, inundación, otros) | F38: =coberturasyClausulas!$J$89 -> Hasta 10% del monto indemnizable, mínimo US$ 200
B39: X | D39: Daños por agua | F39: =coberturasyClausulas!$J$90 -> Hasta 10% del monto indemnizable, mínimo US$ 200
B40: X | D40: Riesgos políticos y sociales | F40: =coberturasyClausulas!$J$91 -> Hasta 10% del monto indemnizable, mínimo US$ 200
B41: =IF($B$16=0,"",$B$16) -> X | D41: Responsabilidad civil frente a terceros | F41: =coberturasyClausulas!$J$92 -> Hasta 10% del monto indemnizable, mínimo US$ 200
B42: =IF($B$18=0,"",$B$18) -> X | D42: Rotura accidental de vidrio y/o cristales | F42: =coberturasyClausulas!$J$93 -> Hasta 10% del monto indemnizable, mínimo US$ 200
B43: =IF($B$20=0,"",$B$20) ->  | D43: Robo o intento de robo de instalaciones fijas | F43: =coberturasyClausulas!$J$94 -> Hasta 10% del monto indemnizable, mínimo US$ 200
B44: =IF($B$21=0,"",$B$21) ->  | D44: Robo y/o daños por intento de robo | F44: =coberturasyClausulas!$J$95 -> Hasta 10% del monto indemnizable, mínimo US$ 200
B45: =IF($B$23=0,"",$B$23) ->  | D45: Hurto | F45: =coberturasyClausulas!$J$96 -> Hasta 10% del monto indemnizable, mínimo US$ 200
B46: =IF($B$24=0,"",$B$24) ->  | D46: Deshonestidad de trabajadores del hogar | F46: =coberturasyClausulas!$J$97 -> Hasta 10% del monto indemnizable, mínimo US$ 200
B47: =IF($B$29=0,"",$B$29) -> X | D47: Demás coberturas | F47: Sin deducible

Sheet PRIMER RIESGO INMUEBLE (hidden)
D1: PRIMER RIESGO INMUEBLE | F1: Ir a Cotizador
E2: INGRESE LA SUMA ASEGURADA | M2: Incendio | N2: robo | O2: total
D3: Suma asegurada | F3: Prima comercial | G3: =IFERROR(INMUEBLE!$P$7,0) -> 51.5 | M3: =SUM(G12+G14+G16+G18+G19+G20+G21+G22+G23+G25) -> 51.5 | O3: =SUM(M3:N3) -> 51.5
F4: Igv | G4: =IFERROR(INMUEBLE!$P$8,0) -> 9.27
F5: Prima total | G5: =IFERROR(INMUEBLE!$P$9,0) -> 60.77
D10: COBERTURAS (solo INMUEBLE) | F10: Límites asegurados por vigencia | G10: Prima Comercial
D11: Cobertura principal
B12: X | D12: Incendio y/o rayo, explosión, incendio en aparatos eléctricos. Daños por agua, daños por humo, impacto de vehículos y/o aeronaves o daños por riesgos políticos y sociales | F12: =$E$3 -> 0 | G12: =+IF(Cotizador!$H$37="X",INMUEBLE!$L$11,INMUEBLE!$K$11) -> 51.5
D13: Coberturas adicionales
D14: Terremoto, temblor, maremoto, Inundaciones y riesgos de la naturaleza | F14: =$E$3 -> 0 | G14: =+IF(Cotizador!$H$37="X",INMUEBLE!$L$12,INMUEBLE!$K$12) -> 0
F15: Suma asegurada que forma parte de la cobertura principal
D16: Responsabilidad civil frente a terceros | F16: =$E$3 -> 0 | G16: =+IF(Cotizador!$H$37="X",INMUEBLE!$L$13,INMUEBLE!$K$13) -> 0
F17: =coberturasyClausulas!$J$3 -> máximo US$ 200,000
D18: Rotura accidental de vidrio y/o cristales | F18: =coberturasyClausulas!$J$4 -> Hasta US$ 3,000 ,suma asegurada que forma parte de la cobertura principal | G18: =+IF(Cotizador!$H$37="X",INMUEBLE!$L$14,INMUEBLE!$K$14) -> 0
D19: Robo o intento de robo de instalaciones fijas | F19: =coberturasyClausulas!$J$5 -> Hasta el 20% de la suma asegurada de inmueble, máximo US$ 5,000 ,suma asegurada que forma parte de la cobertura principal | G19: =+IF(Cotizador!$H$37="X",INMUEBLE!$L$15,INMUEBLE!$K$15) -> 0
D20: Reembolso de gastos médicos por accidentes de trabajadores del hogar, ocurridos dentro del inmueble | F20: =coberturasyClausulas!$J$6 -> Hasta US$ 5,000 por evento, máximo 3 eventos por vigencia de la póliza | G20: =+IF(Cotizador!$H$37="X",INMUEBLE!$L$16,INMUEBLE!$K$16) -> 0
D21: Gastos de arrendamiento de vivienda temporal a reembolso | F21: =coberturasyClausulas!$J$7 -> Hasta US$ 2,000 mensuales, máximo 6 meses por vigencia de la póliza, suma asegurada que forma parte de la cobertura principal | G21: =+IF(Cotizador!$H$37="X",INMUEBLE!$L$17,INMUEBLE!$K$17) -> 0
D22: Alquiler no percibido por inmueble inhabitable temporalmente | F22: =coberturasyClausulas!$J$8 -> Hasta US$ 2,000 mensuales, máximo 6 meses por vigencia de la póliza, suma asegurada que forma parte de la cobertura principal | G22: =+IF(Cotizador!$H$37="X",INMUEBLE!$L$18,INMUEBLE!$K$18) -> 0
B23: X | D23: Gastos extraordinarios: remoción de escombros, honorarios profesionales y construcción de documentos y modelos | F23: Hasta el 20% de la suma asegurada de Inmueble, suma asegurada que forma parte de la cobertura principal | G23: 0
E24: Asistencias
D25: =coberturasyClausulas!$E$11 -> Asistencia de emergencia en el hogar | F25: =coberturasyClausulas!$J$11 -> Hasta US$ 300 por cada servicio, máximo 3 atenciones de cada servicio de Cerrajería, Gasfitería, Electricidad, y vidriería, las 24 horas del día todos los días del año, por vigencia de la póliza. | G25: =+IF(Cotizador!$H$37="X",INMUEBLE!$L$19,INMUEBLE!$K$19) -> 0
D26: =coberturasyClausulas!$E$12 -> Limpieza del inmueble asegurado a consecuencia de un siniestro | F26: =coberturasyClausulas!$J$12 -> Hasta US$ 500 máximo 3 atenciones por vigencia de la póliza
D27: =coberturasyClausulas!$E$13 -> Chequeo preventivo del inmueble | F27: =coberturasyClausulas!$J$13 -> Hasta US$ 500 máximo 3 atenciones por vigencia de la póliza
D28: =coberturasyClausulas!$E$20 -> Orientación médica telefónica | F28: =coberturasyClausulas!$J$20 -> Sin límite
D29: =coberturasyClausulas!$E$21 -> Ambulancia por accidente para el asegurado | F29: =coberturasyClausulas!$J$21 -> Hasta US$ 500 máximo 3 atenciones por vigencia de la póliza
D30: =coberturasyClausulas!$E$23 -> Asesoría legal por robo dentro del inmueble | F30: =coberturasyClausulas!$J$23 -> Hasta US$ 300 máximo 3 atenciones por vigencia de la póliza
D31: Deducibles: Aplicables por evento/pérdida, en caso de discrepancia prevalece el mayor
B32: =IF($B$14=0,"",$B$14) ->  | D32: Terremoto / Maremoto | F32: =coberturasyClausulas!$J$26 -> Hasta el 1% del límite asegurado, mínimo US$ 200
B33: =IF($B$14=0,"",$B$14) ->  | D33: Otros Riesgos de la Naturaleza (entre ellos lluvia, inundación, otros) | F33: =coberturasyClausulas!$J$27 -> Hasta 10% del monto indemnizable, mínimo US$ 200
B34: X | D34: Daños por agua | F34: =coberturasyClausulas!$J$28 -> Hasta 10% del monto indemnizable, mínimo US$ 200
B35: X | D35: Riesgos políticos y sociales | F35: =coberturasyClausulas!$J$29 -> Hasta 10% del monto indemnizable, mínimo US$ 200
B36: =IF($B$16=0,"",$B$16) ->  | D36: Responsabilidad civil frente a terceros | F36: =coberturasyClausulas!$J$30 -> Hasta 10% del monto indemnizable, mínimo US$ 200
B37: =IF($B$18=0,"",$B$18) ->  | D37: Rotura accidental de vidrio y/o cristales | F37: =coberturasyClausulas!$J$31 -> Hasta 10% del monto indemnizable, mínimo US$ 200
B38: =IF($B$19=0,"",$B$19) ->  | D38: Robo o intento de robo de instalaciones fijas | F38: =coberturasyClausulas!$J$32 -> Hasta 10% del monto indemnizable, mínimo US$ 200
B39: =IF($B$24=0,"",$B$24) ->  | D39: Demás coberturas | F39: Sin deducible

Sheet PRIMER RIESGO BIENES (hidden)
D1: PRIMER RIESGO BIENES | F1: Ir a Cotizador
E2: INGRESE LA SUMA ASEGURADA | M2: Incendio | N2: robo | O2: total
D3: Suma Asegurada de Bienes | F3: Prima comercial | G3: =IFERROR(BIENES!$P$7,0) -> 62.82 | M3: =SUM(G12+G16+G20+G22) -> 62.82 | N3: =SUM(G14+G15+G18+G19) -> 0 | O3: =SUM(M3:N3) -> 62.82
F4: Igv | G4: =IFERROR(BIENES!$P$8,0) -> 11.3076
F5: Prima total | G5: =IFERROR(BIENES!$P$9,0) -> 74.1276
D10: COBERTURAS (solo BIENES) | F10: Límites asegurados por vigencia | G10: Prima Comercial
D11: Cobertura principal
B12: X | D12: Incendio y/o rayo, explosión, incendio en aparatos eléctricos. Daños por agua, daños por humo, impacto de vehículos y/o aeronaves o daños por riesgos políticos y sociales | F12: =$E$3 -> 0 | G12: =+IF(Cotizador!$H$37="X",BIENES!$L$13,BIENES!$K$13) -> 62.82
D13: Coberturas adicionales
D14: Robo y/o daños por intento de robo (dentro y fuera de la vivienda a nivel nacional) | F14: =$F$12 -> 0 | G14: =+IF(Cotizador!$H$37="X",BIENES!$L$32,BIENES!$K$32) -> 0
D15: Robo y/o daños por intento de robo de joyas, platería, relojes, obras de arte, cámaras fotográficas o de video, laptops y bicicletas dentro de la vivienda o que estén siendo portados fuera de la vivienda. | F15: USD 10,000, sublímite de la cobertura de Robo | G15: =+IF(Cotizador!$H$37="X",BIENES!$L$33,BIENES!$K$33) -> 0
D16: Terremoto, temblor, maremoto, Inundaciones y riesgos de la naturaleza | F16: =$F$14 -> 0 | G16: =+IF(Cotizador!$H$37="X",BIENES!$L$14,BIENES!$K$14) -> 0
F17: Suma asegurada que forma parte de la cobertura principal
D18: Hurto | F18: =coberturasyClausulas!$J$37 -> Hasta US$ 3,000 , sublímite de la cobertura de Robo | G18: =+IF(Cotizador!$H$37="X",BIENES!$L$34,BIENES!$K$34) -> 0
D19: Deshonestidad de trabajadores del hogar | F19: =coberturasyClausulas!$J$38 -> Hasta US$ 5,000 por evento, máximo 3 eventos por vigencia de la póliza, sublímite de la cobertura de Robo | G19: =+IF(Cotizador!$H$37="X",BIENES!$L$35,BIENES!$K$35) -> 0
B20: X | D20: Gastos extraordinarios: remoción de escombros, honorarios profesionales y construcción de documentos y modelos | F20: Hasta el 20% de la suma asegurada de bienes, suma asegurada que forma parte de la cobertura principal | G20: 0
E21: Asistencias
D22: =coberturasyClausulas!$E$39 -> Asistencia de emergencia en el hogar | F22: =coberturasyClausulas!$J$39 -> Hasta US$ 300 por cada servicio, máximo 3 atenciones de cada servicio de Cerrajería, Gasfitería, Electricidad, y vidriería, las 24 horas del día todos los días del año, por vigencia de la póliza. | G22: =+IF(Cotizador!H37="X",BIENES!$L$15,BIENES!$K$15) -> 0
D23: =coberturasyClausulas!$E$40 -> Limpieza del inmueble asegurado a consecuencia de un siniestro | F23: =coberturasyClausulas!$J$40 -> Hasta US$ 500 máximo 3 atenciones por vigencia de la póliza
D24: =coberturasyClausulas!$E$41 -> Chequeo preventivo del inmueble | F24: =coberturasyClausulas!$J$41 -> Hasta US$ 500 máximo 3 atenciones por vigencia de la póliza
D25: =coberturasyClausulas!$E$48 -> Orientación médica telefónica | F25: =coberturasyClausulas!$J$48 -> Sin límite
D26: =coberturasyClausulas!$E$49 -> Ambulancia por accidente para el asegurado | F26: =coberturasyClausulas!$J$49 -> Hasta US$ 500 máximo 3 atenciones por vigencia de la póliza
D27: =coberturasyClausulas!$E$51 -> Asesoría legal por robo dentro del inmueble | F27: =coberturasyClausulas!$J$51 -> Hasta US$ 300 máximo 3 atenciones por vigencia de la póliza
D28: Deducibles: Aplicables por evento/pérdida, en caso de discrepancia prevalece el mayor
B29: =IF($B$14=0,"",$B$14) ->  | D29: Robo y/o daños por intento de robo | F29: =coberturasyClausulas!$J$54 -> Hasta 10% del monto indemnizable, mínimo US$ 200
B30: =IF($B$18=0,"",$B$18) ->  | D30: Hurto | F30: =coberturasyClausulas!$J$55 -> Hasta 10% del monto indemnizable, mínimo US$ 200
B31: =IF($B$19=0,"",$B$19) ->  | D31: Deshonestidad de trabajadores del hogar | F31: =coberturasyClausulas!$J$56 -> Hasta 10% del monto indemnizable, mínimo US$ 200
B32: =IF($B$16=0,"",$B$16) ->  | D32: Terremoto / Maremoto | F32: =coberturasyClausulas!$J$57 -> Hasta el 1% del límite asegurado, mínimo US$ 200
B33: =IF($B$16=0,"",$B$16) ->  | D33: Otros Riesgos de la Naturaleza (entre ellos lluvia, inundación, otros) | F33: =coberturasyClausulas!$J$58 -> Hasta 10% del monto indemnizable, mínimo US$ 200
B34: X | D34: Daños por agua | F34: =coberturasyClausulas!$J$59 -> Hasta 10% del monto indemnizable, mínimo US$ 200
B35: X | D35: Riesgos políticos y sociales | F35: =coberturasyClausulas!$J$60 -> Hasta 10% del monto indemnizable, mínimo US$ 200
B36: =IF($B$21=0,"",$B$21) ->  | D36: Demás coberturas | F36: Sin deducible

Sheet PRIMER RIESGO INMUEBLE+BIENES (hidden)
D1: PRIMER RIESGO INMUEBLE +BIENES | F1: Ir a Cotizador
E2: INGRESE LAS SUMAS ASEGURADAS | M2: Incendio | N2: robo | O2: total
D3: Suma Asegurada de Inmueble | H3: =IFERROR('INMUEBLE Y BIENES'!$P$7,0) -> 473.78 | M3: =SUM(H12+H14+H16+H18+H20+H25+H26+H27+H28+H30) -> 473.78 | N3: =SUM(H21+H22+H23+H24) -> 0 | O3: =SUM(M3:N3) -> 473.78
D4: Suma Asegurada de Bienes | H4: =IFERROR('INMUEBLE Y BIENES'!$P$8,0) -> 85.2804
H5: =IFERROR('INMUEBLE Y BIENES'!$P$9,0) -> 559.0604
D10: COBERTURAS (INMUEBLE Y BIENES) | F10: Límites asegurados por vigencia, hasta | G10: Límites asegurados por vigencia, hasta | H10: Prima Comercial
D11: Cobertura principal | F11: INMUEBLE | G11: BIENES
B12: X | D12: Incendio y/o rayo, explosión, incendio en aparatos eléctricos. Daños por agua, daños por humo, impacto de vehículos y/o aeronaves o daños por riesgos políticos y sociales | F12: =$E$3 -> 0 | G12: =$E$4 -> 0 | H12: =+IF(Cotizador!$H$37="X",'INMUEBLE Y BIENES'!$L$50,'INMUEBLE Y BIENES'!$K$50) -> 157.9
D13: Coberturas adicionales
B14: X | D14: Terremoto, temblor, maremoto, Inundaciones y riesgos de la naturaleza | F14: =$E$3 -> 0 | G14: =$E$4 -> 0 | H14: =+IF(Cotizador!$H$37="X",'INMUEBLE Y BIENES'!$L$51,'INMUEBLE Y BIENES'!$K$51) -> 290.67
F15: Suma asegurada que forma parte de la cobertura principal | G15: Suma asegurada que forma parte de la cobertura principal
B16: X | D16: Responsabilidad civil frente a terceros | F16: =$E$3 -> 0 | G16: - | H16: =+IF(Cotizador!$H$37="X",'INMUEBLE Y BIENES'!$L$52,'INMUEBLE Y BIENES'!$K$52) -> 1.68
F17: =coberturasyClausulas!$J$64 -> máximo US$ 200,000
B18: X | D18: Rotura accidental de vidrio y/o cristales | F18: =coberturasyClausulas!$J$65 -> US$ 3,000 | H18: =+IF(Cotizador!$H$37="X",'INMUEBLE Y BIENES'!$L$53,'INMUEBLE Y BIENES'!$K$53) -> 4.62
F19: Suma asegurada que forma parte de la cobertura principal
D20: Robo o intento de robo de instalaciones fijas | F20: =coberturasyClausulas!$J$66 -> 20% de la suma asegurada de inmueble, máximo US$ 5,000 , suma asegurada que forma parte de la cobertura principal | H20: =+IF(Cotizador!$H$37="X",'INMUEBLE Y BIENES'!$L$54,'INMUEBLE Y BIENES'!$K$54) -> 0
D21: Robo y/o daños por intento de robo (dentro y fuera de la vivienda a nivel nacional) | F21: - | G21: =$E$4 -> 0 | H21: =+IF(Cotizador!$H$37="X",'INMUEBLE Y BIENES'!$L$70,'INMUEBLE Y BIENES'!$K$70) -> 0
D22: Robo y/o daños por intento de robo de joyas, platería, relojes, obras de arte, cámaras fotográficas o de video, laptops y bicicletas dentro de la vivienda o que estén siendo portados fuera de la vivienda. | F22: - | G22: USD 10,000, sublímite de la cobertura de Robo | H22: =+IF(Cotizador!$H$37="X",'INMUEBLE Y BIENES'!$L$71,'INMUEBLE Y BIENES'!$K$71) -> 0
D23: Hurto | F23: - | G23: =coberturasyClausulas!$J$68 -> US$ 3,000 , sublímite de la cobertura de Robo | H23: =+IF(Cotizador!$H$37="X",'INMUEBLE Y BIENES'!$L$72,'INMUEBLE Y BIENES'!$K$72) -> 0
D24: Deshonestidad de trabajadores del hogar | F24: - | G24: =coberturasyClausulas!$J$69 -> US$ 5,000 por evento, máximo 3 eventos por vigencia de la póliza, sublímite de la cobertura de Robo | H24: =+IF(Cotizador!$H$37="X",'INMUEBLE Y BIENES'!$L$73,'INMUEBLE Y BIENES'!$K$73) -> 0
D25: Reembolso de gastos médicos por accidentes de trabajadores del hogar, ocurridos dentro del inmueble | F25: =coberturasyClausulas!$J$70 -> US$ 5,000 por evento, máximo 3 eventos por vigencia de la póliza | G25: Hasta US$ 5,000 / S/ 15,000 por evento, máximo 3 eventos por vigencia de la póliza | H25: =+IF(Cotizador!$H$37="X",'INMUEBLE Y BIENES'!$L$55,'INMUEBLE Y BIENES'!$K$55) -> 0
B26: X | D26: Gastos de arrendamiento de vivienda temporal a reembolso | F26: =coberturasyClausulas!$J$71 -> US$ 2,000 mensuales, máximo 6 meses por vigencia de la póliza, suma asegurada que forma parte de la cobertura principal | G26: Hasta US$ 2,000 / S/ 6,000 mensuales, máximo 6 meses por vigencia de la póliza, suma asegurada que forma parte de la cobertura principal | H26: =+IF(Cotizador!$H$37="X",'INMUEBLE Y BIENES'!$L$56,'INMUEBLE Y BIENES'!$K$56) -> 1.23
D27: Alquiler no percibido por inmueble inhabitable temporalmente (aplica solo para el arrendador) | F27: =coberturasyClausulas!$J$72 -> US$ 2,000 mensuales, máximo 6 meses por vigencia de la póliza, suma asegurada que forma parte de la cobertura principal | G27: Hasta US$ 2,000 / S/ 6,000 mensuales, máximo 6 meses por vigencia de la póliza, suma asegurada que forma parte de la cobertura principal | H27: =+IF(Cotizador!$H$37="X",'INMUEBLE Y BIENES'!$L$57,'INMUEBLE Y BIENES'!$K$57) -> 0
B28: X | D28: Gastos extraordinarios: remoción de escombros, honorarios profesionales y construcción de documentos y modelos | F28: 20% de la suma asegurada de inmueble y/o bienes, suma asegurada que forma parte de la cobertura principal | G28: Hasta el 20% de la suma asegurada de inmueble y/o bienes, suma asegurada que forma parte de la cobertura principal | H28: 0
B29: X | E29: Asistencias
D30: =coberturasyClausulas!$E$73 -> Asistencia de emergencia en el hogar | F30: =coberturasyClausulas!$J$73 -> Hasta US$ 300 por cada servicio, máximo 3 atenciones de cada servicio de Cerrajería, Gasfitería, Electricidad, y vidriería, las 24 horas del día todos los días del año, por vigencia de la póliza. | H30: =+IF(Cotizador!$H$37="X",'INMUEBLE Y BIENES'!$L$58,'INMUEBLE Y BIENES'!$K$58) -> 17.68
D31: =coberturasyClausulas!$E$74 -> Limpieza del inmueble asegurado a consecuencia de un siniestro | F31: =coberturasyClausulas!$J$74 -> Hasta US$ 500 máximo 3 atenciones por vigencia de la póliza
D32: =coberturasyClausulas!$E$75 -> Chequeo preventivo del inmueble | F32: =coberturasyClausulas!$J$75 -> Hasta US$ 500 máximo 3 atenciones por vigencia de la póliza
D33: =coberturasyClausulas!$E$82 -> Orientación médica telefónica | F33: =coberturasyClausulas!$J$82 -> Sin límite
D34: =coberturasyClausulas!$E$83 -> Ambulancia por accidente para el asegurado | F34: =coberturasyClausulas!$J$83 -> Hasta US$ 500 máximo 3 atenciones por vigencia de la póliza
D35: =coberturasyClausulas!$E$85 -> Asesoría legal por robo dentro del inmueble | F35: =coberturasyClausulas!$J$85 -> Hasta US$ 300 máximo 3 atenciones por vigencia de la póliza
D36: Deducibles: Aplicables por evento/pérdida, en caso de discrepancia prevalece el mayor
B37: =IF($B$14=0,"",$B$14) -> X | D37: Terremoto / Maremoto | F37: =coberturasyClausulas!$J$88 -> Hasta el 1% del límite asegurado, mínimo US$ 200
B38: =IF($B$14=0,"",$B$14) -> X | D38: Otros Riesgos de la Naturaleza (entre ellos lluvia, inundación, otros) | F38: =coberturasyClausulas!$J$89 -> Hasta 10% del monto indemnizable, mínimo US$ 200
B39: X | D39: Daños por agua | F39: =coberturasyClausulas!$J$90 -> Hasta 10% del monto indemnizable, mínimo US$ 200
B40: X | D40: Riesgos políticos y sociales | F40: =coberturasyClausulas!$J$91 -> Hasta 10% del monto indemnizable, mínimo US$ 200
B41: =IF($B$16=0,"",$B$16) -> X | D41: Responsabilidad civil frente a terceros | F41: =coberturasyClausulas!$J$92 -> Hasta 10% del monto indemnizable, mínimo US$ 200
B42: =IF($B$18=0,"",$B$18) -> X | D42: Rotura accidental de vidrio y/o cristales | F42: =coberturasyClausulas!$J$93 -> Hasta 10% del monto indemnizable, mínimo US$ 200
B43: =IF($B$20=0,"",$B$20) ->  | D43: Robo o intento de robo de instalaciones fijas | F43: =coberturasyClausulas!$J$94 -> Hasta 10% del monto indemnizable, mínimo US$ 200
B44: =IF($B$21=0,"",$B$21) ->  | D44: Robo y/o daños por intento de robo | F44: =coberturasyClausulas!$J$95 -> Hasta 10% del monto indemnizable, mínimo US$ 200
B45: =IF($B$23=0,"",$B$23) ->  | D45: Hurto | F45: =coberturasyClausulas!$J$96 -> Hasta 10% del monto indemnizable, mínimo US$ 200
B46: =IF($B$24=0,"",$B$24) ->  | D46: Deshonestidad de trabajadores del hogar | F46: =coberturasyClausulas!$J$97 -> Hasta 10% del monto indemnizable, mínimo US$ 200
B47: =IF($B$29=0,"",$B$29) -> X | D47: Demás coberturas | F47: Sin deducible

Sheet tasas (hidden)
B1: INMUEBLE | H1: BIENES | N1: INMUEBLE Y BIENES | S1: Límites para cobertura de joyas
B2: VALOR TOTAL | C2: PRIMER RIESTO | H2: VALOR TOTAL | I2: PRIMER RIESTO | N2: VALOR TOTAL | O2: PRIMER RIESTO | S2: Monto USD | T2: Monto PEN | U2: Moneda | V2: Límites asegurados por vigencia, hasta | W2: Tasa pura de riesgo
S3: 10000 | T3: =S3*3 -> 30000 | U3: USD | V3: =U3&" "&IF(U3="S/",TEXT(T3,"##,##0"),IF(U3="USD",TEXT(S3,"##,##0"),""))&", sublímite de la cobertura de Robo" -> USD 10,000, sublímite de la cobertura de Robo | W3: 0.06
A4: Tipo de bien: Inmueble | B4: tasa de riesgo | C4: tasa de riesgo | G4: Tipo de bien: Bienes | H4: tasa de riesgo | I4: tasa de riesgo | M4: Tipo de bien: Inmueble | N4: tasa de riesgo | O4: tasa de riesgo | S4: 20000 | T4: =S4*3 -> 60000 | U4: USD | V4: =U4&" "&IF(U4="S/",TEXT(T4,"##,##0"),IF(U4="USD",TEXT(S4,"##,##0"),""))&", sublímite de la cobertura de Robo" -> USD 20,000, sublímite de la cobertura de Robo | W4: 0.04
B5: Corredores | C5: Corredores | H5: Corredores | I5: Corredores | N5: Corredores | O5: Corredores
A6: Gastos generales | B6: 0.0306729 | C6: 0.15 | G6: Gastos generales | H6: 0.1142203 | I6: 0.15 | M6: Gastos generales | N6: 0.0306729 | O6: 0.15
A7: Gastos de comercialización | B7: 0 | C7: 0.05 | G7: Gastos de comercialización | H7: 0 | I7: 0.05 | M7: Gastos de comercialización | N7: 0 | O7: 0.05
A8: Comisión local | B8: 0.2 | C8: 0.2 | G8: Comisión local | H8: 0.2 | I8: 0.2 | M8: Comisión local | N8: 0.2 | O8: 0.2
A9: Utilidad antes de Imp | B9: 0 | C9: 0.05 | G9: Utilidad antes de Imp | H9: 0 | I9: 0.05 | M9: Utilidad antes de Imp | N9: 0 | O9: 0.05
A10: Tasa comercial %o | B10: =+B11/(1-(B6+B7+B8+B9)) -> 2.200058337 | C10: =+C11/(1-(C6+C7+C8+C9)) -> 3.07739 | G10: Tasa comercial %o | H10: =+H11/(1-(H6+H7+H8+H9)) -> 2.200087579 | I10: =+I11/(1-(I6+I7+I8+I9)) -> 3.241918727 | M10: Tasa comercial %o | N10: =+N11/(1-(N6+N7+N8+N9)) -> 2.200058337 | O10: =+O11/(1-(O6+O7+O8+O9)) -> 3.07739
A11: Tasa de Riesgo %o | B11: =+SUM(B12:B20) -> 1.6925645 | C11: =+SUM(C12:C20) -> 1.6925645 | G11: Tasa de Riesgo %o | H11: =+SUM(H12:H14) -> 1.5087754 | I11: =+SUM(I12:I14) -> 1.7830553 | M11: Tasa de Riesgo %o | N11: =+SUM(N12:N20) -> 1.6925645 | O11: =+SUM(O12:O20) -> 1.6925645
A12: Incendio y/o rayo, explosión. Daños por agua, daños por humo, impacto de vehículos y/o aeronaves | B12: 0.5661967 | C12: 0.5661967 | G12: Incendio y/o rayo, explosión. Daños por agua, daños por humo, impacto de vehículos y/o aeronaves | H12: 0.4183998 | I12: 0.4183998 | M12: Incendio y/o rayo, explosión. Daños por agua, daños por humo, impacto de vehículos y/o aeronaves | N12: 0.5661967 | O12: 0.5661967
A13: Terremoto, temblor, maremoto, Inundaciones y riesgos de la naturaleza | B13: 1.0278754 | C13: 1.0278754 | G13: Terremoto, temblor, maremoto, Inundaciones y riesgos de la naturaleza | H13: 1.0278754 | I13: 1.0278754 | M13: Terremoto, temblor, maremoto, Inundaciones y riesgos de la naturaleza | N13: 1.0278754 | O13: 1.0278754
A14: Responsabilidad Civil frente a terceros | B14: 0.006267 | C14: 0.006267 | G14: Asistencias | H14: 0.0625002 | I14: 0.3367801 | M14: Responsabilidad Civil frente a terceros | N14: 0.006267 | O14: 0.006267
A15: Rotura accidental de vidrio y/o cristales | B15: 0.0172741 | C15: 0.0172741 | G15: Cantidad de asistencias | H15: 6 | I15: 6 | M15: Rotura accidental de vidrio y/o cristales | N15: 0.0172741 | O15: 0.0172741
A16: Robo o intento de robo de instalaciones fijas | B16: 0.0003616 | C16: 0.0003616 | G16: Tasa por asistencia | H16: =H14/H15 -> 0.0104167 | I16: =I14/I15 -> 0.05613001667 | M16: Robo o intento de robo de instalaciones fijas | N16: 0.0003616 | O16: 0.0003616
A17: Reembolso de gastos médicos por accidentes de trabajadores del hogar | B17: 0.0029409 | C17: 0.0029409 | M17: Reembolso de gastos médicos por accidentes de trabajadores del hogar | N17: 0.0029409 | O17: 0.0029409
A18: Gasto de arrendamiento de vivienda temporal | B18: 0.0045743 | C18: 0.0045743 | M18: Gasto de arrendamiento de vivienda temporal | N18: 0.0045743 | O18: 0.0045743
A19: Alquiler no percibido por inmueble inhabitable temporalmente | B19: 0.0045743 | C19: 0.0045743 | M19: Alquiler no percibido por inmueble inhabitable temporalmente | N19: 0.0045743 | O19: 0.0045743
A20: Asistencias | B20: 0.0625002 | C20: 0.0625002 | M20: Asistencias | N20: 0.0625002 | O20: 0.0625002
A21: Cantidad de asistencias | B21: 6 | C21: 6 | M21: Cantidad de asistencias | N21: 6 | O21: 6
A22: Tasa por asistencia | B22: =B20/B21 -> 0.0104167 | C22: =C20/C21 -> 0.0104167 | M22: Tasa por asistencia | N22: =N20/N21 -> 0.0104167 | O22: =O20/O21 -> 0.0104167
G24: Tipo de bien: Bienes con robo | H24: Corredores | I24: Corredores
G25: Gastos generales | H25: 0.15 | I25: 0.15
G26: Gastos de comercialización | H26: 0.05 | I26: 0.05
G27: Comisión local | H27: 0.2 | I27: 0.2
G28: Utilidad antes de Imp | H28: 0.0948186 | I28: 0.05
G29: Tasa comercial %o | H29: =+H30/(1-(H25+H26+H27+H28)) -> 4.995324254 | I29: =+I30/(1-(I25+I26+I27+I28)) -> 4.588263455
G30: Tasa de Riesgo %o | H30: =+SUM(H31:H34) -> 2.5235449 | I30: =+SUM(I31:I34) -> 2.5235449
G31: Robo y/o daños por intento de robo de bienes | H31: 2.4425075 | I31: 2.4425075
G32: Robo y/o daños por intento de robo de joyas, platería, relojes, obras de arte, cámaras fotográficas o de video, laptops y bicicletas dentro de la vivienda o que estén siendo portados fuera de la vivienda | H32: 0.06 | I32: 0.06 | M32: Tipo de bien: Bienes | N32: tasa de riesgo | O32: tasa de riesgo
G33: Hurto | H33: 0.0139687 | I33: 0.0139687 | N33: Corredores | O33: Corredores
G34: Deshonestidad de trabajadores del hogar | H34: 0.0070687 | I34: 0.0070687 | M34: Gastos generales | N34: 0.1142203 | O34: 0.15
M35: Gastos de comercialización | N35: 0 | O35: 0.05
M36: Comisión local | N36: 0.2 | O36: 0.2
M37: Utilidad antes de Imp | N37: 0 | O37: 0.05
M38: Tasa comercial %o | N38: =+N39/(1-(N34+N35+N36+N37)) -> 2.200087579 | O38: =+O39/(1-(O34+O35+O36+O37)) -> 3.241918727
M39: Tasa de Riesgo %o | N39: =+SUM(N40:N42) -> 1.5087754 | O39: =+SUM(O40:O42) -> 1.7830553
M40: Incendio y/o rayo, explosión. Daños por agua, daños por humo, impacto de vehículos y/o aeronaves | N40: 0.4183998 | O40: 0.4183998
M41: Terremoto, temblor, maremoto, Inundaciones y riesgos de la naturaleza | N41: 1.0278754 | O41: 1.0278754
M42: Asistencias | N42: 0.0625002 | O42: 0.3367801
M43: Cantidad de asistencias | N43: 6 | O43: 6
M44: Tasa por asistencia | N44: =N42/N43 -> 0.0104167 | O44: =O42/O43 -> 0.05613001667
M50: COBERTURAS TOTALES (TODO RIESGO)
M51: Incendio y/o rayo, explosión. Daños por agua, daños por humo, impacto de vehículos y/o aeronaves
M52: Terremoto, temblor, maremoto, Inundaciones y riesgos de la naturaleza
M53: Responsabilidad Civil frente a terceros
M54: Rotura accidental de vidrio y/o cristales
M55: Robo o intento de robo de instalaciones fijas
M56: Reembolso de gastos médicos por accidentes de trabajadores del hogar
M57: Gasto de arrendamiento de vivienda temporal
M58: Alquiler no percibido por inmueble inhabitable temporalmente
M59: Asistencias
M60: TOTAL
M64: Tipo de bien: Bienes con robo | N64: Corredores | O64: Corredores
M65: Gastos generales | N65: 0.15 | O65: 0.15
M66: Gastos de comercialización | N66: 0.05 | O66: 0.05
M67: Comisión local | N67: 0.2 | O67: 0.2
M68: Utilidad antes de Imp | N68: 0.0948186 | O68: 0.05
M69: Tasa comercial %o | N69: =+N70/(1-(N65+N66+N67+N68)) -> 4.995324254 | O69: =+O70/(1-(O65+O66+O67+O68)) -> 4.588263455
M70: Tasa de Riesgo %o | N70: =+SUM(N71:N74) -> 2.5235449 | O70: =+SUM(O71:O74) -> 2.5235449
M71: Robo y/o daños por intento de robo de bienes | N71: 2.4425075 | O71: 2.4425075
M72: Robo y/o daños por intento de robo de joyas, platería, relojes, obras de arte, cámaras fotográficas o de video, laptops y bicicletas dentro de la vivienda o que estén siendo portados fuera de la vivienda | N72: 0.06 | O72: 0.06
M73: Hurto | N73: 0.0139687 | O73: 0.0139687
M74: Deshonestidad de trabajadores del hogar | N74: 0.0070687 | O74: 0.0070687

Sheet coberturasyClausulas (hidden)
A1: INMUEBLE valor total
C2: DOLARES | D2: SOLES | F2: TEXTO1 | G2: TEXTO2 | H2: DOLARES | J2: TEXTO FINAL
C3: US$ 200,000 | D3: S/ 600,000 | F3: máximo | H3: US$ 200,000 | J3: =F3& " " &H3 -> máximo US$ 200,000
C4: US$ 3,000 | D4: S/ 9,000 | F4: Hasta | G4: ,suma asegurada que forma parte de la cobertura principal | H4: US$ 3,000 | J4: =F4& " " &H4 & " " &G4 -> Hasta US$ 3,000 ,suma asegurada que forma parte de la cobertura principal
C5: US$ 5,000 | D5: S/ 15,000 | F5: Hasta el 20% de la suma asegurada de inmueble, máximo | G5: ,suma asegurada que forma parte de la cobertura principal | H5: US$ 5,000 | J5: =F5& " " &H5 & " " &G5 -> Hasta el 20% de la suma asegurada de inmueble, máximo US$ 5,000 ,suma asegurada que forma parte de la cobertura principal
C6: US$ 5,000 | D6: S/ 15,000 | F6: Hasta | G6: por evento, máximo 3 eventos por vigencia de la póliza | H6: US$ 5,000 | J6: =F6& " " &H6 & " " &G6 -> Hasta US$ 5,000 por evento, máximo 3 eventos por vigencia de la póliza
C7: US$ 2,000 | D7: S/ 6,000 | F7: Hasta | G7: mensuales, máximo 6 meses por vigencia de la póliza, suma asegurada que forma parte de la cobertura principal | H7: US$ 2,000 | J7: =F7& " " &H7 & " " &G7 -> Hasta US$ 2,000 mensuales, máximo 6 meses por vigencia de la póliza, suma asegurada que forma parte de la cobertura principal
C8: US$ 2,000 | D8: S/ 6,000 | F8: Hasta | G8: mensuales, máximo 6 meses por vigencia de la póliza, suma asegurada que forma parte de la cobertura principal | H8: US$ 2,000 | J8: =F8& " " &H8 & " " &G8 -> Hasta US$ 2,000 mensuales, máximo 6 meses por vigencia de la póliza, suma asegurada que forma parte de la cobertura principal
B11: 1 | C11: US$ 300 | D11: S/ 900 | E11: Asistencia de emergencia en el hogar | F11: Hasta | G11: por cada servicio, máximo 3 atenciones de cada servicio de Cerrajería, Gasfitería, Electricidad, y vidriería, las 24 horas del día todos los días del año, por vigencia de la póliza. | H11: US$ 300 | J11: =F11& " " &H11 & " " &G11 -> Hasta US$ 300 por cada servicio, máximo 3 atenciones de cada servicio de Cerrajería, Gasfitería, Electricidad, y vidriería, las 24 horas del día todos los días del año, por vigencia de la póliza.
B12: 2 | C12: US$ 500 | D12: S/ 1,500 | E12: Limpieza del inmueble asegurado a consecuencia de un siniestro | F12: Hasta | G12: máximo 3 atenciones por vigencia de la póliza | H12: US$ 500 | J12: =F12& " " &H12 & " " &G12 -> Hasta US$ 500 máximo 3 atenciones por vigencia de la póliza
B13: 3 | C13: US$ 500 | D13: S/ 1,500 | E13: Chequeo preventivo del inmueble | F13: Hasta | G13: máximo 3 atenciones por vigencia de la póliza | H13: US$ 500 | J13: =F13& " " &H13 & " " &G13 -> Hasta US$ 500 máximo 3 atenciones por vigencia de la póliza
C14: S/ 300 | D14: S/ 300 | E14: Asistencia veterinaria por accidente | F14: Hasta | G14: por evento, Máx 3 eventos. Periodo de carencia: 30 días | H14: S/ 300 | J14: =F14& " " &H14 & " " &G14 -> Hasta S/ 300 por evento, Máx 3 eventos. Periodo de carencia: 30 días
C15: S/ 250 | D15: S/ 250 | E15: Hospedaje de mascota | F15: Hasta | G15: por evento, Máx 3 eventos y Máx 6 días consecutivos. Periodo de carencia: 30 días | H15: S/ 250 | J15: =F15& " " &H15 & " " &G15 -> Hasta S/ 250 por evento, Máx 3 eventos y Máx 6 días consecutivos. Periodo de carencia: 30 días
C16: S/ 250 | D16: S/ 250 | E16: Reembolso anuncio de prensa por extravío | F16: Hasta | G16: por evento, Máx 2 eventos. Periodo de carencia: 30 días | H16: S/ 250 | J16: Hasta S/ 250 por evento, Máx 2 eventos. Periodo de carencia: 30 días
C17: S/ 500 | D17: S/ 500 | E17: Sacrificio necesario y eliminación del cadaver | F17: Hasta | G17: por evento, Máx 2 eventos. Periodo de carencia: 30 días | H17: S/ 500 | J17: Hasta S/ 500 por evento, Máx 2 eventos. Periodo de carencia: 30 días
C18: S/ 35 | D18: S/ 35 | E18: Veterinario a domicilio | F18: Hasta | G18: 3 eventos, Co - pago | H18: S/ 35 | J18: =F18& " " &G18 & " " &H18 & " por evento" -> Hasta 3 eventos, Co - pago S/ 35 por evento
C19: S/ 70 | D19: S/ 70 | E19: Taxi para mascota-Acompañado del dueño | F19: Hasta | G19: 2 eventos, máximo | H19: S/ 70 | J19: =F19& " " &G19 & " " &H19 & " por evento" -> Hasta 2 eventos, máximo S/ 70 por evento
E20: Orientación médica telefónica | J20: Sin límite
B21: 6 | C21: US$ 500 | D21: S/ 1,500 | E21: Ambulancia por accidente para el asegurado | F21: Hasta | G21: máximo 3 atenciones por vigencia de la póliza | H21: US$ 500 | J21: =F21& " " &H21 & " " &G21 -> Hasta US$ 500 máximo 3 atenciones por vigencia de la póliza
E22: Orientación médica veterinaria telefónica | J22: Sin límite
B23: 8 | C23: US$ 300 | D23: S/ 900 | E23: Asesoría legal por robo dentro del inmueble | F23: Hasta | G23: máximo 3 atenciones por vigencia de la póliza | H23: US$ 300 | J23: =F23& " " &H23 & " " &G23 -> Hasta US$ 300 máximo 3 atenciones por vigencia de la póliza
E24: Asesoría legal teléfonica | J24: Sin límite
C25: S/ 20 | D25: S/ 20 | E25: Baño de mascotas | G25: 2 eventos, Co - pago | H25: S/ 20 | J25: =F25& " " &G25 & " " &H25 & " por evento" -> 2 eventos, Co - pago S/ 20 por evento
C26: US$ 200 | D26: S/ 600 | F26: Hasta el 1% del límite asegurado, mínimo | H26: US$ 200 | J26: =F26& " " &H26 -> Hasta el 1% del límite asegurado, mínimo US$ 200
C27: US$ 200 | D27: S/ 600 | F27: Hasta 10% del monto indemnizable, mínimo | H27: US$ 200 | J27: Hasta 10% del monto indemnizable, mínimo US$ 200
C28: US$ 200 | D28: S/ 600 | F28: Hasta 10% del monto indemnizable, mínimo | H28: US$ 200 | J28: Hasta 10% del monto indemnizable, mínimo US$ 200
C29: US$ 200 | D29: S/ 600 | F29: Hasta 10% del monto indemnizable, mínimo | H29: US$ 200 | J29: Hasta 10% del monto indemnizable, mínimo US$ 200
C30: US$ 200 | D30: S/ 600 | F30: Hasta 10% del monto indemnizable, mínimo | H30: US$ 200 | J30: Hasta 10% del monto indemnizable, mínimo US$ 200
C31: US$ 200 | D31: S/ 600 | F31: Hasta 10% del monto indemnizable, mínimo | H31: US$ 200 | J31: Hasta 10% del monto indemnizable, mínimo US$ 200
C32: US$ 200 | D32: S/ 600 | F32: Hasta 10% del monto indemnizable, mínimo | H32: US$ 200 | J32: Hasta 10% del monto indemnizable, mínimo US$ 200
A34: BIENES valor total
C36: US$ 5,000 | D36: S/ 15,000 | F36: Hasta | G36: , sublímite de la cobertura de Robo | H36: US$ 5,000 | J36: =F36& " " &H36 & " " &G36 -> Hasta US$ 5,000 , sublímite de la cobertura de Robo
C37: US$ 3,000 | D37: S/ 9,000 | F37: Hasta | G37: , sublímite de la cobertura de Robo | H37: US$ 3,000 | J37: Hasta US$ 3,000 , sublímite de la cobertura de Robo
C38: US$ 5,000 | D38: S/ 15,000 | F38: Hasta | G38: por evento, máximo 3 eventos por vigencia de la póliza, sublímite de la cobertura de Robo | H38: US$ 5,000 | J38: Hasta US$ 5,000 por evento, máximo 3 eventos por vigencia de la póliza, sublímite de la cobertura de Robo
B39: 1 | C39: US$ 300 | D39: S/ 900 | E39: Asistencia de emergencia en el hogar | F39: Hasta | G39: por cada servicio, máximo 3 atenciones de cada servicio de Cerrajería, Gasfitería, Electricidad, y vidriería, las 24 horas del día todos los días del año, por vigencia de la póliza. | H39: US$ 300 | J39: Hasta US$ 300 por cada servicio, máximo 3 atenciones de cada servicio de Cerrajería, Gasfitería, Electricidad, y vidriería, las 24 horas del día todos los días del año, por vigencia de la póliza.
B40: 2 | C40: US$ 500 | D40: S/ 1,500 | E40: Limpieza del inmueble asegurado a consecuencia de un siniestro | F40: Hasta | G40: máximo 3 atenciones por vigencia de la póliza | H40: US$ 500 | J40: =F40& " " &H40 & " " &G40 -> Hasta US$ 500 máximo 3 atenciones por vigencia de la póliza
B41: 3 | C41: US$ 500 | D41: S/ 1,500 | E41: Chequeo preventivo del inmueble | F41: Hasta | G41: máximo 3 atenciones por vigencia de la póliza | H41: US$ 500 | J41: =F41& " " &H41 & " " &G41 -> Hasta US$ 500 máximo 3 atenciones por vigencia de la póliza
C42: S/ 300 | D42: S/ 300 | E42: Asistencia veterinaria por accidente | F42: Hasta | G42: por evento, Máx 3 eventos. Periodo de carencia: 30 días | H42: S/ 300 | J42: =F42& " " &H42 & " " &G42 -> Hasta S/ 300 por evento, Máx 3 eventos. Periodo de carencia: 30 días
C43: S/ 250 | D43: S/ 250 | E43: Hospedaje de mascota | F43: Hasta | G43: por evento, Máx 3 eventos y Máx 6 días consecutivos. Periodo de carencia: 30 días | H43: S/ 250 | J43: =F43& " " &H43 & " " &G43 -> Hasta S/ 250 por evento, Máx 3 eventos y Máx 6 días consecutivos. Periodo de carencia: 30 días
C44: S/ 250 | D44: S/ 250 | E44: Reembolso anuncio de prensa por extravío | F44: Hasta | G44: por evento, Máx 2 eventos. Periodo de carencia: 30 días | H44: S/ 250 | J44: Hasta S/ 250 por evento, Máx 2 eventos. Periodo de carencia: 30 días
C45: S/ 500 | D45: S/ 500 | E45: Sacrificio necesario y eliminación del cadaver | F45: Hasta | G45: por evento, Máx 2 eventos. Periodo de carencia: 30 días | H45: S/ 500 | J45: Hasta S/ 500 por evento, Máx 2 eventos. Periodo de carencia: 30 días
C46: S/ 35 | D46: S/ 35 | E46: Veterinario a domicilio | F46: Hasta | G46: 3 eventos, Co - pago | H46: S/ 35 | J46: =F46& " " &G46 & " " &H46 & " por evento" -> Hasta 3 eventos, Co - pago S/ 35 por evento
C47: S/ 70 | D47: S/ 70 | E47: Taxi para mascota-Acompañado del dueño | F47: Hasta | G47: 2 eventos, máximo | H47: S/ 70 | J47: =F47& " " &G47 & " " &H47 & " por evento" -> Hasta 2 eventos, máximo S/ 70 por evento
E48: Orientación médica telefónica | J48: Sin límite
B49: 6 | C49: US$ 500 | D49: S/ 1,500 | E49: Ambulancia por accidente para el asegurado | F49: Hasta | G49: máximo 3 atenciones por vigencia de la póliza | H49: US$ 500 | J49: =F49& " " &H49 & " " &G49 -> Hasta US$ 500 máximo 3 atenciones por vigencia de la póliza
E50: Orientación médica veterinaria telefónica | J50: Sin límite
B51: 8 | C51: US$ 300 | D51: S/ 900 | E51: Asesoría legal por robo dentro del inmueble | F51: Hasta | G51: máximo 3 atenciones por vigencia de la póliza | H51: US$ 300 | J51: =F51& " " &H51 & " " &G51 -> Hasta US$ 300 máximo 3 atenciones por vigencia de la póliza
E52: Asesoría legal teléfonica | J52: Sin límite
C53: S/ 20 | D53: S/ 20 | E53: Baño de mascotas | G53: 2 eventos, Co - pago | H53: S/ 20 | J53: =F53& " " &G53 & " " &H53 & " por evento" -> 2 eventos, Co - pago S/ 20 por evento
C54: US$ 200 | D54: S/ 600 | F54: Hasta 10% del monto indemnizable, mínimo | H54: US$ 200 | J54: =F54& " " &H54 -> Hasta 10% del monto indemnizable, mínimo US$ 200
C55: US$ 200 | D55: S/ 600 | F55: Hasta 10% del monto indemnizable, mínimo | H55: US$ 200 | J55: Hasta 10% del monto indemnizable, mínimo US$ 200
C56: US$ 200 | D56: S/ 600 | F56: Hasta 10% del monto indemnizable, mínimo | H56: US$ 200 | J56: Hasta 10% del monto indemnizable, mínimo US$ 200
C57: US$ 200 | D57: S/ 600 | F57: Hasta el 1% del límite asegurado, mínimo | H57: US$ 200 | J57: Hasta el 1% del límite asegurado, mínimo US$ 200
C58: US$ 200 | D58: S/ 600 | F58: Hasta 10% del monto indemnizable, mínimo | H58: US$ 200 | J58: Hasta 10% del monto indemnizable, mínimo US$ 200
C59: US$ 200 | D59: S/ 600 | F59: Hasta 10% del monto indemnizable, mínimo | H59: US$ 200 | J59: Hasta 10% del monto indemnizable, mínimo US$ 200
C60: US$ 200 | D60: S/ 600 | F60: Hasta 10% del monto indemnizable, mínimo | H60: US$ 200 | J60: Hasta 10% del monto indemnizable, mínimo US$ 200
A62: INMUEBLE Y BIENES valor total
C64: US$ 200,000 | D64: S/ 600,000 | F64: máximo | H64: US$ 200,000 | I64: F17 | J64: =F64& " " &H64 -> máximo US$ 200,000
C65: US$ 3,000 | D65: S/ 9,000 | H65: US$ 3,000 | I65: F18 | J65: =H65 -> US$ 3,000
C66: US$ 5,000 | D66: S/ 15,000 | F66: 20% de la suma asegurada de inmueble, máximo | G66: , suma asegurada que forma parte de la cobertura principal | H66: US$ 5,000 | I66: F20 | J66: =F66& " " &H66 & " " &G66 -> 20% de la suma asegurada de inmueble, máximo US$ 5,000 , suma asegurada que forma parte de la cobertura principal
C67: US$ 5,000 | D67: S/ 15,000 | F67: , sublímite de la cobertura de Robo | H67: US$ 5,000 | I67: G22 | J67: =H67& " " & F67 -> US$ 5,000 , sublímite de la cobertura de Robo
C68: US$ 3,000 | D68: S/ 9,000 | F68: , sublímite de la cobertura de Robo | H68: US$ 3,000 | I68: G23 | J68: US$ 3,000 , sublímite de la cobertura de Robo
C69: US$ 5,000 | D69: S/ 15,000 | F69: por evento, máximo 3 eventos por vigencia de la póliza, sublímite de la cobertura de Robo | H69: US$ 5,000 | I69: G24 | J69: US$ 5,000 por evento, máximo 3 eventos por vigencia de la póliza, sublímite de la cobertura de Robo
C70: US$ 5,000 | D70: S/ 15,000 | F70: por evento, máximo 3 eventos por vigencia de la póliza | H70: US$ 5,000 | I70: F25 | J70: US$ 5,000 por evento, máximo 3 eventos por vigencia de la póliza
C71: US$ 2,000 | D71: S/ 6,000 | F71: mensuales, máximo 6 meses por vigencia de la póliza, suma asegurada que forma parte de la cobertura principal | H71: US$ 2,000 | I71: F26 | J71: US$ 2,000 mensuales, máximo 6 meses por vigencia de la póliza, suma asegurada que forma parte de la cobertura principal
C72: US$ 2,000 | D72: S/ 6,000 | F72: mensuales, máximo 6 meses por vigencia de la póliza, suma asegurada que forma parte de la cobertura principal | H72: US$ 2,000 | I72: F27 | J72: US$ 2,000 mensuales, máximo 6 meses por vigencia de la póliza, suma asegurada que forma parte de la cobertura principal
B73: 1 | C73: US$ 300 | D73: S/ 900 | E73: Asistencia de emergencia en el hogar | F73: Hasta | G73: por cada servicio, máximo 3 atenciones de cada servicio de Cerrajería, Gasfitería, Electricidad, y vidriería, las 24 horas del día todos los días del año, por vigencia de la póliza. | H73: US$ 300 | I73: F30 | J73: =F73& " " &H73 & " " &G73 -> Hasta US$ 300 por cada servicio, máximo 3 atenciones de cada servicio de Cerrajería, Gasfitería, Electricidad, y vidriería, las 24 horas del día todos los días del año, por vigencia de la póliza.
B74: 2 | C74: US$ 500 | D74: S/ 1,500 | E74: Limpieza del inmueble asegurado a consecuencia de un siniestro | F74: Hasta | G74: máximo 3 atenciones por vigencia de la póliza | H74: US$ 500 | I74: F31 | J74: =F74& " " &H74 & " " &G74 -> Hasta US$ 500 máximo 3 atenciones por vigencia de la póliza
B75: 3 | C75: US$ 500 | D75: S/ 1,500 | E75: Chequeo preventivo del inmueble | F75: Hasta | G75: máximo 3 atenciones por vigencia de la póliza | H75: US$ 500 | I75: F32 | J75: =F75& " " &H75 & " " &G75 -> Hasta US$ 500 máximo 3 atenciones por vigencia de la póliza
C76: S/ 300 | D76: S/ 300 | E76: Asistencia veterinaria por accidente | F76: Hasta | G76: por evento, Máx 3 eventos. Periodo de carencia: 30 días | H76: S/ 300 | I76: F33 | J76: =F76& " " &H76 & " " &G76 -> Hasta S/ 300 por evento, Máx 3 eventos. Periodo de carencia: 30 días
C77: S/ 250 | D77: S/ 250 | E77: Hospedaje de mascota | F77: Hasta | G77: por evento, Máx 3 eventos y Máx 6 días consecutivos. Periodo de carencia: 30 días | H77: S/ 250 | J77: =F77& " " &H77 & " " &G77 -> Hasta S/ 250 por evento, Máx 3 eventos y Máx 6 días consecutivos. Periodo de carencia: 30 días
C78: S/ 250 | D78: S/ 250 | E78: Reembolso anuncio de prensa por extravío | F78: Hasta | G78: por evento, Máx 2 eventos. Periodo de carencia: 30 días | H78: S/ 250 | J78: Hasta S/ 250 por evento, Máx 2 eventos. Periodo de carencia: 30 días
C79: S/ 500 | D79: S/ 500 | E79: Sacrificio necesario y eliminación del cadaver | F79: Hasta | G79: por evento, Máx 2 eventos. Periodo de carencia: 30 días | H79: S/ 500 | J79: Hasta S/ 500 por evento, Máx 2 eventos. Periodo de carencia: 30 días
C80: S/ 35 | D80: S/ 35 | E80: Veterinario a domicilio | F80: Hasta | G80: 3 eventos, Co - pago | H80: S/ 35 | J80: =F80& " " &G80 & " " &H80 & " por evento" -> Hasta 3 eventos, Co - pago S/ 35 por evento
C81: S/ 70 | D81: S/ 70 | E81: Taxi para mascota-Acompañado del dueño | F81: Hasta | G81: 2 eventos, máximo | H81: S/ 70 | J81: =F81& " " &G81 & " " &H81 & " por evento" -> Hasta 2 eventos, máximo S/ 70 por evento
B82: 5 | E82: Orientación médica telefónica | I82: F34 | J82: Sin límite
B83: 6 | C83: US$ 500 | D83: S/ 1,500 | E83: Ambulancia por accidente para el asegurado | F83: Hasta | G83: máximo 3 atenciones por vigencia de la póliza | H83: US$ 500 | I83: F35 | J83: =F83& " " &H83 & " " &G83 -> Hasta US$ 500 máximo 3 atenciones por vigencia de la póliza
B84: 7 | E84: Orientación médica veterinaria telefónica | I84: F36 | J84: Sin límite
B85: 8 | C85: US$ 300 | D85: S/ 900 | E85: Asesoría legal por robo dentro del inmueble | F85: Hasta | G85: máximo 3 atenciones por vigencia de la póliza | H85: US$ 300 | I85: F37 | J85: =F85& " " &H85 & " " &G85 -> Hasta US$ 300 máximo 3 atenciones por vigencia de la póliza
B86: 9 | E86: Asesoría legal teléfonica | I86: F38 | J86: Sin límite
B87: 10 | C87: S/ 20 | D87: S/ 20 | E87: Baño de mascotas | G87: 2 eventos, Co - pago | H87: S/ 20 | I87: F39 | J87: =F87& " " &G87 & " " &H87 & " por evento" -> 2 eventos, Co - pago S/ 20 por evento
C88: US$ 200 | D88: S/ 600 | F88: Hasta el 1% del límite asegurado, mínimo | H88: US$ 200 | I88: F41 | J88: Hasta el 1% del límite asegurado, mínimo US$ 200
C89: US$ 200 | D89: S/ 600 | F89: Hasta 10% del monto indemnizable, mínimo | H89: US$ 200 | I89: F42 | J89: Hasta 10% del monto indemnizable, mínimo US$ 200
C90: US$ 200 | D90: S/ 600 | F90: Hasta 10% del monto indemnizable, mínimo | H90: US$ 200 | I90: F43 | J90: Hasta 10% del monto indemnizable, mínimo US$ 200
C91: US$ 200 | D91: S/ 600 | F91: Hasta 10% del monto indemnizable, mínimo | H91: US$ 200 | I91: F44 | J91: Hasta 10% del monto indemnizable, mínimo US$ 200
C92: US$ 200 | D92: S/ 600 | F92: Hasta 10% del monto indemnizable, mínimo | H92: US$ 200 | I92: F45 | J92: Hasta 10% del monto indemnizable, mínimo US$ 200
C93: US$ 200 | D93: S/ 600 | F93: Hasta 10% del monto indemnizable, mínimo | H93: US$ 200 | I93: F46 | J93: Hasta 10% del monto indemnizable, mínimo US$ 200
C94: US$ 200 | D94: S/ 600 | F94: Hasta 10% del monto indemnizable, mínimo | H94: US$ 200 | I94: F47 | J94: Hasta 10% del monto indemnizable, mínimo US$ 200
C95: US$ 200 | D95: S/ 600 | F95: Hasta 10% del monto indemnizable, mínimo | H95: US$ 200 | I95: F48 | J95: Hasta 10% del monto indemnizable, mínimo US$ 200
C96: US$ 200 | D96: S/ 600 | F96: Hasta 10% del monto indemnizable, mínimo | H96: US$ 200 | I96: F49 | J96: Hasta 10% del monto indemnizable, mínimo US$ 200
C97: US$ 200 | D97: S/ 600 | F97: Hasta 10% del monto indemnizable, mínimo | H97: US$ 200 | I97: F50 | J97: Hasta 10% del monto indemnizable, mínimo US$ 200

Sheet INMUEBLE (hidden)
E1: Ir a Panel
A3: Tipo de bien: Inmueble | B3: tasa de riesgo | D3: Suma asegurada Inmueble | E3: =+'VALOR TOTAL INMUEBLE'!$E$3 -> 0 | W3: Tipo de bien: Inmueble | X3: tasa de riesgo | Y3: tasa comercial | Z3: tasa de riesgo | AA3: tasa comercial | AD3: COMPLETA 1 - Inmueble
B4: Corredores | X4: Corredores | Y4: Corredores | Z4: NNDD | AA4: NNDD
A5: Gastos generales | B5: =tasas!$B$6 -> 0.0306729 | W5: Gastos generales | X5: 0.0306729 | Y5: 0.03067290513 | Z5: 0.15 | AA5: 0.15
A6: Gastos de comercialización | B6: =tasas!$B$7 -> 0 | O6: PRIMA NETA | P6: =+P7/1.03 -> 50 | W6: Gastos de comercialización | X6: 0 | Y6: 0 | Z6: 0.05 | AA6: 0.05
A7: Comisión local | B7: =tasas!$B$8 -> 0.2 | O7: Prima Comercial | P7: =+IF(Cotizador!H37="X",INMUEBLE!L24,INMUEBLE!K24) -> 51.5 | W7: Comisión local | X7: 0.2 | Y7: 0.2 | Z7: 0 | AA7: 0
A8: Utilidad antes de Imp | B8: =tasas!$B$9 -> 0 | O8: IGV | P8: =+P7*0.18 -> 9.27 | W8: Utilidad antes de Imp | X8: 0 | Y8: 0 | Z8: 0.0306568 | AA8: 0.03065679971
A9: Tasa comercial %o | B9: =+B10/(1-(B5+B6+B7+B8)) -> 2.200058337 | D9: Tasa Comercial | E9: Prima Neta | F9: Prima | G9: Comision | I9: Operativas | J9: Prima comercial con ajuste | K9: Prima comercial con ajuste de prima mínima | O9: Prima Total | P9: =+P7+P8 -> 60.77 | W9: Tasa comercial %o | X9: =+X10/(1-(X5+X6+X7+X8)) -> 0.7294643592 | Y9: =+SUM(Y11:Y19) ->  | Z9: =+Z10/(1-(Z5+Z6+Z7+Z8)) -> 0.7294490937 | AA9: =+SUM(AA11:AA19) ->  | AD9: Tasa Comercial | AE9: Prima Neta | AF9: Prima | AG9: Comision
A10: Tasa de Riesgo %o | B10: =+SUM(B11:B19) -> 1.6925645 | K10: Dólares | L10: Soles | O10: Comisión Total | P10: =+ROUND(P6*0.2,2) -> 10 | W10: Tasa de Riesgo %o | X10: =+SUM(X11:X19) -> 0.5611967 | Z10: =+SUM(Z11:Z19) -> 0.5611967
A11: Incendio y/o rayo, explosión. Daños por agua, daños por humo, impacto de vehículos y/o aeronaves | B11: =tasas!$B$12 -> 0.5661967 | D11: =B11/(1-(B5+B6+B7+B8)) -> 0.7359635453 | E11: =ROUND(E3*D11/1000,2) -> 0 | F11: =ROUND(E11*(1-B7),2) -> 0 | G11: =ROUND(E11*B7,2) -> 0 | I11: =+ROUND(E11*1.03,2) -> 0 | J11: =+IF(0<=F26>=0,F26+I11,0) -> 0 | K11: =+IF(J24<F251,(J11+J251),J11) -> 51.5 | L11: =+IF(J24<F252,(J11+J252),J11) -> 154.5 | W11: Incendio y/o rayo, explosión. Daños por agua, daños por humo, impacto de vehículos y/o aeronaves | X11: 0.5611967 | Y11: =+X11/(1-(#REF!+#REF!+#REF!+#REF!)) ->  | Z11: 0.5611967 | AA11: =+Z11/(1-(#REF!+#REF!+#REF!+#REF!)) ->  | AD11: =X11/(1-(X5+X6+X7+X8)) -> 0.7294643592 | AE11: =ROUND(AE3*AD11/1000,2) -> 0 | AF11: =ROUND(AE11*(1-X7),2) -> 0 | AG11: =ROUND(AE11*X7,2) -> 0
A12: Terremoto, temblor, maremoto, Inundaciones y riesgos de la naturaleza | B12: =tasas!$B$13 -> 1.0278754 | D12: =B12/(1-(B5+B6+B7+B8)) -> 1.336070704 | E12: =ROUND(E3*D12/1000,2) -> 0 | F12: =ROUND(E12*(1-B7),2) -> 0 | G12: =ROUND(E12*B7,2) -> 0 | I12: 0 | J12: =+I12 -> 0 | K12: =+J12 -> 0 | L12: =+K12 -> 0
A13: Responsabilidad Civil frente a terceros | B13: =tasas!$B$14 -> 0.006267 | D13: =B13/(1-(B5+B6+B7+B8)) -> 0.008146079866 | E13: =ROUND(E3*D13/1000,2) -> 0 | F13: =ROUND(E13*(1-B7),2) -> 0 | G13: =ROUND(E13*B7,2) -> 0 | I13: 0 | J13: =+I13 -> 0 | K13: =+J13 -> 0 | L13: 0
A14: Rotura accidental de vidrio y/o cristales | B14: =tasas!$B$15 -> 0.0172741 | D14: =B14/(1-(B5+B6+B7+B8)) -> 0.02245351815 | E14: =ROUND(E3*D14/1000,2) -> 0 | F14: =ROUND(E14*(1-B7),2) -> 0 | G14: =ROUND(E14*B7,2) -> 0 | I14: 0 | J14: 0 | K14: 0 | L14: 0
A15: Robo o intento de robo de instalaciones fijas | B15: =tasas!$B$16 -> 0.0003616 | D15: =B15/(1-(B5+B6+B7+B8)) -> 0.0004700211393 | E15: =ROUND(E3*D15/1000,2) -> 0 | F15: =ROUND(E15*(1-B7),2) -> 0 | G15: =ROUND(E15*B7,2) -> 0 | I15: 0 | J15: 0 | K15: 0 | L15: 0
A16: Reembolso de gastos médicos por accidentes de trabajadores del hogar | B16: =tasas!$B$17 -> 0.0029409 | D16: =B16/(1-(B5+B6+B7+B8)) -> 0.003822691284 | E16: =ROUND(E3*D16/1000,2) -> 0 | F16: =ROUND(E16*(1-B7),2) -> 0 | G16: =ROUND(E16*B7,2) -> 0 | I16: 0 | J16: 0 | K16: 0 | L16: 0
A17: Gasto de arrendamiento de vivienda temporal | B17: =tasas!$B$18 -> 0.0045743 | D17: =B17/(1-(B5+B6+B7+B8)) -> 0.005945845402 | E17: =ROUND(E3*D17/1000,2) -> 0 | F17: =ROUND(E17*(1-B7),2) -> 0 | G17: =ROUND(E17*B7,2) -> 0 | I17: 0 | J17: 0 | K17: 0 | L17: 0
A18: Alquiler no percibido por inmueble inhabitable temporalmente | B18: =tasas!$B$19 -> 0.0045743 | D18: =B18/(1-(B5+B6+B7+B8)) -> 0.005945845402 | E18: =ROUND(E3*D18/1000,2) -> 0 | F18: =ROUND(E18*(1-B7),2) -> 0 | G18: =ROUND(E18*B7,2) -> 0 | I18: 0 | J18: 0 | K18: 0 | L18: 0
A19: Asistencias | B19: =tasas!$B$20 -> 0.0625002 | E19: =E21*B20 -> 0 | F19: =F21*B20 -> 0 | G19: =G21*B20 -> 0 | I19: 0 | J19: =+I19 -> 0 | K19: 0 | L19: 0
A20: Cantidad de asistencias | B20: =tasas!$B$21 -> 6
A21: Tasa por asistencia | B21: =B19/B20 -> 0.0104167 | D21: =B21/(1-(B5+B6+B7+B8)) -> 0.01354001438 | E21: =ROUND(E3*D21/1000,2) -> 0 | F21: =ROUND(E21*(1-B7),2) -> 0 | G21: =ROUND(E21*B7,2) -> 0
D23: =B10/(1-(B5+B6+B7+B8)) -> 2.200058337 | E23: =ROUND(E3*D23/1000,2) -> 0 | F23: =ROUND(E23*(1-B7),2) -> 0 | G23: =ROUND(E23*B7,2) -> 0
E24: Suma de Cob | F24: =SUM(F11:F19) -> 0 | G24: =SUM(G11:G19) -> 0 | I24: =SUM(I11:I19) -> 0 | J24: =SUM(J11:J19) -> 0 | K24: =SUM(K11:K19) -> 51.5 | L24: =SUM(L11:L19) -> 154.5
D25: =+((D23*E3)/1000)+F26 -> 0 | E25: Esperado | F25: =E23*(1-B7) -> 0 | G25: =E23*B7 -> 0
D26: =+D25*1.03*1.18 -> 0 | E26: Faltante | F26: =ROUND(F25-F24,2) -> 0 | G26: =G25-G24 -> 0
A29: Tipo de bien: Inmueble | B29: tasa de riesgo | W29: Tipo de bien: Inmueble | X29: tasa de riesgo | Y29: tasa comercial | Z29: tasa de riesgo | AA29: tasa comercial | AD29: COMPLETA 2 - Inmueble
B30: Corredores | X30: Corredores | Y30: Corredores | Z30: NNDD | AA30: NNDD
A31: Gastos generales | B31: 0.0306729 | W31: Gastos generales | X31: 0.0306729 | Y31: 0.03067290513 | Z31: 0.15 | AA31: 0.15
A32: Gastos de comercialización | B32: 0 | W32: Gastos de comercialización | X32: 0 | Y32: 0 | Z32: 0.05 | AA32: 0.05
A33: Comisión local | B33: 0.2 | W33: Comisión local | X33: 0.2 | Y33: 0.2 | Z33: 0 | AA33: 0
A34: Utilidad antes de Imp | B34: 0 | W34: Utilidad antes de Imp | X34: 0 | Y34: 0 | Z34: 0.0306568 | AA34: 0.03065679971
A35: Tasa comercial %o | B35: =+B36/(1-(B31+B32+B33+B34)) -> 2.200058337 | E35: Prima Neta | F35: Prima | G35: Comisión | W35: Tasa comercial %o | X35: =+X36/(1-(X31+X32+X33+X34)) -> 2.200058337 | Y35: =+SUM(Y37:Y47) ->  | Z35: =+Z36/(1-(Z31+Z32+Z33+Z34)) -> 2.200012036 | AA35: =+SUM(AA37:AA47) ->  | AD35: Tasa Comercial | AE35: Prima Neta | AF35: Prima | AG35: Comisión
A36: Tasa de Riesgo %o | B36: =+SUM(B37:B47) -> 1.6925645 | W36: Tasa de Riesgo %o | X36: =+SUM(X37:X47) -> 1.6925645 | Z36: =+SUM(Z37:Z47) -> 1.6925643
A37: Incendio y/o rayo, explosión. Daños por agua, daños por humo, impacto de vehículos y/o aeronaves | B37: 0.5611967 | E37: =ROUND(E29*D37/1000,2) -> 0 | F37: =ROUND(E37*(1-B33),2) -> 0 | G37: =ROUND(E37*B33,2) -> 0 | W37: Incendio y/o rayo, explosión. Daños por agua, daños por humo, impacto de vehículos y/o aeronaves | X37: 0.5611967 | Y37: =+X37/(1-(#REF!+#REF!+#REF!+#REF!)) ->  | Z37: 0.5611967 | AA37: =+Z37/(1-(#REF!+#REF!+#REF!+#REF!)) ->  | AD37: =X37/(1-(X31+X32+X33+X34)) -> 0.7294643592 | AE37: =ROUND(AE29*AD37/1000,2) -> 0 | AF37: =ROUND(AE37*(1-X33),2) -> 0 | AG37: =ROUND(AE37*X33,2) -> 0
A38: Terremoto, temblor | B38: 0.9250879 | E38: =ROUND(E29*D38/1000,2) -> 0 | F38: =ROUND(E38*(1-B33),2) -> 0 | G38: =ROUND(E38*B33,2) -> 0 | W38: Terremoto, temblor | X38: 0.9250879 | Y38: =+X38/(1-(#REF!+#REF!+#REF!+#REF!)) ->  | Z38: 0.9250879 | AA38: =+Z38/(1-(#REF!+#REF!+#REF!+#REF!)) ->  | AD38: =X38/(1-(X31+X32+X33+X34)) -> 1.202463685 | AE38: =ROUND(AE29*AD38/1000,2) -> 0 | AF38: =ROUND(AE38*(1-X33),2) -> 0 | AG38: =ROUND(AE38*X33,2) -> 0
A39: Riesgos de la naturaleza | B39: 0.1027875 | E39: =ROUND(E29*D39/1000,2) -> 0 | F39: =ROUND(E39*(1-B33),2) -> 0 | G39: =ROUND(E39*B33,2) -> 0 | W39: Riesgos de la naturaleza | X39: 0.1027875 | Y39: =+X39/(1-(#REF!+#REF!+#REF!+#REF!)) ->  | Z39: 0.1027875 | AA39: =+Z39/(1-(#REF!+#REF!+#REF!+#REF!)) ->  | AD39: =X39/(1-(X31+X32+X33+X34)) -> 0.1336070184 | AE39: =ROUND(AE29*AD39/1000,2) -> 0 | AF39: =ROUND(AE39*(1-X33),2) -> 0 | AG39: =ROUND(AE39*X33,2) -> 0
A40: Riesgos políticos y sociales | B40: 0.005 | E40: =ROUND(E29*D40/1000,2) -> 0 | F40: =ROUND(E40*(1-B33),2) -> 0 | G40: =ROUND(E40*B33,2) -> 0 | W40: Riesgos políticos y sociales | X40: 0.005 | Y40: =+X40/(1-(#REF!+#REF!+#REF!+#REF!)) ->  | Z40: 0.005 | AA40: =+Z40/(1-(#REF!+#REF!+#REF!+#REF!)) ->  | AD40: =X40/(1-(X31+X32+X33+X34)) -> 0.006499186107 | AE40: =ROUND(AE29*AD40/1000,2) -> 0 | AF40: =ROUND(AE40*(1-X33),2) -> 0 | AG40: =ROUND(AE40*X33,2) -> 0
A41: Responsabilidad Civil frente a terceros | B41: 0.006267 | E41: =ROUND(E29*D41/1000,2) -> 0 | F41: =ROUND(E41*(1-B33),2) -> 0 | G41: =ROUND(E41*B33,2) -> 0 | W41: Responsabilidad Civil frente a terceros | X41: 0.006267 | Y41: =+X41/(1-(#REF!+#REF!+#REF!+#REF!)) ->  | Z41: 0.006267 | AA41: =+Z41/(1-(#REF!+#REF!+#REF!+#REF!)) ->  | AD41: =X41/(1-(X31+X32+X33+X34)) -> 0.008146079866 | AE41: =ROUND(AE29*AD41/1000,2) -> 0 | AF41: =ROUND(AE41*(1-X33),2) -> 0 | AG41: =ROUND(AE41*X33,2) -> 0
A42: Rotura accidental de vidrio y/o cristales | B42: 0.0172741 | E42: =ROUND(E29*D42/1000,2) -> 0 | F42: =ROUND(E42*(1-B33),2) -> 0 | G42: =ROUND(E42*B33,2) -> 0 | W42: Rotura accidental de vidrio y/o cristales | X42: 0.0172741 | Y42: =+X42/(1-(#REF!+#REF!+#REF!+#REF!)) ->  | Z42: 0.0172741 | AA42: =+Z42/(1-(#REF!+#REF!+#REF!+#REF!)) ->  | AD42: =X42/(1-(X31+X32+X33+X34)) -> 0.02245351815 | AE42: =ROUND(AE29*AD42/1000,2) -> 0 | AF42: =ROUND(AE42*(1-X33),2) -> 0 | AG42: =ROUND(AE42*X33,2) -> 0
A43: Robo o intento de robo de instalaciones fijas | B43: 0.0003616 | E43: =ROUND(E29*D43/1000,2) -> 0 | F43: =ROUND(E43*(1-B33),2) -> 0 | G43: =ROUND(E43*B33,2) -> 0 | W43: Robo o intento de robo de instalaciones fijas | X43: 0.0003616 | Y43: =+X43/(1-(#REF!+#REF!+#REF!+#REF!)) ->  | Z43: 0.0003616 | AA43: =+Z43/(1-(#REF!+#REF!+#REF!+#REF!)) ->  | AD43: =X43/(1-(X31+X32+X33+X34)) -> 0.0004700211393 | AE43: =ROUND(AE29*AD43/1000,2) -> 0 | AF43: =ROUND(AE43*(1-X33),2) -> 0 | AG43: =ROUND(AE43*X33,2) -> 0
A44: Reembolso de gastos médicos por accidentes de trabajadores del hogar | B44: 0.0029409 | E44: =ROUND(E29*D44/1000,2) -> 0 | F44: =ROUND(E44*(1-B33),2) -> 0 | G44: =ROUND(E44*B33,2) -> 0 | W44: Reembolso de gastos médicos por accidentes de trabajadores del hogar | X44: 0.0029409 | Y44: =+X44/(1-(#REF!+#REF!+#REF!+#REF!)) ->  | Z44: 0.0029409 | AA44: =+Z44/(1-(#REF!+#REF!+#REF!+#REF!)) ->  | AD44: =X44/(1-(X31+X32+X33+X34)) -> 0.003822691284 | AE44: =ROUND(AE29*AD44/1000,2) -> 0 | AF44: =ROUND(AE44*(1-X33),2) -> 0 | AG44: =ROUND(AE44*X33,2) -> 0
A45: Gasto de arrendamiento de vivienda temporal | B45: 0.0045743 | E45: =ROUND(E29*D45/1000,2) -> 0 | F45: =ROUND(E45*(1-B33),2) -> 0 | G45: =ROUND(E45*B33,2) -> 0 | W45: Gasto de arrendamiento de vivienda temporal | X45: 0.0045743 | Y45: =+X45/(1-(#REF!+#REF!+#REF!+#REF!)) ->  | Z45: 0.0045743 | AA45: =+Z45/(1-(#REF!+#REF!+#REF!+#REF!)) ->  | AD45: =X45/(1-(X31+X32+X33+X34)) -> 0.005945845402 | AE45: =ROUND(AE29*AD45/1000,2) -> 0 | AF45: =ROUND(AE45*(1-X33),2) -> 0 | AG45: =ROUND(AE45*X33,2) -> 0
A46: Alquiler no percibido por inmueble inhabitable temporalmente | B46: 0.0045743 | E46: =ROUND(E29*D46/1000,2) -> 0 | F46: =ROUND(E46*(1-B33),2) -> 0 | G46: =ROUND(E46*B33,2) -> 0 | W46: Alquiler no percibido por inmueble inhabitable temporalmente | X46: 0.0045743 | Y46: =+X46/(1-(#REF!+#REF!+#REF!+#REF!)) ->  | Z46: 0.0045743 | AA46: =+Z46/(1-(#REF!+#REF!+#REF!+#REF!)) ->  | AD46: =X46/(1-(X31+X32+X33+X34)) -> 0.005945845402 | AE46: =ROUND(AE29*AD46/1000,2) -> 0 | AF46: =ROUND(AE46*(1-X33),2) -> 0 | AG46: =ROUND(AE46*X33,2) -> 0
A47: Asistencias | B47: 0.0625002 | E47: =E49*B48 -> 0 | F47: =F49*B48 -> 0 | G47: =G49*B48 -> 0 | W47: Asistencias | X47: 0.0625002 | Y47: =+X47/(1-(#REF!+#REF!+#REF!+#REF!)) ->  | Z47: 0.0625 | AA47: =+Z47/(1-(#REF!+#REF!+#REF!+#REF!)) ->  | AE47: =AE49*X48 -> 0 | AF47: =AF49*X48 -> 0 | AG47: =AG49*X48 -> 0
A48: Cantidad de asistencias | B48: 6 | W48: Cantidad de asistencias | X48: 6 | Y48: 6 | Z48: 6 | AA48: 6
A49: Tasa por asistencia | B49: =B47/B48 -> 0.0104167 | E49: =ROUND(E29*D49/1000,2) -> 0 | F49: =ROUND(E49*(1-B33),2) -> 0 | G49: =ROUND(E49*B33,2) -> 0 | W49: Tasa por asistencia | X49: =X47/X48 -> 0.0104167 | Y49: =+ROUND(Y47/Y48,7) ->  | Z49: 0.0104167 | AA49: 0.0104167 | AD49: =X49/(1-(X31+X32+X33+X34)) -> 0.01354001438 | AE49: =ROUND(AE29*AD49/1000,2) -> 0 | AF49: =ROUND(AE49*(1-X33),2) -> 0 | AG49: =ROUND(AE49*X33,2) -> 0
E51: =ROUND(E29*D51/1000,2) -> 0 | F51: =ROUND(E51*(1-B33),2) -> 0 | G51: =ROUND(E51*B33,2) -> 0 | AD51: =X36/(1-(X31+X32+X33+X34)) -> 2.200058337 | AE51: =ROUND(AE29*AD51/1000,2) -> 0 | AF51: =ROUND(AE51*(1-X33),2) -> 0 | AG51: =ROUND(AE51*X33,2) -> 0
E52: Suma de Cob | F52: =SUM(F37:F47) -> 0 | G52: =SUM(G37:G47) -> 0 | AE52: Suma de Cob | AF52: =SUM(AF37:AF47) -> 0 | AG52: =SUM(AG37:AG47) -> 0
E53: Esperado | F53: =E51*(1-B33) -> 0 | G53: =E51*B33 -> 0 | AE53: Esperado | AF53: =AE51*(1-X33) -> 0 | AG53: =AE51*X33 -> 0
E54: Faltante | F54: =F53-F52 -> 0 | G54: =G53-G52 -> 0 | AE54: Faltante | AF54: =AF53-AF52 -> 0 | AG54: =AG53-AG52 -> 0
A58: Tipo de bien: Bienes | B58: tasa de riesgo | W58: Tipo de bien: Bienes | X58: tasa de riesgo | Y58: tasa comercial | Z58: tasa de riesgo | AA58: tasa comercial | AD58: COMPLETA 2 - Contenido
B59: Corredores | X59: Corredores | Y59: Corredores | Z59: NNDD | AA59: NNDD
A60: Gastos generales | B60: 0.1142203 | W60: Gastos generales | X60: 0.1142203 | Y60: 0.03067290513 | Z60: 0.1396364 | AA60: 0.15
A61: Gastos de comercialización | B61: 0 | W61: Gastos de comercialización | X61: 0 | Y61: 0 | Z61: 0.05 | AA61: 0.05
A62: Comisión local | B62: 0.2 | W62: Comisión local | X62: 0.2 | Y62: 0.2 | Z62: 0 | AA62: 0
A63: Utilidad antes de Imp | B63: 0 | W63: Utilidad antes de Imp | X63: 0 | Y63: 0 | Z63: 0 | AA63: 0.03065679971
A64: Tasa comercial %o | B64: =+B65/(1-(B60+B61+B62+B63)) -> 2.200087579 | E64: Prima Neta | F64: Prima | G64: Comisión | W64: Tasa comercial %o | X64: =+X65/(1-(X60+X61+X62+X63)) -> 2.200087579 | Y64: =+SUM(Y66:Y70) ->  | Z64: =+Z65/(1-(Z60+Z61+Z62+Z63)) -> 2.200315142 | AA64: =+SUM(AA66:AA70) ->  | AD64: Tasa Comercial | AE64: Prima Neta | AF64: Prima | AG64: Comisión
A65: Tasa de Riesgo %o | B65: =+SUM(B66:B70) -> 1.5087754 | W65: Tasa de Riesgo %o | X65: =+SUM(X66:X70) -> 1.5087754 | Z65: =+SUM(Z66:Z70) -> 1.7830553
A66: Incendio y/o rayo, explosión. Daños por agua, daños por humo, impacto de vehículos y/o aeronaves | B66: 0.4133998 | E66: =ROUND(E58*D66/1000, 2) -> 0 | F66: =ROUND(E66*(1-B62),2) -> 0 | G66: =ROUND(E66*B62,2) -> 0 | W66: Incendio y/o rayo, explosión. Daños por agua, daños por humo, impacto de vehículos y/o aeronaves | X66: 0.4133998 | Y66: =+X66/(1-(#REF!+#REF!+#REF!+#REF!)) ->  | Z66: 0.4133998 | AA66: =+Z66/(1-(#REF!+#REF!+#REF!+#REF!)) ->  | AD66: =X66/(1-(X60+X61+X62+X63)) -> 0.6028172021 | AE66: =ROUND(AE58*AD66/1000, 2) -> 0 | AF66: =ROUND(AE66*(1-X62),2) -> 0 | AG66: =ROUND(AE66*X62,2) -> 0
A67: Terremoto, temblor | B67: 0.9250879 | E67: =ROUND(E58*D67/1000,2) -> 0 | F67: =ROUND(E67*(1-B62),2) -> 0 | G67: =ROUND(E67*B62,2) -> 0 | W67: Terremoto, temblor | X67: 0.9250879 | Y67: =+X67/(1-(#REF!+#REF!+#REF!+#REF!)) ->  | Z67: 0.9250879 | AA67: =+Z67/(1-(#REF!+#REF!+#REF!+#REF!)) ->  | AD67: =X67/(1-(X60+X61+X62+X63)) -> 1.348957836 | AE67: =ROUND(AE58*AD67/1000,2) -> 0 | AF67: =ROUND(AE67*(1-X62),2) -> 0 | AG67: =ROUND(AE67*X62,2) -> 0
A68: Riesgos de la naturaleza | B68: 0.1027875 | E68: =ROUND(E58*D68/1000,2) -> 0 | F68: =ROUND(E68*(1-B62),2) -> 0 | G68: =ROUND(E68*B62,2) -> 0 | W68: Riesgos de la naturaleza | X68: 0.1027875 | Y68: =+X68/(1-(#REF!+#REF!+#REF!+#REF!)) ->  | Z68: 0.1027875 | AA68: =+Z68/(1-(#REF!+#REF!+#REF!+#REF!)) ->  | AD68: =X68/(1-(X60+X61+X62+X63)) -> 0.1498841392 | AE68: =ROUND(AE58*AD68/1000,2) -> 0 | AF68: =ROUND(AE68*(1-X62),2) -> 0 | AG68: =ROUND(AE68*X62,2) -> 0
A69: Riesgos políticos y sociales | B69: 0.005 | E69: =ROUND(E58*D69/1000,2) -> 0 | F69: =ROUND(E69*(1-B62),2) -> 0 | G69: =ROUND(E69*B62,2) -> 0 | W69: Riesgos políticos y sociales | X69: 0.005 | Y69: =+X69/(1-(#REF!+#REF!+#REF!+#REF!)) ->  | Z69: 0.005 | AA69: =+Z69/(1-(#REF!+#REF!+#REF!+#REF!)) ->  | AD69: =X69/(1-(X60+X61+X62+X63)) -> 0.007290971138 | AE69: =ROUND(AE58*AD69/1000,2) -> 0 | AF69: =ROUND(AE69*(1-X62),2) -> 0 | AG69: =ROUND(AE69*X62,2) -> 0
A70: Asistencias | B70: 0.0625002 | E70: =E72*B71 -> 0 | F70: =F72*B71 -> 0 | G70: =G72*B71 -> 0 | W70: Asistencias | X70: 0.0625002 | Y70: =+X70/(1-(#REF!+#REF!+#REF!+#REF!)) ->  | Z70: 0.3367801 | AA70: =+Z70/(1-(#REF!+#REF!+#REF!+#REF!)) ->  | AE70: =AE72*X71 -> 0 | AF70: =AF72*X71 -> 0 | AG70: =AG72*X71 -> 0
A71: Cantidad de asistencias | B71: 6 | W71: Cantidad de asistencias | X71: 6 | Y71: 6 | Z71: 6 | AA71: 6
A72: Tasa por asistencia | B72: =B70/B71 -> 0.0104167 | E72: =ROUND(E58*D72/1000,2) -> 0 | F72: =ROUND(E72*(1-B62),2) -> 0 | G72: =ROUND(E72*B62,2) -> 0 | W72: Tasa por asistencia | X72: =X70/X71 -> 0.0104167 | Y72: =+ROUND(Y70/Y71,7) ->  | Z72: 0.0104167 | AA72: 0.0104167 | AD72: =X72/(1-(X60+X61+X62+X63)) -> 0.01518957181 | AE72: =ROUND(AE58*AD72/1000,2) -> 0 | AF72: =ROUND(AE72*(1-X62),2) -> 0 | AG72: =ROUND(AE72*X62,2) -> 0
E74: =ROUND(E58*D74/1000,2) -> 0 | F74: =ROUND(E74*(1-B62),2) -> 0 | G74: =ROUND(E74*B62,2) -> 0 | AD74: =X65/(1-(X60+X61+X62+X63)) -> 2.200087579 | AE74: =ROUND(AE58*AD74/1000,2) -> 0 | AF74: =ROUND(AE74*(1-X62),2) -> 0 | AG74: =ROUND(AE74*X62,2) -> 0
E75: Suma de Cob | F75: =SUM(F66:F70) -> 0 | G75: =SUM(G66:G70) -> 0 | AE75: Suma de Cob | AF75: =SUM(AF66:AF70) -> 0 | AG75: =SUM(AG66:AG70) -> 0
E76: Esperado | F76: =E74*(1-B62) -> 0 | G76: =E74*B62 -> 0 | AE76: Esperado | AF76: =AE74*(1-X62) -> 0 | AG76: =AE74*X62 -> 0
E77: Faltante | F77: =F76-F75 -> 0 | G77: =G76-G75 -> 0 | AE77: Faltante | AF77: =AF76-AF75 -> 0 | AG77: =AG76-AG75 -> 0
A80: Tipo de bien: Bienes con robo | B80: Corredores | W80: Tipo de bien: Bienes con robo | X80: Corredores | Y80: Corredores | Z80: NNDD | AA80: NNDD
A81: Gastos generales | B81: 0.15 | W81: Gastos generales | X81: 0.15 | Y81: 0.15 | Z81: 0.15 | AA81: 0.15
A82: Gastos de comercialización | B82: 0.05 | W82: Gastos de comercialización | X82: 0.05 | Y82: 0.05 | Z82: 0.05 | AA82: 0.05
A83: Comisión local | B83: 0.2 | W83: Comisión local | X83: 0.2 | Y83: 0.2 | Z83: 0 | AA83: 0
A84: Utilidad antes de Imp | B84: 0.0948186 | W84: Utilidad antes de Imp | X84: 0.0948186 | Y84: 0.09481861887 | Z84: 0.2947788 | AA84: 0.2947788137
A85: Tasa comercial %o | B85: =+B86/(1-(B81+B82+B83+B84)) -> 4.999900828 | E85: Prima Neta | F85: Prima | G85: Comisión | W85: Tasa comercial %o | X85: =+X86/(1-(X81+X82+X83+X84)) -> 4.999900828 | Y85: =+SUM(Y87:Y90) ->  | Z85: =+Z86/(1-(Z81+Z82+Z83+Z84)) -> 4.999506949 | AA85: =+SUM(AA87:AA90) ->  | AD85: Tasa Comercial | AE85: Prima Neta | AF85: Prima | AG85: Comisión
A86: Tasa de Riesgo %o | B86: =+SUM(B87:B90) -> 2.5258569 | W86: Tasa de Riesgo %o | X86: =+SUM(X87:X90) -> 2.5258569 | Z86: =+SUM(Z87:Z90) -> 2.5258569
A87: Robo y/o daños por intento de robo de bienes | B87: 2.4425075 | E87: =ROUND(E58*D87/1000,2) -> 0 | F87: =ROUND(E87*(1-B83),2) -> 0 | G87: =ROUND(E87*B83,2) -> 0 | W87: Robo y/o daños por intento de robo de bienes | X87: 2.4425075 | Y87: =+X87/(1-(#REF!+#REF!+#REF!+#REF!)) ->  | Z87: 2.4425075 | AA87: =+Z87/(1-(#REF!+#REF!+#REF!+#REF!)) ->  | AD87: =X87/(1-(X81+X82+X83+X84)) -> 4.834911776 | AE87: =ROUND(AE58*AD87/1000,2) -> 0 | AF87: =ROUND(AE87*(1-X83),2) -> 0 | AG87: =ROUND(AE87*X83,2) -> 0
A88: Robo y/o daños por intento de robo de bienes especiales: joyas, platería, relojes, obras de arte, cámaras fotográficas o de video, laptops y bicicletas dentro de la vivienda o que estén siendo portados fuera de la vivienda | B88: 0.062312 | E88: =ROUND(E58*D88/1000,2) -> 0 | F88: =ROUND(E88*(1-B83),2) -> 0 | G88: =ROUND(E88*B83,2) -> 0 | W88: Robo y/o daños por intento de robo de bienes especiales: joyas, platería, relojes, obras de arte, cámaras fotográficas o de video, laptops y bicicletas dentro de la vivienda o que estén siendo portados fuera de la vivienda | X88: 0.062312 | Y88: =+X88/(1-(#REF!+#REF!+#REF!+#REF!)) ->  | Z88: 0.062312 | AA88: =+Z88/(1-(#REF!+#REF!+#REF!+#REF!)) ->  | AD88: =X88/(1-(X81+X82+X83+X84)) -> 0.1233457922 | AE88: =ROUND(AE58*AD88/1000,2) -> 0 | AF88: =ROUND(AE88*(1-X83),2) -> 0 | AG88: =ROUND(AE88*X83,2) -> 0
A89: Hurto | B89: 0.0139687 | E89: =ROUND(E58*D89/1000,2) -> 0 | F89: =ROUND(E89*(1-B83),2) -> 0 | G89: =ROUND(E89*B83,2) -> 0 | W89: Hurto | X89: 0.0139687 | Y89: =+X89/(1-(#REF!+#REF!+#REF!+#REF!)) ->  | Z89: 0.0139687 | AA89: =+Z89/(1-(#REF!+#REF!+#REF!+#REF!)) ->  | AD89: =X89/(1-(X81+X82+X83+X84)) -> 0.02765085967 | AE89: =ROUND(AE58*AD89/1000,2) -> 0 | AF89: =ROUND(AE89*(1-X83),2) -> 0 | AG89: =ROUND(AE89*X83,2) -> 0
A90: Deshonestidad de trabajadores del hogar | B90: 0.0070687 | E90: =ROUND(E58*D90/1000,2) -> 0 | F90: =ROUND(E90*(1-B83),2) -> 0 | G90: =ROUND(E90*B83,2) -> 0 | W90: Deshonestidad de trabajadores del hogar | X90: 0.0070687 | Y90: =+X90/(1-(#REF!+#REF!+#REF!+#REF!)) ->  | Z90: 0.0070687 | AA90: =+Z90/(1-(#REF!+#REF!+#REF!+#REF!)) ->  | AD90: =X90/(1-(X81+X82+X83+X84)) -> 0.01399239956 | AE90: =ROUND(AE58*AD90/1000,2) -> 0 | AF90: =ROUND(AE90*(1-X83),2) -> 0 | AG90: =ROUND(AE90*X83,2) -> 0
E92: =ROUND(E58*D92/1000,2) -> 0 | F92: =ROUND(E92*(1-B83),2) -> 0 | G92: =ROUND(E92*B83,2) -> 0 | AD92: =X86/(1-(X81+X82+X83+X84)) -> 4.999900828 | AE92: =ROUND(AE58*AD92/1000,2) -> 0 | AF92: =ROUND(AE92*(1-X83),2) -> 0 | AG92: =ROUND(AE92*X83,2) -> 0
E94: =E51+E74+E92 -> 0 | F94: =IF(F96<>F95,F95,F96) ->  | G94: =IF(G96<>G95,G95,G96) ->  | AD94: TOTAL COMPLETA 2 | AE94: =AE51+AE74+AE92 -> 0 | AF94: =IF(AF96<>AF95,AF95,AF96) ->  | AG94: =IF(AG96<>AG95,AG95,AG96) -> 
E95: Suma Ajustada | F95: =#REF!+#REF! ->  | G95: =#REF!+#REF! ->  | AE95: Suma Ajustada | AF95: =#REF!+#REF! ->  | AG95: =#REF!+#REF! -> 
E96: Suma Esperada | F96: =F51+F74+F92 -> 0 | G96: =G51+G74+G92 -> 0 | AE96: Suma Esperada | AF96: =AF51+AF74+AF92 -> 0 | AG96: =AE94*X83 -> 0
A105: Tipo de bien: Inmueble | B105: tasa de riesgo | W105: Tipo de bien: Inmueble | X105: tasa de riesgo | Y105: tasa comercial | Z105: tasa de riesgo | AA105: tasa comercial | AD105: COMPLETA 3 - Inmueble
B106: Corredores | X106: Corredores | Y106: Corredores | Z106: NNDD | AA106: NNDD
A107: Gastos generales | B107: 0.0306729 | W107: Gastos generales | X107: 0.0306729 | Y107: 0.03067290513 | Z107: 0.15 | AA107: 0.15
A108: Gastos de comercialización | B108: 0 | W108: Gastos de comercialización | X108: 0 | Y108: 0 | Z108: 0.05 | AA108: 0.05
A109: Comisión local | B109: 0.2 | W109: Comisión local | X109: 0.2 | Y109: 0.2 | Z109: 0 | AA109: 0
A110: Utilidad antes de Imp | B110: 0 | W110: Utilidad antes de Imp | X110: 0 | Y110: 0 | Z110: 0.0306568 | AA110: 0.03065679971
A111: Tasa comercial %o | B111: =+B112/(1-(B107+B108+B109+B110)) -> 2.200058337 | E111: Prima Neta | F111: Prima | G111: Comisión | W111: Tasa comercial %o | X111: =+X112/(1-(X107+X108+X109+X110)) -> 2.200058337 | Y111: =+SUM(Y113:Y123) ->  | Z111: =+Z112/(1-(Z107+Z108+Z109+Z110)) -> 2.200012036 | AA111: =+SUM(AA113:AA123) ->  | AD111: Tasa Comercial | AE111: Prima Neta | AF111: Prima | AG111: Comisión
A112: Tasa de Riesgo %o | B112: =+SUM(B113:B123) -> 1.6925645 | W112: Tasa de Riesgo %o | X112: =+SUM(X113:X123) -> 1.6925645 | Z112: =+SUM(Z113:Z123) -> 1.6925643
A113: Incendio y/o rayo, explosión. Daños por agua, daños por humo, impacto de vehículos y/o aeronaves | B113: 0.5611967 | E113: =ROUND(E105*D113/1000,2) -> 0 | F113: =ROUND(E113*(1-B109),2) -> 0 | G113: =ROUND(E113*B109,2) -> 0 | W113: Incendio y/o rayo, explosión. Daños por agua, daños por humo, impacto de vehículos y/o aeronaves | X113: 0.5611967 | Y113: =+X113/(1-(#REF!+#REF!+#REF!+#REF!)) ->  | Z113: 0.5611967 | AA113: =+Z113/(1-(#REF!+#REF!+#REF!+#REF!)) ->  | AD113: =X113/(1-(X107+X108+X109+X110)) -> 0.7294643592 | AE113: =ROUND(AE105*AD113/1000,2) -> 0 | AF113: =ROUND(AE113*(1-X109),2) -> 0 | AG113: =ROUND(AE113*X109,2) -> 0
A114: Terremoto, temblor | B114: 0.9250879 | E114: =ROUND(E105*D114/1000,2) -> 0 | F114: =ROUND(E114*(1-B109),2) -> 0 | G114: =ROUND(E114*B109,2) -> 0 | W114: Terremoto, temblor | X114: 0.9250879 | Y114: =+X114/(1-(#REF!+#REF!+#REF!+#REF!)) ->  | Z114: 0.9250879 | AA114: =+Z114/(1-(#REF!+#REF!+#REF!+#REF!)) ->  | AD114: =X114/(1-(X107+X108+X109+X110)) -> 1.202463685 | AE114: =ROUND(AE105*AD114/1000,2) -> 0 | AF114: =ROUND(AE114*(1-X109),2) -> 0 | AG114: =ROUND(AE114*X109,2) -> 0
A115: Riesgos de la naturaleza | B115: 0.1027875 | E115: =ROUND(E105*D115/1000,2) -> 0 | F115: =ROUND(E115*(1-B109),2) -> 0 | G115: =ROUND(E115*B109,2) -> 0 | W115: Riesgos de la naturaleza | X115: 0.1027875 | Y115: =+X115/(1-(#REF!+#REF!+#REF!+#REF!)) ->  | Z115: 0.1027875 | AA115: =+Z115/(1-(#REF!+#REF!+#REF!+#REF!)) ->  | AD115: =X115/(1-(X107+X108+X109+X110)) -> 0.1336070184 | AE115: =ROUND(AE105*AD115/1000,2) -> 0 | AF115: =ROUND(AE115*(1-X109),2) -> 0 | AG115: =ROUND(AE115*X109,2) -> 0
A116: Riesgos políticos y sociales | B116: 0.005 | E116: =ROUND(E105*D116/1000,2) -> 0 | F116: =ROUND(E116*(1-B109),2) -> 0 | G116: =ROUND(E116*B109,2) -> 0 | W116: Riesgos políticos y sociales | X116: 0.005 | Y116: =+X116/(1-(#REF!+#REF!+#REF!+#REF!)) ->  | Z116: 0.005 | AA116: =+Z116/(1-(#REF!+#REF!+#REF!+#REF!)) ->  | AD116: =X116/(1-(X107+X108+X109+X110)) -> 0.006499186107 | AE116: =ROUND(AE105*AD116/1000,2) -> 0 | AF116: =ROUND(AE116*(1-X109),2) -> 0 | AG116: =ROUND(AE116*X109,2) -> 0
A117: Responsabilidad Civil frente a terceros | B117: 0.006267 | E117: =ROUND(E105*D117/1000,2) -> 0 | F117: =ROUND(E117*(1-B109),2) -> 0 | G117: =ROUND(E117*B109,2) -> 0 | W117: Responsabilidad Civil frente a terceros | X117: 0.006267 | Y117: =+X117/(1-(#REF!+#REF!+#REF!+#REF!)) ->  | Z117: 0.006267 | AA117: =+Z117/(1-(#REF!+#REF!+#REF!+#REF!)) ->  | AD117: =X117/(1-(X107+X108+X109+X110)) -> 0.008146079866 | AE117: =ROUND(AE105*AD117/1000,2) -> 0 | AF117: =ROUND(AE117*(1-X109),2) -> 0 | AG117: =ROUND(AE117*X109,2) -> 0
A118: Rotura accidental de vidrio y/o cristales | B118: 0.0172741 | E118: =ROUND(E105*D118/1000,2) -> 0 | F118: =ROUND(E118*(1-B109),2) -> 0 | G118: =ROUND(E118*B109,2) -> 0 | W118: Rotura accidental de vidrio y/o cristales | X118: 0.0172741 | Y118: =+X118/(1-(#REF!+#REF!+#REF!+#REF!)) ->  | Z118: 0.0172741 | AA118: =+Z118/(1-(#REF!+#REF!+#REF!+#REF!)) ->  | AD118: =X118/(1-(X107+X108+X109+X110)) -> 0.02245351815 | AE118: =ROUND(AE105*AD118/1000,2) -> 0 | AF118: =ROUND(AE118*(1-X109),2) -> 0 | AG118: =ROUND(AE118*X109,2) -> 0
A119: Robo o intento de robo de instalaciones fijas | B119: 0.0003616 | E119: =ROUND(E105*D119/1000,2) -> 0 | F119: =ROUND(E119*(1-B109),2) -> 0 | G119: =ROUND(E119*B109,2) -> 0 | W119: Robo o intento de robo de instalaciones fijas | X119: 0.0003616 | Y119: =+X119/(1-(#REF!+#REF!+#REF!+#REF!)) ->  | Z119: 0.0003616 | AA119: =+Z119/(1-(#REF!+#REF!+#REF!+#REF!)) ->  | AD119: =X119/(1-(X107+X108+X109+X110)) -> 0.0004700211393 | AE119: =ROUND(AE105*AD119/1000,2) -> 0 | AF119: =ROUND(AE119*(1-X109),2) -> 0 | AG119: =ROUND(AE119*X109,2) -> 0
A120: Reembolso de gastos médicos por accidentes de trabajadores del hogar | B120: 0.0029409 | E120: =ROUND(E105*D120/1000,2) -> 0 | F120: =ROUND(E120*(1-B109),2) -> 0 | G120: =ROUND(E120*B109,2) -> 0 | W120: Reembolso de gastos médicos por accidentes de trabajadores del hogar | X120: 0.0029409 | Y120: =+X120/(1-(#REF!+#REF!+#REF!+#REF!)) ->  | Z120: 0.0029409 | AA120: =+Z120/(1-(#REF!+#REF!+#REF!+#REF!)) ->  | AD120: =X120/(1-(X107+X108+X109+X110)) -> 0.003822691284 | AE120: =ROUND(AE105*AD120/1000,2) -> 0 | AF120: =ROUND(AE120*(1-X109),2) -> 0 | AG120: =ROUND(AE120*X109,2) -> 0
A121: Gasto de arrendamiento de vivienda temporal | B121: 0.0045743 | E121: =ROUND(E105*D121/1000,2) -> 0 | F121: =ROUND(E121*(1-B109),2) -> 0 | G121: =ROUND(E121*B109,2) -> 0 | W121: Gasto de arrendamiento de vivienda temporal | X121: 0.0045743 | Y121: =+X121/(1-(#REF!+#REF!+#REF!+#REF!)) ->  | Z121: 0.0045743 | AA121: =+Z121/(1-(#REF!+#REF!+#REF!+#REF!)) ->  | AD121: =X121/(1-(X107+X108+X109+X110)) -> 0.005945845402 | AE121: =ROUND(AE105*AD121/1000,2) -> 0 | AF121: =ROUND(AE121*(1-X109),2) -> 0 | AG121: =ROUND(AE121*X109,2) -> 0
A122: Alquiler no percibido por inmueble inhabitable temporalmente | B122: 0.0045743 | E122: =ROUND(E105*D122/1000,2) -> 0 | F122: =ROUND(E122*(1-B109),2) -> 0 | G122: =ROUND(E122*B109,2) -> 0 | W122: Alquiler no percibido por inmueble inhabitable temporalmente | X122: 0.0045743 | Y122: =+X122/(1-(#REF!+#REF!+#REF!+#REF!)) ->  | Z122: 0.0045743 | AA122: =+Z122/(1-(#REF!+#REF!+#REF!+#REF!)) ->  | AD122: =X122/(1-(X107+X108+X109+X110)) -> 0.005945845402 | AE122: =ROUND(AE105*AD122/1000,2) -> 0 | AF122: =ROUND(AE122*(1-X109),2) -> 0 | AG122: =ROUND(AE122*X109,2) -> 0
A123: Asistencias | B123: 0.0625002 | E123: =E125*B124 -> 0 | F123: =F125*B124 -> 0 | G123: =G125*B124 -> 0 | W123: Asistencias | X123: 0.0625002 | Y123: =+X123/(1-(#REF!+#REF!+#REF!+#REF!)) ->  | Z123: 0.0625 | AA123: =+Z123/(1-(#REF!+#REF!+#REF!+#REF!)) ->  | AE123: =AE125*X124 -> 0 | AF123: =AF125*X124 -> 0 | AG123: =AG125*X124 -> 0
A124: Cantidad de asistencias | B124: 6 | W124: Cantidad de asistencias | X124: 6 | Y124: 6 | Z124: 6 | AA124: 6
A125: Tasa por asistencia | B125: =B123/B124 -> 0.0104167 | E125: =ROUND(E105*D125/1000,2) -> 0 | F125: =ROUND(E125*(1-B109),2) -> 0 | G125: =ROUND(E125*B109,2) -> 0 | W125: Tasa por asistencia | X125: =X123/X124 -> 0.0104167 | Y125: =+ROUND(Y123/Y124,7) ->  | Z125: 0.0104167 | AA125: 0.0104167 | AD125: =X125/(1-(X107+X108+X109+X110)) -> 0.01354001438 | AE125: =ROUND(AE105*AD125/1000,2) -> 0 | AF125: =ROUND(AE125*(1-X109),2) -> 0 | AG125: =ROUND(AE125*X109,2) -> 0
E127: =ROUND(E105*D127/1000,2) -> 0 | F127: =ROUND(E127*(1-B109),2) -> 0 | G127: =ROUND(E127*B109,2) -> 0 | AD127: =X112/(1-(X107+X108+X109+X110)) -> 2.200058337 | AE127: =ROUND(AE105*AD127/1000,2) -> 0 | AF127: =ROUND(AE127*(1-X109),2) -> 0 | AG127: =ROUND(AE127*X109,2) -> 0
A134: Tipo de bien: Bienes | B134: tasa de riesgo | W134: Tipo de bien: Bienes | X134: tasa de riesgo | Y134: tasa comercial | Z134: tasa de riesgo | AA134: tasa comercial | AD134: COMPLETA 3 - Contenido
B135: Corredores | X135: Corredores | Y135: Corredores | Z135: NNDD | AA135: NNDD
A136: Gastos generales | B136: 0.1142203 | W136: Gastos generales | X136: 0.1142203 | Y136: 0.03067290513 | Z136: 0.1396364 | AA136: 0.15
A137: Gastos de comercialización | B137: 0 | W137: Gastos de comercialización | X137: 0 | Y137: 0 | Z137: 0.05 | AA137: 0.05
A138: Comisión local | B138: 0.2 | W138: Comisión local | X138: 0.2 | Y138: 0.2 | Z138: 0 | AA138: 0
A139: Utilidad antes de Imp | B139: 0 | W139: Utilidad antes de Imp | X139: 0 | Y139: 0 | Z139: 0 | AA139: 0.03065679971
A140: Tasa comercial %o | B140: =+B141/(1-(B136+B137+B138+B139)) -> 2.200087579 | E140: Prima Neta | F140: Prima | G140: Comisión | W140: Tasa comercial %o | X140: =+X141/(1-(X136+X137+X138+X139)) -> 2.200087579 | Y140: =+SUM(Y142:Y146) ->  | Z140: =+Z141/(1-(Z136+Z137+Z138+Z139)) -> 2.200315142 | AA140: =+SUM(AA142:AA146) ->  | AD140: Tasa Comercial | AE140: Prima Neta | AF140: Prima | AG140: Comisión
A141: Tasa de Riesgo %o | B141: =+SUM(B142:B146) -> 1.5087754 | W141: Tasa de Riesgo %o | X141: =+SUM(X142:X146) -> 1.5087754 | Z141: =+SUM(Z142:Z146) -> 1.7830553
A142: Incendio y/o rayo, explosión. Daños por agua, daños por humo, impacto de vehículos y/o aeronaves | B142: 0.4133998 | E142: =ROUND(E134*D142/1000, 2) -> 0 | F142: =ROUND(E142*(1-B138),2) -> 0 | G142: =ROUND(E142*B138,2) -> 0 | W142: Incendio y/o rayo, explosión. Daños por agua, daños por humo, impacto de vehículos y/o aeronaves | X142: 0.4133998 | Y142: =+X142/(1-(#REF!+#REF!+#REF!+#REF!)) ->  | Z142: 0.4133998 | AA142: =+Z142/(1-(#REF!+#REF!+#REF!+#REF!)) ->  | AD142: =X142/(1-(X136+X137+X138+X139)) -> 0.6028172021 | AE142: =ROUND(AE134*AD142/1000, 2) -> 0 | AF142: =ROUND(AE142*(1-X138),2) -> 0 | AG142: =ROUND(AE142*X138,2) -> 0
A143: Terremoto, temblor | B143: 0.9250879 | E143: =ROUND(E134*D143/1000,2) -> 0 | F143: =ROUND(E143*(1-B138),2) -> 0 | G143: =ROUND(E143*B138,2) -> 0 | W143: Terremoto, temblor | X143: 0.9250879 | Y143: =+X143/(1-(#REF!+#REF!+#REF!+#REF!)) ->  | Z143: 0.9250879 | AA143: =+Z143/(1-(#REF!+#REF!+#REF!+#REF!)) ->  | AD143: =X143/(1-(X136+X137+X138+X139)) -> 1.348957836 | AE143: =ROUND(AE134*AD143/1000,2) -> 0 | AF143: =ROUND(AE143*(1-X138),2) -> 0 | AG143: =ROUND(AE143*X138,2) -> 0
A144: Riesgos de la naturaleza | B144: 0.1027875 | E144: =ROUND(E134*D144/1000,2) -> 0 | F144: =ROUND(E144*(1-B138),2) -> 0 | G144: =ROUND(E144*B138,2) -> 0 | W144: Riesgos de la naturaleza | X144: 0.1027875 | Y144: =+X144/(1-(#REF!+#REF!+#REF!+#REF!)) ->  | Z144: 0.1027875 | AA144: =+Z144/(1-(#REF!+#REF!+#REF!+#REF!)) ->  | AD144: =X144/(1-(X136+X137+X138+X139)) -> 0.1498841392 | AE144: =ROUND(AE134*AD144/1000,2) -> 0 | AF144: =ROUND(AE144*(1-X138),2) -> 0 | AG144: =ROUND(AE144*X138,2) -> 0
A145: Riesgos políticos y sociales | B145: 0.005 | E145: =ROUND(E134*D145/1000,2) -> 0 | F145: =ROUND(E145*(1-B138),2) -> 0 | G145: =ROUND(E145*B138,2) -> 0 | W145: Riesgos políticos y sociales | X145: 0.005 | Y145: =+X145/(1-(#REF!+#REF!+#REF!+#REF!)) ->  | Z145: 0.005 | AA145: =+Z145/(1-(#REF!+#REF!+#REF!+#REF!)) ->  | AD145: =X145/(1-(X136+X137+X138+X139)) -> 0.007290971138 | AE145: =ROUND(AE134*AD145/1000,2) -> 0 | AF145: =ROUND(AE145*(1-X138),2) -> 0 | AG145: =ROUND(AE145*X138,2) -> 0
A146: Asistencias | B146: 0.0625002 | E146: =E148*B147 -> 0 | F146: =F148*B147 -> 0 | G146: =G148*B147 -> 0 | W146: Asistencias | X146: 0.0625002 | Y146: =+X146/(1-(#REF!+#REF!+#REF!+#REF!)) ->  | Z146: 0.3367801 | AA146: =+Z146/(1-(#REF!+#REF!+#REF!+#REF!)) ->  | AE146: =AE148*X147 -> 0 | AF146: =AF148*X147 -> 0 | AG146: =AG148*X147 -> 0
A147: Cantidad de asistencias | B147: 6 | W147: Cantidad de asistencias | X147: 6 | Y147: 6 | Z147: 6 | AA147: 6
A148: Tasa por asistencia | B148: =B146/B147 -> 0.0104167 | E148: =ROUND(E134*D148/1000,2) -> 0 | F148: =ROUND(E148*(1-B138),2) -> 0 | G148: =ROUND(E148*B138,2) -> 0 | W148: Tasa por asistencia | X148: =X146/X147 -> 0.0104167 | Y148: =+ROUND(Y146/Y147,7) ->  | Z148: 0.0104167 | AA148: 0.0104167 | AD148: =X148/(1-(X136+X137+X138+X139)) -> 0.01518957181 | AE148: =ROUND(AE134*AD148/1000,2) -> 0 | AF148: =ROUND(AE148*(1-X138),2) -> 0 | AG148: =ROUND(AE148*X138,2) -> 0
E150: =ROUND(E134*D150/1000,2) -> 0 | F150: =ROUND(E150*(1-B138),2) -> 0 | G150: =ROUND(E150*B138,2) -> 0 | AD150: =X141/(1-(X136+X137+X138+X139)) -> 2.200087579 | AE150: =ROUND(AE134*AD150/1000,2) -> 0 | AF150: =ROUND(AE150*(1-X138),2) -> 0 | AG150: =ROUND(AE150*X138,2) -> 0
A156: Tipo de bien: Bienes con robo | B156: Corredores | W156: Tipo de bien: Bienes con robo | X156: Corredores | Y156: Corredores | Z156: NNDD | AA156: NNDD
A157: Gastos generales | B157: 0.15 | W157: Gastos generales | X157: 0.15 | Y157: 0.15 | Z157: 0.15 | AA157: 0.15
A158: Gastos de comercialización | B158: 0.05 | W158: Gastos de comercialización | X158: 0.05 | Y158: 0.05 | Z158: 0.05 | AA158: 0.05
A159: Comisión local | B159: 0.2 | W159: Comisión local | X159: 0.2 | Y159: 0.2 | Z159: 0 | AA159: 0
A160: Utilidad antes de Imp | B160: 0.0948186 | W160: Utilidad antes de Imp | X160: 0.0948186 | Y160: 0.09481861887 | Z160: 0.2947788 | AA160: 0.2947788137
A161: Tasa comercial %o | B161: =+B162/(1-(B157+B158+B159+B160)) -> 4.999900828 | E161: Prima Neta | F161: Prima | G161: Comisión | W161: Tasa comercial %o | X161: =+X162/(1-(X157+X158+X159+X160)) -> 4.999900828 | Y161: =+SUM(Y163:Y166) ->  | Z161: =+Z162/(1-(Z157+Z158+Z159+Z160)) -> 4.999506949 | AA161: =+SUM(AA163:AA166) ->  | AD161: Tasa Comercial | AE161: Prima Neta | AF161: Prima | AG161: Comisión
A162: Tasa de Riesgo %o | B162: =+SUM(B163:B166) -> 2.5258569 | W162: Tasa de Riesgo %o | X162: =+SUM(X163:X166) -> 2.5258569 | Z162: =+SUM(Z163:Z166) -> 2.5258569
A163: Robo y/o daños por intento de robo de bienes | B163: 2.4425075 | E163: =ROUND(E134*D163/1000,2) -> 0 | F163: =ROUND(E163*(1-B159),2) -> 0 | G163: =ROUND(E163*B159,2) -> 0 | W163: Robo y/o daños por intento de robo de bienes | X163: 2.4425075 | Y163: =+X163/(1-(#REF!+#REF!+#REF!+#REF!)) ->  | Z163: 2.4425075 | AA163: =+Z163/(1-(#REF!+#REF!+#REF!+#REF!)) ->  | AD163: =X163/(1-(X157+X158+X159+X160)) -> 4.834911776 | AE163: =ROUND(AE134*AD163/1000,2) -> 0 | AF163: =ROUND(AE163*(1-X159),2) -> 0 | AG163: =ROUND(AE163*X159,2) -> 0
A164: Robo y/o daños por intento de robo de bienes especiales: joyas, platería, relojes, obras de arte, cámaras fotográficas o de video, laptops y bicicletas dentro de la vivienda o que estén siendo portados fuera de la vivienda | B164: 0.062312 | E164: =ROUND(E134*D164/1000,2) -> 0 | F164: =ROUND(E164*(1-B159),2) -> 0 | G164: =ROUND(E164*B159,2) -> 0 | W164: Robo y/o daños por intento de robo de bienes especiales: joyas, platería, relojes, obras de arte, cámaras fotográficas o de video, laptops y bicicletas dentro de la vivienda o que estén siendo portados fuera de la vivienda | X164: 0.062312 | Y164: =+X164/(1-(#REF!+#REF!+#REF!+#REF!)) ->  | Z164: 0.062312 | AA164: =+Z164/(1-(#REF!+#REF!+#REF!+#REF!)) ->  | AD164: =X164/(1-(X157+X158+X159+X160)) -> 0.1233457922 | AE164: =ROUND(AE134*AD164/1000,2) -> 0 | AF164: =ROUND(AE164*(1-X159),2) -> 0 | AG164: =ROUND(AE164*X159,2) -> 0
A165: Hurto | B165: 0.0139687 | E165: =ROUND(E134*D165/1000,2) -> 0 | F165: =ROUND(E165*(1-B159),2) -> 0 | G165: =ROUND(E165*B159,2) -> 0 | W165: Hurto | X165: 0.0139687 | Y165: =+X165/(1-(#REF!+#REF!+#REF!+#REF!)) ->  | Z165: 0.0139687 | AA165: =+Z165/(1-(#REF!+#REF!+#REF!+#REF!)) ->  | AD165: =X165/(1-(X157+X158+X159+X160)) -> 0.02765085967 | AE165: =ROUND(AE134*AD165/1000,2) -> 0 | AF165: =ROUND(AE165*(1-X159),2) -> 0 | AG165: =ROUND(AE165*X159,2) -> 0
A166: Deshonestidad de trabajadores del hogar | B166: 0.0070687 | E166: =ROUND(E134*D166/1000,2) -> 0 | F166: =ROUND(E166*(1-B159),2) -> 0 | G166: =ROUND(E166*B159,2) -> 0 | W166: Deshonestidad de trabajadores del hogar | X166: 0.0070687 | Y166: =+X166/(1-(#REF!+#REF!+#REF!+#REF!)) ->  | Z166: 0.0070687 | AA166: =+Z166/(1-(#REF!+#REF!+#REF!+#REF!)) ->  | AD166: =X166/(1-(X157+X158+X159+X160)) -> 0.01399239956 | AE166: =ROUND(AE134*AD166/1000,2) -> 0 | AF166: =ROUND(AE166*(1-X159),2) -> 0 | AG166: =ROUND(AE166*X159,2) -> 0
E168: =ROUND(E134*D168/1000,2) -> 0 | F168: =ROUND(E168*(1-B159),2) -> 0 | G168: =ROUND(E168*B159,2) -> 0 | AD168: =X162/(1-(X157+X158+X159+X160)) -> 4.999900828 | AE168: =ROUND(AE134*AD168/1000,2) -> 0 | AF168: =ROUND(AE168*(1-X159),2) -> 0 | AG168: =ROUND(AE168*X159,2) -> 0
E170: =E127+E150+E168 -> 0 | F170: =IF(F172<>F171,F171,F172) ->  | G170: =IF(G172<>G171,G171,G172) ->  | AD170: TOTAL COMPLETA 3 | AE170: =AE127+AE150+AE168 -> 0 | AF170: =IF(AF127+AF150+AF168<>AF175,AF175,AF168) -> 0 | AG170: =AG127+AG150+AG168 -> 0
E171: Suma Ajustada | F171: =#REF!+#REF! ->  | G171: =#REF!+#REF! ->  | AE171: Suma de Cob | AF171: =SUM(AF163:AF166)+SUM(AF142:AF146)+SUM(AF113:AF123) -> 0 | AG171: =SUM(AG163:AG166)+SUM(AG142:AG146)+SUM(AG113:AG123) -> 0
E172: Suma Esperada | F172: =F127+F150+F168 -> 0 | G172: =E170*B159 -> 0 | AE172: Esperado | AF172: =AE170*(1-X159) -> 0 | AG172: =AE170*X159 -> 0
AE173: Faltante | AF173: =AF172-AF171 -> 0 | AG173: =AG172-AG170 -> 0
AF174: =AF113+AF173 -> 0 | AG174: =AG113+AG173 -> 0
AE175: =AF175+AG175 -> 0 | AF175: =ROUND(AF171-AF113+AF174,2) -> 0 | AG175: =ROUND(AG170-AG113+AG174,2) -> 0
A180: Tipo de bien: Inmueble | B180: tasa de riesgo | W180: Tipo de bien: Inmueble | X180: tasa de riesgo | Y180: tasa comercial | Z180: tasa de riesgo | AA180: tasa comercial | AD180: COMPLETA 4 - Inmueble
B181: Corredores | X181: Corredores | Y181: Corredores | Z181: NNDD | AA181: NNDD
A182: Gastos generales | B182: 0.0306729 | W182: Gastos generales | X182: 0.0306729 | Y182: 0.03067290513 | Z182: 0.15 | AA182: 0.15
A183: Gastos de comercialización | B183: 0 | W183: Gastos de comercialización | X183: 0 | Y183: 0 | Z183: 0.05 | AA183: 0.05
A184: Comisión local | B184: 0.2 | W184: Comisión local | X184: 0.2 | Y184: 0.2 | Z184: 0 | AA184: 0
A185: Utilidad antes de Imp | B185: 0 | W185: Utilidad antes de Imp | X185: 0 | Y185: 0 | Z185: 0.0306568 | AA185: 0.03065679971
A186: Tasa comercial %o | B186: =+B187/(1-(B182+B183+B184+B185)) -> 2.200058337 | E186: Prima Neta | F186: Prima | G186: Comisión | W186: Tasa comercial %o | X186: =+X187/(1-(X182+X183+X184+X185)) -> 2.200058337 | Y186: =+SUM(Y188:Y198) ->  | Z186: =+Z187/(1-(Z182+Z183+Z184+Z185)) -> 2.200012036 | AA186: =+SUM(AA188:AA198) ->  | AD186: Tasa Comercial | AE186: Prima Neta | AF186: Prima | AG186: Comisión
A187: Tasa de Riesgo %o | B187: =+SUM(B188:B198) -> 1.6925645 | W187: Tasa de Riesgo %o | X187: =+SUM(X188:X198) -> 1.6925645 | Z187: =+SUM(Z188:Z198) -> 1.6925643
A188: Incendio y/o rayo, explosión. Daños por agua, daños por humo, impacto de vehículos y/o aeronaves | B188: 0.5611967 | E188: =ROUND(E180*D188/1000,2) -> 0 | F188: =ROUND(E188*(1-B184),2) -> 0 | G188: =ROUND(E188*B184,2) -> 0 | W188: Incendio y/o rayo, explosión. Daños por agua, daños por humo, impacto de vehículos y/o aeronaves | X188: 0.5611967 | Y188: =+X188/(1-(#REF!+#REF!+#REF!+#REF!)) ->  | Z188: 0.5611967 | AA188: =+Z188/(1-(#REF!+#REF!+#REF!+#REF!)) ->  | AD188: =X188/(1-(X182+X183+X184+X185)) -> 0.7294643592 | AE188: =ROUND(AE180*AD188/1000,2) -> 0 | AF188: =ROUND(AE188*(1-X184),2) -> 0 | AG188: =ROUND(AE188*X184,2) -> 0
A189: Terremoto, temblor | B189: 0.9250879 | E189: =ROUND(E180*D189/1000,2) -> 0 | F189: =ROUND(E189*(1-B184),2) -> 0 | G189: =ROUND(E189*B184,2) -> 0 | W189: Terremoto, temblor | X189: 0.9250879 | Y189: =+X189/(1-(#REF!+#REF!+#REF!+#REF!)) ->  | Z189: 0.9250879 | AA189: =+Z189/(1-(#REF!+#REF!+#REF!+#REF!)) ->  | AD189: =X189/(1-(X182+X183+X184+X185)) -> 1.202463685 | AE189: =ROUND(AE180*AD189/1000,2) -> 0 | AF189: =ROUND(AE189*(1-X184),2) -> 0 | AG189: =ROUND(AE189*X184,2) -> 0
A190: Riesgos de la naturaleza | B190: 0.1027875 | E190: =ROUND(E180*D190/1000,2) -> 0 | F190: =ROUND(E190*(1-B184),2) -> 0 | G190: =ROUND(E190*B184,2) -> 0 | W190: Riesgos de la naturaleza | X190: 0.1027875 | Y190: =+X190/(1-(#REF!+#REF!+#REF!+#REF!)) ->  | Z190: 0.1027875 | AA190: =+Z190/(1-(#REF!+#REF!+#REF!+#REF!)) ->  | AD190: =X190/(1-(X182+X183+X184+X185)) -> 0.1336070184 | AE190: =ROUND(AE180*AD190/1000,2) -> 0 | AF190: =ROUND(AE190*(1-X184),2) -> 0 | AG190: =ROUND(AE190*X184,2) -> 0
A191: Riesgos políticos y sociales | B191: 0.005 | E191: =ROUND(E180*D191/1000,2) -> 0 | F191: =ROUND(E191*(1-B184),2) -> 0 | G191: =ROUND(E191*B184,2) -> 0 | W191: Riesgos políticos y sociales | X191: 0.005 | Y191: =+X191/(1-(#REF!+#REF!+#REF!+#REF!)) ->  | Z191: 0.005 | AA191: =+Z191/(1-(#REF!+#REF!+#REF!+#REF!)) ->  | AD191: =X191/(1-(X182+X183+X184+X185)) -> 0.006499186107 | AE191: =ROUND(AE180*AD191/1000,2) -> 0 | AF191: =ROUND(AE191*(1-X184),2) -> 0 | AG191: =ROUND(AE191*X184,2) -> 0
A192: Responsabilidad Civil frente a terceros | B192: 0.006267 | E192: =ROUND(E180*D192/1000,2) -> 0 | F192: =ROUND(E192*(1-B184),2) -> 0 | G192: =ROUND(E192*B184,2) -> 0 | W192: Responsabilidad Civil frente a terceros | X192: 0.006267 | Y192: =+X192/(1-(#REF!+#REF!+#REF!+#REF!)) ->  | Z192: 0.006267 | AA192: =+Z192/(1-(#REF!+#REF!+#REF!+#REF!)) ->  | AD192: =X192/(1-(X182+X183+X184+X185)) -> 0.008146079866 | AE192: =ROUND(AE180*AD192/1000,2) -> 0 | AF192: =ROUND(AE192*(1-X184),2) -> 0 | AG192: =ROUND(AE192*X184,2) -> 0
A193: Rotura accidental de vidrio y/o cristales | B193: 0.0172741 | E193: =ROUND(E180*D193/1000,2) -> 0 | F193: =ROUND(E193*(1-B184),2) -> 0 | G193: =ROUND(E193*B184,2) -> 0 | W193: Rotura accidental de vidrio y/o cristales | X193: 0.0172741 | Y193: =+X193/(1-(#REF!+#REF!+#REF!+#REF!)) ->  | Z193: 0.0172741 | AA193: =+Z193/(1-(#REF!+#REF!+#REF!+#REF!)) ->  | AD193: =X193/(1-(X182+X183+X184+X185)) -> 0.02245351815 | AE193: =ROUND(AE180*AD193/1000,2) -> 0 | AF193: =ROUND(AE193*(1-X184),2) -> 0 | AG193: =ROUND(AE193*X184,2) -> 0
A194: Robo o intento de robo de instalaciones fijas | B194: 0.0003616 | E194: =ROUND(E180*D194/1000,2) -> 0 | F194: =ROUND(E194*(1-B184),2) -> 0 | G194: =ROUND(E194*B184,2) -> 0 | W194: Robo o intento de robo de instalaciones fijas | X194: 0.0003616 | Y194: =+X194/(1-(#REF!+#REF!+#REF!+#REF!)) ->  | Z194: 0.0003616 | AA194: =+Z194/(1-(#REF!+#REF!+#REF!+#REF!)) ->  | AD194: =X194/(1-(X182+X183+X184+X185)) -> 0.0004700211393 | AE194: =ROUND(AE180*AD194/1000,2) -> 0 | AF194: =ROUND(AE194*(1-X184),2) -> 0 | AG194: =ROUND(AE194*X184,2) -> 0
A195: Reembolso de gastos médicos por accidentes de trabajadores del hogar | B195: 0.0029409 | E195: =ROUND(E180*D195/1000,2) -> 0 | F195: =ROUND(E195*(1-B184),2) -> 0 | G195: =ROUND(E195*B184,2) -> 0 | W195: Reembolso de gastos médicos por accidentes de trabajadores del hogar | X195: 0.0029409 | Y195: =+X195/(1-(#REF!+#REF!+#REF!+#REF!)) ->  | Z195: 0.0029409 | AA195: =+Z195/(1-(#REF!+#REF!+#REF!+#REF!)) ->  | AD195: =X195/(1-(X182+X183+X184+X185)) -> 0.003822691284 | AE195: =ROUND(AE180*AD195/1000,2) -> 0 | AF195: =ROUND(AE195*(1-X184),2) -> 0 | AG195: =ROUND(AE195*X184,2) -> 0
A196: Gasto de arrendamiento de vivienda temporal | B196: 0.0045743 | E196: =ROUND(E180*D196/1000,2) -> 0 | F196: =ROUND(E196*(1-B184),2) -> 0 | G196: =ROUND(E196*B184,2) -> 0 | W196: Gasto de arrendamiento de vivienda temporal | X196: 0.0045743 | Y196: =+X196/(1-(#REF!+#REF!+#REF!+#REF!)) ->  | Z196: 0.0045743 | AA196: =+Z196/(1-(#REF!+#REF!+#REF!+#REF!)) ->  | AD196: =X196/(1-(X182+X183+X184+X185)) -> 0.005945845402 | AE196: =ROUND(AE180*AD196/1000,2) -> 0 | AF196: =ROUND(AE196*(1-X184),2) -> 0 | AG196: =ROUND(AE196*X184,2) -> 0
A197: Alquiler no percibido por inmueble inhabitable temporalmente | B197: 0.0045743 | E197: =ROUND(E180*D197/1000,2) -> 0 | F197: =ROUND(E197*(1-B184),2) -> 0 | G197: =ROUND(E197*B184,2) -> 0 | W197: Alquiler no percibido por inmueble inhabitable temporalmente | X197: 0.0045743 | Y197: =+X197/(1-(#REF!+#REF!+#REF!+#REF!)) ->  | Z197: 0.0045743 | AA197: =+Z197/(1-(#REF!+#REF!+#REF!+#REF!)) ->  | AD197: =X197/(1-(X182+X183+X184+X185)) -> 0.005945845402 | AE197: =ROUND(AE180*AD197/1000,2) -> 0 | AF197: =ROUND(AE197*(1-X184),2) -> 0 | AG197: =ROUND(AE197*X184,2) -> 0
A198: Asistencias | B198: 0.0625002 | E198: =E200*B199 -> 0 | F198: =F200*B199 -> 0 | G198: =G200*B199 -> 0 | W198: Asistencias | X198: 0.0625002 | Y198: =+X198/(1-(#REF!+#REF!+#REF!+#REF!)) ->  | Z198: 0.0625 | AA198: =+Z198/(1-(#REF!+#REF!+#REF!+#REF!)) ->  | AE198: =AE200*X199 -> 0 | AF198: =AF200*X199 -> 0 | AG198: =AG200*X199 -> 0
A199: Cantidad de asistencias | B199: 6 | W199: Cantidad de asistencias | X199: 6 | Y199: 6 | Z199: 6 | AA199: 6
A200: Tasa por asistencia | B200: =B198/B199 -> 0.0104167 | E200: =ROUND(E180*D200/1000,2) -> 0 | F200: =ROUND(E200*(1-B184),2) -> 0 | G200: =ROUND(E200*B184,2) -> 0 | W200: Tasa por asistencia | X200: =X198/X199 -> 0.0104167 | Y200: =+ROUND(Y198/Y199,7) ->  | Z200: 0.0104167 | AA200: 0.0104167 | AD200: =X200/(1-(X182+X183+X184+X185)) -> 0.01354001438 | AE200: =ROUND(AE180*AD200/1000,2) -> 0 | AF200: =ROUND(AE200*(1-X184),2) -> 0 | AG200: =ROUND(AE200*X184,2) -> 0
E202: =ROUND(E180*D202/1000,2) -> 0 | F202: =ROUND(E202*(1-B184),2) -> 0 | G202: =ROUND(E202*B184,2) -> 0 | AD202: =X187/(1-(X182+X183+X184+X185)) -> 2.200058337 | AE202: =ROUND(AE180*AD202/1000,2) -> 0 | AF202: =ROUND(AE202*(1-X184),2) -> 0 | AG202: =ROUND(AE202*X184,2) -> 0
A209: Tipo de bien: Bienes | B209: tasa de riesgo | W209: Tipo de bien: Bienes | X209: tasa de riesgo | Y209: tasa comercial | Z209: tasa de riesgo | AA209: tasa comercial | AD209: COMPLETA 4 - Contenido
B210: Corredores | X210: Corredores | Y210: Corredores | Z210: NNDD | AA210: NNDD
A211: Gastos generales | B211: 0.1142203 | W211: Gastos generales | X211: 0.1142203 | Y211: 0.03067290513 | Z211: 0.1396364 | AA211: 0.15
A212: Gastos de comercialización | B212: 0 | W212: Gastos de comercialización | X212: 0 | Y212: 0 | Z212: 0.05 | AA212: 0.05
A213: Comisión local | B213: 0.2 | W213: Comisión local | X213: 0.2 | Y213: 0.2 | Z213: 0 | AA213: 0
A214: Utilidad antes de Imp | B214: 0 | W214: Utilidad antes de Imp | X214: 0 | Y214: 0 | Z214: 0 | AA214: 0.03065679971
A215: Tasa comercial %o | B215: =+B216/(1-(B211+B212+B213+B214)) -> 2.200087579 | E215: Prima Neta | F215: Prima | G215: Comisión | W215: Tasa comercial %o | X215: =+X216/(1-(X211+X212+X213+X214)) -> 2.200087579 | Y215: =+SUM(Y217:Y221) ->  | Z215: =+Z216/(1-(Z211+Z212+Z213+Z214)) -> 2.200315142 | AA215: =+SUM(AA217:AA221) ->  | AD215: Tasa Comercial | AE215: Prima Neta | AF215: Prima | AG215: Comisión
A216: Tasa de Riesgo %o | B216: =+SUM(B217:B221) -> 1.5087754 | W216: Tasa de Riesgo %o | X216: =+SUM(X217:X221) -> 1.5087754 | Z216: =+SUM(Z217:Z221) -> 1.7830553
A217: Incendio y/o rayo, explosión. Daños por agua, daños por humo, impacto de vehículos y/o aeronaves | B217: 0.4133998 | E217: =ROUND(E209*D217/1000, 2) -> 0 | F217: =ROUND(E217*(1-B213),2) -> 0 | G217: =ROUND(E217*B213,2) -> 0 | W217: Incendio y/o rayo, explosión. Daños por agua, daños por humo, impacto de vehículos y/o aeronaves | X217: 0.4133998 | Y217: =+X217/(1-(#REF!+#REF!+#REF!+#REF!)) ->  | Z217: 0.4133998 | AA217: =+Z217/(1-(#REF!+#REF!+#REF!+#REF!)) ->  | AD217: =X217/(1-(X211+X212+X213+X214)) -> 0.6028172021 | AE217: =ROUND(AE209*AD217/1000, 2) -> 0 | AF217: =ROUND(AE217*(1-X213),2) -> 0 | AG217: =ROUND(AE217*X213,2) -> 0
A218: Terremoto, temblor | B218: 0.9250879 | E218: =ROUND(E209*D218/1000,2) -> 0 | F218: =ROUND(E218*(1-B213),2) -> 0 | G218: =ROUND(E218*B213,2) -> 0 | W218: Terremoto, temblor | X218: 0.9250879 | Y218: =+X218/(1-(#REF!+#REF!+#REF!+#REF!)) ->  | Z218: 0.9250879 | AA218: =+Z218/(1-(#REF!+#REF!+#REF!+#REF!)) ->  | AD218: =X218/(1-(X211+X212+X213+X214)) -> 1.348957836 | AE218: =ROUND(AE209*AD218/1000,2) -> 0 | AF218: =ROUND(AE218*(1-X213),2) -> 0 | AG218: =ROUND(AE218*X213,2) -> 0
A219: Riesgos de la naturaleza | B219: 0.1027875 | E219: =ROUND(E209*D219/1000,2) -> 0 | F219: =ROUND(E219*(1-B213),2) -> 0 | G219: =ROUND(E219*B213,2) -> 0 | W219: Riesgos de la naturaleza | X219: 0.1027875 | Y219: =+X219/(1-(#REF!+#REF!+#REF!+#REF!)) ->  | Z219: 0.1027875 | AA219: =+Z219/(1-(#REF!+#REF!+#REF!+#REF!)) ->  | AD219: =X219/(1-(X211+X212+X213+X214)) -> 0.1498841392 | AE219: =ROUND(AE209*AD219/1000,2) -> 0 | AF219: =ROUND(AE219*(1-X213),2) -> 0 | AG219: =ROUND(AE219*X213,2) -> 0
A220: Riesgos políticos y sociales | B220: 0.005 | E220: =ROUND(E209*D220/1000,2) -> 0 | F220: =ROUND(E220*(1-B213),2) -> 0 | G220: =ROUND(E220*B213,2) -> 0 | W220: Riesgos políticos y sociales | X220: 0.005 | Y220: =+X220/(1-(#REF!+#REF!+#REF!+#REF!)) ->  | Z220: 0.005 | AA220: =+Z220/(1-(#REF!+#REF!+#REF!+#REF!)) ->  | AD220: =X220/(1-(X211+X212+X213+X214)) -> 0.007290971138 | AE220: =ROUND(AE209*AD220/1000,2) -> 0 | AF220: =ROUND(AE220*(1-X213),2) -> 0 | AG220: =ROUND(AE220*X213,2) -> 0
A221: Asistencias | B221: 0.0625002 | E221: =E223*B222 -> 0 | F221: =F223*B222 -> 0 | G221: =G223*B222 -> 0 | W221: Asistencias | X221: 0.0625002 | Y221: =+X221/(1-(#REF!+#REF!+#REF!+#REF!)) ->  | Z221: 0.3367801 | AA221: =+Z221/(1-(#REF!+#REF!+#REF!+#REF!)) ->  | AE221: =AE223*X222 -> 0 | AF221: =AF223*X222 -> 0 | AG221: =AG223*X222 -> 0
A222: Cantidad de asistencias | B222: 6 | W222: Cantidad de asistencias | X222: 6 | Y222: 6 | Z222: 6 | AA222: 6
A223: Tasa por asistencia | B223: =B221/B222 -> 0.0104167 | E223: =ROUND(E209*D223/1000,2) -> 0 | F223: =ROUND(E223*(1-B213),2) -> 0 | G223: =ROUND(E223*B213,2) -> 0 | W223: Tasa por asistencia | X223: =X221/X222 -> 0.0104167 | Y223: =+ROUND(Y221/Y222,7) ->  | Z223: 0.0104167 | AA223: 0.0104167 | AD223: =X223/(1-(X211+X212+X213+X214)) -> 0.01518957181 | AE223: =ROUND(AE209*AD223/1000,2) -> 0 | AF223: =ROUND(AE223*(1-X213),2) -> 0 | AG223: =ROUND(AE223*X213,2) -> 0
E225: =ROUND(E209*D225/1000,2) -> 0 | F225: =ROUND(E225*(1-B213),2) -> 0 | G225: =ROUND(E225*B213,2) -> 0 | AD225: =X216/(1-(X211+X212+X213+X214)) -> 2.200087579 | AE225: =ROUND(AE209*AD225/1000,2) -> 0 | AF225: =ROUND(AE225*(1-X213),2) -> 0 | AG225: =ROUND(AE225*X213,2) -> 0
A231: Tipo de bien: Bienes con robo | B231: Corredores | W231: Tipo de bien: Bienes con robo | X231: Corredores | Y231: Corredores | Z231: NNDD | AA231: NNDD
A232: Gastos generales | B232: 0.15 | W232: Gastos generales | X232: 0.15 | Y232: 0.15 | Z232: 0.15 | AA232: 0.15
A233: Gastos de comercialización | B233: 0.05 | W233: Gastos de comercialización | X233: 0.05 | Y233: 0.05 | Z233: 0.05 | AA233: 0.05
A234: Comisión local | B234: 0.2 | W234: Comisión local | X234: 0.2 | Y234: 0.2 | Z234: 0 | AA234: 0
A235: Utilidad antes de Imp | B235: 0.0948186 | W235: Utilidad antes de Imp | X235: 0.0948186 | Y235: 0.09481861887 | Z235: 0.2947788 | AA235: 0.2947788137
A236: Tasa comercial %o | B236: =+B237/(1-(B232+B233+B234+B235)) -> 4.999900828 | E236: Prima Neta | F236: Prima | G236: Comisión | W236: Tasa comercial %o | X236: =+X237/(1-(X232+X233+X234+X235)) -> 4.999900828 | Y236: =+SUM(Y238:Y241) ->  | Z236: =+Z237/(1-(Z232+Z233+Z234+Z235)) -> 4.999506949 | AA236: =+SUM(AA238:AA241) ->  | AD236: Tasa Comercial | AE236: Prima Neta | AF236: Prima | AG236: Comisión
A237: Tasa de Riesgo %o | B237: =+SUM(B238:B241) -> 2.5258569 | W237: Tasa de Riesgo %o | X237: =+SUM(X238:X241) -> 2.5258569 | Z237: =+SUM(Z238:Z241) -> 2.5258569
A238: Robo y/o daños por intento de robo de bienes | B238: 2.4425075 | E238: =ROUND(E209*D238/1000,2) -> 0 | F238: =ROUND(E238*(1-B234),2) -> 0 | G238: =ROUND(E238*B234,2) -> 0 | W238: Robo y/o daños por intento de robo de bienes | X238: 2.4425075 | Y238: =+X238/(1-(#REF!+#REF!+#REF!+#REF!)) ->  | Z238: 2.4425075 | AA238: =+Z238/(1-(#REF!+#REF!+#REF!+#REF!)) ->  | AD238: =X238/(1-(X232+X233+X234+X235)) -> 4.834911776 | AE238: =ROUND(AE209*AD238/1000,2) -> 0 | AF238: =ROUND(AE238*(1-X234),2) -> 0 | AG238: =ROUND(AE238*X234,2) -> 0
A239: Robo y/o daños por intento de robo de bienes especiales: joyas, platería, relojes, obras de arte, cámaras fotográficas o de video, laptops y bicicletas dentro de la vivienda o que estén siendo portados fuera de la vivienda | B239: 0.062312 | E239: =ROUND(E209*D239/1000,2) -> 0 | F239: =ROUND(E239*(1-B234),2) -> 0 | G239: =ROUND(E239*B234,2) -> 0 | W239: Robo y/o daños por intento de robo de bienes especiales: joyas, platería, relojes, obras de arte, cámaras fotográficas o de video, laptops y bicicletas dentro de la vivienda o que estén siendo portados fuera de la vivienda | X239: 0.062312 | Y239: =+X239/(1-(#REF!+#REF!+#REF!+#REF!)) ->  | Z239: 0.062312 | AA239: =+Z239/(1-(#REF!+#REF!+#REF!+#REF!)) ->  | AD239: =X239/(1-(X232+X233+X234+X235)) -> 0.1233457922 | AE239: =ROUND(AE209*AD239/1000,2) -> 0 | AF239: =ROUND(AE239*(1-X234),2) -> 0 | AG239: =ROUND(AE239*X234,2) -> 0
A240: Hurto | B240: 0.0139687 | E240: =ROUND(E209*D240/1000,2) -> 0 | F240: =ROUND(E240*(1-B234),2) -> 0 | G240: =ROUND(E240*B234,2) -> 0 | W240: Hurto | X240: 0.0139687 | Y240: =+X240/(1-(#REF!+#REF!+#REF!+#REF!)) ->  | Z240: 0.0139687 | AA240: =+Z240/(1-(#REF!+#REF!+#REF!+#REF!)) ->  | AD240: =X240/(1-(X232+X233+X234+X235)) -> 0.02765085967 | AE240: =ROUND(AE209*AD240/1000,2) -> 0 | AF240: =ROUND(AE240*(1-X234),2) -> 0 | AG240: =ROUND(AE240*X234,2) -> 0
A241: Deshonestidad de trabajadores del hogar | B241: 0.0070687 | E241: =ROUND(E209*D241/1000,2) -> 0 | F241: =ROUND(E241*(1-B234),2) -> 0 | G241: =ROUND(E241*B234,2) -> 0 | W241: Deshonestidad de trabajadores del hogar | X241: 0.0070687 | Y241: =+X241/(1-(#REF!+#REF!+#REF!+#REF!)) ->  | Z241: 0.0070687 | AA241: =+Z241/(1-(#REF!+#REF!+#REF!+#REF!)) ->  | AD241: =X241/(1-(X232+X233+X234+X235)) -> 0.01399239956 | AE241: =ROUND(AE209*AD241/1000,2) -> 0 | AF241: =ROUND(AE241*(1-X234),2) -> 0 | AG241: =ROUND(AE241*X234,2) -> 0
E243: =ROUND(E209*D243/1000,2) -> 0 | F243: =ROUND(E243*(1-B234),2) -> 0 | G243: =ROUND(E243*B234,2) -> 0 | AD243: =X237/(1-(X232+X233+X234+X235)) -> 4.999900828 | AE243: =ROUND(AE209*AD243/1000,2) -> 0 | AF243: =ROUND(AE243*(1-X234),2) -> 0 | AG243: =ROUND(AE243*X234,2) -> 0
E245: =E202+E225+E243 -> 0 | F245: =IF(F247<>F246,F246,F247) ->  | G245: =IF(G247<>G246,G246,G247) ->  | AD245: TOTAL COMPLETA 4 | AE245: =AE202+AE225+AE243 -> 0 | AF245: =IF(AF202+AF225+AF243<>AF250,AF250,AF243) -> 0 | AG245: =AG202+AG225+AG243 -> 0
E246: Suma Ajustada | F246: =#REF!+#REF! ->  | G246: =#REF!+#REF! ->  | AE246: Suma de Cob | AF246: =SUM(AF238:AF241)+SUM(AF217:AF221)+SUM(AF188:AF198) -> 0 | AG246: =SUM(AG238:AG241)+SUM(AG217:AG221)+SUM(AG188:AG198) -> 0
E247: Suma Esperada | F247: =F202+F225+F243 -> 0 | G247: =E245*B234 -> 0 | AE247: Esperado | AF247: =AE245*(1-X234) -> 0 | AG247: =AE245*X234 -> 0
AE248: Faltante | AF248: =AF247-AF246 -> 0 | AG248: =AG247-AG245 -> 0
AF249: =AF188+AF248 -> 0 | AG249: =AG188+AG248 -> 0
AE250: =AF250+AG250 -> 0 | AF250: =ROUND(AF246-AF188+AF249,2) -> 0 | AG250: =ROUND(AG245-AG188+AG249,2) -> 0
E251: Prima comercial mínima dólares | F251: 51.5 | J251: =+F251-J24 -> 51.5
E252: Prima comercial mínima soles | F252: 154.5 | J252: =+F252-J24 -> 154.5

Sheet BIENES (hidden)
E1: Ir a Panel
D3: Suma asegurada Bienes | E3: 100000
A5: Tipo de bien: Bienes | B5: tasa de riesgo | O5: PRIMA NETA | P5: =+P7/1.03 -> 60.99029126 | W5: Tipo de bien: Bienes | X5: tasa de riesgo | Y5: tasa comercial | Z5: tasa de riesgo | AA5: tasa comercial | AD5: COMPLETA 1 - Contenido
B6: Corredores | X6: Corredores | Y6: Corredores | Z6: NNDD | AA6: NNDD
A7: Gastos generales | B7: =tasas!$H$6 -> 0.1142203 | O7: Prima Comercial | P7: =+IF(Cotizador!H37="X",(BIENES!L20+BIENES!L38),(BIENES!K20+BIENES!K38)) -> 62.82 | W7: Gastos generales | X7: 0.1142203 | Y7: 0.03067290513 | Z7: 0.1396364 | AA7: 0.15
A8: Gastos de comercialización | B8: =tasas!$H$7 -> 0 | O8: IGV | P8: =+P7*0.18 -> 11.3076 | W8: Gastos de comercialización | X8: 0 | Y8: 0 | Z8: 0.05 | AA8: 0.05
A9: Comisión local | B9: =tasas!$H$8 -> 0.2 | O9: Prima Total | P9: =+P7+P8 -> 74.1276 | W9: Comisión local | X9: 0.2 | Y9: 0.2 | Z9: 0 | AA9: 0
A10: Utilidad antes de Imp | B10: =tasas!$H$9 -> 0 | O10: Comisión Total | P10: =+ROUND(P5*0.2,2) -> 12.2 | W10: Utilidad antes de Imp | X10: 0 | Y10: 0 | Z10: 0 | AA10: 0.03065679971
A11: Tasa comercial %o | B11: =+B12/(1-(B7+B8+B9+B10)) -> 2.200087579 | D11: Tasa Comercial | E11: Prima Neta | F11: Prima | G11: Comisión | I11: Operativas | J11: Prima comercial con ajuste | K11: Prima comercial con ajuste de prima mínima | W11: Tasa comercial %o | X11: =+X12/(1-(X7+X8+X9+X10)) -> 2.042912469 | Y11: =+SUM(Y13:Y15) ->  | Z11: =+Z12/(1-(Z7+Z8+Z9+Z10)) -> 2.067303862 | AA11: =+SUM(AA13:AA15) ->  | AD11: Tasa Comercial | AE11: Prima Neta | AF11: Prima | AG11: Comisión
A12: Tasa de Riesgo %o | B12: =+SUM(B13:B15) -> 1.5087754 | G12: =+IF(Cotizador!$H$37="X",BIENES!L13,BIENES!K13) -> 62.82 | K12: Dólares | L12: Soles | W12: Tasa de Riesgo %o | X12: =+SUM(X13:X15) -> 1.4009879 | Z12: =+SUM(Z13:Z15) -> 1.6752678
A13: Incendio y/o rayo, explosión. Daños por agua, daños por humo, impacto de vehículos y/o aeronaves | B13: =tasas!$H$12 -> 0.4183998 | D13: =B13/(1-(B7+B8+B9+B10)) -> 0.6101081732 | E13: =ROUND(E3*D13/1000, 2) -> 61.01 | F13: =ROUND(E13*(1-B9),2) -> 48.81 | G13: =ROUND(E13*B9,2) -> 12.2 | I13: =+ROUND(E13*1.03,2) -> 62.84 | J13: =+IF(0<=F22>=0,F22+I13,0) -> 62.82 | K13: =+IF(J20<F24,(J24+J13),J13) -> 62.82 | L13: =+IF(J20<F25,(J25+J13),J13) -> 154.5 | W13: Incendio y/o rayo, explosión. Daños por agua, daños por humo, impacto de vehículos y/o aeronaves | X13: 0.4133998 | Y13: =+X13/(1-(#REF!+#REF!+#REF!+#REF!)) ->  | Z13: 0.4133998 | AA13: =+Z13/(1-(#REF!+#REF!+#REF!+#REF!)) ->  | AD13: =X13/(1-(X7+X8+X9+X10)) -> 0.6028172021 | AE13: =ROUND(AE5*AD13/1000, 2) -> 0 | AF13: =ROUND(AE13*(1-X9),2) -> 0 | AG13: =ROUND(AE13*X9,2) -> 0
A14: Terremoto, temblor, maremoto, Inundaciones y riesgos de la naturaleza | B14: =tasas!$H$13 -> 1.0278754 | D14: =B14/(1-(B7+B8+B9+B10)) -> 1.498841975 | E14: =ROUND(E3*D14/1000,2) -> 149.88 | F14: =ROUND(E14*(1-B9),2) -> 119.9 | G14: =ROUND(E14*B9,2) -> 29.98 | I14: 0 | J14: =+I14 -> 0 | K14: 0 | L14: =+J14 -> 0 | W14: Terremoto, temblor | X14: 0.9250879 | Y14: =+X14/(1-(#REF!+#REF!+#REF!+#REF!)) ->  | Z14: 0.9250879 | AA14: =+Z14/(1-(#REF!+#REF!+#REF!+#REF!)) ->  | AD14: =X14/(1-(X7+X8+X9+X10)) -> 1.348957836 | AE14: =ROUND(AE5*AD14/1000,2) -> 0 | AF14: =ROUND(AE14*(1-X9),2) -> 0 | AG14: =ROUND(AE14*X9,2) -> 0
A15: Asistencias | B15: =tasas!$H$14 -> 0.0625002 | E15: =E17*B16 -> 9.12 | F15: =F17*B16 -> 7.32 | G15: =G17*B16 -> 1.8 | I15: 0 | J15: 0 | K15: 0 | L15: =+J15 -> 0 | W15: Asistencias | X15: 0.0625002 | Y15: =+X15/(1-(#REF!+#REF!+#REF!+#REF!)) ->  | Z15: 0.3367801 | AA15: =+Z15/(1-(#REF!+#REF!+#REF!+#REF!)) ->  | AE15: =AE17*X16 -> 0 | AF15: =AF17*X16 -> 0 | AG15: =AG17*X16 -> 0
A16: Cantidad de asistencias | B16: =tasas!$H$15 -> 6 | W16: Cantidad de asistencias | X16: 6 | Y16: 6 | Z16: 6 | AA16: 6
A17: Tasa por asistencia | B17: =B15/B16 -> 0.0104167 | D17: =B17/(1-(B7+B8+B9+B10)) -> 0.01518957181 | E17: =ROUND(E3*D17/1000,2) -> 1.52 | F17: =ROUND(E17*(1-B9),2) -> 1.22 | G17: =ROUND(E17*B9,2) -> 0.3 | W17: Tasa por asistencia | X17: =X15/X16 -> 0.0104167 | Y17: =+ROUND(Y15/Y16,7) ->  | Z17: 0.0104167 | AA17: 0.0104167 | AD17: =X17/(1-(X7+X8+X9+X10)) -> 0.01518957181 | AE17: =ROUND(AE5*AD17/1000,2) -> 0 | AF17: =ROUND(AE17*(1-X9),2) -> 0 | AG17: =ROUND(AE17*X9,2) -> 0
D19: =B12/(1-(B7+B8+B9+B10)) -> 2.200087579 | E19: =ROUND(E3*D19/1000,2) -> 220.01 | F19: =ROUND(E19*(1-B9),2) -> 176.01 | G19: =ROUND(E19*B9,2) -> 44 | AD19: =X12/(1-(X7+X8+X9+X10)) -> 2.042912469 | AE19: =ROUND(AE5*AD19/1000,2) -> 0 | AF19: =ROUND(AE19*(1-X9),2) -> 0 | AG19: =ROUND(AE19*X9,2) -> 0
E20: Suma de Cob | F20: =SUM(F13:F15) -> 176.03 | G20: =SUM(G13:G15) -> 43.98 | I20: =SUM(I13:I15) -> 62.84 | J20: =SUM(J13:J15) -> 62.82 | K20: =SUM(K13:K15) -> 62.82 | L20: 154.5 | AE20: Suma de Cob | AF20: =SUM(AF13:AF15) -> 0 | AG20: =SUM(AG13:AG15) -> 0
E21: Esperado | F21: =E19*(1-B9) -> 176.008 | G21: =E19*B9 -> 44.002 | AE21: Esperado | AF21: =AE19*(1-X9) -> 0 | AG21: =AE19*X9 -> 0
E22: Faltante | F22: =ROUND(F21-F20,2) -> -0.02 | G22: =G21-G20 -> 0.022 | AE22: Faltante | AF22: =AF21-AF20 -> 0 | AG22: =AG21-AG20 -> 0
E24: Prima comercial mínima dólares | F24: 51.5 | J24: =+F24-J20 -> -11.32
A25: Tipo de bien: Bienes con robo | B25: Corredores | E25: Prima comercial mínima soles | F25: 154.5 | J25: =+F25-J20 -> 91.68 | W25: Tipo de bien: Bienes con robo | X25: Corredores | Y25: Corredores | Z25: NNDD | AA25: NNDD
A26: Gastos generales | B26: =tasas!$H$25 -> 0.15 | W26: Gastos generales | X26: 0.15 | Y26: 0.15 | Z26: 0.15 | AA26: 0.15
A27: Gastos de comercialización | B27: =tasas!$H$26 -> 0.05 | W27: Gastos de comercialización | X27: 0.05 | Y27: 0.05 | Z27: 0.05 | AA27: 0.05
A28: Comisión local | B28: =tasas!$H$27 -> 0.2 | W28: Comisión local | X28: 0.2 | Y28: 0.2 | Z28: 0 | AA28: 0
A29: Utilidad antes de Imp | B29: =tasas!$H$28 -> 0.0948186 | W29: Utilidad antes de Imp | X29: 0.0948186 | Y29: 0.09481861887 | Z29: 0.2947788 | AA29: 0.2947788137
A30: Tasa comercial %o | B30: =+B31/(1-(B26+B27+B28+B29)) -> 4.995324254 | D30: Tasa Comercial | E30: Prima Neta | F30: Prima | G30: Comisión | I30: Operativas | J30: Prima comercial con ajuste | K30: Prima comercial con ajuste de prima mínima | W30: Tasa comercial %o | X30: =+X31/(1-(X26+X27+X28+X29)) -> 4.999900828 | Y30: =+SUM(Y32:Y35) ->  | Z30: =+Z31/(1-(Z26+Z27+Z28+Z29)) -> 4.999506949 | AA30: =+SUM(AA32:AA35) ->  | AD30: Tasa Comercial | AE30: Prima Neta | AF30: Prima | AG30: Comisión
A31: Tasa de Riesgo %o | B31: =+SUM(B32:B35) -> 2.5235449 | K31: Dólares | L31: Soles | W31: Tasa de Riesgo %o | X31: =+SUM(X32:X35) -> 2.5258569 | Z31: =+SUM(Z32:Z35) -> 2.5258569
A32: Robo y/o daños por intento de robo de bienes | B32: =tasas!$H$31 -> 2.4425075 | D32: =B32/(1-(B26+B27+B28+B29)) -> 4.834911776 | E32: =ROUND(E3*D32/1000,2) -> 483.49 | F32: =ROUND(E32*(1-B28),2) -> 386.79 | G32: =ROUND(E32*B28,2) -> 96.7 | I32: 0 | J32: =+IF(0<=F40>=0,F40+I32,0) -> -0.006 | K32: =IF(I32=0,0,IF(J38<F269,(J269+J32),J32)) -> 0 | L32: =IF(I32=0,0,IF(J38<F270,(J270+J32),K32)) -> 0 | W32: Robo y/o daños por intento de robo de bienes | X32: 2.4425075 | Y32: =+X32/(1-(#REF!+#REF!+#REF!+#REF!)) ->  | Z32: 2.4425075 | AA32: =+Z32/(1-(#REF!+#REF!+#REF!+#REF!)) ->  | AD32: =X32/(1-(X26+X27+X28+X29)) -> 4.834911776 | AE32: =ROUND(AE5*AD32/1000,2) -> 0 | AF32: =ROUND(AE32*(1-X28),2) -> 0 | AG32: =ROUND(AE32*X28,2) -> 0
A33: Robo y/o daños por intento de robo de joyas, platería, relojes, obras de arte, cámaras fotográficas o de video, laptops y bicicletas dentro de la vivienda o que estén siendo portados fuera de la vivienda | B33: =tasas!$H$32 -> 0.06 | D33: =B33/(1-(B26+B27+B28+B29)) -> 0.1187692183 | E33: =ROUND(E3*D33/1000,2) -> 11.88 | F33: =ROUND(E33*(1-B28),2) -> 9.5 | G33: =ROUND(E33*B28,2) -> 2.38 | I33: 0 | J33: =+I33 -> 0 | K33: =+J33 -> 0 | L33: =+J33 -> 0 | W33: Robo y/o daños por intento de robo de bienes especiales: joyas, platería, relojes, obras de arte, cámaras fotográficas o de video, laptops y bicicletas dentro de la vivienda o que estén siendo portados fuera de la vivienda | X33: 0.062312 | Y33: =+X33/(1-(#REF!+#REF!+#REF!+#REF!)) ->  | Z33: 0.062312 | AA33: =+Z33/(1-(#REF!+#REF!+#REF!+#REF!)) ->  | AD33: =X33/(1-(X26+X27+X28+X29)) -> 0.1233457922 | AE33: =ROUND(AE5*AD33/1000,2) -> 0 | AF33: =ROUND(AE33*(1-X28),2) -> 0 | AG33: =ROUND(AE33*X28,2) -> 0
A34: Hurto | B34: =tasas!$H$33 -> 0.0139687 | D34: =B34/(1-(B26+B27+B28+B29)) -> 0.02765085967 | E34: =ROUND(E3*D34/1000,2) -> 2.77 | F34: =ROUND(E34*(1-B28),2) -> 2.22 | G34: =ROUND(E34*B28,2) -> 0.55 | I34: 0 | J34: =+I34 -> 0 | K34: 0 | L34: =+J34 -> 0 | W34: Hurto | X34: 0.0139687 | Y34: =+X34/(1-(#REF!+#REF!+#REF!+#REF!)) ->  | Z34: 0.0139687 | AA34: =+Z34/(1-(#REF!+#REF!+#REF!+#REF!)) ->  | AD34: =X34/(1-(X26+X27+X28+X29)) -> 0.02765085967 | AE34: =ROUND(AE5*AD34/1000,2) -> 0 | AF34: =ROUND(AE34*(1-X28),2) -> 0 | AG34: =ROUND(AE34*X28,2) -> 0
A35: Deshonestidad de trabajadores del hogar | B35: =tasas!$H$34 -> 0.0070687 | D35: =B35/(1-(B26+B27+B28+B29)) -> 0.01399239956 | E35: =ROUND(E3*D35/1000,2) -> 1.4 | F35: =ROUND(E35*(1-B28),2) -> 1.12 | G35: =ROUND(E35*B28,2) -> 0.28 | I35: 0 | J35: 0 | K35: 0 | L35: 0 | W35: Deshonestidad de trabajadores del hogar | X35: 0.0070687 | Y35: =+X35/(1-(#REF!+#REF!+#REF!+#REF!)) ->  | Z35: 0.0070687 | AA35: =+Z35/(1-(#REF!+#REF!+#REF!+#REF!)) ->  | AD35: =X35/(1-(X26+X27+X28+X29)) -> 0.01399239956 | AE35: =ROUND(AE5*AD35/1000,2) -> 0 | AF35: =ROUND(AE35*(1-X28),2) -> 0 | AG35: =ROUND(AE35*X28,2) -> 0
D37: =B31/(1-(B26+B27+B28+B29)) -> 4.995324254 | E37: =ROUND(E3*D37/1000,2) -> 499.53 | F37: =ROUND(E37*(1-B28),2) -> 399.62 | G37: =ROUND(E37*B28,2) -> 99.91 | AD37: =X31/(1-(X26+X27+X28+X29)) -> 4.999900828 | AE37: =ROUND(AE5*AD37/1000,2) -> 0 | AF37: =ROUND(AE37*(1-X28),2) -> 0 | AG37: =ROUND(AE37*X28,2) -> 0
E38: Suma de Cob | F38: =SUM(F32:F35) -> 399.63 | G38: =SUM(G32:G35) -> 99.91 | I38: =SUM(I32:I35) -> 0 | J38: =SUM(J32:J35) -> -0.006 | K38: =SUM(K32:K35) -> 0 | L38: =SUM(L32:L35) -> 0
E39: Esperado | F39: =E37*(1-B28) -> 399.624 | G39: =E37*B28 -> 99.906 | AD39: TOTAL COMPLETA 1 | AE39: =#REF!+AE19+AE37 ->  | AF39: =IF(AF41<>AF40,AF40,AF41) ->  | AG39: =IF(AG41<>AG40,AG40,AG41) -> 
E40: Faltante | F40: =F39-F38 -> -0.006 | G40: =G39-G38 -> -0.004 | AE40: Suma Ajustada | AF40: =#REF!+#REF! ->  | AG40: =#REF!+#REF! -> 
AE41: Suma Esperada | AF41: =#REF!+AF19+AF37 ->  | AG41: =#REF!+AG19+AG37 -> 
D42: TOTAL COMPLETA 1 | E42: =+E19+E37 -> 719.54 | F42: =IF(F44<>F43,F43,F44) -> 0 | G42: =IF(G44<>G43,G43,G44) -> 0
E43: Suma Ajustada | I43: =+I38+I20 -> 62.84 | J43: =+J38+J20 -> 62.814 | K43: =+K38+K20 -> 62.82 | L43: 154.5
E44: Suma Esperada | F44: =+F39+F21 -> 575.632 | G44: =+G39+G21 -> 143.908
A46: Tipo de bien: Inmueble | B46: tasa de riesgo | D46: COMPLETA 2 - Inmueble | W46: Tipo de bien: Inmueble | X46: tasa de riesgo | Y46: tasa comercial | Z46: tasa de riesgo | AA46: tasa comercial | AD46: COMPLETA 2 - Inmueble
B47: Corredores | X47: Corredores | Y47: Corredores | Z47: NNDD | AA47: NNDD
A48: Gastos generales | B48: 0.0306729 | W48: Gastos generales | X48: 0.0306729 | Y48: 0.03067290513 | Z48: 0.15 | AA48: 0.15
A49: Gastos de comercialización | B49: 0 | W49: Gastos de comercialización | X49: 0 | Y49: 0 | Z49: 0.05 | AA49: 0.05
A50: Comisión local | B50: 0.2 | W50: Comisión local | X50: 0.2 | Y50: 0.2 | Z50: 0 | AA50: 0
A51: Utilidad antes de Imp | B51: 0 | W51: Utilidad antes de Imp | X51: 0 | Y51: 0 | Z51: 0.0306568 | AA51: 0.03065679971
A52: Tasa comercial %o | B52: =+B53/(1-(B48+B49+B50+B51)) -> 2.200058337 | D52: Tasa Comercial | E52: Prima Neta | F52: Prima | G52: Comisión | W52: Tasa comercial %o | X52: =+X53/(1-(X48+X49+X50+X51)) -> 2.200058337 | Y52: =+SUM(Y54:Y64) ->  | Z52: =+Z53/(1-(Z48+Z49+Z50+Z51)) -> 2.200012036 | AA52: =+SUM(AA54:AA64) ->  | AD52: Tasa Comercial | AE52: Prima Neta | AF52: Prima | AG52: Comisión
A53: Tasa de Riesgo %o | B53: =+SUM(B54:B64) -> 1.6925645 | W53: Tasa de Riesgo %o | X53: =+SUM(X54:X64) -> 1.6925645 | Z53: =+SUM(Z54:Z64) -> 1.6925643
A54: Incendio y/o rayo, explosión. Daños por agua, daños por humo, impacto de vehículos y/o aeronaves | B54: 0.5611967 | D54: =B54/(1-(B48+B49+B50+B51)) -> 0.7294643592 | E54: =ROUND(E46*D54/1000,2) -> 0 | F54: =ROUND(E54*(1-B50),2) -> 0 | G54: =ROUND(E54*B50,2) -> 0 | W54: Incendio y/o rayo, explosión. Daños por agua, daños por humo, impacto de vehículos y/o aeronaves | X54: 0.5611967 | Y54: =+X54/(1-(#REF!+#REF!+#REF!+#REF!)) ->  | Z54: 0.5611967 | AA54: =+Z54/(1-(#REF!+#REF!+#REF!+#REF!)) ->  | AD54: =X54/(1-(X48+X49+X50+X51)) -> 0.7294643592 | AE54: =ROUND(AE46*AD54/1000,2) -> 0 | AF54: =ROUND(AE54*(1-X50),2) -> 0 | AG54: =ROUND(AE54*X50,2) -> 0
A55: Terremoto, temblor | B55: 0.9250879 | D55: =B55/(1-(B48+B49+B50+B51)) -> 1.202463685 | E55: =ROUND(E46*D55/1000,2) -> 0 | F55: =ROUND(E55*(1-B50),2) -> 0 | G55: =ROUND(E55*B50,2) -> 0 | W55: Terremoto, temblor | X55: 0.9250879 | Y55: =+X55/(1-(#REF!+#REF!+#REF!+#REF!)) ->  | Z55: 0.9250879 | AA55: =+Z55/(1-(#REF!+#REF!+#REF!+#REF!)) ->  | AD55: =X55/(1-(X48+X49+X50+X51)) -> 1.202463685 | AE55: =ROUND(AE46*AD55/1000,2) -> 0 | AF55: =ROUND(AE55*(1-X50),2) -> 0 | AG55: =ROUND(AE55*X50,2) -> 0
A56: Riesgos de la naturaleza | B56: 0.1027875 | D56: =B56/(1-(B48+B49+B50+B51)) -> 0.1336070184 | E56: =ROUND(E46*D56/1000,2) -> 0 | F56: =ROUND(E56*(1-B50),2) -> 0 | G56: =ROUND(E56*B50,2) -> 0 | W56: Riesgos de la naturaleza | X56: 0.1027875 | Y56: =+X56/(1-(#REF!+#REF!+#REF!+#REF!)) ->  | Z56: 0.1027875 | AA56: =+Z56/(1-(#REF!+#REF!+#REF!+#REF!)) ->  | AD56: =X56/(1-(X48+X49+X50+X51)) -> 0.1336070184 | AE56: =ROUND(AE46*AD56/1000,2) -> 0 | AF56: =ROUND(AE56*(1-X50),2) -> 0 | AG56: =ROUND(AE56*X50,2) -> 0
A57: Riesgos políticos y sociales | B57: 0.005 | D57: =B57/(1-(B48+B49+B50+B51)) -> 0.006499186107 | E57: =ROUND(E46*D57/1000,2) -> 0 | F57: =ROUND(E57*(1-B50),2) -> 0 | G57: =ROUND(E57*B50,2) -> 0 | W57: Riesgos políticos y sociales | X57: 0.005 | Y57: =+X57/(1-(#REF!+#REF!+#REF!+#REF!)) ->  | Z57: 0.005 | AA57: =+Z57/(1-(#REF!+#REF!+#REF!+#REF!)) ->  | AD57: =X57/(1-(X48+X49+X50+X51)) -> 0.006499186107 | AE57: =ROUND(AE46*AD57/1000,2) -> 0 | AF57: =ROUND(AE57*(1-X50),2) -> 0 | AG57: =ROUND(AE57*X50,2) -> 0
A58: Responsabilidad Civil frente a terceros | B58: 0.006267 | D58: =B58/(1-(B48+B49+B50+B51)) -> 0.008146079866 | E58: =ROUND(E46*D58/1000,2) -> 0 | F58: =ROUND(E58*(1-B50),2) -> 0 | G58: =ROUND(E58*B50,2) -> 0 | W58: Responsabilidad Civil frente a terceros | X58: 0.006267 | Y58: =+X58/(1-(#REF!+#REF!+#REF!+#REF!)) ->  | Z58: 0.006267 | AA58: =+Z58/(1-(#REF!+#REF!+#REF!+#REF!)) ->  | AD58: =X58/(1-(X48+X49+X50+X51)) -> 0.008146079866 | AE58: =ROUND(AE46*AD58/1000,2) -> 0 | AF58: =ROUND(AE58*(1-X50),2) -> 0 | AG58: =ROUND(AE58*X50,2) -> 0
A59: Rotura accidental de vidrio y/o cristales | B59: 0.0172741 | D59: =B59/(1-(B48+B49+B50+B51)) -> 0.02245351815 | E59: =ROUND(E46*D59/1000,2) -> 0 | F59: =ROUND(E59*(1-B50),2) -> 0 | G59: =ROUND(E59*B50,2) -> 0 | W59: Rotura accidental de vidrio y/o cristales | X59: 0.0172741 | Y59: =+X59/(1-(#REF!+#REF!+#REF!+#REF!)) ->  | Z59: 0.0172741 | AA59: =+Z59/(1-(#REF!+#REF!+#REF!+#REF!)) ->  | AD59: =X59/(1-(X48+X49+X50+X51)) -> 0.02245351815 | AE59: =ROUND(AE46*AD59/1000,2) -> 0 | AF59: =ROUND(AE59*(1-X50),2) -> 0 | AG59: =ROUND(AE59*X50,2) -> 0
A60: Robo o intento de robo de instalaciones fijas | B60: 0.0003616 | D60: =B60/(1-(B48+B49+B50+B51)) -> 0.0004700211393 | E60: =ROUND(E46*D60/1000,2) -> 0 | F60: =ROUND(E60*(1-B50),2) -> 0 | G60: =ROUND(E60*B50,2) -> 0 | W60: Robo o intento de robo de instalaciones fijas | X60: 0.0003616 | Y60: =+X60/(1-(#REF!+#REF!+#REF!+#REF!)) ->  | Z60: 0.0003616 | AA60: =+Z60/(1-(#REF!+#REF!+#REF!+#REF!)) ->  | AD60: =X60/(1-(X48+X49+X50+X51)) -> 0.0004700211393 | AE60: =ROUND(AE46*AD60/1000,2) -> 0 | AF60: =ROUND(AE60*(1-X50),2) -> 0 | AG60: =ROUND(AE60*X50,2) -> 0
